Workbook

Sheet Dashboard
A1: Month: | B1: Jan
A2: PRM: | B2: =INDEX(PRM[Planning Reserve Margin],MONTH(Month&" 1, 2000")) -> 0.2000018402 | C2: Supply or Load (MW)
B3: Unit Category | C3: HE 1 | D3: HE 2 | E3: HE 3 | F3: HE 4 | G3: HE 5 | H3: HE 6 | I3: HE 7 | J3: HE 8 | K3: HE 9 | L3: HE 10 | M3: HE 11 | N3: HE 12 | O3: HE 13 | P3: HE 14 | Q3: HE 15 | R3: HE 16 | S3: HE 17 | T3: HE 18 | U3: HE 19 | V3: HE 20 | W3: HE 21 | X3: HE 22 | Y3: HE 23 | Z3: HE 24
B4: Biogas | C4: =INDEX(Supply[Supply],MATCH(1,(Supply[Month]=MONTH(Month&" 1, 2000"))*(Supply[Unit Category]=Dashboard!$B4)*(Supply[Hour Ending]=INT(INDEX(_xlfn.TEXTSPLIT(Dashboard!C$3," "),2))),0)) -> 187.2457214 | D4: =INDEX(MonthlyCapacities[Total Capacity (MW)],MATCH(1,(MonthlyCapacities[Month]=MONTH(Month&" 1, 2000"))*(MonthlyCapacities[Unit Category]=Dashboard!$B4),0))*INDEX(Profiles[],MATCH(1,(Profiles[Month]=MONTH(Month&" 1, 2000"))*(Profiles[Hour Ending]=INT(INDEX(_xlfn.TEXTSPLIT(Dashboard!D$3,," "),2))),0),MATCH(Dashboard!$B4,Profiles[#Headers],0)) -> 187.2457214 | E4: =INDEX(MonthlyCapacities[Total Capacity (MW)],MATCH(1,(MonthlyCapacities[Month]=MONTH(Month&" 1, 2000"))*(MonthlyCapacities[Unit Category]=Dashboard!$B4),0))*INDEX(Profiles[],MATCH(1,(Profiles[Month]=MONTH(Month&" 1, 2000"))*(Profiles[Hour Ending]=INT(INDEX(_xlfn.TEXTSPLIT(Dashboard!E$3,," "),2))),0),MATCH(Dashboard!$B4,Profiles[#Headers],0)) -> 187.2457214 | F4: =INDEX(MonthlyCapacities[Total Capacity (MW)],MATCH(1,(MonthlyCapacities[Month]=MONTH(Month&" 1, 2000"))*(MonthlyCapacities[Unit Category]=Dashboard!$B4),0))*INDEX(Profiles[],MATCH(1,(Profiles[Month]=MONTH(Month&" 1, 2000"))*(Profiles[Hour Ending]=INT(INDEX(_xlfn.TEXTSPLIT(Dashboard!F$3,," "),2))),0),MATCH(Dashboard!$B4,Profiles[#Headers],0)) -> 187.2457214 | G4: =INDEX(MonthlyCapacities[Total Capacity (MW)],MATCH(1,(MonthlyCapacities[Month]=MONTH(Month&" 1, 2000"))*(MonthlyCapacities[Unit Category]=Dashboard!$B4),0))*INDEX(Profiles[],MATCH(1,(Profiles[Month]=MONTH(Month&" 1, 2000"))*(Profiles[Hour Ending]=INT(INDEX(_xlfn.TEXTSPLIT(Dashboard!G$3,," "),2))),0),MATCH(Dashboard!$B4,Profiles[#Headers],0)) -> 187.2457214 | H4: =INDEX(MonthlyCapacities[Total Capacity (MW)],MATCH(1,(MonthlyCapacities[Month]=MONTH(Month&" 1, 2000"))*(MonthlyCapacities[Unit Category]=Dashboard!$B4),0))*INDEX(Profiles[],MATCH(1,(Profiles[Month]=MONTH(Month&" 1, 2000"))*(Profiles[Hour Ending]=INT(INDEX(_xlfn.TEXTSPLIT(Dashboard!H$3,," "),2))),0),MATCH(Dashboard!$B4,Profiles[#Headers],0)) -> 187.2457214 | I4: =INDEX(MonthlyCapacities[Total Capacity (MW)],MATCH(1,(MonthlyCapacities[Month]=MONTH(Month&" 1, 2000"))*(MonthlyCapacities[Unit Category]=Dashboard!$B4),0))*INDEX(Profiles[],MATCH(1,(Profiles[Month]=MONTH(Month&" 1, 2000"))*(Profiles[Hour Ending]=INT(INDEX(_xlfn.TEXTSPLIT(Dashboard!I$3,," "),2))),0),MATCH(Dashboard!$B4,Profiles[#Headers],0)) -> 187.2457214 | J4: =INDEX(MonthlyCapacities[Total Capacity (MW)],MATCH(1,(MonthlyCapacities[Month]=MONTH(Month&" 1, 2000"))*(MonthlyCapacities[Unit Category]=Dashboard!$B4),0))*INDEX(Profiles[],MATCH(1,(Profiles[Month]=MONTH(Month&" 1, 2000"))*(Profiles[Hour Ending]=INT(INDEX(_xlfn.TEXTSPLIT(Dashboard!J$3,," "),2))),0),MATCH(Dashboard!$B4,Profiles[#Headers],0)) -> 187.2457214 | K4: =INDEX(MonthlyCapacities[Total Capacity (MW)],MATCH(1,(MonthlyCapacities[Month]=MONTH(Month&" 1, 2000"))*(MonthlyCapacities[Unit Category]=Dashboard!$B4),0))*INDEX(Profiles[],MATCH(1,(Profiles[Month]=MONTH(Month&" 1, 2000"))*(Profiles[Hour Ending]=INT(INDEX(_xlfn.TEXTSPLIT(Dashboard!K$3,," "),2))),0),MATCH(Dashboard!$B4,Profiles[#Headers],0)) -> 187.2457214 | L4: =INDEX(MonthlyCapacities[Total Capacity (MW)],MATCH(1,(MonthlyCapacities[Month]=MONTH(Month&" 1, 2000"))*(MonthlyCapacities[Unit Category]=Dashboard!$B4),0))*INDEX(Profiles[],MATCH(1,(Profiles[Month]=MONTH(Month&" 1, 2000"))*(Profiles[Hour Ending]=INT(INDEX(_xlfn.TEXTSPLIT(Dashboard!L$3,," "),2))),0),MATCH(Dashboard!$B4,Profiles[#Headers],0)) -> 187.2457214 | M4: =INDEX(MonthlyCapacities[Total Capacity (MW)],MATCH(1,(MonthlyCapacities[Month]=MONTH(Month&" 1, 2000"))*(MonthlyCapacities[Unit Category]=Dashboard!$B4),0))*INDEX(Profiles[],MATCH(1,(Profiles[Month]=MONTH(Month&" 1, 2000"))*(Profiles[Hour Ending]=INT(INDEX(_xlfn.TEXTSPLIT(Dashboard!M$3,," "),2))),0),MATCH(Dashboard!$B4,Profiles[#Headers],0)) -> 187.2457214 | N4: =INDEX(MonthlyCapacities[Total Capacity (MW)],MATCH(1,(MonthlyCapacities[Month]=MONTH(Month&" 1, 2000"))*(MonthlyCapacities[Unit Category]=Dashboard!$B4),0))*INDEX(Profiles[],MATCH(1,(Profiles[Month]=MONTH(Month&" 1, 2000"))*(Profiles[Hour Ending]=INT(INDEX(_xlfn.TEXTSPLIT(Dashboard!N$3,," "),2))),0),MATCH(Dashboard!$B4,Profiles[#Headers],0)) -> 187.2457214 | O4: =INDEX(MonthlyCapacities[Total Capacity (MW)],MATCH(1,(MonthlyCapacities[Month]=MONTH(Month&" 1, 2000"))*(MonthlyCapacities[Unit Category]=Dashboard!$B4),0))*INDEX(Profiles[],MATCH(1,(Profiles[Month]=MONTH(Month&" 1, 2000"))*(Profiles[Hour Ending]=INT(INDEX(_xlfn.TEXTSPLIT(Dashboard!O$3,," "),2))),0),MATCH(Dashboard!$B4,Profiles[#Headers],0)) -> 187.2457214 | P4: =INDEX(MonthlyCapacities[Total Capacity (MW)],MATCH(1,(MonthlyCapacities[Month]=MONTH(Month&" 1, 2000"))*(MonthlyCapacities[Unit Category]=Dashboard!$B4),0))*INDEX(Profiles[],MATCH(1,(Profiles[Month]=MONTH(Month&" 1, 2000"))*(Profiles[Hour Ending]=INT(INDEX(_xlfn.TEXTSPLIT(Dashboard!P$3,," "),2))),0),MATCH(Dashboard!$B4,Profiles[#Headers],0)) -> 187.2457214 | Q4: =INDEX(MonthlyCapacities[Total Capacity (MW)],MATCH(1,(MonthlyCapacities[Month]=MONTH(Month&" 1, 2000"))*(MonthlyCapacities[Unit Category]=Dashboard!$B4),0))*INDEX(Profiles[],MATCH(1,(Profiles[Month]=MONTH(Month&" 1, 2000"))*(Profiles[Hour Ending]=INT(INDEX(_xlfn.TEXTSPLIT(Dashboard!Q$3,," "),2))),0),MATCH(Dashboard!$B4,Profiles[#Headers],0)) -> 187.2457214 | R4: =INDEX(MonthlyCapacities[Total Capacity (MW)],MATCH(1,(MonthlyCapacities[Month]=MONTH(Month&" 1, 2000"))*(MonthlyCapacities[Unit Category]=Dashboard!$B4),0))*INDEX(Profiles[],MATCH(1,(Profiles[Month]=MONTH(Month&" 1, 2000"))*(Profiles[Hour Ending]=INT(INDEX(_xlfn.TEXTSPLIT(Dashboard!R$3,," "),2))),0),MATCH(Dashboard!$B4,Profiles[#Headers],0)) -> 187.2457214 | S4: =INDEX(MonthlyCapacities[Total Capacity (MW)],MATCH(1,(MonthlyCapacities[Month]=MONTH(Month&" 1, 2000"))*(MonthlyCapacities[Unit Category]=Dashboard!$B4),0))*INDEX(Profiles[],MATCH(1,(Profiles[Month]=MONTH(Month&" 1, 2000"))*(Profiles[Hour Ending]=INT(INDEX(_xlfn.TEXTSPLIT(Dashboard!S$3,," "),2))),0),MATCH(Dashboard!$B4,Profiles[#Headers],0)) -> 187.2457214 | T4: =INDEX(MonthlyCapacities[Total Capacity (MW)],MATCH(1,(MonthlyCapacities[Month]=MONTH(Month&" 1, 2000"))*(MonthlyCapacities[Unit Category]=Dashboard!$B4),0))*INDEX(Profiles[],MATCH(1,(Profiles[Month]=MONTH(Month&" 1, 2000"))*(Profiles[Hour Ending]=INT(INDEX(_xlfn.TEXTSPLIT(Dashboard!T$3,," "),2))),0),MATCH(Dashboard!$B4,Profiles[#Headers],0)) -> 187.2457214 | U4: =INDEX(MonthlyCapacities[Total Capacity (MW)],MATCH(1,(MonthlyCapacities[Month]=MONTH(Month&" 1, 2000"))*(MonthlyCapacities[Unit Category]=Dashboard!$B4),0))*INDEX(Profiles[],MATCH(1,(Profiles[Month]=MONTH(Month&" 1, 2000"))*(Profiles[Hour Ending]=INT(INDEX(_xlfn.TEXTSPLIT(Dashboard!U$3,," "),2))),0),MATCH(Dashboard!$B4,Profiles[#Headers],0)) -> 187.2457214 | V4: =INDEX(MonthlyCapacities[Total Capacity (MW)],MATCH(1,(MonthlyCapacities[Month]=MONTH(Month&" 1, 2000"))*(MonthlyCapacities[Unit Category]=Dashboard!$B4),0))*INDEX(Profiles[],MATCH(1,(Profiles[Month]=MONTH(Month&" 1, 2000"))*(Profiles[Hour Ending]=INT(INDEX(_xlfn.TEXTSPLIT(Dashboard!V$3,," "),2))),0),MATCH(Dashboard!$B4,Profiles[#Headers],0)) -> 187.2457214 | W4: =INDEX(MonthlyCapacities[Total Capacity (MW)],MATCH(1,(MonthlyCapacities[Month]=MONTH(Month&" 1, 2000"))*(MonthlyCapacities[Unit Category]=Dashboard!$B4),0))*INDEX(Profiles[],MATCH(1,(Profiles[Month]=MONTH(Month&" 1, 2000"))*(Profiles[Hour Ending]=INT(INDEX(_xlfn.TEXTSPLIT(Dashboard!W$3,," "),2))),0),MATCH(Dashboard!$B4,Profiles[#Headers],0)) -> 187.2457214 | X4: =INDEX(MonthlyCapacities[Total Capacity (MW)],MATCH(1,(MonthlyCapacities[Month]=MONTH(Month&" 1, 2000"))*(MonthlyCapacities[Unit Category]=Dashboard!$B4),0))*INDEX(Profiles[],MATCH(1,(Profiles[Month]=MONTH(Month&" 1, 2000"))*(Profiles[Hour Ending]=INT(INDEX(_xlfn.TEXTSPLIT(Dashboard!X$3,," "),2))),0),MATCH(Dashboard!$B4,Profiles[#Headers],0)) -> 187.2457214 | Y4: =INDEX(MonthlyCapacities[Total Capacity (MW)],MATCH(1,(MonthlyCapacities[Month]=MONTH(Month&" 1, 2000"))*(MonthlyCapacities[Unit Category]=Dashboard!$B4),0))*INDEX(Profiles[],MATCH(1,(Profiles[Month]=MONTH(Month&" 1, 2000"))*(Profiles[Hour Ending]=INT(INDEX(_xlfn.TEXTSPLIT(Dashboard!Y$3,," "),2))),0),MATCH(Dashboard!$B4,Profiles[#Headers],0)) -> 187.2457214 | Z4: =INDEX(MonthlyCapacities[Total Capacity (MW)],MATCH(1,(MonthlyCapacities[Month]=MONTH(Month&" 1, 2000"))*(MonthlyCapacities[Unit Category]=Dashboard!$B4),0))*INDEX(Profiles[],MATCH(1,(Profiles[Month]=MONTH(Month&" 1, 2000"))*(Profiles[Hour Ending]=INT(INDEX(_xlfn.TEXTSPLIT(Dashboard!Z$3,," "),2))),0),MATCH(Dashboard!$B4,Profiles[#Headers],0)) -> 187.2457214
B5: Biomass/Wood | C5: =INDEX(Supply[Supply],MATCH(1,(Supply[Month]=MONTH(Month&" 1, 2000"))*(Supply[Unit Category]=Dashboard!$B5)*(Supply[Hour Ending]=INT(INDEX(_xlfn.TEXTSPLIT(Dashboard!C$3," "),2))),0)) -> 399.9377666 | D5: =INDEX(MonthlyCapacities[Total Capacity (MW)],MATCH(1,(MonthlyCapacities[Month]=MONTH(Month&" 1, 2000"))*(MonthlyCapacities[Unit Category]=Dashboard!$B5),0))*INDEX(Profiles[],MATCH(1,(Profiles[Month]=MONTH(Month&" 1, 2000"))*(Profiles[Hour Ending]=INT(INDEX(_xlfn.TEXTSPLIT(Dashboard!D$3,," "),2))),0),MATCH(Dashboard!$B5,Profiles[#Headers],0)) -> 399.9377666 | E5: =INDEX(MonthlyCapacities[Total Capacity (MW)],MATCH(1,(MonthlyCapacities[Month]=MONTH(Month&" 1, 2000"))*(MonthlyCapacities[Unit Category]=Dashboard!$B5),0))*INDEX(Profiles[],MATCH(1,(Profiles[Month]=MONTH(Month&" 1, 2000"))*(Profiles[Hour Ending]=INT(INDEX(_xlfn.TEXTSPLIT(Dashboard!E$3,," "),2))),0),MATCH(Dashboard!$B5,Profiles[#Headers],0)) -> 399.9377666 | F5: =INDEX(MonthlyCapacities[Total Capacity (MW)],MATCH(1,(MonthlyCapacities[Month]=MONTH(Month&" 1, 2000"))*(MonthlyCapacities[Unit Category]=Dashboard!$B5),0))*INDEX(Profiles[],MATCH(1,(Profiles[Month]=MONTH(Month&" 1, 2000"))*(Profiles[Hour Ending]=INT(INDEX(_xlfn.TEXTSPLIT(Dashboard!F$3,," "),2))),0),MATCH(Dashboard!$B5,Profiles[#Headers],0)) -> 399.9377666 | G5: =INDEX(MonthlyCapacities[Total Capacity (MW)],MATCH(1,(MonthlyCapacities[Month]=MONTH(Month&" 1, 2000"))*(MonthlyCapacities[Unit Category]=Dashboard!$B5),0))*INDEX(Profiles[],MATCH(1,(Profiles[Month]=MONTH(Month&" 1, 2000"))*(Profiles[Hour Ending]=INT(INDEX(_xlfn.TEXTSPLIT(Dashboard!G$3,," "),2))),0),MATCH(Dashboard!$B5,Profiles[#Headers],0)) -> 399.9377666 | H5: =INDEX(MonthlyCapacities[Total Capacity (MW)],MATCH(1,(MonthlyCapacities[Month]=MONTH(Month&" 1, 2000"))*(MonthlyCapacities[Unit Category]=Dashboard!$B5),0))*INDEX(Profiles[],MATCH(1,(Profiles[Month]=MONTH(Month&" 1, 2000"))*(Profiles[Hour Ending]=INT(INDEX(_xlfn.TEXTSPLIT(Dashboard!H$3,," "),2))),0),MATCH(Dashboard!$B5,Profiles[#Headers],0)) -> 399.9377666 | I5: =INDEX(MonthlyCapacities[Total Capacity (MW)],MATCH(1,(MonthlyCapacities[Month]=MONTH(Month&" 1, 2000"))*(MonthlyCapacities[Unit Category]=Dashboard!$B5),0))*INDEX(Profiles[],MATCH(1,(Profiles[Month]=MONTH(Month&" 1, 2000"))*(Profiles[Hour Ending]=INT(INDEX(_xlfn.TEXTSPLIT(Dashboard!I$3,," "),2))),0),MATCH(Dashboard!$B5,Profiles[#Headers],0)) -> 399.9377666 | J5: =INDEX(MonthlyCapacities[Total Capacity (MW)],MATCH(1,(MonthlyCapacities[Month]=MONTH(Month&" 1, 2000"))*(MonthlyCapacities[Unit Category]=Dashboard!$B5),0))*INDEX(Profiles[],MATCH(1,(Profiles[Month]=MONTH(Month&" 1, 2000"))*(Profiles[Hour Ending]=INT(INDEX(_xlfn.TEXTSPLIT(Dashboard!J$3,," "),2))),0),MATCH(Dashboard!$B5,Profiles[#Headers],0)) -> 399.9377666 | K5: =INDEX(MonthlyCapacities[Total Capacity (MW)],MATCH(1,(MonthlyCapacities[Month]=MONTH(Month&" 1, 2000"))*(MonthlyCapacities[Unit Category]=Dashboard!$B5),0))*INDEX(Profiles[],MATCH(1,(Profiles[Month]=MONTH(Month&" 1, 2000"))*(Profiles[Hour Ending]=INT(INDEX(_xlfn.TEXTSPLIT(Dashboard!K$3,," "),2))),0),MATCH(Dashboard!$B5,Profiles[#Headers],0)) -> 399.9377666 | L5: =INDEX(MonthlyCapacities[Total Capacity (MW)],MATCH(1,(MonthlyCapacities[Month]=MONTH(Month&" 1, 2000"))*(MonthlyCapacities[Unit Category]=Dashboard!$B5),0))*INDEX(Profiles[],MATCH(1,(Profiles[Month]=MONTH(Month&" 1, 2000"))*(Profiles[Hour Ending]=INT(INDEX(_xlfn.TEXTSPLIT(Dashboard!L$3,," "),2))),0),MATCH(Dashboard!$B5,Profiles[#Headers],0)) -> 399.9377666 | M5: =INDEX(MonthlyCapacities[Total Capacity (MW)],MATCH(1,(MonthlyCapacities[Month]=MONTH(Month&" 1, 2000"))*(MonthlyCapacities[Unit Category]=Dashboard!$B5),0))*INDEX(Profiles[],MATCH(1,(Profiles[Month]=MONTH(Month&" 1, 2000"))*(Profiles[Hour Ending]=INT(INDEX(_xlfn.TEXTSPLIT(Dashboard!M$3,," "),2))),0),MATCH(Dashboard!$B5,Profiles[#Headers],0)) -> 399.9377666 | N5: =INDEX(MonthlyCapacities[Total Capacity (MW)],MATCH(1,(MonthlyCapacities[Month]=MONTH(Month&" 1, 2000"))*(MonthlyCapacities[Unit Category]=Dashboard!$B5),0))*INDEX(Profiles[],MATCH(1,(Profiles[Month]=MONTH(Month&" 1, 2000"))*(Profiles[Hour Ending]=INT(INDEX(_xlfn.TEXTSPLIT(Dashboard!N$3,," "),2))),0),MATCH(Dashboard!$B5,Profiles[#Headers],0)) -> 399.9377666 | O5: =INDEX(MonthlyCapacities[Total Capacity (MW)],MATCH(1,(MonthlyCapacities[Month]=MONTH(Month&" 1, 2000"))*(MonthlyCapacities[Unit Category]=Dashboard!$B5),0))*INDEX(Profiles[],MATCH(1,(Profiles[Month]=MONTH(Month&" 1, 2000"))*(Profiles[Hour Ending]=INT(INDEX(_xlfn.TEXTSPLIT(Dashboard!O$3,," "),2))),0),MATCH(Dashboard!$B5,Profiles[#Headers],0)) -> 399.9377666 | P5: =INDEX(MonthlyCapacities[Total Capacity (MW)],MATCH(1,(MonthlyCapacities[Month]=MONTH(Month&" 1, 2000"))*(MonthlyCapacities[Unit Category]=Dashboard!$B5),0))*INDEX(Profiles[],MATCH(1,(Profiles[Month]=MONTH(Month&" 1, 2000"))*(Profiles[Hour Ending]=INT(INDEX(_xlfn.TEXTSPLIT(Dashboard!P$3,," "),2))),0),MATCH(Dashboard!$B5,Profiles[#Headers],0)) -> 399.9377666 | Q5: =INDEX(MonthlyCapacities[Total Capacity (MW)],MATCH(1,(MonthlyCapacities[Month]=MONTH(Month&" 1, 2000"))*(MonthlyCapacities[Unit Category]=Dashboard!$B5),0))*INDEX(Profiles[],MATCH(1,(Profiles[Month]=MONTH(Month&" 1, 2000"))*(Profiles[Hour Ending]=INT(INDEX(_xlfn.TEXTSPLIT(Dashboard!Q$3,," "),2))),0),MATCH(Dashboard!$B5,Profiles[#Headers],0)) -> 399.9377666 | R5: =INDEX(MonthlyCapacities[Total Capacity (MW)],MATCH(1,(MonthlyCapacities[Month]=MONTH(Month&" 1, 2000"))*(MonthlyCapacities[Unit Category]=Dashboard!$B5),0))*INDEX(Profiles[],MATCH(1,(Profiles[Month]=MONTH(Month&" 1, 2000"))*(Profiles[Hour Ending]=INT(INDEX(_xlfn.TEXTSPLIT(Dashboard!R$3,," "),2))),0),MATCH(Dashboard!$B5,Profiles[#Headers],0)) -> 399.9377666 | S5: =INDEX(MonthlyCapacities[Total Capacity (MW)],MATCH(1,(MonthlyCapacities[Month]=MONTH(Month&" 1, 2000"))*(MonthlyCapacities[Unit Category]=Dashboard!$B5),0))*INDEX(Profiles[],MATCH(1,(Profiles[Month]=MONTH(Month&" 1, 2000"))*(Profiles[Hour Ending]=INT(INDEX(_xlfn.TEXTSPLIT(Dashboard!S$3,," "),2))),0),MATCH(Dashboard!$B5,Profiles[#Headers],0)) -> 399.9377666 | T5: =INDEX(MonthlyCapacities[Total Capacity (MW)],MATCH(1,(MonthlyCapacities[Month]=MONTH(Month&" 1, 2000"))*(MonthlyCapacities[Unit Category]=Dashboard!$B5),0))*INDEX(Profiles[],MATCH(1,(Profiles[Month]=MONTH(Month&" 1, 2000"))*(Profiles[Hour Ending]=INT(INDEX(_xlfn.TEXTSPLIT(Dashboard!T$3,," "),2))),0),MATCH(Dashboard!$B5,Profiles[#Headers],0)) -> 399.9377666 | U5: =INDEX(MonthlyCapacities[Total Capacity (MW)],MATCH(1,(MonthlyCapacities[Month]=MONTH(Month&" 1, 2000"))*(MonthlyCapacities[Unit Category]=Dashboard!$B5),0))*INDEX(Profiles[],MATCH(1,(Profiles[Month]=MONTH(Month&" 1, 2000"))*(Profiles[Hour Ending]=INT(INDEX(_xlfn.TEXTSPLIT(Dashboard!U$3,," "),2))),0),MATCH(Dashboard!$B5,Profiles[#Headers],0)) -> 399.9377666 | V5: =INDEX(MonthlyCapacities[Total Capacity (MW)],MATCH(1,(MonthlyCapacities[Month]=MONTH(Month&" 1, 2000"))*(MonthlyCapacities[Unit Category]=Dashboard!$B5),0))*INDEX(Profiles[],MATCH(1,(Profiles[Month]=MONTH(Month&" 1, 2000"))*(Profiles[Hour Ending]=INT(INDEX(_xlfn.TEXTSPLIT(Dashboard!V$3,," "),2))),0),MATCH(Dashboard!$B5,Profiles[#Headers],0)) -> 399.9377666 | W5: =INDEX(MonthlyCapacities[Total Capacity (MW)],MATCH(1,(MonthlyCapacities[Month]=MONTH(Month&" 1, 2000"))*(MonthlyCapacities[Unit Category]=Dashboard!$B5),0))*INDEX(Profiles[],MATCH(1,(Profiles[Month]=MONTH(Month&" 1, 2000"))*(Profiles[Hour Ending]=INT(INDEX(_xlfn.TEXTSPLIT(Dashboard!W$3,," "),2))),0),MATCH(Dashboard!$B5,Profiles[#Headers],0)) -> 399.9377666 | X5: =INDEX(MonthlyCapacities[Total Capacity (MW)],MATCH(1,(MonthlyCapacities[Month]=MONTH(Month&" 1, 2000"))*(MonthlyCapacities[Unit Category]=Dashboard!$B5),0))*INDEX(Profiles[],MATCH(1,(Profiles[Month]=MONTH(Month&" 1, 2000"))*(Profiles[Hour Ending]=INT(INDEX(_xlfn.TEXTSPLIT(Dashboard!X$3,," "),2))),0),MATCH(Dashboard!$B5,Profiles[#Headers],0)) -> 399.9377666 | Y5: =INDEX(MonthlyCapacities[Total Capacity (MW)],MATCH(1,(MonthlyCapacities[Month]=MONTH(Month&" 1, 2000"))*(MonthlyCapacities[Unit Category]=Dashboard!$B5),0))*INDEX(Profiles[],MATCH(1,(Profiles[Month]=MONTH(Month&" 1, 2000"))*(Profiles[Hour Ending]=INT(INDEX(_xlfn.TEXTSPLIT(Dashboard!Y$3,," "),2))),0),MATCH(Dashboard!$B5,Profiles[#Headers],0)) -> 399.9377666 | Z5: =INDEX(MonthlyCapacities[Total Capacity (MW)],MATCH(1,(MonthlyCapacities[Month]=MONTH(Month&" 1, 2000"))*(MonthlyCapacities[Unit Category]=Dashboard!$B5),0))*INDEX(Profiles[],MATCH(1,(Profiles[Month]=MONTH(Month&" 1, 2000"))*(Profiles[Hour Ending]=INT(INDEX(_xlfn.TEXTSPLIT(Dashboard!Z$3,," "),2))),0),MATCH(Dashboard!$B5,Profiles[#Headers],0)) -> 399.9377666
B6: CC | C6: =INDEX(Supply[Supply],MATCH(1,(Supply[Month]=MONTH(Month&" 1, 2000"))*(Supply[Unit Category]=Dashboard!$B6)*(Supply[Hour Ending]=INT(INDEX(_xlfn.TEXTSPLIT(Dashboard!C$3," "),2))),0)) -> 16848.65 | D6: =INDEX(MonthlyCapacities[Total Capacity (MW)],MATCH(1,(MonthlyCapacities[Month]=MONTH(Month&" 1, 2000"))*(MonthlyCapacities[Unit Category]=Dashboard!$B6),0))*INDEX(Profiles[],MATCH(1,(Profiles[Month]=MONTH(Month&" 1, 2000"))*(Profiles[Hour Ending]=INT(INDEX(_xlfn.TEXTSPLIT(Dashboard!D$3,," "),2))),0),MATCH(Dashboard!$B6,Profiles[#Headers],0)) -> 16848.65 | E6: =INDEX(MonthlyCapacities[Total Capacity (MW)],MATCH(1,(MonthlyCapacities[Month]=MONTH(Month&" 1, 2000"))*(MonthlyCapacities[Unit Category]=Dashboard!$B6),0))*INDEX(Profiles[],MATCH(1,(Profiles[Month]=MONTH(Month&" 1, 2000"))*(Profiles[Hour Ending]=INT(INDEX(_xlfn.TEXTSPLIT(Dashboard!E$3,," "),2))),0),MATCH(Dashboard!$B6,Profiles[#Headers],0)) -> 16848.65 | F6: =INDEX(MonthlyCapacities[Total Capacity (MW)],MATCH(1,(MonthlyCapacities[Month]=MONTH(Month&" 1, 2000"))*(MonthlyCapacities[Unit Category]=Dashboard!$B6),0))*INDEX(Profiles[],MATCH(1,(Profiles[Month]=MONTH(Month&" 1, 2000"))*(Profiles[Hour Ending]=INT(INDEX(_xlfn.TEXTSPLIT(Dashboard!F$3,," "),2))),0),MATCH(Dashboard!$B6,Profiles[#Headers],0)) -> 16848.65 | G6: =INDEX(MonthlyCapacities[Total Capacity (MW)],MATCH(1,(MonthlyCapacities[Month]=MONTH(Month&" 1, 2000"))*(MonthlyCapacities[Unit Category]=Dashboard!$B6),0))*INDEX(Profiles[],MATCH(1,(Profiles[Month]=MONTH(Month&" 1, 2000"))*(Profiles[Hour Ending]=INT(INDEX(_xlfn.TEXTSPLIT(Dashboard!G$3,," "),2))),0),MATCH(Dashboard!$B6,Profiles[#Headers],0)) -> 16848.65 | H6: =INDEX(MonthlyCapacities[Total Capacity (MW)],MATCH(1,(MonthlyCapacities[Month]=MONTH(Month&" 1, 2000"))*(MonthlyCapacities[Unit Category]=Dashboard!$B6),0))*INDEX(Profiles[],MATCH(1,(Profiles[Month]=MONTH(Month&" 1, 2000"))*(Profiles[Hour Ending]=INT(INDEX(_xlfn.TEXTSPLIT(Dashboard!H$3,," "),2))),0),MATCH(Dashboard!$B6,Profiles[#Headers],0)) -> 16848.65 | I6: =INDEX(MonthlyCapacities[Total Capacity (MW)],MATCH(1,(MonthlyCapacities[Month]=MONTH(Month&" 1, 2000"))*(MonthlyCapacities[Unit Category]=Dashboard!$B6),0))*INDEX(Profiles[],MATCH(1,(Profiles[Month]=MONTH(Month&" 1, 2000"))*(Profiles[Hour Ending]=INT(INDEX(_xlfn.TEXTSPLIT(Dashboard!I$3,," "),2))),0),MATCH(Dashboard!$B6,Profiles[#Headers],0)) -> 16848.65 | J6: =INDEX(MonthlyCapacities[Total Capacity (MW)],MATCH(1,(MonthlyCapacities[Month]=MONTH(Month&" 1, 2000"))*(MonthlyCapacities[Unit Category]=Dashboard!$B6),0))*INDEX(Profiles[],MATCH(1,(Profiles[Month]=MONTH(Month&" 1, 2000"))*(Profiles[Hour Ending]=INT(INDEX(_xlfn.TEXTSPLIT(Dashboard!J$3,," "),2))),0),MATCH(Dashboard!$B6,Profiles[#Headers],0)) -> 16848.65 | K6: =INDEX(MonthlyCapacities[Total Capacity (MW)],MATCH(1,(MonthlyCapacities[Month]=MONTH(Month&" 1, 2000"))*(MonthlyCapacities[Unit Category]=Dashboard!$B6),0))*INDEX(Profiles[],MATCH(1,(Profiles[Month]=MONTH(Month&" 1, 2000"))*(Profiles[Hour Ending]=INT(INDEX(_xlfn.TEXTSPLIT(Dashboard!K$3,," "),2))),0),MATCH(Dashboard!$B6,Profiles[#Headers],0)) -> 16848.65 | L6: =INDEX(MonthlyCapacities[Total Capacity (MW)],MATCH(1,(MonthlyCapacities[Month]=MONTH(Month&" 1, 2000"))*(MonthlyCapacities[Unit Category]=Dashboard!$B6),0))*INDEX(Profiles[],MATCH(1,(Profiles[Month]=MONTH(Month&" 1, 2000"))*(Profiles[Hour Ending]=INT(INDEX(_xlfn.TEXTSPLIT(Dashboard!L$3,," "),2))),0),MATCH(Dashboard!$B6,Profiles[#Headers],0)) -> 16848.65 | M6: =INDEX(MonthlyCapacities[Total Capacity (MW)],MATCH(1,(MonthlyCapacities[Month]=MONTH(Month&" 1, 2000"))*(MonthlyCapacities[Unit Category]=Dashboard!$B6),0))*INDEX(Profiles[],MATCH(1,(Profiles[Month]=MONTH(Month&" 1, 2000"))*(Profiles[Hour Ending]=INT(INDEX(_xlfn.TEXTSPLIT(Dashboard!M$3,," "),2))),0),MATCH(Dashboard!$B6,Profiles[#Headers],0)) -> 16848.65 | N6: =INDEX(MonthlyCapacities[Total Capacity (MW)],MATCH(1,(MonthlyCapacities[Month]=MONTH(Month&" 1, 2000"))*(MonthlyCapacities[Unit Category]=Dashboard!$B6),0))*INDEX(Profiles[],MATCH(1,(Profiles[Month]=MONTH(Month&" 1, 2000"))*(Profiles[Hour Ending]=INT(INDEX(_xlfn.TEXTSPLIT(Dashboard!N$3,," "),2))),0),MATCH(Dashboard!$B6,Profiles[#Headers],0)) -> 16848.65 | O6: =INDEX(MonthlyCapacities[Total Capacity (MW)],MATCH(1,(MonthlyCapacities[Month]=MONTH(Month&" 1, 2000"))*(MonthlyCapacities[Unit Category]=Dashboard!$B6),0))*INDEX(Profiles[],MATCH(1,(Profiles[Month]=MONTH(Month&" 1, 2000"))*(Profiles[Hour Ending]=INT(INDEX(_xlfn.TEXTSPLIT(Dashboard!O$3,," "),2))),0),MATCH(Dashboard!$B6,Profiles[#Headers],0)) -> 16848.65 | P6: =INDEX(MonthlyCapacities[Total Capacity (MW)],MATCH(1,(MonthlyCapacities[Month]=MONTH(Month&" 1, 2000"))*(MonthlyCapacities[Unit Category]=Dashboard!$B6),0))*INDEX(Profiles[],MATCH(1,(Profiles[Month]=MONTH(Month&" 1, 2000"))*(Profiles[Hour Ending]=INT(INDEX(_xlfn.TEXTSPLIT(Dashboard!P$3,," "),2))),0),MATCH(Dashboard!$B6,Profiles[#Headers],0)) -> 16848.65 | Q6: =INDEX(MonthlyCapacities[Total Capacity (MW)],MATCH(1,(MonthlyCapacities[Month]=MONTH(Month&" 1, 2000"))*(MonthlyCapacities[Unit Category]=Dashboard!$B6),0))*INDEX(Profiles[],MATCH(1,(Profiles[Month]=MONTH(Month&" 1, 2000"))*(Profiles[Hour Ending]=INT(INDEX(_xlfn.TEXTSPLIT(Dashboard!Q$3,," "),2))),0),MATCH(Dashboard!$B6,Profiles[#Headers],0)) -> 16848.65 | R6: =INDEX(MonthlyCapacities[Total Capacity (MW)],MATCH(1,(MonthlyCapacities[Month]=MONTH(Month&" 1, 2000"))*(MonthlyCapacities[Unit Category]=Dashboard!$B6),0))*INDEX(Profiles[],MATCH(1,(Profiles[Month]=MONTH(Month&" 1, 2000"))*(Profiles[Hour Ending]=INT(INDEX(_xlfn.TEXTSPLIT(Dashboard!R$3,," "),2))),0),MATCH(Dashboard!$B6,Profiles[#Headers],0)) -> 16848.65 | S6: =INDEX(MonthlyCapacities[Total Capacity (MW)],MATCH(1,(MonthlyCapacities[Month]=MONTH(Month&" 1, 2000"))*(MonthlyCapacities[Unit Category]=Dashboard!$B6),0))*INDEX(Profiles[],MATCH(1,(Profiles[Month]=MONTH(Month&" 1, 2000"))*(Profiles[Hour Ending]=INT(INDEX(_xlfn.TEXTSPLIT(Dashboard!S$3,," "),2))),0),MATCH(Dashboard!$B6,Profiles[#Headers],0)) -> 16848.65 | T6: =INDEX(MonthlyCapacities[Total Capacity (MW)],MATCH(1,(MonthlyCapacities[Month]=MONTH(Month&" 1, 2000"))*(MonthlyCapacities[Unit Category]=Dashboard!$B6),0))*INDEX(Profiles[],MATCH(1,(Profiles[Month]=MONTH(Month&" 1, 2000"))*(Profiles[Hour Ending]=INT(INDEX(_xlfn.TEXTSPLIT(Dashboard!T$3,," "),2))),0),MATCH(Dashboard!$B6,Profiles[#Headers],0)) -> 16848.65 | U6: =INDEX(MonthlyCapacities[Total Capacity (MW)],MATCH(1,(MonthlyCapacities[Month]=MONTH(Month&" 1, 2000"))*(MonthlyCapacities[Unit Category]=Dashboard!$B6),0))*INDEX(Profiles[],MATCH(1,(Profiles[Month]=MONTH(Month&" 1, 2000"))*(Profiles[Hour Ending]=INT(INDEX(_xlfn.TEXTSPLIT(Dashboard!U$3,," "),2))),0),MATCH(Dashboard!$B6,Profiles[#Headers],0)) -> 16848.65 | V6: =INDEX(MonthlyCapacities[Total Capacity (MW)],MATCH(1,(MonthlyCapacities[Month]=MONTH(Month&" 1, 2000"))*(MonthlyCapacities[Unit Category]=Dashboard!$B6),0))*INDEX(Profiles[],MATCH(1,(Profiles[Month]=MONTH(Month&" 1, 2000"))*(Profiles[Hour Ending]=INT(INDEX(_xlfn.TEXTSPLIT(Dashboard!V$3,," "),2))),0),MATCH(Dashboard!$B6,Profiles[#Headers],0)) -> 16848.65 | W6: =INDEX(MonthlyCapacities[Total Capacity (MW)],MATCH(1,(MonthlyCapacities[Month]=MONTH(Month&" 1, 2000"))*(MonthlyCapacities[Unit Category]=Dashboard!$B6),0))*INDEX(Profiles[],MATCH(1,(Profiles[Month]=MONTH(Month&" 1, 2000"))*(Profiles[Hour Ending]=INT(INDEX(_xlfn.TEXTSPLIT(Dashboard!W$3,," "),2))),0),MATCH(Dashboard!$B6,Profiles[#Headers],0)) -> 16848.65 | X6: =INDEX(MonthlyCapacities[Total Capacity (MW)],MATCH(1,(MonthlyCapacities[Month]=MONTH(Month&" 1, 2000"))*(MonthlyCapacities[Unit Category]=Dashboard!$B6),0))*INDEX(Profiles[],MATCH(1,(Profiles[Month]=MONTH(Month&" 1, 2000"))*(Profiles[Hour Ending]=INT(INDEX(_xlfn.TEXTSPLIT(Dashboard!X$3,," "),2))),0),MATCH(Dashboard!$B6,Profiles[#Headers],0)) -> 16848.65 | Y6: =INDEX(MonthlyCapacities[Total Capacity (MW)],MATCH(1,(MonthlyCapacities[Month]=MONTH(Month&" 1, 2000"))*(MonthlyCapacities[Unit Category]=Dashboard!$B6),0))*INDEX(Profiles[],MATCH(1,(Profiles[Month]=MONTH(Month&" 1, 2000"))*(Profiles[Hour Ending]=INT(INDEX(_xlfn.TEXTSPLIT(Dashboard!Y$3,," "),2))),0),MATCH(Dashboard!$B6,Profiles[#Headers],0)) -> 16848.65 | Z6: =INDEX(MonthlyCapacities[Total Capacity (MW)],MATCH(1,(MonthlyCapacities[Month]=MONTH(Month&" 1, 2000"))*(MonthlyCapacities[Unit Category]=Dashboard!$B6),0))*INDEX(Profiles[],MATCH(1,(Profiles[Month]=MONTH(Month&" 1, 2000"))*(Profiles[Hour Ending]=INT(INDEX(_xlfn.TEXTSPLIT(Dashboard!Z$3,," "),2))),0),MATCH(Dashboard!$B6,Profiles[#Headers],0)) -> 16848.65
B7: Coal | C7: =INDEX(Supply[Supply],MATCH(1,(Supply[Month]=MONTH(Month&" 1, 2000"))*(Supply[Unit Category]=Dashboard!$B7)*(Supply[Hour Ending]=INT(INDEX(_xlfn.TEXTSPLIT(Dashboard!C$3," "),2))),0)) -> 0 | D7: =INDEX(MonthlyCapacities[Total Capacity (MW)],MATCH(1,(MonthlyCapacities[Month]=MONTH(Month&" 1, 2000"))*(MonthlyCapacities[Unit Category]=Dashboard!$B7),0))*INDEX(Profiles[],MATCH(1,(Profiles[Month]=MONTH(Month&" 1, 2000"))*(Profiles[Hour Ending]=INT(INDEX(_xlfn.TEXTSPLIT(Dashboard!D$3,," "),2))),0),MATCH(Dashboard!$B7,Profiles[#Headers],0)) -> 0 | E7: =INDEX(MonthlyCapacities[Total Capacity (MW)],MATCH(1,(MonthlyCapacities[Month]=MONTH(Month&" 1, 2000"))*(MonthlyCapacities[Unit Category]=Dashboard!$B7),0))*INDEX(Profiles[],MATCH(1,(Profiles[Month]=MONTH(Month&" 1, 2000"))*(Profiles[Hour Ending]=INT(INDEX(_xlfn.TEXTSPLIT(Dashboard!E$3,," "),2))),0),MATCH(Dashboard!$B7,Profiles[#Headers],0)) -> 0 | F7: =INDEX(MonthlyCapacities[Total Capacity (MW)],MATCH(1,(MonthlyCapacities[Month]=MONTH(Month&" 1, 2000"))*(MonthlyCapacities[Unit Category]=Dashboard!$B7),0))*INDEX(Profiles[],MATCH(1,(Profiles[Month]=MONTH(Month&" 1, 2000"))*(Profiles[Hour Ending]=INT(INDEX(_xlfn.TEXTSPLIT(Dashboard!F$3,," "),2))),0),MATCH(Dashboard!$B7,Profiles[#Headers],0)) -> 0 | G7: =INDEX(MonthlyCapacities[Total Capacity (MW)],MATCH(1,(MonthlyCapacities[Month]=MONTH(Month&" 1, 2000"))*(MonthlyCapacities[Unit Category]=Dashboard!$B7),0))*INDEX(Profiles[],MATCH(1,(Profiles[Month]=MONTH(Month&" 1, 2000"))*(Profiles[Hour Ending]=INT(INDEX(_xlfn.TEXTSPLIT(Dashboard!G$3,," "),2))),0),MATCH(Dashboard!$B7,Profiles[#Headers],0)) -> 0 | H7: =INDEX(MonthlyCapacities[Total Capacity (MW)],MATCH(1,(MonthlyCapacities[Month]=MONTH(Month&" 1, 2000"))*(MonthlyCapacities[Unit Category]=Dashboard!$B7),0))*INDEX(Profiles[],MATCH(1,(Profiles[Month]=MONTH(Month&" 1, 2000"))*(Profiles[Hour Ending]=INT(INDEX(_xlfn.TEXTSPLIT(Dashboard!H$3,," "),2))),0),MATCH(Dashboard!$B7,Profiles[#Headers],0)) -> 0 | I7: =INDEX(MonthlyCapacities[Total Capacity (MW)],MATCH(1,(MonthlyCapacities[Month]=MONTH(Month&" 1, 2000"))*(MonthlyCapacities[Unit Category]=Dashboard!$B7),0))*INDEX(Profiles[],MATCH(1,(Profiles[Month]=MONTH(Month&" 1, 2000"))*(Profiles[Hour Ending]=INT(INDEX(_xlfn.TEXTSPLIT(Dashboard!I$3,," "),2))),0),MATCH(Dashboard!$B7,Profiles[#Headers],0)) -> 0 | J7: =INDEX(MonthlyCapacities[Total Capacity (MW)],MATCH(1,(MonthlyCapacities[Month]=MONTH(Month&" 1, 2000"))*(MonthlyCapacities[Unit Category]=Dashboard!$B7),0))*INDEX(Profiles[],MATCH(1,(Profiles[Month]=MONTH(Month&" 1, 2000"))*(Profiles[Hour Ending]=INT(INDEX(_xlfn.TEXTSPLIT(Dashboard!J$3,," "),2))),0),MATCH(Dashboard!$B7,Profiles[#Headers],0)) -> 0 | K7: =INDEX(MonthlyCapacities[Total Capacity (MW)],MATCH(1,(MonthlyCapacities[Month]=MONTH(Month&" 1, 2000"))*(MonthlyCapacities[Unit Category]=Dashboard!$B7),0))*INDEX(Profiles[],MATCH(1,(Profiles[Month]=MONTH(Month&" 1, 2000"))*(Profiles[Hour Ending]=INT(INDEX(_xlfn.TEXTSPLIT(Dashboard!K$3,," "),2))),0),MATCH(Dashboard!$B7,Profiles[#Headers],0)) -> 0 | L7: =INDEX(MonthlyCapacities[Total Capacity (MW)],MATCH(1,(MonthlyCapacities[Month]=MONTH(Month&" 1, 2000"))*(MonthlyCapacities[Unit Category]=Dashboard!$B7),0))*INDEX(Profiles[],MATCH(1,(Profiles[Month]=MONTH(Month&" 1, 2000"))*(Profiles[Hour Ending]=INT(INDEX(_xlfn.TEXTSPLIT(Dashboard!L$3,," "),2))),0),MATCH(Dashboard!$B7,Profiles[#Headers],0)) -> 0 | M7: =INDEX(MonthlyCapacities[Total Capacity (MW)],MATCH(1,(MonthlyCapacities[Month]=MONTH(Month&" 1, 2000"))*(MonthlyCapacities[Unit Category]=Dashboard!$B7),0))*INDEX(Profiles[],MATCH(1,(Profiles[Month]=MONTH(Month&" 1, 2000"))*(Profiles[Hour Ending]=INT(INDEX(_xlfn.TEXTSPLIT(Dashboard!M$3,," "),2))),0),MATCH(Dashboard!$B7,Profiles[#Headers],0)) -> 0 | N7: =INDEX(MonthlyCapacities[Total Capacity (MW)],MATCH(1,(MonthlyCapacities[Month]=MONTH(Month&" 1, 2000"))*(MonthlyCapacities[Unit Category]=Dashboard!$B7),0))*INDEX(Profiles[],MATCH(1,(Profiles[Month]=MONTH(Month&" 1, 2000"))*(Profiles[Hour Ending]=INT(INDEX(_xlfn.TEXTSPLIT(Dashboard!N$3,," "),2))),0),MATCH(Dashboard!$B7,Profiles[#Headers],0)) -> 0 | O7: =INDEX(MonthlyCapacities[Total Capacity (MW)],MATCH(1,(MonthlyCapacities[Month]=MONTH(Month&" 1, 2000"))*(MonthlyCapacities[Unit Category]=Dashboard!$B7),0))*INDEX(Profiles[],MATCH(1,(Profiles[Month]=MONTH(Month&" 1, 2000"))*(Profiles[Hour Ending]=INT(INDEX(_xlfn.TEXTSPLIT(Dashboard!O$3,," "),2))),0),MATCH(Dashboard!$B7,Profiles[#Headers],0)) -> 0 | P7: =INDEX(MonthlyCapacities[Total Capacity (MW)],MATCH(1,(MonthlyCapacities[Month]=MONTH(Month&" 1, 2000"))*(MonthlyCapacities[Unit Category]=Dashboard!$B7),0))*INDEX(Profiles[],MATCH(1,(Profiles[Month]=MONTH(Month&" 1, 2000"))*(Profiles[Hour Ending]=INT(INDEX(_xlfn.TEXTSPLIT(Dashboard!P$3,," "),2))),0),MATCH(Dashboard!$B7,Profiles[#Headers],0)) -> 0 | Q7: =INDEX(MonthlyCapacities[Total Capacity (MW)],MATCH(1,(MonthlyCapacities[Month]=MONTH(Month&" 1, 2000"))*(MonthlyCapacities[Unit Category]=Dashboard!$B7),0))*INDEX(Profiles[],MATCH(1,(Profiles[Month]=MONTH(Month&" 1, 2000"))*(Profiles[Hour Ending]=INT(INDEX(_xlfn.TEXTSPLIT(Dashboard!Q$3,," "),2))),0),MATCH(Dashboard!$B7,Profiles[#Headers],0)) -> 0 | R7: =INDEX(MonthlyCapacities[Total Capacity (MW)],MATCH(1,(MonthlyCapacities[Month]=MONTH(Month&" 1, 2000"))*(MonthlyCapacities[Unit Category]=Dashboard!$B7),0))*INDEX(Profiles[],MATCH(1,(Profiles[Month]=MONTH(Month&" 1, 2000"))*(Profiles[Hour Ending]=INT(INDEX(_xlfn.TEXTSPLIT(Dashboard!R$3,," "),2))),0),MATCH(Dashboard!$B7,Profiles[#Headers],0)) -> 0 | S7: =INDEX(MonthlyCapacities[Total Capacity (MW)],MATCH(1,(MonthlyCapacities[Month]=MONTH(Month&" 1, 2000"))*(MonthlyCapacities[Unit Category]=Dashboard!$B7),0))*INDEX(Profiles[],MATCH(1,(Profiles[Month]=MONTH(Month&" 1, 2000"))*(Profiles[Hour Ending]=INT(INDEX(_xlfn.TEXTSPLIT(Dashboard!S$3,," "),2))),0),MATCH(Dashboard!$B7,Profiles[#Headers],0)) -> 0 | T7: =INDEX(MonthlyCapacities[Total Capacity (MW)],MATCH(1,(MonthlyCapacities[Month]=MONTH(Month&" 1, 2000"))*(MonthlyCapacities[Unit Category]=Dashboard!$B7),0))*INDEX(Profiles[],MATCH(1,(Profiles[Month]=MONTH(Month&" 1, 2000"))*(Profiles[Hour Ending]=INT(INDEX(_xlfn.TEXTSPLIT(Dashboard!T$3,," "),2))),0),MATCH(Dashboard!$B7,Profiles[#Headers],0)) -> 0 | U7: =INDEX(MonthlyCapacities[Total Capacity (MW)],MATCH(1,(MonthlyCapacities[Month]=MONTH(Month&" 1, 2000"))*(MonthlyCapacities[Unit Category]=Dashboard!$B7),0))*INDEX(Profiles[],MATCH(1,(Profiles[Month]=MONTH(Month&" 1, 2000"))*(Profiles[Hour Ending]=INT(INDEX(_xlfn.TEXTSPLIT(Dashboard!U$3,," "),2))),0),MATCH(Dashboard!$B7,Profiles[#Headers],0)) -> 0 | V7: =INDEX(MonthlyCapacities[Total Capacity (MW)],MATCH(1,(MonthlyCapacities[Month]=MONTH(Month&" 1, 2000"))*(MonthlyCapacities[Unit Category]=Dashboard!$B7),0))*INDEX(Profiles[],MATCH(1,(Profiles[Month]=MONTH(Month&" 1, 2000"))*(Profiles[Hour Ending]=INT(INDEX(_xlfn.TEXTSPLIT(Dashboard!V$3,," "),2))),0),MATCH(Dashboard!$B7,Profiles[#Headers],0)) -> 0 | W7: =INDEX(MonthlyCapacities[Total Capacity (MW)],MATCH(1,(MonthlyCapacities[Month]=MONTH(Month&" 1, 2000"))*(MonthlyCapacities[Unit Category]=Dashboard!$B7),0))*INDEX(Profiles[],MATCH(1,(Profiles[Month]=MONTH(Month&" 1, 2000"))*(Profiles[Hour Ending]=INT(INDEX(_xlfn.TEXTSPLIT(Dashboard!W$3,," "),2))),0),MATCH(Dashboard!$B7,Profiles[#Headers],0)) -> 0 | X7: =INDEX(MonthlyCapacities[Total Capacity (MW)],MATCH(1,(MonthlyCapacities[Month]=MONTH(Month&" 1, 2000"))*(MonthlyCapacities[Unit Category]=Dashboard!$B7),0))*INDEX(Profiles[],MATCH(1,(Profiles[Month]=MONTH(Month&" 1, 2000"))*(Profiles[Hour Ending]=INT(INDEX(_xlfn.TEXTSPLIT(Dashboard!X$3,," "),2))),0),MATCH(Dashboard!$B7,Profiles[#Headers],0)) -> 0 | Y7: =INDEX(MonthlyCapacities[Total Capacity (MW)],MATCH(1,(MonthlyCapacities[Month]=MONTH(Month&" 1, 2000"))*(MonthlyCapacities[Unit Category]=Dashboard!$B7),0))*INDEX(Profiles[],MATCH(1,(Profiles[Month]=MONTH(Month&" 1, 2000"))*(Profiles[Hour Ending]=INT(INDEX(_xlfn.TEXTSPLIT(Dashboard!Y$3,," "),2))),0),MATCH(Dashboard!$B7,Profiles[#Headers],0)) -> 0 | Z7: =INDEX(MonthlyCapacities[Total Capacity (MW)],MATCH(1,(MonthlyCapacities[Month]=MONTH(Month&" 1, 2000"))*(MonthlyCapacities[Unit Category]=Dashboard!$B7),0))*INDEX(Profiles[],MATCH(1,(Profiles[Month]=MONTH(Month&" 1, 2000"))*(Profiles[Hour Ending]=INT(INDEX(_xlfn.TEXTSPLIT(Dashboard!Z$3,," "),2))),0),MATCH(Dashboard!$B7,Profiles[#Headers],0)) -> 0
B8: Cogen | C8: =INDEX(Supply[Supply],MATCH(1,(Supply[Month]=MONTH(Month&" 1, 2000"))*(Supply[Unit Category]=Dashboard!$B8)*(Supply[Hour Ending]=INT(INDEX(_xlfn.TEXTSPLIT(Dashboard!C$3," "),2))),0)) -> 1763.16055 | D8: =INDEX(MonthlyCapacities[Total Capacity (MW)],MATCH(1,(MonthlyCapacities[Month]=MONTH(Month&" 1, 2000"))*(MonthlyCapacities[Unit Category]=Dashboard!$B8),0))*INDEX(Profiles[],MATCH(1,(Profiles[Month]=MONTH(Month&" 1, 2000"))*(Profiles[Hour Ending]=INT(INDEX(_xlfn.TEXTSPLIT(Dashboard!D$3,," "),2))),0),MATCH(Dashboard!$B8,Profiles[#Headers],0)) -> 1763.16055 | E8: =INDEX(MonthlyCapacities[Total Capacity (MW)],MATCH(1,(MonthlyCapacities[Month]=MONTH(Month&" 1, 2000"))*(MonthlyCapacities[Unit Category]=Dashboard!$B8),0))*INDEX(Profiles[],MATCH(1,(Profiles[Month]=MONTH(Month&" 1, 2000"))*(Profiles[Hour Ending]=INT(INDEX(_xlfn.TEXTSPLIT(Dashboard!E$3,," "),2))),0),MATCH(Dashboard!$B8,Profiles[#Headers],0)) -> 1763.16055 | F8: =INDEX(MonthlyCapacities[Total Capacity (MW)],MATCH(1,(MonthlyCapacities[Month]=MONTH(Month&" 1, 2000"))*(MonthlyCapacities[Unit Category]=Dashboard!$B8),0))*INDEX(Profiles[],MATCH(1,(Profiles[Month]=MONTH(Month&" 1, 2000"))*(Profiles[Hour Ending]=INT(INDEX(_xlfn.TEXTSPLIT(Dashboard!F$3,," "),2))),0),MATCH(Dashboard!$B8,Profiles[#Headers],0)) -> 1763.16055 | G8: =INDEX(MonthlyCapacities[Total Capacity (MW)],MATCH(1,(MonthlyCapacities[Month]=MONTH(Month&" 1, 2000"))*(MonthlyCapacities[Unit Category]=Dashboard!$B8),0))*INDEX(Profiles[],MATCH(1,(Profiles[Month]=MONTH(Month&" 1, 2000"))*(Profiles[Hour Ending]=INT(INDEX(_xlfn.TEXTSPLIT(Dashboard!G$3,," "),2))),0),MATCH(Dashboard!$B8,Profiles[#Headers],0)) -> 1763.16055 | H8: =INDEX(MonthlyCapacities[Total Capacity (MW)],MATCH(1,(MonthlyCapacities[Month]=MONTH(Month&" 1, 2000"))*(MonthlyCapacities[Unit Category]=Dashboard!$B8),0))*INDEX(Profiles[],MATCH(1,(Profiles[Month]=MONTH(Month&" 1, 2000"))*(Profiles[Hour Ending]=INT(INDEX(_xlfn.TEXTSPLIT(Dashboard!H$3,," "),2))),0),MATCH(Dashboard!$B8,Profiles[#Headers],0)) -> 1763.16055 | I8: =INDEX(MonthlyCapacities[Total Capacity (MW)],MATCH(1,(MonthlyCapacities[Month]=MONTH(Month&" 1, 2000"))*(MonthlyCapacities[Unit Category]=Dashboard!$B8),0))*INDEX(Profiles[],MATCH(1,(Profiles[Month]=MONTH(Month&" 1, 2000"))*(Profiles[Hour Ending]=INT(INDEX(_xlfn.TEXTSPLIT(Dashboard!I$3,," "),2))),0),MATCH(Dashboard!$B8,Profiles[#Headers],0)) -> 1763.16055 | J8: =INDEX(MonthlyCapacities[Total Capacity (MW)],MATCH(1,(MonthlyCapacities[Month]=MONTH(Month&" 1, 2000"))*(MonthlyCapacities[Unit Category]=Dashboard!$B8),0))*INDEX(Profiles[],MATCH(1,(Profiles[Month]=MONTH(Month&" 1, 2000"))*(Profiles[Hour Ending]=INT(INDEX(_xlfn.TEXTSPLIT(Dashboard!J$3,," "),2))),0),MATCH(Dashboard!$B8,Profiles[#Headers],0)) -> 1763.16055 | K8: =INDEX(MonthlyCapacities[Total Capacity (MW)],MATCH(1,(MonthlyCapacities[Month]=MONTH(Month&" 1, 2000"))*(MonthlyCapacities[Unit Category]=Dashboard!$B8),0))*INDEX(Profiles[],MATCH(1,(Profiles[Month]=MONTH(Month&" 1, 2000"))*(Profiles[Hour Ending]=INT(INDEX(_xlfn.TEXTSPLIT(Dashboard!K$3,," "),2))),0),MATCH(Dashboard!$B8,Profiles[#Headers],0)) -> 1763.16055 | L8: =INDEX(MonthlyCapacities[Total Capacity (MW)],MATCH(1,(MonthlyCapacities[Month]=MONTH(Month&" 1, 2000"))*(MonthlyCapacities[Unit Category]=Dashboard!$B8),0))*INDEX(Profiles[],MATCH(1,(Profiles[Month]=MONTH(Month&" 1, 2000"))*(Profiles[Hour Ending]=INT(INDEX(_xlfn.TEXTSPLIT(Dashboard!L$3,," "),2))),0),MATCH(Dashboard!$B8,Profiles[#Headers],0)) -> 1763.16055 | M8: =INDEX(MonthlyCapacities[Total Capacity (MW)],MATCH(1,(MonthlyCapacities[Month]=MONTH(Month&" 1, 2000"))*(MonthlyCapacities[Unit Category]=Dashboard!$B8),0))*INDEX(Profiles[],MATCH(1,(Profiles[Month]=MONTH(Month&" 1, 2000"))*(Profiles[Hour Ending]=INT(INDEX(_xlfn.TEXTSPLIT(Dashboard!M$3,," "),2))),0),MATCH(Dashboard!$B8,Profiles[#Headers],0)) -> 1763.16055 | N8: =INDEX(MonthlyCapacities[Total Capacity (MW)],MATCH(1,(MonthlyCapacities[Month]=MONTH(Month&" 1, 2000"))*(MonthlyCapacities[Unit Category]=Dashboard!$B8),0))*INDEX(Profiles[],MATCH(1,(Profiles[Month]=MONTH(Month&" 1, 2000"))*(Profiles[Hour Ending]=INT(INDEX(_xlfn.TEXTSPLIT(Dashboard!N$3,," "),2))),0),MATCH(Dashboard!$B8,Profiles[#Headers],0)) -> 1763.16055 | O8: =INDEX(MonthlyCapacities[Total Capacity (MW)],MATCH(1,(MonthlyCapacities[Month]=MONTH(Month&" 1, 2000"))*(MonthlyCapacities[Unit Category]=Dashboard!$B8),0))*INDEX(Profiles[],MATCH(1,(Profiles[Month]=MONTH(Month&" 1, 2000"))*(Profiles[Hour Ending]=INT(INDEX(_xlfn.TEXTSPLIT(Dashboard!O$3,," "),2))),0),MATCH(Dashboard!$B8,Profiles[#Headers],0)) -> 1763.16055 | P8: =INDEX(MonthlyCapacities[Total Capacity (MW)],MATCH(1,(MonthlyCapacities[Month]=MONTH(Month&" 1, 2000"))*(MonthlyCapacities[Unit Category]=Dashboard!$B8),0))*INDEX(Profiles[],MATCH(1,(Profiles[Month]=MONTH(Month&" 1, 2000"))*(Profiles[Hour Ending]=INT(INDEX(_xlfn.TEXTSPLIT(Dashboard!P$3,," "),2))),0),MATCH(Dashboard!$B8,Profiles[#Headers],0)) -> 1763.16055 | Q8: =INDEX(MonthlyCapacities[Total Capacity (MW)],MATCH(1,(MonthlyCapacities[Month]=MONTH(Month&" 1, 2000"))*(MonthlyCapacities[Unit Category]=Dashboard!$B8),0))*INDEX(Profiles[],MATCH(1,(Profiles[Month]=MONTH(Month&" 1, 2000"))*(Profiles[Hour Ending]=INT(INDEX(_xlfn.TEXTSPLIT(Dashboard!Q$3,," "),2))),0),MATCH(Dashboard!$B8,Profiles[#Headers],0)) -> 1763.16055 | R8: =INDEX(MonthlyCapacities[Total Capacity (MW)],MATCH(1,(MonthlyCapacities[Month]=MONTH(Month&" 1, 2000"))*(MonthlyCapacities[Unit Category]=Dashboard!$B8),0))*INDEX(Profiles[],MATCH(1,(Profiles[Month]=MONTH(Month&" 1, 2000"))*(Profiles[Hour Ending]=INT(INDEX(_xlfn.TEXTSPLIT(Dashboard!R$3,," "),2))),0),MATCH(Dashboard!$B8,Profiles[#Headers],0)) -> 1763.16055 | S8: =INDEX(MonthlyCapacities[Total Capacity (MW)],MATCH(1,(MonthlyCapacities[Month]=MONTH(Month&" 1, 2000"))*(MonthlyCapacities[Unit Category]=Dashboard!$B8),0))*INDEX(Profiles[],MATCH(1,(Profiles[Month]=MONTH(Month&" 1, 2000"))*(Profiles[Hour Ending]=INT(INDEX(_xlfn.TEXTSPLIT(Dashboard!S$3,," "),2))),0),MATCH(Dashboard!$B8,Profiles[#Headers],0)) -> 1763.16055 | T8: =INDEX(MonthlyCapacities[Total Capacity (MW)],MATCH(1,(MonthlyCapacities[Month]=MONTH(Month&" 1, 2000"))*(MonthlyCapacities[Unit Category]=Dashboard!$B8),0))*INDEX(Profiles[],MATCH(1,(Profiles[Month]=MONTH(Month&" 1, 2000"))*(Profiles[Hour Ending]=INT(INDEX(_xlfn.TEXTSPLIT(Dashboard!T$3,," "),2))),0),MATCH(Dashboard!$B8,Profiles[#Headers],0)) -> 1763.16055 | U8: =INDEX(MonthlyCapacities[Total Capacity (MW)],MATCH(1,(MonthlyCapacities[Month]=MONTH(Month&" 1, 2000"))*(MonthlyCapacities[Unit Category]=Dashboard!$B8),0))*INDEX(Profiles[],MATCH(1,(Profiles[Month]=MONTH(Month&" 1, 2000"))*(Profiles[Hour Ending]=INT(INDEX(_xlfn.TEXTSPLIT(Dashboard!U$3,," "),2))),0),MATCH(Dashboard!$B8,Profiles[#Headers],0)) -> 1763.16055 | V8: =INDEX(MonthlyCapacities[Total Capacity (MW)],MATCH(1,(MonthlyCapacities[Month]=MONTH(Month&" 1, 2000"))*(MonthlyCapacities[Unit Category]=Dashboard!$B8),0))*INDEX(Profiles[],MATCH(1,(Profiles[Month]=MONTH(Month&" 1, 2000"))*(Profiles[Hour Ending]=INT(INDEX(_xlfn.TEXTSPLIT(Dashboard!V$3,," "),2))),0),MATCH(Dashboard!$B8,Profiles[#Headers],0)) -> 1763.16055 | W8: =INDEX(MonthlyCapacities[Total Capacity (MW)],MATCH(1,(MonthlyCapacities[Month]=MONTH(Month&" 1, 2000"))*(MonthlyCapacities[Unit Category]=Dashboard!$B8),0))*INDEX(Profiles[],MATCH(1,(Profiles[Month]=MONTH(Month&" 1, 2000"))*(Profiles[Hour Ending]=INT(INDEX(_xlfn.TEXTSPLIT(Dashboard!W$3,," "),2))),0),MATCH(Dashboard!$B8,Profiles[#Headers],0)) -> 1763.16055 | X8: =INDEX(MonthlyCapacities[Total Capacity (MW)],MATCH(1,(MonthlyCapacities[Month]=MONTH(Month&" 1, 2000"))*(MonthlyCapacities[Unit Category]=Dashboard!$B8),0))*INDEX(Profiles[],MATCH(1,(Profiles[Month]=MONTH(Month&" 1, 2000"))*(Profiles[Hour Ending]=INT(INDEX(_xlfn.TEXTSPLIT(Dashboard!X$3,," "),2))),0),MATCH(Dashboard!$B8,Profiles[#Headers],0)) -> 1763.16055 | Y8: =INDEX(MonthlyCapacities[Total Capacity (MW)],MATCH(1,(MonthlyCapacities[Month]=MONTH(Month&" 1, 2000"))*(MonthlyCapacities[Unit Category]=Dashboard!$B8),0))*INDEX(Profiles[],MATCH(1,(Profiles[Month]=MONTH(Month&" 1, 2000"))*(Profiles[Hour Ending]=INT(INDEX(_xlfn.TEXTSPLIT(Dashboard!Y$3,," "),2))),0),MATCH(Dashboard!$B8,Profiles[#Headers],0)) -> 1763.16055 | Z8: =INDEX(MonthlyCapacities[Total Capacity (MW)],MATCH(1,(MonthlyCapacities[Month]=MONTH(Month&" 1, 2000"))*(MonthlyCapacities[Unit Category]=Dashboard!$B8),0))*INDEX(Profiles[],MATCH(1,(Profiles[Month]=MONTH(Month&" 1, 2000"))*(Profiles[Hour Ending]=INT(INDEX(_xlfn.TEXTSPLIT(Dashboard!Z$3,," "),2))),0),MATCH(Dashboard!$B8,Profiles[#Headers],0)) -> 1763.16055
B9: CT | C9: =INDEX(Supply[Supply],MATCH(1,(Supply[Month]=MONTH(Month&" 1, 2000"))*(Supply[Unit Category]=Dashboard!$B9)*(Supply[Hour Ending]=INT(INDEX(_xlfn.TEXTSPLIT(Dashboard!C$3," "),2))),0)) -> 7834.64 | D9: =INDEX(MonthlyCapacities[Total Capacity (MW)],MATCH(1,(MonthlyCapacities[Month]=MONTH(Month&" 1, 2000"))*(MonthlyCapacities[Unit Category]=Dashboard!$B9),0))*INDEX(Profiles[],MATCH(1,(Profiles[Month]=MONTH(Month&" 1, 2000"))*(Profiles[Hour Ending]=INT(INDEX(_xlfn.TEXTSPLIT(Dashboard!D$3,," "),2))),0),MATCH(Dashboard!$B9,Profiles[#Headers],0)) -> 7834.64 | E9: =INDEX(MonthlyCapacities[Total Capacity (MW)],MATCH(1,(MonthlyCapacities[Month]=MONTH(Month&" 1, 2000"))*(MonthlyCapacities[Unit Category]=Dashboard!$B9),0))*INDEX(Profiles[],MATCH(1,(Profiles[Month]=MONTH(Month&" 1, 2000"))*(Profiles[Hour Ending]=INT(INDEX(_xlfn.TEXTSPLIT(Dashboard!E$3,," "),2))),0),MATCH(Dashboard!$B9,Profiles[#Headers],0)) -> 7834.64 | F9: =INDEX(MonthlyCapacities[Total Capacity (MW)],MATCH(1,(MonthlyCapacities[Month]=MONTH(Month&" 1, 2000"))*(MonthlyCapacities[Unit Category]=Dashboard!$B9),0))*INDEX(Profiles[],MATCH(1,(Profiles[Month]=MONTH(Month&" 1, 2000"))*(Profiles[Hour Ending]=INT(INDEX(_xlfn.TEXTSPLIT(Dashboard!F$3,," "),2))),0),MATCH(Dashboard!$B9,Profiles[#Headers],0)) -> 7834.64 | G9: =INDEX(MonthlyCapacities[Total Capacity (MW)],MATCH(1,(MonthlyCapacities[Month]=MONTH(Month&" 1, 2000"))*(MonthlyCapacities[Unit Category]=Dashboard!$B9),0))*INDEX(Profiles[],MATCH(1,(Profiles[Month]=MONTH(Month&" 1, 2000"))*(Profiles[Hour Ending]=INT(INDEX(_xlfn.TEXTSPLIT(Dashboard!G$3,," "),2))),0),MATCH(Dashboard!$B9,Profiles[#Headers],0)) -> 7834.64 | H9: =INDEX(MonthlyCapacities[Total Capacity (MW)],MATCH(1,(MonthlyCapacities[Month]=MONTH(Month&" 1, 2000"))*(MonthlyCapacities[Unit Category]=Dashboard!$B9),0))*INDEX(Profiles[],MATCH(1,(Profiles[Month]=MONTH(Month&" 1, 2000"))*(Profiles[Hour Ending]=INT(INDEX(_xlfn.TEXTSPLIT(Dashboard!H$3,," "),2))),0),MATCH(Dashboard!$B9,Profiles[#Headers],0)) -> 7834.64 | I9: =INDEX(MonthlyCapacities[Total Capacity (MW)],MATCH(1,(MonthlyCapacities[Month]=MONTH(Month&" 1, 2000"))*(MonthlyCapacities[Unit Category]=Dashboard!$B9),0))*INDEX(Profiles[],MATCH(1,(Profiles[Month]=MONTH(Month&" 1, 2000"))*(Profiles[Hour Ending]=INT(INDEX(_xlfn.TEXTSPLIT(Dashboard!I$3,," "),2))),0),MATCH(Dashboard!$B9,Profiles[#Headers],0)) -> 7834.64 | J9: =INDEX(MonthlyCapacities[Total Capacity (MW)],MATCH(1,(MonthlyCapacities[Month]=MONTH(Month&" 1, 2000"))*(MonthlyCapacities[Unit Category]=Dashboard!$B9),0))*INDEX(Profiles[],MATCH(1,(Profiles[Month]=MONTH(Month&" 1, 2000"))*(Profiles[Hour Ending]=INT(INDEX(_xlfn.TEXTSPLIT(Dashboard!J$3,," "),2))),0),MATCH(Dashboard!$B9,Profiles[#Headers],0)) -> 7834.64 | K9: =INDEX(MonthlyCapacities[Total Capacity (MW)],MATCH(1,(MonthlyCapacities[Month]=MONTH(Month&" 1, 2000"))*(MonthlyCapacities[Unit Category]=Dashboard!$B9),0))*INDEX(Profiles[],MATCH(1,(Profiles[Month]=MONTH(Month&" 1, 2000"))*(Profiles[Hour Ending]=INT(INDEX(_xlfn.TEXTSPLIT(Dashboard!K$3,," "),2))),0),MATCH(Dashboard!$B9,Profiles[#Headers],0)) -> 7834.64 | L9: =INDEX(MonthlyCapacities[Total Capacity (MW)],MATCH(1,(MonthlyCapacities[Month]=MONTH(Month&" 1, 2000"))*(MonthlyCapacities[Unit Category]=Dashboard!$B9),0))*INDEX(Profiles[],MATCH(1,(Profiles[Month]=MONTH(Month&" 1, 2000"))*(Profiles[Hour Ending]=INT(INDEX(_xlfn.TEXTSPLIT(Dashboard!L$3,," "),2))),0),MATCH(Dashboard!$B9,Profiles[#Headers],0)) -> 7834.64 | M9: =INDEX(MonthlyCapacities[Total Capacity (MW)],MATCH(1,(MonthlyCapacities[Month]=MONTH(Month&" 1, 2000"))*(MonthlyCapacities[Unit Category]=Dashboard!$B9),0))*INDEX(Profiles[],MATCH(1,(Profiles[Month]=MONTH(Month&" 1, 2000"))*(Profiles[Hour Ending]=INT(INDEX(_xlfn.TEXTSPLIT(Dashboard!M$3,," "),2))),0),MATCH(Dashboard!$B9,Profiles[#Headers],0)) -> 7834.64 | N9: =INDEX(MonthlyCapacities[Total Capacity (MW)],MATCH(1,(MonthlyCapacities[Month]=MONTH(Month&" 1, 2000"))*(MonthlyCapacities[Unit Category]=Dashboard!$B9),0))*INDEX(Profiles[],MATCH(1,(Profiles[Month]=MONTH(Month&" 1, 2000"))*(Profiles[Hour Ending]=INT(INDEX(_xlfn.TEXTSPLIT(Dashboard!N$3,," "),2))),0),MATCH(Dashboard!$B9,Profiles[#Headers],0)) -> 7834.64 | O9: =INDEX(MonthlyCapacities[Total Capacity (MW)],MATCH(1,(MonthlyCapacities[Month]=MONTH(Month&" 1, 2000"))*(MonthlyCapacities[Unit Category]=Dashboard!$B9),0))*INDEX(Profiles[],MATCH(1,(Profiles[Month]=MONTH(Month&" 1, 2000"))*(Profiles[Hour Ending]=INT(INDEX(_xlfn.TEXTSPLIT(Dashboard!O$3,," "),2))),0),MATCH(Dashboard!$B9,Profiles[#Headers],0)) -> 7834.64 | P9: =INDEX(MonthlyCapacities[Total Capacity (MW)],MATCH(1,(MonthlyCapacities[Month]=MONTH(Month&" 1, 2000"))*(MonthlyCapacities[Unit Category]=Dashboard!$B9),0))*INDEX(Profiles[],MATCH(1,(Profiles[Month]=MONTH(Month&" 1, 2000"))*(Profiles[Hour Ending]=INT(INDEX(_xlfn.TEXTSPLIT(Dashboard!P$3,," "),2))),0),MATCH(Dashboard!$B9,Profiles[#Headers],0)) -> 7834.64 | Q9: =INDEX(MonthlyCapacities[Total Capacity (MW)],MATCH(1,(MonthlyCapacities[Month]=MONTH(Month&" 1, 2000"))*(MonthlyCapacities[Unit Category]=Dashboard!$B9),0))*INDEX(Profiles[],MATCH(1,(Profiles[Month]=MONTH(Month&" 1, 2000"))*(Profiles[Hour Ending]=INT(INDEX(_xlfn.TEXTSPLIT(Dashboard!Q$3,," "),2))),0),MATCH(Dashboard!$B9,Profiles[#Headers],0)) -> 7834.64 | R9: =INDEX(MonthlyCapacities[Total Capacity (MW)],MATCH(1,(MonthlyCapacities[Month]=MONTH(Month&" 1, 2000"))*(MonthlyCapacities[Unit Category]=Dashboard!$B9),0))*INDEX(Profiles[],MATCH(1,(Profiles[Month]=MONTH(Month&" 1, 2000"))*(Profiles[Hour Ending]=INT(INDEX(_xlfn.TEXTSPLIT(Dashboard!R$3,," "),2))),0),MATCH(Dashboard!$B9,Profiles[#Headers],0)) -> 7834.64 | S9: =INDEX(MonthlyCapacities[Total Capacity (MW)],MATCH(1,(MonthlyCapacities[Month]=MONTH(Month&" 1, 2000"))*(MonthlyCapacities[Unit Category]=Dashboard!$B9),0))*INDEX(Profiles[],MATCH(1,(Profiles[Month]=MONTH(Month&" 1, 2000"))*(Profiles[Hour Ending]=INT(INDEX(_xlfn.TEXTSPLIT(Dashboard!S$3,," "),2))),0),MATCH(Dashboard!$B9,Profiles[#Headers],0)) -> 7834.64 | T9: =INDEX(MonthlyCapacities[Total Capacity (MW)],MATCH(1,(MonthlyCapacities[Month]=MONTH(Month&" 1, 2000"))*(MonthlyCapacities[Unit Category]=Dashboard!$B9),0))*INDEX(Profiles[],MATCH(1,(Profiles[Month]=MONTH(Month&" 1, 2000"))*(Profiles[Hour Ending]=INT(INDEX(_xlfn.TEXTSPLIT(Dashboard!T$3,," "),2))),0),MATCH(Dashboard!$B9,Profiles[#Headers],0)) -> 7834.64 | U9: =INDEX(MonthlyCapacities[Total Capacity (MW)],MATCH(1,(MonthlyCapacities[Month]=MONTH(Month&" 1, 2000"))*(MonthlyCapacities[Unit Category]=Dashboard!$B9),0))*INDEX(Profiles[],MATCH(1,(Profiles[Month]=MONTH(Month&" 1, 2000"))*(Profiles[Hour Ending]=INT(INDEX(_xlfn.TEXTSPLIT(Dashboard!U$3,," "),2))),0),MATCH(Dashboard!$B9,Profiles[#Headers],0)) -> 7834.64 | V9: =INDEX(MonthlyCapacities[Total Capacity (MW)],MATCH(1,(MonthlyCapacities[Month]=MONTH(Month&" 1, 2000"))*(MonthlyCapacities[Unit Category]=Dashboard!$B9),0))*INDEX(Profiles[],MATCH(1,(Profiles[Month]=MONTH(Month&" 1, 2000"))*(Profiles[Hour Ending]=INT(INDEX(_xlfn.TEXTSPLIT(Dashboard!V$3,," "),2))),0),MATCH(Dashboard!$B9,Profiles[#Headers],0)) -> 7834.64 | W9: =INDEX(MonthlyCapacities[Total Capacity (MW)],MATCH(1,(MonthlyCapacities[Month]=MONTH(Month&" 1, 2000"))*(MonthlyCapacities[Unit Category]=Dashboard!$B9),0))*INDEX(Profiles[],MATCH(1,(Profiles[Month]=MONTH(Month&" 1, 2000"))*(Profiles[Hour Ending]=INT(INDEX(_xlfn.TEXTSPLIT(Dashboard!W$3,," "),2))),0),MATCH(Dashboard!$B9,Profiles[#Headers],0)) -> 7834.64 | X9: =INDEX(MonthlyCapacities[Total Capacity (MW)],MATCH(1,(MonthlyCapacities[Month]=MONTH(Month&" 1, 2000"))*(MonthlyCapacities[Unit Category]=Dashboard!$B9),0))*INDEX(Profiles[],MATCH(1,(Profiles[Month]=MONTH(Month&" 1, 2000"))*(Profiles[Hour Ending]=INT(INDEX(_xlfn.TEXTSPLIT(Dashboard!X$3,," "),2))),0),MATCH(Dashboard!$B9,Profiles[#Headers],0)) -> 7834.64 | Y9: =INDEX(MonthlyCapacities[Total Capacity (MW)],MATCH(1,(MonthlyCapacities[Month]=MONTH(Month&" 1, 2000"))*(MonthlyCapacities[Unit Category]=Dashboard!$B9),0))*INDEX(Profiles[],MATCH(1,(Profiles[Month]=MONTH(Month&" 1, 2000"))*(Profiles[Hour Ending]=INT(INDEX(_xlfn.TEXTSPLIT(Dashboard!Y$3,," "),2))),0),MATCH(Dashboard!$B9,Profiles[#Headers],0)) -> 7834.64 | Z9: =INDEX(MonthlyCapacities[Total Capacity (MW)],MATCH(1,(MonthlyCapacities[Month]=MONTH(Month&" 1, 2000"))*(MonthlyCapacities[Unit Category]=Dashboard!$B9),0))*INDEX(Profiles[],MATCH(1,(Profiles[Month]=MONTH(Month&" 1, 2000"))*(Profiles[Hour Ending]=INT(INDEX(_xlfn.TEXTSPLIT(Dashboard!Z$3,," "),2))),0),MATCH(Dashboard!$B9,Profiles[#Headers],0)) -> 7834.64
B10: DR | C10: =INDEX(Supply[Supply],MATCH(1,(Supply[Month]=MONTH(Month&" 1, 2000"))*(Supply[Unit Category]=Dashboard!$B10)*(Supply[Hour Ending]=INT(INDEX(_xlfn.TEXTSPLIT(Dashboard!C$3," "),2))),0)) -> 0 | D10: =INDEX(MonthlyCapacities[Total Capacity (MW)],MATCH(1,(MonthlyCapacities[Month]=MONTH(Month&" 1, 2000"))*(MonthlyCapacities[Unit Category]=Dashboard!$B10),0))*INDEX(Profiles[],MATCH(1,(Profiles[Month]=MONTH(Month&" 1, 2000"))*(Profiles[Hour Ending]=INT(INDEX(_xlfn.TEXTSPLIT(Dashboard!D$3,," "),2))),0),MATCH(Dashboard!$B10,Profiles[#Headers],0)) -> 0 | E10: =INDEX(MonthlyCapacities[Total Capacity (MW)],MATCH(1,(MonthlyCapacities[Month]=MONTH(Month&" 1, 2000"))*(MonthlyCapacities[Unit Category]=Dashboard!$B10),0))*INDEX(Profiles[],MATCH(1,(Profiles[Month]=MONTH(Month&" 1, 2000"))*(Profiles[Hour Ending]=INT(INDEX(_xlfn.TEXTSPLIT(Dashboard!E$3,," "),2))),0),MATCH(Dashboard!$B10,Profiles[#Headers],0)) -> 0 | F10: =INDEX(MonthlyCapacities[Total Capacity (MW)],MATCH(1,(MonthlyCapacities[Month]=MONTH(Month&" 1, 2000"))*(MonthlyCapacities[Unit Category]=Dashboard!$B10),0))*INDEX(Profiles[],MATCH(1,(Profiles[Month]=MONTH(Month&" 1, 2000"))*(Profiles[Hour Ending]=INT(INDEX(_xlfn.TEXTSPLIT(Dashboard!F$3,," "),2))),0),MATCH(Dashboard!$B10,Profiles[#Headers],0)) -> 0 | G10: =INDEX(MonthlyCapacities[Total Capacity (MW)],MATCH(1,(MonthlyCapacities[Month]=MONTH(Month&" 1, 2000"))*(MonthlyCapacities[Unit Category]=Dashboard!$B10),0))*INDEX(Profiles[],MATCH(1,(Profiles[Month]=MONTH(Month&" 1, 2000"))*(Profiles[Hour Ending]=INT(INDEX(_xlfn.TEXTSPLIT(Dashboard!G$3,," "),2))),0),MATCH(Dashboard!$B10,Profiles[#Headers],0)) -> 0 | H10: =INDEX(MonthlyCapacities[Total Capacity (MW)],MATCH(1,(MonthlyCapacities[Month]=MONTH(Month&" 1, 2000"))*(MonthlyCapacities[Unit Category]=Dashboard!$B10),0))*INDEX(Profiles[],MATCH(1,(Profiles[Month]=MONTH(Month&" 1, 2000"))*(Profiles[Hour Ending]=INT(INDEX(_xlfn.TEXTSPLIT(Dashboard!H$3,," "),2))),0),MATCH(Dashboard!$B10,Profiles[#Headers],0)) -> 0 | I10: =INDEX(MonthlyCapacities[Total Capacity (MW)],MATCH(1,(MonthlyCapacities[Month]=MONTH(Month&" 1, 2000"))*(MonthlyCapacities[Unit Category]=Dashboard!$B10),0))*INDEX(Profiles[],MATCH(1,(Profiles[Month]=MONTH(Month&" 1, 2000"))*(Profiles[Hour Ending]=INT(INDEX(_xlfn.TEXTSPLIT(Dashboard!I$3,," "),2))),0),MATCH(Dashboard!$B10,Profiles[#Headers],0)) -> 0 | J10: =INDEX(MonthlyCapacities[Total Capacity (MW)],MATCH(1,(MonthlyCapacities[Month]=MONTH(Month&" 1, 2000"))*(MonthlyCapacities[Unit Category]=Dashboard!$B10),0))*INDEX(Profiles[],MATCH(1,(Profiles[Month]=MONTH(Month&" 1, 2000"))*(Profiles[Hour Ending]=INT(INDEX(_xlfn.TEXTSPLIT(Dashboard!J$3,," "),2))),0),MATCH(Dashboard!$B10,Profiles[#Headers],0)) -> 0 | K10: =INDEX(MonthlyCapacities[Total Capacity (MW)],MATCH(1,(MonthlyCapacities[Month]=MONTH(Month&" 1, 2000"))*(MonthlyCapacities[Unit Category]=Dashboard!$B10),0))*INDEX(Profiles[],MATCH(1,(Profiles[Month]=MONTH(Month&" 1, 2000"))*(Profiles[Hour Ending]=INT(INDEX(_xlfn.TEXTSPLIT(Dashboard!K$3,," "),2))),0),MATCH(Dashboard!$B10,Profiles[#Headers],0)) -> 0 | L10: =INDEX(MonthlyCapacities[Total Capacity (MW)],MATCH(1,(MonthlyCapacities[Month]=MONTH(Month&" 1, 2000"))*(MonthlyCapacities[Unit Category]=Dashboard!$B10),0))*INDEX(Profiles[],MATCH(1,(Profiles[Month]=MONTH(Month&" 1, 2000"))*(Profiles[Hour Ending]=INT(INDEX(_xlfn.TEXTSPLIT(Dashboard!L$3,," "),2))),0),MATCH(Dashboard!$B10,Profiles[#Headers],0)) -> 0 | M10: =INDEX(MonthlyCapacities[Total Capacity (MW)],MATCH(1,(MonthlyCapacities[Month]=MONTH(Month&" 1, 2000"))*(MonthlyCapacities[Unit Category]=Dashboard!$B10),0))*INDEX(Profiles[],MATCH(1,(Profiles[Month]=MONTH(Month&" 1, 2000"))*(Profiles[Hour Ending]=INT(INDEX(_xlfn.TEXTSPLIT(Dashboard!M$3,," "),2))),0),MATCH(Dashboard!$B10,Profiles[#Headers],0)) -> 0 | N10: =INDEX(MonthlyCapacities[Total Capacity (MW)],MATCH(1,(MonthlyCapacities[Month]=MONTH(Month&" 1, 2000"))*(MonthlyCapacities[Unit Category]=Dashboard!$B10),0))*INDEX(Profiles[],MATCH(1,(Profiles[Month]=MONTH(Month&" 1, 2000"))*(Profiles[Hour Ending]=INT(INDEX(_xlfn.TEXTSPLIT(Dashboard!N$3,," "),2))),0),MATCH(Dashboard!$B10,Profiles[#Headers],0)) -> 0 | O10: =INDEX(MonthlyCapacities[Total Capacity (MW)],MATCH(1,(MonthlyCapacities[Month]=MONTH(Month&" 1, 2000"))*(MonthlyCapacities[Unit Category]=Dashboard!$B10),0))*INDEX(Profiles[],MATCH(1,(Profiles[Month]=MONTH(Month&" 1, 2000"))*(Profiles[Hour Ending]=INT(INDEX(_xlfn.TEXTSPLIT(Dashboard!O$3,," "),2))),0),MATCH(Dashboard!$B10,Profiles[#Headers],0)) -> 0 | P10: =INDEX(MonthlyCapacities[Total Capacity (MW)],MATCH(1,(MonthlyCapacities[Month]=MONTH(Month&" 1, 2000"))*(MonthlyCapacities[Unit Category]=Dashboard!$B10),0))*INDEX(Profiles[],MATCH(1,(Profiles[Month]=MONTH(Month&" 1, 2000"))*(Profiles[Hour Ending]=INT(INDEX(_xlfn.TEXTSPLIT(Dashboard!P$3,," "),2))),0),MATCH(Dashboard!$B10,Profiles[#Headers],0)) -> 0 | Q10: =INDEX(MonthlyCapacities[Total Capacity (MW)],MATCH(1,(MonthlyCapacities[Month]=MONTH(Month&" 1, 2000"))*(MonthlyCapacities[Unit Category]=Dashboard!$B10),0))*INDEX(Profiles[],MATCH(1,(Profiles[Month]=MONTH(Month&" 1, 2000"))*(Profiles[Hour Ending]=INT(INDEX(_xlfn.TEXTSPLIT(Dashboard!Q$3,," "),2))),0),MATCH(Dashboard!$B10,Profiles[#Headers],0)) -> 0 | R10: =INDEX(MonthlyCapacities[Total Capacity (MW)],MATCH(1,(MonthlyCapacities[Month]=MONTH(Month&" 1, 2000"))*(MonthlyCapacities[Unit Category]=Dashboard!$B10),0))*INDEX(Profiles[],MATCH(1,(Profiles[Month]=MONTH(Month&" 1, 2000"))*(Profiles[Hour Ending]=INT(INDEX(_xlfn.TEXTSPLIT(Dashboard!R$3,," "),2))),0),MATCH(Dashboard!$B10,Profiles[#Headers],0)) -> 0 | S10: =INDEX(MonthlyCapacities[Total Capacity (MW)],MATCH(1,(MonthlyCapacities[Month]=MONTH(Month&" 1, 2000"))*(MonthlyCapacities[Unit Category]=Dashboard!$B10),0))*INDEX(Profiles[],MATCH(1,(Profiles[Month]=MONTH(Month&" 1, 2000"))*(Profiles[Hour Ending]=INT(INDEX(_xlfn.TEXTSPLIT(Dashboard!S$3,," "),2))),0),MATCH(Dashboard!$B10,Profiles[#Headers],0)) -> 1605.516996 | T10: =INDEX(MonthlyCapacities[Total Capacity (MW)],MATCH(1,(MonthlyCapacities[Month]=MONTH(Month&" 1, 2000"))*(MonthlyCapacities[Unit Category]=Dashboard!$B10),0))*INDEX(Profiles[],MATCH(1,(Profiles[Month]=MONTH(Month&" 1, 2000"))*(Profiles[Hour Ending]=INT(INDEX(_xlfn.TEXTSPLIT(Dashboard!T$3,," "),2))),0),MATCH(Dashboard!$B10,Profiles[#Headers],0)) -> 1439.627534 | U10: =INDEX(MonthlyCapacities[Total Capacity (MW)],MATCH(1,(MonthlyCapacities[Month]=MONTH(Month&" 1, 2000"))*(MonthlyCapacities[Unit Category]=Dashboard!$B10),0))*INDEX(Profiles[],MATCH(1,(Profiles[Month]=MONTH(Month&" 1, 2000"))*(Profiles[Hour Ending]=INT(INDEX(_xlfn.TEXTSPLIT(Dashboard!U$3,," "),2))),0),MATCH(Dashboard!$B10,Profiles[#Headers],0)) -> 1084.241464 | V10: =INDEX(MonthlyCapacities[Total Capacity (MW)],MATCH(1,(MonthlyCapacities[Month]=MONTH(Month&" 1, 2000"))*(MonthlyCapacities[Unit Category]=Dashboard!$B10),0))*INDEX(Profiles[],MATCH(1,(Profiles[Month]=MONTH(Month&" 1, 2000"))*(Profiles[Hour Ending]=INT(INDEX(_xlfn.TEXTSPLIT(Dashboard!V$3,," "),2))),0),MATCH(Dashboard!$B10,Profiles[#Headers],0)) -> 1061.182579 | W10: =INDEX(MonthlyCapacities[Total Capacity (MW)],MATCH(1,(MonthlyCapacities[Month]=MONTH(Month&" 1, 2000"))*(MonthlyCapacities[Unit Category]=Dashboard!$B10),0))*INDEX(Profiles[],MATCH(1,(Profiles[Month]=MONTH(Month&" 1, 2000"))*(Profiles[Hour Ending]=INT(INDEX(_xlfn.TEXTSPLIT(Dashboard!W$3,," "),2))),0),MATCH(Dashboard!$B10,Profiles[#Headers],0)) -> 948.8273406 | X10: =INDEX(MonthlyCapacities[Total Capacity (MW)],MATCH(1,(MonthlyCapacities[Month]=MONTH(Month&" 1, 2000"))*(MonthlyCapacities[Unit Category]=Dashboard!$B10),0))*INDEX(Profiles[],MATCH(1,(Profiles[Month]=MONTH(Month&" 1, 2000"))*(Profiles[Hour Ending]=INT(INDEX(_xlfn.TEXTSPLIT(Dashboard!X$3,," "),2))),0),MATCH(Dashboard!$B10,Profiles[#Headers],0)) -> 0 | Y10: =INDEX(MonthlyCapacities[Total Capacity (MW)],MATCH(1,(MonthlyCapacities[Month]=MONTH(Month&" 1, 2000"))*(MonthlyCapacities[Unit Category]=Dashboard!$B10),0))*INDEX(Profiles[],MATCH(1,(Profiles[Month]=MONTH(Month&" 1, 2000"))*(Profiles[Hour Ending]=INT(INDEX(_xlfn.TEXTSPLIT(Dashboard!Y$3,," "),2))),0),MATCH(Dashboard!$B10,Profiles[#Headers],0)) -> 0 | Z10: =INDEX(MonthlyCapacities[Total Capacity (MW)],MATCH(1,(MonthlyCapacities[Month]=MONTH(Month&" 1, 2000"))*(MonthlyCapacities[Unit Category]=Dashboard!$B10),0))*INDEX(Profiles[],MATCH(1,(Profiles[Month]=MONTH(Month&" 1, 2000"))*(Profiles[Hour Ending]=INT(INDEX(_xlfn.TEXTSPLIT(Dashboard!Z$3,," "),2))),0),MATCH(Dashboard!$B10,Profiles[#Headers],0)) -> 0
B11: ICE | C11: =INDEX(Supply[Supply],MATCH(1,(Supply[Month]=MONTH(Month&" 1, 2000"))*(Supply[Unit Category]=Dashboard!$B11)*(Supply[Hour Ending]=INT(INDEX(_xlfn.TEXTSPLIT(Dashboard!C$3," "),2))),0)) -> 254.7 | D11: =INDEX(MonthlyCapacities[Total Capacity (MW)],MATCH(1,(MonthlyCapacities[Month]=MONTH(Month&" 1, 2000"))*(MonthlyCapacities[Unit Category]=Dashboard!$B11),0))*INDEX(Profiles[],MATCH(1,(Profiles[Month]=MONTH(Month&" 1, 2000"))*(Profiles[Hour Ending]=INT(INDEX(_xlfn.TEXTSPLIT(Dashboard!D$3,," "),2))),0),MATCH(Dashboard!$B11,Profiles[#Headers],0)) -> 254.7 | E11: =INDEX(MonthlyCapacities[Total Capacity (MW)],MATCH(1,(MonthlyCapacities[Month]=MONTH(Month&" 1, 2000"))*(MonthlyCapacities[Unit Category]=Dashboard!$B11),0))*INDEX(Profiles[],MATCH(1,(Profiles[Month]=MONTH(Month&" 1, 2000"))*(Profiles[Hour Ending]=INT(INDEX(_xlfn.TEXTSPLIT(Dashboard!E$3,," "),2))),0),MATCH(Dashboard!$B11,Profiles[#Headers],0)) -> 254.7 | F11: =INDEX(MonthlyCapacities[Total Capacity (MW)],MATCH(1,(MonthlyCapacities[Month]=MONTH(Month&" 1, 2000"))*(MonthlyCapacities[Unit Category]=Dashboard!$B11),0))*INDEX(Profiles[],MATCH(1,(Profiles[Month]=MONTH(Month&" 1, 2000"))*(Profiles[Hour Ending]=INT(INDEX(_xlfn.TEXTSPLIT(Dashboard!F$3,," "),2))),0),MATCH(Dashboard!$B11,Profiles[#Headers],0)) -> 254.7 | G11: =INDEX(MonthlyCapacities[Total Capacity (MW)],MATCH(1,(MonthlyCapacities[Month]=MONTH(Month&" 1, 2000"))*(MonthlyCapacities[Unit Category]=Dashboard!$B11),0))*INDEX(Profiles[],MATCH(1,(Profiles[Month]=MONTH(Month&" 1, 2000"))*(Profiles[Hour Ending]=INT(INDEX(_xlfn.TEXTSPLIT(Dashboard!G$3,," "),2))),0),MATCH(Dashboard!$B11,Profiles[#Headers],0)) -> 254.7 | H11: =INDEX(MonthlyCapacities[Total Capacity (MW)],MATCH(1,(MonthlyCapacities[Month]=MONTH(Month&" 1, 2000"))*(MonthlyCapacities[Unit Category]=Dashboard!$B11),0))*INDEX(Profiles[],MATCH(1,(Profiles[Month]=MONTH(Month&" 1, 2000"))*(Profiles[Hour Ending]=INT(INDEX(_xlfn.TEXTSPLIT(Dashboard!H$3,," "),2))),0),MATCH(Dashboard!$B11,Profiles[#Headers],0)) -> 254.7 | I11: =INDEX(MonthlyCapacities[Total Capacity (MW)],MATCH(1,(MonthlyCapacities[Month]=MONTH(Month&" 1, 2000"))*(MonthlyCapacities[Unit Category]=Dashboard!$B11),0))*INDEX(Profiles[],MATCH(1,(Profiles[Month]=MONTH(Month&" 1, 2000"))*(Profiles[Hour Ending]=INT(INDEX(_xlfn.TEXTSPLIT(Dashboard!I$3,," "),2))),0),MATCH(Dashboard!$B11,Profiles[#Headers],0)) -> 254.7 | J11: =INDEX(MonthlyCapacities[Total Capacity (MW)],MATCH(1,(MonthlyCapacities[Month]=MONTH(Month&" 1, 2000"))*(MonthlyCapacities[Unit Category]=Dashboard!$B11),0))*INDEX(Profiles[],MATCH(1,(Profiles[Month]=MONTH(Month&" 1, 2000"))*(Profiles[Hour Ending]=INT(INDEX(_xlfn.TEXTSPLIT(Dashboard!J$3,," "),2))),0),MATCH(Dashboard!$B11,Profiles[#Headers],0)) -> 254.7 | K11: =INDEX(MonthlyCapacities[Total Capacity (MW)],MATCH(1,(MonthlyCapacities[Month]=MONTH(Month&" 1, 2000"))*(MonthlyCapacities[Unit Category]=Dashboard!$B11),0))*INDEX(Profiles[],MATCH(1,(Profiles[Month]=MONTH(Month&" 1, 2000"))*(Profiles[Hour Ending]=INT(INDEX(_xlfn.TEXTSPLIT(Dashboard!K$3,," "),2))),0),MATCH(Dashboard!$B11,Profiles[#Headers],0)) -> 254.7 | L11: =INDEX(MonthlyCapacities[Total Capacity (MW)],MATCH(1,(MonthlyCapacities[Month]=MONTH(Month&" 1, 2000"))*(MonthlyCapacities[Unit Category]=Dashboard!$B11),0))*INDEX(Profiles[],MATCH(1,(Profiles[Month]=MONTH(Month&" 1, 2000"))*(Profiles[Hour Ending]=INT(INDEX(_xlfn.TEXTSPLIT(Dashboard!L$3,," "),2))),0),MATCH(Dashboard!$B11,Profiles[#Headers],0)) -> 254.7 | M11: =INDEX(MonthlyCapacities[Total Capacity (MW)],MATCH(1,(MonthlyCapacities[Month]=MONTH(Month&" 1, 2000"))*(MonthlyCapacities[Unit Category]=Dashboard!$B11),0))*INDEX(Profiles[],MATCH(1,(Profiles[Month]=MONTH(Month&" 1, 2000"))*(Profiles[Hour Ending]=INT(INDEX(_xlfn.TEXTSPLIT(Dashboard!M$3,," "),2))),0),MATCH(Dashboard!$B11,Profiles[#Headers],0)) -> 254.7 | N11: =INDEX(MonthlyCapacities[Total Capacity (MW)],MATCH(1,(MonthlyCapacities[Month]=MONTH(Month&" 1, 2000"))*(MonthlyCapacities[Unit Category]=Dashboard!$B11),0))*INDEX(Profiles[],MATCH(1,(Profiles[Month]=MONTH(Month&" 1, 2000"))*(Profiles[Hour Ending]=INT(INDEX(_xlfn.TEXTSPLIT(Dashboard!N$3,," "),2))),0),MATCH(Dashboard!$B11,Profiles[#Headers],0)) -> 254.7 | O11: =INDEX(MonthlyCapacities[Total Capacity (MW)],MATCH(1,(MonthlyCapacities[Month]=MONTH(Month&" 1, 2000"))*(MonthlyCapacities[Unit Category]=Dashboard!$B11),0))*INDEX(Profiles[],MATCH(1,(Profiles[Month]=MONTH(Month&" 1, 2000"))*(Profiles[Hour Ending]=INT(INDEX(_xlfn.TEXTSPLIT(Dashboard!O$3,," "),2))),0),MATCH(Dashboard!$B11,Profiles[#Headers],0)) -> 254.7 | P11: =INDEX(MonthlyCapacities[Total Capacity (MW)],MATCH(1,(MonthlyCapacities[Month]=MONTH(Month&" 1, 2000"))*(MonthlyCapacities[Unit Category]=Dashboard!$B11),0))*INDEX(Profiles[],MATCH(1,(Profiles[Month]=MONTH(Month&" 1, 2000"))*(Profiles[Hour Ending]=INT(INDEX(_xlfn.TEXTSPLIT(Dashboard!P$3,," "),2))),0),MATCH(Dashboard!$B11,Profiles[#Headers],0)) -> 254.7 | Q11: =INDEX(MonthlyCapacities[Total Capacity (MW)],MATCH(1,(MonthlyCapacities[Month]=MONTH(Month&" 1, 2000"))*(MonthlyCapacities[Unit Category]=Dashboard!$B11),0))*INDEX(Profiles[],MATCH(1,(Profiles[Month]=MONTH(Month&" 1, 2000"))*(Profiles[Hour Ending]=INT(INDEX(_xlfn.TEXTSPLIT(Dashboard!Q$3,," "),2))),0),MATCH(Dashboard!$B11,Profiles[#Headers],0)) -> 254.7 | R11: =INDEX(MonthlyCapacities[Total Capacity (MW)],MATCH(1,(MonthlyCapacities[Month]=MONTH(Month&" 1, 2000"))*(MonthlyCapacities[Unit Category]=Dashboard!$B11),0))*INDEX(Profiles[],MATCH(1,(Profiles[Month]=MONTH(Month&" 1, 2000"))*(Profiles[Hour Ending]=INT(INDEX(_xlfn.TEXTSPLIT(Dashboard!R$3,," "),2))),0),MATCH(Dashboard!$B11,Profiles[#Headers],0)) -> 254.7 | S11: =INDEX(MonthlyCapacities[Total Capacity (MW)],MATCH(1,(MonthlyCapacities[Month]=MONTH(Month&" 1, 2000"))*(MonthlyCapacities[Unit Category]=Dashboard!$B11),0))*INDEX(Profiles[],MATCH(1,(Profiles[Month]=MONTH(Month&" 1, 2000"))*(Profiles[Hour Ending]=INT(INDEX(_xlfn.TEXTSPLIT(Dashboard!S$3,," "),2))),0),MATCH(Dashboard!$B11,Profiles[#Headers],0)) -> 254.7 | T11: =INDEX(MonthlyCapacities[Total Capacity (MW)],MATCH(1,(MonthlyCapacities[Month]=MONTH(Month&" 1, 2000"))*(MonthlyCapacities[Unit Category]=Dashboard!$B11),0))*INDEX(Profiles[],MATCH(1,(Profiles[Month]=MONTH(Month&" 1, 2000"))*(Profiles[Hour Ending]=INT(INDEX(_xlfn.TEXTSPLIT(Dashboard!T$3,," "),2))),0),MATCH(Dashboard!$B11,Profiles[#Headers],0)) -> 254.7 | U11: =INDEX(MonthlyCapacities[Total Capacity (MW)],MATCH(1,(MonthlyCapacities[Month]=MONTH(Month&" 1, 2000"))*(MonthlyCapacities[Unit Category]=Dashboard!$B11),0))*INDEX(Profiles[],MATCH(1,(Profiles[Month]=MONTH(Month&" 1, 2000"))*(Profiles[Hour Ending]=INT(INDEX(_xlfn.TEXTSPLIT(Dashboard!U$3,," "),2))),0),MATCH(Dashboard!$B11,Profiles[#Headers],0)) -> 254.7 | V11: =INDEX(MonthlyCapacities[Total Capacity (MW)],MATCH(1,(MonthlyCapacities[Month]=MONTH(Month&" 1, 2000"))*(MonthlyCapacities[Unit Category]=Dashboard!$B11),0))*INDEX(Profiles[],MATCH(1,(Profiles[Month]=MONTH(Month&" 1, 2000"))*(Profiles[Hour Ending]=INT(INDEX(_xlfn.TEXTSPLIT(Dashboard!V$3,," "),2))),0),MATCH(Dashboard!$B11,Profiles[#Headers],0)) -> 254.7 | W11: =INDEX(MonthlyCapacities[Total Capacity (MW)],MATCH(1,(MonthlyCapacities[Month]=MONTH(Month&" 1, 2000"))*(MonthlyCapacities[Unit Category]=Dashboard!$B11),0))*INDEX(Profiles[],MATCH(1,(Profiles[Month]=MONTH(Month&" 1, 2000"))*(Profiles[Hour Ending]=INT(INDEX(_xlfn.TEXTSPLIT(Dashboard!W$3,," "),2))),0),MATCH(Dashboard!$B11,Profiles[#Headers],0)) -> 254.7 | X11: =INDEX(MonthlyCapacities[Total Capacity (MW)],MATCH(1,(MonthlyCapacities[Month]=MONTH(Month&" 1, 2000"))*(MonthlyCapacities[Unit Category]=Dashboard!$B11),0))*INDEX(Profiles[],MATCH(1,(Profiles[Month]=MONTH(Month&" 1, 2000"))*(Profiles[Hour Ending]=INT(INDEX(_xlfn.TEXTSPLIT(Dashboard!X$3,," "),2))),0),MATCH(Dashboard!$B11,Profiles[#Headers],0)) -> 254.7 | Y11: =INDEX(MonthlyCapacities[Total Capacity (MW)],MATCH(1,(MonthlyCapacities[Month]=MONTH(Month&" 1, 2000"))*(MonthlyCapacities[Unit Category]=Dashboard!$B11),0))*INDEX(Profiles[],MATCH(1,(Profiles[Month]=MONTH(Month&" 1, 2000"))*(Profiles[Hour Ending]=INT(INDEX(_xlfn.TEXTSPLIT(Dashboard!Y$3,," "),2))),0),MATCH(Dashboard!$B11,Profiles[#Headers],0)) -> 254.7 | Z11: =INDEX(MonthlyCapacities[Total Capacity (MW)],MATCH(1,(MonthlyCapacities[Month]=MONTH(Month&" 1, 2000"))*(MonthlyCapacities[Unit Category]=Dashboard!$B11),0))*INDEX(Profiles[],MATCH(1,(Profiles[Month]=MONTH(Month&" 1, 2000"))*(Profiles[Hour Ending]=INT(INDEX(_xlfn.TEXTSPLIT(Dashboard!Z$3,," "),2))),0),MATCH(Dashboard!$B11,Profiles[#Headers],0)) -> 254.7
B12: Geothermal | C12: =INDEX(Supply[Supply],MATCH(1,(Supply[Month]=MONTH(Month&" 1, 2000"))*(Supply[Unit Category]=Dashboard!$B12)*(Supply[Hour Ending]=INT(INDEX(_xlfn.TEXTSPLIT(Dashboard!C$3," "),2))),0)) -> 1096.847531 | D12: =INDEX(MonthlyCapacities[Total Capacity (MW)],MATCH(1,(MonthlyCapacities[Month]=MONTH(Month&" 1, 2000"))*(MonthlyCapacities[Unit Category]=Dashboard!$B12),0))*INDEX(Profiles[],MATCH(1,(Profiles[Month]=MONTH(Month&" 1, 2000"))*(Profiles[Hour Ending]=INT(INDEX(_xlfn.TEXTSPLIT(Dashboard!D$3,," "),2))),0),MATCH(Dashboard!$B12,Profiles[#Headers],0)) -> 1096.847531 | E12: =INDEX(MonthlyCapacities[Total Capacity (MW)],MATCH(1,(MonthlyCapacities[Month]=MONTH(Month&" 1, 2000"))*(MonthlyCapacities[Unit Category]=Dashboard!$B12),0))*INDEX(Profiles[],MATCH(1,(Profiles[Month]=MONTH(Month&" 1, 2000"))*(Profiles[Hour Ending]=INT(INDEX(_xlfn.TEXTSPLIT(Dashboard!E$3,," "),2))),0),MATCH(Dashboard!$B12,Profiles[#Headers],0)) -> 1096.847531 | F12: =INDEX(MonthlyCapacities[Total Capacity (MW)],MATCH(1,(MonthlyCapacities[Month]=MONTH(Month&" 1, 2000"))*(MonthlyCapacities[Unit Category]=Dashboard!$B12),0))*INDEX(Profiles[],MATCH(1,(Profiles[Month]=MONTH(Month&" 1, 2000"))*(Profiles[Hour Ending]=INT(INDEX(_xlfn.TEXTSPLIT(Dashboard!F$3,," "),2))),0),MATCH(Dashboard!$B12,Profiles[#Headers],0)) -> 1096.847531 | G12: =INDEX(MonthlyCapacities[Total Capacity (MW)],MATCH(1,(MonthlyCapacities[Month]=MONTH(Month&" 1, 2000"))*(MonthlyCapacities[Unit Category]=Dashboard!$B12),0))*INDEX(Profiles[],MATCH(1,(Profiles[Month]=MONTH(Month&" 1, 2000"))*(Profiles[Hour Ending]=INT(INDEX(_xlfn.TEXTSPLIT(Dashboard!G$3,," "),2))),0),MATCH(Dashboard!$B12,Profiles[#Headers],0)) -> 1096.847531 | H12: =INDEX(MonthlyCapacities[Total Capacity (MW)],MATCH(1,(MonthlyCapacities[Month]=MONTH(Month&" 1, 2000"))*(MonthlyCapacities[Unit Category]=Dashboard!$B12),0))*INDEX(Profiles[],MATCH(1,(Profiles[Month]=MONTH(Month&" 1, 2000"))*(Profiles[Hour Ending]=INT(INDEX(_xlfn.TEXTSPLIT(Dashboard!H$3,," "),2))),0),MATCH(Dashboard!$B12,Profiles[#Headers],0)) -> 1096.847531 | I12: =INDEX(MonthlyCapacities[Total Capacity (MW)],MATCH(1,(MonthlyCapacities[Month]=MONTH(Month&" 1, 2000"))*(MonthlyCapacities[Unit Category]=Dashboard!$B12),0))*INDEX(Profiles[],MATCH(1,(Profiles[Month]=MONTH(Month&" 1, 2000"))*(Profiles[Hour Ending]=INT(INDEX(_xlfn.TEXTSPLIT(Dashboard!I$3,," "),2))),0),MATCH(Dashboard!$B12,Profiles[#Headers],0)) -> 1096.847531 | J12: =INDEX(MonthlyCapacities[Total Capacity (MW)],MATCH(1,(MonthlyCapacities[Month]=MONTH(Month&" 1, 2000"))*(MonthlyCapacities[Unit Category]=Dashboard!$B12),0))*INDEX(Profiles[],MATCH(1,(Profiles[Month]=MONTH(Month&" 1, 2000"))*(Profiles[Hour Ending]=INT(INDEX(_xlfn.TEXTSPLIT(Dashboard!J$3,," "),2))),0),MATCH(Dashboard!$B12,Profiles[#Headers],0)) -> 1096.847531 | K12: =INDEX(MonthlyCapacities[Total Capacity (MW)],MATCH(1,(MonthlyCapacities[Month]=MONTH(Month&" 1, 2000"))*(MonthlyCapacities[Unit Category]=Dashboard!$B12),0))*INDEX(Profiles[],MATCH(1,(Profiles[Month]=MONTH(Month&" 1, 2000"))*(Profiles[Hour Ending]=INT(INDEX(_xlfn.TEXTSPLIT(Dashboard!K$3,," "),2))),0),MATCH(Dashboard!$B12,Profiles[#Headers],0)) -> 1096.847531 | L12: =INDEX(MonthlyCapacities[Total Capacity (MW)],MATCH(1,(MonthlyCapacities[Month]=MONTH(Month&" 1, 2000"))*(MonthlyCapacities[Unit Category]=Dashboard!$B12),0))*INDEX(Profiles[],MATCH(1,(Profiles[Month]=MONTH(Month&" 1, 2000"))*(Profiles[Hour Ending]=INT(INDEX(_xlfn.TEXTSPLIT(Dashboard!L$3,," "),2))),0),MATCH(Dashboard!$B12,Profiles[#Headers],0)) -> 1096.847531 | M12: =INDEX(MonthlyCapacities[Total Capacity (MW)],MATCH(1,(MonthlyCapacities[Month]=MONTH(Month&" 1, 2000"))*(MonthlyCapacities[Unit Category]=Dashboard!$B12),0))*INDEX(Profiles[],MATCH(1,(Profiles[Month]=MONTH(Month&" 1, 2000"))*(Profiles[Hour Ending]=INT(INDEX(_xlfn.TEXTSPLIT(Dashboard!M$3,," "),2))),0),MATCH(Dashboard!$B12,Profiles[#Headers],0)) -> 1096.847531 | N12: =INDEX(MonthlyCapacities[Total Capacity (MW)],MATCH(1,(MonthlyCapacities[Month]=MONTH(Month&" 1, 2000"))*(MonthlyCapacities[Unit Category]=Dashboard!$B12),0))*INDEX(Profiles[],MATCH(1,(Profiles[Month]=MONTH(Month&" 1, 2000"))*(Profiles[Hour Ending]=INT(INDEX(_xlfn.TEXTSPLIT(Dashboard!N$3,," "),2))),0),MATCH(Dashboard!$B12,Profiles[#Headers],0)) -> 1096.847531 | O12: =INDEX(MonthlyCapacities[Total Capacity (MW)],MATCH(1,(MonthlyCapacities[Month]=MONTH(Month&" 1, 2000"))*(MonthlyCapacities[Unit Category]=Dashboard!$B12),0))*INDEX(Profiles[],MATCH(1,(Profiles[Month]=MONTH(Month&" 1, 2000"))*(Profiles[Hour Ending]=INT(INDEX(_xlfn.TEXTSPLIT(Dashboard!O$3,," "),2))),0),MATCH(Dashboard!$B12,Profiles[#Headers],0)) -> 1096.847531 | P12: =INDEX(MonthlyCapacities[Total Capacity (MW)],MATCH(1,(MonthlyCapacities[Month]=MONTH(Month&" 1, 2000"))*(MonthlyCapacities[Unit Category]=Dashboard!$B12),0))*INDEX(Profiles[],MATCH(1,(Profiles[Month]=MONTH(Month&" 1, 2000"))*(Profiles[Hour Ending]=INT(INDEX(_xlfn.TEXTSPLIT(Dashboard!P$3,," "),2))),0),MATCH(Dashboard!$B12,Profiles[#Headers],0)) -> 1096.847531 | Q12: =INDEX(MonthlyCapacities[Total Capacity (MW)],MATCH(1,(MonthlyCapacities[Month]=MONTH(Month&" 1, 2000"))*(MonthlyCapacities[Unit Category]=Dashboard!$B12),0))*INDEX(Profiles[],MATCH(1,(Profiles[Month]=MONTH(Month&" 1, 2000"))*(Profiles[Hour Ending]=INT(INDEX(_xlfn.TEXTSPLIT(Dashboard!Q$3,," "),2))),0),MATCH(Dashboard!$B12,Profiles[#Headers],0)) -> 1096.847531 | R12: =INDEX(MonthlyCapacities[Total Capacity (MW)],MATCH(1,(MonthlyCapacities[Month]=MONTH(Month&" 1, 2000"))*(MonthlyCapacities[Unit Category]=Dashboard!$B12),0))*INDEX(Profiles[],MATCH(1,(Profiles[Month]=MONTH(Month&" 1, 2000"))*(Profiles[Hour Ending]=INT(INDEX(_xlfn.TEXTSPLIT(Dashboard!R$3,," "),2))),0),MATCH(Dashboard!$B12,Profiles[#Headers],0)) -> 1096.847531 | S12: =INDEX(MonthlyCapacities[Total Capacity (MW)],MATCH(1,(MonthlyCapacities[Month]=MONTH(Month&" 1, 2000"))*(MonthlyCapacities[Unit Category]=Dashboard!$B12),0))*INDEX(Profiles[],MATCH(1,(Profiles[Month]=MONTH(Month&" 1, 2000"))*(Profiles[Hour Ending]=INT(INDEX(_xlfn.TEXTSPLIT(Dashboard!S$3,," "),2))),0),MATCH(Dashboard!$B12,Profiles[#Headers],0)) -> 1096.847531 | T12: =INDEX(MonthlyCapacities[Total Capacity (MW)],MATCH(1,(MonthlyCapacities[Month]=MONTH(Month&" 1, 2000"))*(MonthlyCapacities[Unit Category]=Dashboard!$B12),0))*INDEX(Profiles[],MATCH(1,(Profiles[Month]=MONTH(Month&" 1, 2000"))*(Profiles[Hour Ending]=INT(INDEX(_xlfn.TEXTSPLIT(Dashboard!T$3,," "),2))),0),MATCH(Dashboard!$B12,Profiles[#Headers],0)) -> 1096.847531 | U12: =INDEX(MonthlyCapacities[Total Capacity (MW)],MATCH(1,(MonthlyCapacities[Month]=MONTH(Month&" 1, 2000"))*(MonthlyCapacities[Unit Category]=Dashboard!$B12),0))*INDEX(Profiles[],MATCH(1,(Profiles[Month]=MONTH(Month&" 1, 2000"))*(Profiles[Hour Ending]=INT(INDEX(_xlfn.TEXTSPLIT(Dashboard!U$3,," "),2))),0),MATCH(Dashboard!$B12,Profiles[#Headers],0)) -> 1096.847531 | V12: =INDEX(MonthlyCapacities[Total Capacity (MW)],MATCH(1,(MonthlyCapacities[Month]=MONTH(Month&" 1, 2000"))*(MonthlyCapacities[Unit Category]=Dashboard!$B12),0))*INDEX(Profiles[],MATCH(1,(Profiles[Month]=MONTH(Month&" 1, 2000"))*(Profiles[Hour Ending]=INT(INDEX(_xlfn.TEXTSPLIT(Dashboard!V$3,," "),2))),0),MATCH(Dashboard!$B12,Profiles[#Headers],0)) -> 1096.847531 | W12: =INDEX(MonthlyCapacities[Total Capacity (MW)],MATCH(1,(MonthlyCapacities[Month]=MONTH(Month&" 1, 2000"))*(MonthlyCapacities[Unit Category]=Dashboard!$B12),0))*INDEX(Profiles[],MATCH(1,(Profiles[Month]=MONTH(Month&" 1, 2000"))*(Profiles[Hour Ending]=INT(INDEX(_xlfn.TEXTSPLIT(Dashboard!W$3,," "),2))),0),MATCH(Dashboard!$B12,Profiles[#Headers],0)) -> 1096.847531 | X12: =INDEX(MonthlyCapacities[Total Capacity (MW)],MATCH(1,(MonthlyCapacities[Month]=MONTH(Month&" 1, 2000"))*(MonthlyCapacities[Unit Category]=Dashboard!$B12),0))*INDEX(Profiles[],MATCH(1,(Profiles[Month]=MONTH(Month&" 1, 2000"))*(Profiles[Hour Ending]=INT(INDEX(_xlfn.TEXTSPLIT(Dashboard!X$3,," "),2))),0),MATCH(Dashboard!$B12,Profiles[#Headers],0)) -> 1096.847531 | Y12: =INDEX(MonthlyCapacities[Total Capacity (MW)],MATCH(1,(MonthlyCapacities[Month]=MONTH(Month&" 1, 2000"))*(MonthlyCapacities[Unit Category]=Dashboard!$B12),0))*INDEX(Profiles[],MATCH(1,(Profiles[Month]=MONTH(Month&" 1, 2000"))*(Profiles[Hour Ending]=INT(INDEX(_xlfn.TEXTSPLIT(Dashboard!Y$3,," "),2))),0),MATCH(Dashboard!$B12,Profiles[#Headers],0)) -> 1096.847531 | Z12: =INDEX(MonthlyCapacities[Total Capacity (MW)],MATCH(1,(MonthlyCapacities[Month]=MONTH(Month&" 1, 2000"))*(MonthlyCapacities[Unit Category]=Dashboard!$B12),0))*INDEX(Profiles[],MATCH(1,(Profiles[Month]=MONTH(Month&" 1, 2000"))*(Profiles[Hour Ending]=INT(INDEX(_xlfn.TEXTSPLIT(Dashboard!Z$3,," "),2))),0),MATCH(Dashboard!$B12,Profiles[#Headers],0)) -> 1096.847531
B13: Hydro | C13: =INDEX(Supply[Supply],MATCH(1,(Supply[Month]=MONTH(Month&" 1, 2000"))*(Supply[Unit Category]=Dashboard!$B13)*(Supply[Hour Ending]=INT(INDEX(_xlfn.TEXTSPLIT(Dashboard!C$3," "),2))),0)) -> 4254.55 | D13: =INDEX(MonthlyCapacities[Total Capacity (MW)],MATCH(1,(MonthlyCapacities[Month]=MONTH(Month&" 1, 2000"))*(MonthlyCapacities[Unit Category]=Dashboard!$B13),0))*INDEX(Profiles[],MATCH(1,(Profiles[Month]=MONTH(Month&" 1, 2000"))*(Profiles[Hour Ending]=INT(INDEX(_xlfn.TEXTSPLIT(Dashboard!D$3,," "),2))),0),MATCH(Dashboard!$B13,Profiles[#Headers],0)) -> 4254.55 | E13: =INDEX(MonthlyCapacities[Total Capacity (MW)],MATCH(1,(MonthlyCapacities[Month]=MONTH(Month&" 1, 2000"))*(MonthlyCapacities[Unit Category]=Dashboard!$B13),0))*INDEX(Profiles[],MATCH(1,(Profiles[Month]=MONTH(Month&" 1, 2000"))*(Profiles[Hour Ending]=INT(INDEX(_xlfn.TEXTSPLIT(Dashboard!E$3,," "),2))),0),MATCH(Dashboard!$B13,Profiles[#Headers],0)) -> 4254.55 | F13: =INDEX(MonthlyCapacities[Total Capacity (MW)],MATCH(1,(MonthlyCapacities[Month]=MONTH(Month&" 1, 2000"))*(MonthlyCapacities[Unit Category]=Dashboard!$B13),0))*INDEX(Profiles[],MATCH(1,(Profiles[Month]=MONTH(Month&" 1, 2000"))*(Profiles[Hour Ending]=INT(INDEX(_xlfn.TEXTSPLIT(Dashboard!F$3,," "),2))),0),MATCH(Dashboard!$B13,Profiles[#Headers],0)) -> 4254.55 | G13: =INDEX(MonthlyCapacities[Total Capacity (MW)],MATCH(1,(MonthlyCapacities[Month]=MONTH(Month&" 1, 2000"))*(MonthlyCapacities[Unit Category]=Dashboard!$B13),0))*INDEX(Profiles[],MATCH(1,(Profiles[Month]=MONTH(Month&" 1, 2000"))*(Profiles[Hour Ending]=INT(INDEX(_xlfn.TEXTSPLIT(Dashboard!G$3,," "),2))),0),MATCH(Dashboard!$B13,Profiles[#Headers],0)) -> 4254.55 | H13: =INDEX(MonthlyCapacities[Total Capacity (MW)],MATCH(1,(MonthlyCapacities[Month]=MONTH(Month&" 1, 2000"))*(MonthlyCapacities[Unit Category]=Dashboard!$B13),0))*INDEX(Profiles[],MATCH(1,(Profiles[Month]=MONTH(Month&" 1, 2000"))*(Profiles[Hour Ending]=INT(INDEX(_xlfn.TEXTSPLIT(Dashboard!H$3,," "),2))),0),MATCH(Dashboard!$B13,Profiles[#Headers],0)) -> 4254.55 | I13: =INDEX(MonthlyCapacities[Total Capacity (MW)],MATCH(1,(MonthlyCapacities[Month]=MONTH(Month&" 1, 2000"))*(MonthlyCapacities[Unit Category]=Dashboard!$B13),0))*INDEX(Profiles[],MATCH(1,(Profiles[Month]=MONTH(Month&" 1, 2000"))*(Profiles[Hour Ending]=INT(INDEX(_xlfn.TEXTSPLIT(Dashboard!I$3,," "),2))),0),MATCH(Dashboard!$B13,Profiles[#Headers],0)) -> 4254.55 | J13: =INDEX(MonthlyCapacities[Total Capacity (MW)],MATCH(1,(MonthlyCapacities[Month]=MONTH(Month&" 1, 2000"))*(MonthlyCapacities[Unit Category]=Dashboard!$B13),0))*INDEX(Profiles[],MATCH(1,(Profiles[Month]=MONTH(Month&" 1, 2000"))*(Profiles[Hour Ending]=INT(INDEX(_xlfn.TEXTSPLIT(Dashboard!J$3,," "),2))),0),MATCH(Dashboard!$B13,Profiles[#Headers],0)) -> 4254.55 | K13: =INDEX(MonthlyCapacities[Total Capacity (MW)],MATCH(1,(MonthlyCapacities[Month]=MONTH(Month&" 1, 2000"))*(MonthlyCapacities[Unit Category]=Dashboard!$B13),0))*INDEX(Profiles[],MATCH(1,(Profiles[Month]=MONTH(Month&" 1, 2000"))*(Profiles[Hour Ending]=INT(INDEX(_xlfn.TEXTSPLIT(Dashboard!K$3,," "),2))),0),MATCH(Dashboard!$B13,Profiles[#Headers],0)) -> 4254.55 | L13: =INDEX(MonthlyCapacities[Total Capacity (MW)],MATCH(1,(MonthlyCapacities[Month]=MONTH(Month&" 1, 2000"))*(MonthlyCapacities[Unit Category]=Dashboard!$B13),0))*INDEX(Profiles[],MATCH(1,(Profiles[Month]=MONTH(Month&" 1, 2000"))*(Profiles[Hour Ending]=INT(INDEX(_xlfn.TEXTSPLIT(Dashboard!L$3,," "),2))),0),MATCH(Dashboard!$B13,Profiles[#Headers],0)) -> 4254.55 | M13: =INDEX(MonthlyCapacities[Total Capacity (MW)],MATCH(1,(MonthlyCapacities[Month]=MONTH(Month&" 1, 2000"))*(MonthlyCapacities[Unit Category]=Dashboard!$B13),0))*INDEX(Profiles[],MATCH(1,(Profiles[Month]=MONTH(Month&" 1, 2000"))*(Profiles[Hour Ending]=INT(INDEX(_xlfn.TEXTSPLIT(Dashboard!M$3,," "),2))),0),MATCH(Dashboard!$B13,Profiles[#Headers],0)) -> 4254.55 | N13: =INDEX(MonthlyCapacities[Total Capacity (MW)],MATCH(1,(MonthlyCapacities[Month]=MONTH(Month&" 1, 2000"))*(MonthlyCapacities[Unit Category]=Dashboard!$B13),0))*INDEX(Profiles[],MATCH(1,(Profiles[Month]=MONTH(Month&" 1, 2000"))*(Profiles[Hour Ending]=INT(INDEX(_xlfn.TEXTSPLIT(Dashboard!N$3,," "),2))),0),MATCH(Dashboard!$B13,Profiles[#Headers],0)) -> 4254.55 | O13: =INDEX(MonthlyCapacities[Total Capacity (MW)],MATCH(1,(MonthlyCapacities[Month]=MONTH(Month&" 1, 2000"))*(MonthlyCapacities[Unit Category]=Dashboard!$B13),0))*INDEX(Profiles[],MATCH(1,(Profiles[Month]=MONTH(Month&" 1, 2000"))*(Profiles[Hour Ending]=INT(INDEX(_xlfn.TEXTSPLIT(Dashboard!O$3,," "),2))),0),MATCH(Dashboard!$B13,Profiles[#Headers],0)) -> 4254.55 | P13: =INDEX(MonthlyCapacities[Total Capacity (MW)],MATCH(1,(MonthlyCapacities[Month]=MONTH(Month&" 1, 2000"))*(MonthlyCapacities[Unit Category]=Dashboard!$B13),0))*INDEX(Profiles[],MATCH(1,(Profiles[Month]=MONTH(Month&" 1, 2000"))*(Profiles[Hour Ending]=INT(INDEX(_xlfn.TEXTSPLIT(Dashboard!P$3,," "),2))),0),MATCH(Dashboard!$B13,Profiles[#Headers],0)) -> 4254.55 | Q13: =INDEX(MonthlyCapacities[Total Capacity (MW)],MATCH(1,(MonthlyCapacities[Month]=MONTH(Month&" 1, 2000"))*(MonthlyCapacities[Unit Category]=Dashboard!$B13),0))*INDEX(Profiles[],MATCH(1,(Profiles[Month]=MONTH(Month&" 1, 2000"))*(Profiles[Hour Ending]=INT(INDEX(_xlfn.TEXTSPLIT(Dashboard!Q$3,," "),2))),0),MATCH(Dashboard!$B13,Profiles[#Headers],0)) -> 4254.55 | R13: =INDEX(MonthlyCapacities[Total Capacity (MW)],MATCH(1,(MonthlyCapacities[Month]=MONTH(Month&" 1, 2000"))*(MonthlyCapacities[Unit Category]=Dashboard!$B13),0))*INDEX(Profiles[],MATCH(1,(Profiles[Month]=MONTH(Month&" 1, 2000"))*(Profiles[Hour Ending]=INT(INDEX(_xlfn.TEXTSPLIT(Dashboard!R$3,," "),2))),0),MATCH(Dashboard!$B13,Profiles[#Headers],0)) -> 4254.55 | S13: =INDEX(MonthlyCapacities[Total Capacity (MW)],MATCH(1,(MonthlyCapacities[Month]=MONTH(Month&" 1, 2000"))*(MonthlyCapacities[Unit Category]=Dashboard!$B13),0))*INDEX(Profiles[],MATCH(1,(Profiles[Month]=MONTH(Month&" 1, 2000"))*(Profiles[Hour Ending]=INT(INDEX(_xlfn.TEXTSPLIT(Dashboard!S$3,," "),2))),0),MATCH(Dashboard!$B13,Profiles[#Headers],0)) -> 4254.55 | T13: =INDEX(MonthlyCapacities[Total Capacity (MW)],MATCH(1,(MonthlyCapacities[Month]=MONTH(Month&" 1, 2000"))*(MonthlyCapacities[Unit Category]=Dashboard!$B13),0))*INDEX(Profiles[],MATCH(1,(Profiles[Month]=MONTH(Month&" 1, 2000"))*(Profiles[Hour Ending]=INT(INDEX(_xlfn.TEXTSPLIT(Dashboard!T$3,," "),2))),0),MATCH(Dashboard!$B13,Profiles[#Headers],0)) -> 4254.55 | U13: =INDEX(MonthlyCapacities[Total Capacity (MW)],MATCH(1,(MonthlyCapacities[Month]=MONTH(Month&" 1, 2000"))*(MonthlyCapacities[Unit Category]=Dashboard!$B13),0))*INDEX(Profiles[],MATCH(1,(Profiles[Month]=MONTH(Month&" 1, 2000"))*(Profiles[Hour Ending]=INT(INDEX(_xlfn.TEXTSPLIT(Dashboard!U$3,," "),2))),0),MATCH(Dashboard!$B13,Profiles[#Headers],0)) -> 4254.55 | V13: =INDEX(MonthlyCapacities[Total Capacity (MW)],MATCH(1,(MonthlyCapacities[Month]=MONTH(Month&" 1, 2000"))*(MonthlyCapacities[Unit Category]=Dashboard!$B13),0))*INDEX(Profiles[],MATCH(1,(Profiles[Month]=MONTH(Month&" 1, 2000"))*(Profiles[Hour Ending]=INT(INDEX(_xlfn.TEXTSPLIT(Dashboard!V$3,," "),2))),0),MATCH(Dashboard!$B13,Profiles[#Headers],0)) -> 4254.55 | W13: =INDEX(MonthlyCapacities[Total Capacity (MW)],MATCH(1,(MonthlyCapacities[Month]=MONTH(Month&" 1, 2000"))*(MonthlyCapacities[Unit Category]=Dashboard!$B13),0))*INDEX(Profiles[],MATCH(1,(Profiles[Month]=MONTH(Month&" 1, 2000"))*(Profiles[Hour Ending]=INT(INDEX(_xlfn.TEXTSPLIT(Dashboard!W$3,," "),2))),0),MATCH(Dashboard!$B13,Profiles[#Headers],0)) -> 4254.55 | X13: =INDEX(MonthlyCapacities[Total Capacity (MW)],MATCH(1,(MonthlyCapacities[Month]=MONTH(Month&" 1, 2000"))*(MonthlyCapacities[Unit Category]=Dashboard!$B13),0))*INDEX(Profiles[],MATCH(1,(Profiles[Month]=MONTH(Month&" 1, 2000"))*(Profiles[Hour Ending]=INT(INDEX(_xlfn.TEXTSPLIT(Dashboard!X$3,," "),2))),0),MATCH(Dashboard!$B13,Profiles[#Headers],0)) -> 4254.55 | Y13: =INDEX(MonthlyCapacities[Total Capacity (MW)],MATCH(1,(MonthlyCapacities[Month]=MONTH(Month&" 1, 2000"))*(MonthlyCapacities[Unit Category]=Dashboard!$B13),0))*INDEX(Profiles[],MATCH(1,(Profiles[Month]=MONTH(Month&" 1, 2000"))*(Profiles[Hour Ending]=INT(INDEX(_xlfn.TEXTSPLIT(Dashboard!Y$3,," "),2))),0),MATCH(Dashboard!$B13,Profiles[#Headers],0)) -> 4254.55 | Z13: =INDEX(MonthlyCapacities[Total Capacity (MW)],MATCH(1,(MonthlyCapacities[Month]=MONTH(Month&" 1, 2000"))*(MonthlyCapacities[Unit Category]=Dashboard!$B13),0))*INDEX(Profiles[],MATCH(1,(Profiles[Month]=MONTH(Month&" 1, 2000"))*(Profiles[Hour Ending]=INT(INDEX(_xlfn.TEXTSPLIT(Dashboard!Z$3,," "),2))),0),MATCH(Dashboard!$B13,Profiles[#Headers],0)) -> 4254.55
B14: Interchange | C14: =INDEX(Supply[Supply],MATCH(1,(Supply[Month]=MONTH(Month&" 1, 2000"))*(Supply[Unit Category]=Dashboard!$B14)*(Supply[Hour Ending]=INT(INDEX(_xlfn.TEXTSPLIT(Dashboard!C$3," "),2))),0)) -> 2500 | D14: =INDEX(MonthlyCapacities[Total Capacity (MW)],MATCH(1,(MonthlyCapacities[Month]=MONTH(Month&" 1, 2000"))*(MonthlyCapacities[Unit Category]=Dashboard!$B14),0))*INDEX(Profiles[],MATCH(1,(Profiles[Month]=MONTH(Month&" 1, 2000"))*(Profiles[Hour Ending]=INT(INDEX(_xlfn.TEXTSPLIT(Dashboard!D$3,," "),2))),0),MATCH(Dashboard!$B14,Profiles[#Headers],0)) -> 2500 | E14: =INDEX(MonthlyCapacities[Total Capacity (MW)],MATCH(1,(MonthlyCapacities[Month]=MONTH(Month&" 1, 2000"))*(MonthlyCapacities[Unit Category]=Dashboard!$B14),0))*INDEX(Profiles[],MATCH(1,(Profiles[Month]=MONTH(Month&" 1, 2000"))*(Profiles[Hour Ending]=INT(INDEX(_xlfn.TEXTSPLIT(Dashboard!E$3,," "),2))),0),MATCH(Dashboard!$B14,Profiles[#Headers],0)) -> 2500 | F14: =INDEX(MonthlyCapacities[Total Capacity (MW)],MATCH(1,(MonthlyCapacities[Month]=MONTH(Month&" 1, 2000"))*(MonthlyCapacities[Unit Category]=Dashboard!$B14),0))*INDEX(Profiles[],MATCH(1,(Profiles[Month]=MONTH(Month&" 1, 2000"))*(Profiles[Hour Ending]=INT(INDEX(_xlfn.TEXTSPLIT(Dashboard!F$3,," "),2))),0),MATCH(Dashboard!$B14,Profiles[#Headers],0)) -> 2500 | G14: =INDEX(MonthlyCapacities[Total Capacity (MW)],MATCH(1,(MonthlyCapacities[Month]=MONTH(Month&" 1, 2000"))*(MonthlyCapacities[Unit Category]=Dashboard!$B14),0))*INDEX(Profiles[],MATCH(1,(Profiles[Month]=MONTH(Month&" 1, 2000"))*(Profiles[Hour Ending]=INT(INDEX(_xlfn.TEXTSPLIT(Dashboard!G$3,," "),2))),0),MATCH(Dashboard!$B14,Profiles[#Headers],0)) -> 2500 | H14: =INDEX(MonthlyCapacities[Total Capacity (MW)],MATCH(1,(MonthlyCapacities[Month]=MONTH(Month&" 1, 2000"))*(MonthlyCapacities[Unit Category]=Dashboard!$B14),0))*INDEX(Profiles[],MATCH(1,(Profiles[Month]=MONTH(Month&" 1, 2000"))*(Profiles[Hour Ending]=INT(INDEX(_xlfn.TEXTSPLIT(Dashboard!H$3,," "),2))),0),MATCH(Dashboard!$B14,Profiles[#Headers],0)) -> 2500 | I14: =INDEX(MonthlyCapacities[Total Capacity (MW)],MATCH(1,(MonthlyCapacities[Month]=MONTH(Month&" 1, 2000"))*(MonthlyCapacities[Unit Category]=Dashboard!$B14),0))*INDEX(Profiles[],MATCH(1,(Profiles[Month]=MONTH(Month&" 1, 2000"))*(Profiles[Hour Ending]=INT(INDEX(_xlfn.TEXTSPLIT(Dashboard!I$3,," "),2))),0),MATCH(Dashboard!$B14,Profiles[#Headers],0)) -> 2500 | J14: =INDEX(MonthlyCapacities[Total Capacity (MW)],MATCH(1,(MonthlyCapacities[Month]=MONTH(Month&" 1, 2000"))*(MonthlyCapacities[Unit Category]=Dashboard!$B14),0))*INDEX(Profiles[],MATCH(1,(Profiles[Month]=MONTH(Month&" 1, 2000"))*(Profiles[Hour Ending]=INT(INDEX(_xlfn.TEXTSPLIT(Dashboard!J$3,," "),2))),0),MATCH(Dashboard!$B14,Profiles[#Headers],0)) -> 2500 | K14: =INDEX(MonthlyCapacities[Total Capacity (MW)],MATCH(1,(MonthlyCapacities[Month]=MONTH(Month&" 1, 2000"))*(MonthlyCapacities[Unit Category]=Dashboard!$B14),0))*INDEX(Profiles[],MATCH(1,(Profiles[Month]=MONTH(Month&" 1, 2000"))*(Profiles[Hour Ending]=INT(INDEX(_xlfn.TEXTSPLIT(Dashboard!K$3,," "),2))),0),MATCH(Dashboard!$B14,Profiles[#Headers],0)) -> 2500 | L14: =INDEX(MonthlyCapacities[Total Capacity (MW)],MATCH(1,(MonthlyCapacities[Month]=MONTH(Month&" 1, 2000"))*(MonthlyCapacities[Unit Category]=Dashboard!$B14),0))*INDEX(Profiles[],MATCH(1,(Profiles[Month]=MONTH(Month&" 1, 2000"))*(Profiles[Hour Ending]=INT(INDEX(_xlfn.TEXTSPLIT(Dashboard!L$3,," "),2))),0),MATCH(Dashboard!$B14,Profiles[#Headers],0)) -> 2500 | M14: =INDEX(MonthlyCapacities[Total Capacity (MW)],MATCH(1,(MonthlyCapacities[Month]=MONTH(Month&" 1, 2000"))*(MonthlyCapacities[Unit Category]=Dashboard!$B14),0))*INDEX(Profiles[],MATCH(1,(Profiles[Month]=MONTH(Month&" 1, 2000"))*(Profiles[Hour Ending]=INT(INDEX(_xlfn.TEXTSPLIT(Dashboard!M$3,," "),2))),0),MATCH(Dashboard!$B14,Profiles[#Headers],0)) -> 2500 | N14: =INDEX(MonthlyCapacities[Total Capacity (MW)],MATCH(1,(MonthlyCapacities[Month]=MONTH(Month&" 1, 2000"))*(MonthlyCapacities[Unit Category]=Dashboard!$B14),0))*INDEX(Profiles[],MATCH(1,(Profiles[Month]=MONTH(Month&" 1, 2000"))*(Profiles[Hour Ending]=INT(INDEX(_xlfn.TEXTSPLIT(Dashboard!N$3,," "),2))),0),MATCH(Dashboard!$B14,Profiles[#Headers],0)) -> 2500 | O14: =INDEX(MonthlyCapacities[Total Capacity (MW)],MATCH(1,(MonthlyCapacities[Month]=MONTH(Month&" 1, 2000"))*(MonthlyCapacities[Unit Category]=Dashboard!$B14),0))*INDEX(Profiles[],MATCH(1,(Profiles[Month]=MONTH(Month&" 1, 2000"))*(Profiles[Hour Ending]=INT(INDEX(_xlfn.TEXTSPLIT(Dashboard!O$3,," "),2))),0),MATCH(Dashboard!$B14,Profiles[#Headers],0)) -> 2500 | P14: =INDEX(MonthlyCapacities[Total Capacity (MW)],MATCH(1,(MonthlyCapacities[Month]=MONTH(Month&" 1, 2000"))*(MonthlyCapacities[Unit Category]=Dashboard!$B14),0))*INDEX(Profiles[],MATCH(1,(Profiles[Month]=MONTH(Month&" 1, 2000"))*(Profiles[Hour Ending]=INT(INDEX(_xlfn.TEXTSPLIT(Dashboard!P$3,," "),2))),0),MATCH(Dashboard!$B14,Profiles[#Headers],0)) -> 2500 | Q14: =INDEX(MonthlyCapacities[Total Capacity (MW)],MATCH(1,(MonthlyCapacities[Month]=MONTH(Month&" 1, 2000"))*(MonthlyCapacities[Unit Category]=Dashboard!$B14),0))*INDEX(Profiles[],MATCH(1,(Profiles[Month]=MONTH(Month&" 1, 2000"))*(Profiles[Hour Ending]=INT(INDEX(_xlfn.TEXTSPLIT(Dashboard!Q$3,," "),2))),0),MATCH(Dashboard!$B14,Profiles[#Headers],0)) -> 2500 | R14: =INDEX(MonthlyCapacities[Total Capacity (MW)],MATCH(1,(MonthlyCapacities[Month]=MONTH(Month&" 1, 2000"))*(MonthlyCapacities[Unit Category]=Dashboard!$B14),0))*INDEX(Profiles[],MATCH(1,(Profiles[Month]=MONTH(Month&" 1, 2000"))*(Profiles[Hour Ending]=INT(INDEX(_xlfn.TEXTSPLIT(Dashboard!R$3,," "),2))),0),MATCH(Dashboard!$B14,Profiles[#Headers],0)) -> 2500 | S14: =INDEX(MonthlyCapacities[Total Capacity (MW)],MATCH(1,(MonthlyCapacities[Month]=MONTH(Month&" 1, 2000"))*(MonthlyCapacities[Unit Category]=Dashboard!$B14),0))*INDEX(Profiles[],MATCH(1,(Profiles[Month]=MONTH(Month&" 1, 2000"))*(Profiles[Hour Ending]=INT(INDEX(_xlfn.TEXTSPLIT(Dashboard!S$3,," "),2))),0),MATCH(Dashboard!$B14,Profiles[#Headers],0)) -> 2500 | T14: =INDEX(MonthlyCapacities[Total Capacity (MW)],MATCH(1,(MonthlyCapacities[Month]=MONTH(Month&" 1, 2000"))*(MonthlyCapacities[Unit Category]=Dashboard!$B14),0))*INDEX(Profiles[],MATCH(1,(Profiles[Month]=MONTH(Month&" 1, 2000"))*(Profiles[Hour Ending]=INT(INDEX(_xlfn.TEXTSPLIT(Dashboard!T$3,," "),2))),0),MATCH(Dashboard!$B14,Profiles[#Headers],0)) -> 2500 | U14: =INDEX(MonthlyCapacities[Total Capacity (MW)],MATCH(1,(MonthlyCapacities[Month]=MONTH(Month&" 1, 2000"))*(MonthlyCapacities[Unit Category]=Dashboard!$B14),0))*INDEX(Profiles[],MATCH(1,(Profiles[Month]=MONTH(Month&" 1, 2000"))*(Profiles[Hour Ending]=INT(INDEX(_xlfn.TEXTSPLIT(Dashboard!U$3,," "),2))),0),MATCH(Dashboard!$B14,Profiles[#Headers],0)) -> 2500 | V14: =INDEX(MonthlyCapacities[Total Capacity (MW)],MATCH(1,(MonthlyCapacities[Month]=MONTH(Month&" 1, 2000"))*(MonthlyCapacities[Unit Category]=Dashboard!$B14),0))*INDEX(Profiles[],MATCH(1,(Profiles[Month]=MONTH(Month&" 1, 2000"))*(Profiles[Hour Ending]=INT(INDEX(_xlfn.TEXTSPLIT(Dashboard!V$3,," "),2))),0),MATCH(Dashboard!$B14,Profiles[#Headers],0)) -> 2500 | W14: =INDEX(MonthlyCapacities[Total Capacity (MW)],MATCH(1,(MonthlyCapacities[Month]=MONTH(Month&" 1, 2000"))*(MonthlyCapacities[Unit Category]=Dashboard!$B14),0))*INDEX(Profiles[],MATCH(1,(Profiles[Month]=MONTH(Month&" 1, 2000"))*(Profiles[Hour Ending]=INT(INDEX(_xlfn.TEXTSPLIT(Dashboard!W$3,," "),2))),0),MATCH(Dashboard!$B14,Profiles[#Headers],0)) -> 2500 | X14: =INDEX(MonthlyCapacities[Total Capacity (MW)],MATCH(1,(MonthlyCapacities[Month]=MONTH(Month&" 1, 2000"))*(MonthlyCapacities[Unit Category]=Dashboard!$B14),0))*INDEX(Profiles[],MATCH(1,(Profiles[Month]=MONTH(Month&" 1, 2000"))*(Profiles[Hour Ending]=INT(INDEX(_xlfn.TEXTSPLIT(Dashboard!X$3,," "),2))),0),MATCH(Dashboard!$B14,Profiles[#Headers],0)) -> 2500 | Y14: =INDEX(MonthlyCapacities[Total Capacity (MW)],MATCH(1,(MonthlyCapacities[Month]=MONTH(Month&" 1, 2000"))*(MonthlyCapacities[Unit Category]=Dashboard!$B14),0))*INDEX(Profiles[],MATCH(1,(Profiles[Month]=MONTH(Month&" 1, 2000"))*(Profiles[Hour Ending]=INT(INDEX(_xlfn.TEXTSPLIT(Dashboard!Y$3,," "),2))),0),MATCH(Dashboard!$B14,Profiles[#Headers],0)) -> 2500 | Z14: =INDEX(MonthlyCapacities[Total Capacity (MW)],MATCH(1,(MonthlyCapacities[Month]=MONTH(Month&" 1, 2000"))*(MonthlyCapacities[Unit Category]=Dashboard!$B14),0))*INDEX(Profiles[],MATCH(1,(Profiles[Month]=MONTH(Month&" 1, 2000"))*(Profiles[Hour Ending]=INT(INDEX(_xlfn.TEXTSPLIT(Dashboard!Z$3,," "),2))),0),MATCH(Dashboard!$B14,Profiles[#Headers],0)) -> 2500
B15: Nuclear | C15: =INDEX(Supply[Supply],MATCH(1,(Supply[Month]=MONTH(Month&" 1, 2000"))*(Supply[Unit Category]=Dashboard!$B15)*(Supply[Hour Ending]=INT(INDEX(_xlfn.TEXTSPLIT(Dashboard!C$3," "),2))),0)) -> 2915 | D15: =INDEX(MonthlyCapacities[Total Capacity (MW)],MATCH(1,(MonthlyCapacities[Month]=MONTH(Month&" 1, 2000"))*(MonthlyCapacities[Unit Category]=Dashboard!$B15),0))*INDEX(Profiles[],MATCH(1,(Profiles[Month]=MONTH(Month&" 1, 2000"))*(Profiles[Hour Ending]=INT(INDEX(_xlfn.TEXTSPLIT(Dashboard!D$3,," "),2))),0),MATCH(Dashboard!$B15,Profiles[#Headers],0)) -> 2915 | E15: =INDEX(MonthlyCapacities[Total Capacity (MW)],MATCH(1,(MonthlyCapacities[Month]=MONTH(Month&" 1, 2000"))*(MonthlyCapacities[Unit Category]=Dashboard!$B15),0))*INDEX(Profiles[],MATCH(1,(Profiles[Month]=MONTH(Month&" 1, 2000"))*(Profiles[Hour Ending]=INT(INDEX(_xlfn.TEXTSPLIT(Dashboard!E$3,," "),2))),0),MATCH(Dashboard!$B15,Profiles[#Headers],0)) -> 2915 | F15: =INDEX(MonthlyCapacities[Total Capacity (MW)],MATCH(1,(MonthlyCapacities[Month]=MONTH(Month&" 1, 2000"))*(MonthlyCapacities[Unit Category]=Dashboard!$B15),0))*INDEX(Profiles[],MATCH(1,(Profiles[Month]=MONTH(Month&" 1, 2000"))*(Profiles[Hour Ending]=INT(INDEX(_xlfn.TEXTSPLIT(Dashboard!F$3,," "),2))),0),MATCH(Dashboard!$B15,Profiles[#Headers],0)) -> 2915 | G15: =INDEX(MonthlyCapacities[Total Capacity (MW)],MATCH(1,(MonthlyCapacities[Month]=MONTH(Month&" 1, 2000"))*(MonthlyCapacities[Unit Category]=Dashboard!$B15),0))*INDEX(Profiles[],MATCH(1,(Profiles[Month]=MONTH(Month&" 1, 2000"))*(Profiles[Hour Ending]=INT(INDEX(_xlfn.TEXTSPLIT(Dashboard!G$3,," "),2))),0),MATCH(Dashboard!$B15,Profiles[#Headers],0)) -> 2915 | H15: =INDEX(MonthlyCapacities[Total Capacity (MW)],MATCH(1,(MonthlyCapacities[Month]=MONTH(Month&" 1, 2000"))*(MonthlyCapacities[Unit Category]=Dashboard!$B15),0))*INDEX(Profiles[],MATCH(1,(Profiles[Month]=MONTH(Month&" 1, 2000"))*(Profiles[Hour Ending]=INT(INDEX(_xlfn.TEXTSPLIT(Dashboard!H$3,," "),2))),0),MATCH(Dashboard!$B15,Profiles[#Headers],0)) -> 2915 | I15: =INDEX(MonthlyCapacities[Total Capacity (MW)],MATCH(1,(MonthlyCapacities[Month]=MONTH(Month&" 1, 2000"))*(MonthlyCapacities[Unit Category]=Dashboard!$B15),0))*INDEX(Profiles[],MATCH(1,(Profiles[Month]=MONTH(Month&" 1, 2000"))*(Profiles[Hour Ending]=INT(INDEX(_xlfn.TEXTSPLIT(Dashboard!I$3,," "),2))),0),MATCH(Dashboard!$B15,Profiles[#Headers],0)) -> 2915 | J15: =INDEX(MonthlyCapacities[Total Capacity (MW)],MATCH(1,(MonthlyCapacities[Month]=MONTH(Month&" 1, 2000"))*(MonthlyCapacities[Unit Category]=Dashboard!$B15),0))*INDEX(Profiles[],MATCH(1,(Profiles[Month]=MONTH(Month&" 1, 2000"))*(Profiles[Hour Ending]=INT(INDEX(_xlfn.TEXTSPLIT(Dashboard!J$3,," "),2))),0),MATCH(Dashboard!$B15,Profiles[#Headers],0)) -> 2915 | K15: =INDEX(MonthlyCapacities[Total Capacity (MW)],MATCH(1,(MonthlyCapacities[Month]=MONTH(Month&" 1, 2000"))*(MonthlyCapacities[Unit Category]=Dashboard!$B15),0))*INDEX(Profiles[],MATCH(1,(Profiles[Month]=MONTH(Month&" 1, 2000"))*(Profiles[Hour Ending]=INT(INDEX(_xlfn.TEXTSPLIT(Dashboard!K$3,," "),2))),0),MATCH(Dashboard!$B15,Profiles[#Headers],0)) -> 2915 | L15: =INDEX(MonthlyCapacities[Total Capacity (MW)],MATCH(1,(MonthlyCapacities[Month]=MONTH(Month&" 1, 2000"))*(MonthlyCapacities[Unit Category]=Dashboard!$B15),0))*INDEX(Profiles[],MATCH(1,(Profiles[Month]=MONTH(Month&" 1, 2000"))*(Profiles[Hour Ending]=INT(INDEX(_xlfn.TEXTSPLIT(Dashboard!L$3,," "),2))),0),MATCH(Dashboard!$B15,Profiles[#Headers],0)) -> 2915 | M15: =INDEX(MonthlyCapacities[Total Capacity (MW)],MATCH(1,(MonthlyCapacities[Month]=MONTH(Month&" 1, 2000"))*(MonthlyCapacities[Unit Category]=Dashboard!$B15),0))*INDEX(Profiles[],MATCH(1,(Profiles[Month]=MONTH(Month&" 1, 2000"))*(Profiles[Hour Ending]=INT(INDEX(_xlfn.TEXTSPLIT(Dashboard!M$3,," "),2))),0),MATCH(Dashboard!$B15,Profiles[#Headers],0)) -> 2915 | N15: =INDEX(MonthlyCapacities[Total Capacity (MW)],MATCH(1,(MonthlyCapacities[Month]=MONTH(Month&" 1, 2000"))*(MonthlyCapacities[Unit Category]=Dashboard!$B15),0))*INDEX(Profiles[],MATCH(1,(Profiles[Month]=MONTH(Month&" 1, 2000"))*(Profiles[Hour Ending]=INT(INDEX(_xlfn.TEXTSPLIT(Dashboard!N$3,," "),2))),0),MATCH(Dashboard!$B15,Profiles[#Headers],0)) -> 2915 | O15: =INDEX(MonthlyCapacities[Total Capacity (MW)],MATCH(1,(MonthlyCapacities[Month]=MONTH(Month&" 1, 2000"))*(MonthlyCapacities[Unit Category]=Dashboard!$B15),0))*INDEX(Profiles[],MATCH(1,(Profiles[Month]=MONTH(Month&" 1, 2000"))*(Profiles[Hour Ending]=INT(INDEX(_xlfn.TEXTSPLIT(Dashboard!O$3,," "),2))),0),MATCH(Dashboard!$B15,Profiles[#Headers],0)) -> 2915 | P15: =INDEX(MonthlyCapacities[Total Capacity (MW)],MATCH(1,(MonthlyCapacities[Month]=MONTH(Month&" 1, 2000"))*(MonthlyCapacities[Unit Category]=Dashboard!$B15),0))*INDEX(Profiles[],MATCH(1,(Profiles[Month]=MONTH(Month&" 1, 2000"))*(Profiles[Hour Ending]=INT(INDEX(_xlfn.TEXTSPLIT(Dashboard!P$3,," "),2))),0),MATCH(Dashboard!$B15,Profiles[#Headers],0)) -> 2915 | Q15: =INDEX(MonthlyCapacities[Total Capacity (MW)],MATCH(1,(MonthlyCapacities[Month]=MONTH(Month&" 1, 2000"))*(MonthlyCapacities[Unit Category]=Dashboard!$B15),0))*INDEX(Profiles[],MATCH(1,(Profiles[Month]=MONTH(Month&" 1, 2000"))*(Profiles[Hour Ending]=INT(INDEX(_xlfn.TEXTSPLIT(Dashboard!Q$3,," "),2))),0),MATCH(Dashboard!$B15,Profiles[#Headers],0)) -> 2915 | R15: =INDEX(MonthlyCapacities[Total Capacity (MW)],MATCH(1,(MonthlyCapacities[Month]=MONTH(Month&" 1, 2000"))*(MonthlyCapacities[Unit Category]=Dashboard!$B15),0))*INDEX(Profiles[],MATCH(1,(Profiles[Month]=MONTH(Month&" 1, 2000"))*(Profiles[Hour Ending]=INT(INDEX(_xlfn.TEXTSPLIT(Dashboard!R$3,," "),2))),0),MATCH(Dashboard!$B15,Profiles[#Headers],0)) -> 2915 | S15: =INDEX(MonthlyCapacities[Total Capacity (MW)],MATCH(1,(MonthlyCapacities[Month]=MONTH(Month&" 1, 2000"))*(MonthlyCapacities[Unit Category]=Dashboard!$B15),0))*INDEX(Profiles[],MATCH(1,(Profiles[Month]=MONTH(Month&" 1, 2000"))*(Profiles[Hour Ending]=INT(INDEX(_xlfn.TEXTSPLIT(Dashboard!S$3,," "),2))),0),MATCH(Dashboard!$B15,Profiles[#Headers],0)) -> 2915 | T15: =INDEX(MonthlyCapacities[Total Capacity (MW)],MATCH(1,(MonthlyCapacities[Month]=MONTH(Month&" 1, 2000"))*(MonthlyCapacities[Unit Category]=Dashboard!$B15),0))*INDEX(Profiles[],MATCH(1,(Profiles[Month]=MONTH(Month&" 1, 2000"))*(Profiles[Hour Ending]=INT(INDEX(_xlfn.TEXTSPLIT(Dashboard!T$3,," "),2))),0),MATCH(Dashboard!$B15,Profiles[#Headers],0)) -> 2915 | U15: =INDEX(MonthlyCapacities[Total Capacity (MW)],MATCH(1,(MonthlyCapacities[Month]=MONTH(Month&" 1, 2000"))*(MonthlyCapacities[Unit Category]=Dashboard!$B15),0))*INDEX(Profiles[],MATCH(1,(Profiles[Month]=MONTH(Month&" 1, 2000"))*(Profiles[Hour Ending]=INT(INDEX(_xlfn.TEXTSPLIT(Dashboard!U$3,," "),2))),0),MATCH(Dashboard!$B15,Profiles[#Headers],0)) -> 2915 | V15: =INDEX(MonthlyCapacities[Total Capacity (MW)],MATCH(1,(MonthlyCapacities[Month]=MONTH(Month&" 1, 2000"))*(MonthlyCapacities[Unit Category]=Dashboard!$B15),0))*INDEX(Profiles[],MATCH(1,(Profiles[Month]=MONTH(Month&" 1, 2000"))*(Profiles[Hour Ending]=INT(INDEX(_xlfn.TEXTSPLIT(Dashboard!V$3,," "),2))),0),MATCH(Dashboard!$B15,Profiles[#Headers],0)) -> 2915 | W15: =INDEX(MonthlyCapacities[Total Capacity (MW)],MATCH(1,(MonthlyCapacities[Month]=MONTH(Month&" 1, 2000"))*(MonthlyCapacities[Unit Category]=Dashboard!$B15),0))*INDEX(Profiles[],MATCH(1,(Profiles[Month]=MONTH(Month&" 1, 2000"))*(Profiles[Hour Ending]=INT(INDEX(_xlfn.TEXTSPLIT(Dashboard!W$3,," "),2))),0),MATCH(Dashboard!$B15,Profiles[#Headers],0)) -> 2915 | X15: =INDEX(MonthlyCapacities[Total Capacity (MW)],MATCH(1,(MonthlyCapacities[Month]=MONTH(Month&" 1, 2000"))*(MonthlyCapacities[Unit Category]=Dashboard!$B15),0))*INDEX(Profiles[],MATCH(1,(Profiles[Month]=MONTH(Month&" 1, 2000"))*(Profiles[Hour Ending]=INT(INDEX(_xlfn.TEXTSPLIT(Dashboard!X$3,," "),2))),0),MATCH(Dashboard!$B15,Profiles[#Headers],0)) -> 2915 | Y15: =INDEX(MonthlyCapacities[Total Capacity (MW)],MATCH(1,(MonthlyCapacities[Month]=MONTH(Month&" 1, 2000"))*(MonthlyCapacities[Unit Category]=Dashboard!$B15),0))*INDEX(Profiles[],MATCH(1,(Profiles[Month]=MONTH(Month&" 1, 2000"))*(Profiles[Hour Ending]=INT(INDEX(_xlfn.TEXTSPLIT(Dashboard!Y$3,," "),2))),0),MATCH(Dashboard!$B15,Profiles[#Headers],0)) -> 2915 | Z15: =INDEX(MonthlyCapacities[Total Capacity (MW)],MATCH(1,(MonthlyCapacities[Month]=MONTH(Month&" 1, 2000"))*(MonthlyCapacities[Unit Category]=Dashboard!$B15),0))*INDEX(Profiles[],MATCH(1,(Profiles[Month]=MONTH(Month&" 1, 2000"))*(Profiles[Hour Ending]=INT(INDEX(_xlfn.TEXTSPLIT(Dashboard!Z$3,," "),2))),0),MATCH(Dashboard!$B15,Profiles[#Headers],0)) -> 2915
B16: PSH | C16: =INDEX(Supply[Supply],MATCH(1,(Supply[Month]=MONTH(Month&" 1, 2000"))*(Supply[Unit Category]=Dashboard!$B16)*(Supply[Hour Ending]=INT(INDEX(_xlfn.TEXTSPLIT(Dashboard!C$3," "),2))),0)) -> 1417 | D16: =INDEX(MonthlyCapacities[Total Capacity (MW)],MATCH(1,(MonthlyCapacities[Month]=MONTH(Month&" 1, 2000"))*(MonthlyCapacities[Unit Category]=Dashboard!$B16),0))*INDEX(Profiles[],MATCH(1,(Profiles[Month]=MONTH(Month&" 1, 2000"))*(Profiles[Hour Ending]=INT(INDEX(_xlfn.TEXTSPLIT(Dashboard!D$3,," "),2))),0),MATCH(Dashboard!$B16,Profiles[#Headers],0)) -> 1417 | E16: =INDEX(MonthlyCapacities[Total Capacity (MW)],MATCH(1,(MonthlyCapacities[Month]=MONTH(Month&" 1, 2000"))*(MonthlyCapacities[Unit Category]=Dashboard!$B16),0))*INDEX(Profiles[],MATCH(1,(Profiles[Month]=MONTH(Month&" 1, 2000"))*(Profiles[Hour Ending]=INT(INDEX(_xlfn.TEXTSPLIT(Dashboard!E$3,," "),2))),0),MATCH(Dashboard!$B16,Profiles[#Headers],0)) -> 1417 | F16: =INDEX(MonthlyCapacities[Total Capacity (MW)],MATCH(1,(MonthlyCapacities[Month]=MONTH(Month&" 1, 2000"))*(MonthlyCapacities[Unit Category]=Dashboard!$B16),0))*INDEX(Profiles[],MATCH(1,(Profiles[Month]=MONTH(Month&" 1, 2000"))*(Profiles[Hour Ending]=INT(INDEX(_xlfn.TEXTSPLIT(Dashboard!F$3,," "),2))),0),MATCH(Dashboard!$B16,Profiles[#Headers],0)) -> 1417 | G16: =INDEX(MonthlyCapacities[Total Capacity (MW)],MATCH(1,(MonthlyCapacities[Month]=MONTH(Month&" 1, 2000"))*(MonthlyCapacities[Unit Category]=Dashboard!$B16),0))*INDEX(Profiles[],MATCH(1,(Profiles[Month]=MONTH(Month&" 1, 2000"))*(Profiles[Hour Ending]=INT(INDEX(_xlfn.TEXTSPLIT(Dashboard!G$3,," "),2))),0),MATCH(Dashboard!$B16,Profiles[#Headers],0)) -> 1417 | H16: =INDEX(MonthlyCapacities[Total Capacity (MW)],MATCH(1,(MonthlyCapacities[Month]=MONTH(Month&" 1, 2000"))*(MonthlyCapacities[Unit Category]=Dashboard!$B16),0))*INDEX(Profiles[],MATCH(1,(Profiles[Month]=MONTH(Month&" 1, 2000"))*(Profiles[Hour Ending]=INT(INDEX(_xlfn.TEXTSPLIT(Dashboard!H$3,," "),2))),0),MATCH(Dashboard!$B16,Profiles[#Headers],0)) -> 1417 | I16: =INDEX(MonthlyCapacities[Total Capacity (MW)],MATCH(1,(MonthlyCapacities[Month]=MONTH(Month&" 1, 2000"))*(MonthlyCapacities[Unit Category]=Dashboard!$B16),0))*INDEX(Profiles[],MATCH(1,(Profiles[Month]=MONTH(Month&" 1, 2000"))*(Profiles[Hour Ending]=INT(INDEX(_xlfn.TEXTSPLIT(Dashboard!I$3,," "),2))),0),MATCH(Dashboard!$B16,Profiles[#Headers],0)) -> 1417 | J16: =INDEX(MonthlyCapacities[Total Capacity (MW)],MATCH(1,(MonthlyCapacities[Month]=MONTH(Month&" 1, 2000"))*(MonthlyCapacities[Unit Category]=Dashboard!$B16),0))*INDEX(Profiles[],MATCH(1,(Profiles[Month]=MONTH(Month&" 1, 2000"))*(Profiles[Hour Ending]=INT(INDEX(_xlfn.TEXTSPLIT(Dashboard!J$3,," "),2))),0),MATCH(Dashboard!$B16,Profiles[#Headers],0)) -> 1417 | K16: =INDEX(MonthlyCapacities[Total Capacity (MW)],MATCH(1,(MonthlyCapacities[Month]=MONTH(Month&" 1, 2000"))*(MonthlyCapacities[Unit Category]=Dashboard!$B16),0))*INDEX(Profiles[],MATCH(1,(Profiles[Month]=MONTH(Month&" 1, 2000"))*(Profiles[Hour Ending]=INT(INDEX(_xlfn.TEXTSPLIT(Dashboard!K$3,," "),2))),0),MATCH(Dashboard!$B16,Profiles[#Headers],0)) -> 1417 | L16: =INDEX(MonthlyCapacities[Total Capacity (MW)],MATCH(1,(MonthlyCapacities[Month]=MONTH(Month&" 1, 2000"))*(MonthlyCapacities[Unit Category]=Dashboard!$B16),0))*INDEX(Profiles[],MATCH(1,(Profiles[Month]=MONTH(Month&" 1, 2000"))*(Profiles[Hour Ending]=INT(INDEX(_xlfn.TEXTSPLIT(Dashboard!L$3,," "),2))),0),MATCH(Dashboard!$B16,Profiles[#Headers],0)) -> 1417 | M16: =INDEX(MonthlyCapacities[Total Capacity (MW)],MATCH(1,(MonthlyCapacities[Month]=MONTH(Month&" 1, 2000"))*(MonthlyCapacities[Unit Category]=Dashboard!$B16),0))*INDEX(Profiles[],MATCH(1,(Profiles[Month]=MONTH(Month&" 1, 2000"))*(Profiles[Hour Ending]=INT(INDEX(_xlfn.TEXTSPLIT(Dashboard!M$3,," "),2))),0),MATCH(Dashboard!$B16,Profiles[#Headers],0)) -> 1417 | N16: =INDEX(MonthlyCapacities[Total Capacity (MW)],MATCH(1,(MonthlyCapacities[Month]=MONTH(Month&" 1, 2000"))*(MonthlyCapacities[Unit Category]=Dashboard!$B16),0))*INDEX(Profiles[],MATCH(1,(Profiles[Month]=MONTH(Month&" 1, 2000"))*(Profiles[Hour Ending]=INT(INDEX(_xlfn.TEXTSPLIT(Dashboard!N$3,," "),2))),0),MATCH(Dashboard!$B16,Profiles[#Headers],0)) -> 1417 | O16: =INDEX(MonthlyCapacities[Total Capacity (MW)],MATCH(1,(MonthlyCapacities[Month]=MONTH(Month&" 1, 2000"))*(MonthlyCapacities[Unit Category]=Dashboard!$B16),0))*INDEX(Profiles[],MATCH(1,(Profiles[Month]=MONTH(Month&" 1, 2000"))*(Profiles[Hour Ending]=INT(INDEX(_xlfn.TEXTSPLIT(Dashboard!O$3,," "),2))),0),MATCH(Dashboard!$B16,Profiles[#Headers],0)) -> 1417 | P16: =INDEX(MonthlyCapacities[Total Capacity (MW)],MATCH(1,(MonthlyCapacities[Month]=MONTH(Month&" 1, 2000"))*(MonthlyCapacities[Unit Category]=Dashboard!$B16),0))*INDEX(Profiles[],MATCH(1,(Profiles[Month]=MONTH(Month&" 1, 2000"))*(Profiles[Hour Ending]=INT(INDEX(_xlfn.TEXTSPLIT(Dashboard!P$3,," "),2))),0),MATCH(Dashboard!$B16,Profiles[#Headers],0)) -> 1417 | Q16: =INDEX(MonthlyCapacities[Total Capacity (MW)],MATCH(1,(MonthlyCapacities[Month]=MONTH(Month&" 1, 2000"))*(MonthlyCapacities[Unit Category]=Dashboard!$B16),0))*INDEX(Profiles[],MATCH(1,(Profiles[Month]=MONTH(Month&" 1, 2000"))*(Profiles[Hour Ending]=INT(INDEX(_xlfn.TEXTSPLIT(Dashboard!Q$3,," "),2))),0),MATCH(Dashboard!$B16,Profiles[#Headers],0)) -> 1417 | R16: =INDEX(MonthlyCapacities[Total Capacity (MW)],MATCH(1,(MonthlyCapacities[Month]=MONTH(Month&" 1, 2000"))*(MonthlyCapacities[Unit Category]=Dashboard!$B16),0))*INDEX(Profiles[],MATCH(1,(Profiles[Month]=MONTH(Month&" 1, 2000"))*(Profiles[Hour Ending]=INT(INDEX(_xlfn.TEXTSPLIT(Dashboard!R$3,," "),2))),0),MATCH(Dashboard!$B16,Profiles[#Headers],0)) -> 1417 | S16: =INDEX(MonthlyCapacities[Total Capacity (MW)],MATCH(1,(MonthlyCapacities[Month]=MONTH(Month&" 1, 2000"))*(MonthlyCapacities[Unit Category]=Dashboard!$B16),0))*INDEX(Profiles[],MATCH(1,(Profiles[Month]=MONTH(Month&" 1, 2000"))*(Profiles[Hour Ending]=INT(INDEX(_xlfn.TEXTSPLIT(Dashboard!S$3,," "),2))),0),MATCH(Dashboard!$B16,Profiles[#Headers],0)) -> 1417 | T16: =INDEX(MonthlyCapacities[Total Capacity (MW)],MATCH(1,(MonthlyCapacities[Month]=MONTH(Month&" 1, 2000"))*(MonthlyCapacities[Unit Category]=Dashboard!$B16),0))*INDEX(Profiles[],MATCH(1,(Profiles[Month]=MONTH(Month&" 1, 2000"))*(Profiles[Hour Ending]=INT(INDEX(_xlfn.TEXTSPLIT(Dashboard!T$3,," "),2))),0),MATCH(Dashboard!$B16,Profiles[#Headers],0)) -> 1417 | U16: =INDEX(MonthlyCapacities[Total Capacity (MW)],MATCH(1,(MonthlyCapacities[Month]=MONTH(Month&" 1, 2000"))*(MonthlyCapacities[Unit Category]=Dashboard!$B16),0))*INDEX(Profiles[],MATCH(1,(Profiles[Month]=MONTH(Month&" 1, 2000"))*(Profiles[Hour Ending]=INT(INDEX(_xlfn.TEXTSPLIT(Dashboard!U$3,," "),2))),0),MATCH(Dashboard!$B16,Profiles[#Headers],0)) -> 1417 | V16: =INDEX(MonthlyCapacities[Total Capacity (MW)],MATCH(1,(MonthlyCapacities[Month]=MONTH(Month&" 1, 2000"))*(MonthlyCapacities[Unit Category]=Dashboard!$B16),0))*INDEX(Profiles[],MATCH(1,(Profiles[Month]=MONTH(Month&" 1, 2000"))*(Profiles[Hour Ending]=INT(INDEX(_xlfn.TEXTSPLIT(Dashboard!V$3,," "),2))),0),MATCH(Dashboard!$B16,Profiles[#Headers],0)) -> 1417 | W16: =INDEX(MonthlyCapacities[Total Capacity (MW)],MATCH(1,(MonthlyCapacities[Month]=MONTH(Month&" 1, 2000"))*(MonthlyCapacities[Unit Category]=Dashboard!$B16),0))*INDEX(Profiles[],MATCH(1,(Profiles[Month]=MONTH(Month&" 1, 2000"))*(Profiles[Hour Ending]=INT(INDEX(_xlfn.TEXTSPLIT(Dashboard!W$3,," "),2))),0),MATCH(Dashboard!$B16,Profiles[#Headers],0)) -> 1417 | X16: =INDEX(MonthlyCapacities[Total Capacity (MW)],MATCH(1,(MonthlyCapacities[Month]=MONTH(Month&" 1, 2000"))*(MonthlyCapacities[Unit Category]=Dashboard!$B16),0))*INDEX(Profiles[],MATCH(1,(Profiles[Month]=MONTH(Month&" 1, 2000"))*(Profiles[Hour Ending]=INT(INDEX(_xlfn.TEXTSPLIT(Dashboard!X$3,," "),2))),0),MATCH(Dashboard!$B16,Profiles[#Headers],0)) -> 1417 | Y16: =INDEX(MonthlyCapacities[Total Capacity (MW)],MATCH(1,(MonthlyCapacities[Month]=MONTH(Month&" 1, 2000"))*(MonthlyCapacities[Unit Category]=Dashboard!$B16),0))*INDEX(Profiles[],MATCH(1,(Profiles[Month]=MONTH(Month&" 1, 2000"))*(Profiles[Hour Ending]=INT(INDEX(_xlfn.TEXTSPLIT(Dashboard!Y$3,," "),2))),0),MATCH(Dashboard!$B16,Profiles[#Headers],0)) -> 1417 | Z16: =INDEX(MonthlyCapacities[Total Capacity (MW)],MATCH(1,(MonthlyCapacities[Month]=MONTH(Month&" 1, 2000"))*(MonthlyCapacities[Unit Category]=Dashboard!$B16),0))*INDEX(Profiles[],MATCH(1,(Profiles[Month]=MONTH(Month&" 1, 2000"))*(Profiles[Hour Ending]=INT(INDEX(_xlfn.TEXTSPLIT(Dashboard!Z$3,," "),2))),0),MATCH(Dashboard!$B16,Profiles[#Headers],0)) -> 1417
B17: Storage | C17: =INDEX(StorageAllocation[Storage (MW)],MATCH(1,(StorageAllocation[Month]=MONTH(Month&" 1, 2000"))*(StorageAllocation[Hour Ending]=INT(INDEX(_xlfn.TEXTSPLIT(Dashboard!C$3," "),2))),0)) -> 1405.354629 | D17: =INDEX(StorageAllocation[Storage (MW)],MATCH(1,(StorageAllocation[Month]=MONTH(Month&" 1, 2000"))*(StorageAllocation[Hour Ending]=INT(INDEX(_xlfn.TEXTSPLIT(Dashboard!D$3," "),2))),0)) -> 18.19216064 | E17: =INDEX(StorageAllocation[Storage (MW)],MATCH(1,(StorageAllocation[Month]=MONTH(Month&" 1, 2000"))*(StorageAllocation[Hour Ending]=INT(INDEX(_xlfn.TEXTSPLIT(Dashboard!E$3," "),2))),0)) -> 0 | F17: =INDEX(StorageAllocation[Storage (MW)],MATCH(1,(StorageAllocation[Month]=MONTH(Month&" 1, 2000"))*(StorageAllocation[Hour Ending]=INT(INDEX(_xlfn.TEXTSPLIT(Dashboard!F$3," "),2))),0)) -> 0 | G17: =INDEX(StorageAllocation[Storage (MW)],MATCH(1,(StorageAllocation[Month]=MONTH(Month&" 1, 2000"))*(StorageAllocation[Hour Ending]=INT(INDEX(_xlfn.TEXTSPLIT(Dashboard!G$3," "),2))),0)) -> 0 | H17: =INDEX(StorageAllocation[Storage (MW)],MATCH(1,(StorageAllocation[Month]=MONTH(Month&" 1, 2000"))*(StorageAllocation[Hour Ending]=INT(INDEX(_xlfn.TEXTSPLIT(Dashboard!H$3," "),2))),0)) -> 648.2483794 | I17: =INDEX(StorageAllocation[Storage (MW)],MATCH(1,(StorageAllocation[Month]=MONTH(Month&" 1, 2000"))*(StorageAllocation[Hour Ending]=INT(INDEX(_xlfn.TEXTSPLIT(Dashboard!I$3," "),2))),0)) -> 3934.943859 | J17: =INDEX(StorageAllocation[Storage (MW)],MATCH(1,(StorageAllocation[Month]=MONTH(Month&" 1, 2000"))*(StorageAllocation[Hour Ending]=INT(INDEX(_xlfn.TEXTSPLIT(Dashboard!J$3," "),2))),0)) -> 4344.573683 | K17: =INDEX(StorageAllocation[Storage (MW)],MATCH(1,(StorageAllocation[Month]=MONTH(Month&" 1, 2000"))*(StorageAllocation[Hour Ending]=INT(INDEX(_xlfn.TEXTSPLIT(Dashboard!K$3," "),2))),0)) -> 0 | L17: =INDEX(StorageAllocation[Storage (MW)],MATCH(1,(StorageAllocation[Month]=MONTH(Month&" 1, 2000"))*(StorageAllocation[Hour Ending]=INT(INDEX(_xlfn.TEXTSPLIT(Dashboard!L$3," "),2))),0)) -> 0 | M17: =INDEX(StorageAllocation[Storage (MW)],MATCH(1,(StorageAllocation[Month]=MONTH(Month&" 1, 2000"))*(StorageAllocation[Hour Ending]=INT(INDEX(_xlfn.TEXTSPLIT(Dashboard!M$3," "),2))),0)) -> 0 | N17: =INDEX(StorageAllocation[Storage (MW)],MATCH(1,(StorageAllocation[Month]=MONTH(Month&" 1, 2000"))*(StorageAllocation[Hour Ending]=INT(INDEX(_xlfn.TEXTSPLIT(Dashboard!N$3," "),2))),0)) -> 0 | O17: =INDEX(StorageAllocation[Storage (MW)],MATCH(1,(StorageAllocation[Month]=MONTH(Month&" 1, 2000"))*(StorageAllocation[Hour Ending]=INT(INDEX(_xlfn.TEXTSPLIT(Dashboard!O$3," "),2))),0)) -> 0 | P17: =INDEX(StorageAllocation[Storage (MW)],MATCH(1,(StorageAllocation[Month]=MONTH(Month&" 1, 2000"))*(StorageAllocation[Hour Ending]=INT(INDEX(_xlfn.TEXTSPLIT(Dashboard!P$3," "),2))),0)) -> 0 | Q17: =INDEX(StorageAllocation[Storage (MW)],MATCH(1,(StorageAllocation[Month]=MONTH(Month&" 1, 2000"))*(StorageAllocation[Hour Ending]=INT(INDEX(_xlfn.TEXTSPLIT(Dashboard!Q$3," "),2))),0)) -> 0 | R17: =INDEX(StorageAllocation[Storage (MW)],MATCH(1,(StorageAllocation[Month]=MONTH(Month&" 1, 2000"))*(StorageAllocation[Hour Ending]=INT(INDEX(_xlfn.TEXTSPLIT(Dashboard!R$3," "),2))),0)) -> 0 | S17: =INDEX(StorageAllocation[Storage (MW)],MATCH(1,(StorageAllocation[Month]=MONTH(Month&" 1, 2000"))*(StorageAllocation[Hour Ending]=INT(INDEX(_xlfn.TEXTSPLIT(Dashboard!S$3," "),2))),0)) -> 2081.619879 | T17: =INDEX(StorageAllocation[Storage (MW)],MATCH(1,(StorageAllocation[Month]=MONTH(Month&" 1, 2000"))*(StorageAllocation[Hour Ending]=INT(INDEX(_xlfn.TEXTSPLIT(Dashboard!T$3," "),2))),0)) -> 5832.234586 | U17: =INDEX(StorageAllocation[Storage (MW)],MATCH(1,(StorageAllocation[Month]=MONTH(Month&" 1, 2000"))*(StorageAllocation[Hour Ending]=INT(INDEX(_xlfn.TEXTSPLIT(Dashboard!U$3," "),2))),0)) -> 6771.269031 | V17: =INDEX(StorageAllocation[Storage (MW)],MATCH(1,(StorageAllocation[Month]=MONTH(Month&" 1, 2000"))*(StorageAllocation[Hour Ending]=INT(INDEX(_xlfn.TEXTSPLIT(Dashboard!V$3," "),2))),0)) -> 6693.885002 | W17: =INDEX(StorageAllocation[Storage (MW)],MATCH(1,(StorageAllocation[Month]=MONTH(Month&" 1, 2000"))*(StorageAllocation[Hour Ending]=INT(INDEX(_xlfn.TEXTSPLIT(Dashboard!W$3," "),2))),0)) -> 5929.321099 | X17: =INDEX(StorageAllocation[Storage (MW)],MATCH(1,(StorageAllocation[Month]=MONTH(Month&" 1, 2000"))*(StorageAllocation[Hour Ending]=INT(INDEX(_xlfn.TEXTSPLIT(Dashboard!X$3," "),2))),0)) -> 5831.98233 | Y17: =INDEX(StorageAllocation[Storage (MW)],MATCH(1,(StorageAllocation[Month]=MONTH(Month&" 1, 2000"))*(StorageAllocation[Hour Ending]=INT(INDEX(_xlfn.TEXTSPLIT(Dashboard!Y$3," "),2))),0)) -> 4208.230062 | Z17: =INDEX(StorageAllocation[Storage (MW)],MATCH(1,(StorageAllocation[Month]=MONTH(Month&" 1, 2000"))*(StorageAllocation[Hour Ending]=INT(INDEX(_xlfn.TEXTSPLIT(Dashboard!Z$3," "),2))),0)) -> 2917.985336
B18: Solar Fixed_Norcal | C18: =INDEX(Supply[Supply],MATCH(1,(Supply[Month]=MONTH(Month&" 1, 2000"))*(Supply[Unit Category]=Dashboard!$B18)*(Supply[Hour Ending]=INT(INDEX(_xlfn.TEXTSPLIT(Dashboard!C$3," "),2))),0)) -> 0 | D18: =INDEX(MonthlyCapacities[Total Capacity (MW)],MATCH(1,(MonthlyCapacities[Month]=MONTH(Month&" 1, 2000"))*(MonthlyCapacities[Unit Category]=Dashboard!$B18),0))*INDEX(Profiles[],MATCH(1,(Profiles[Month]=MONTH(Month&" 1, 2000"))*(Profiles[Hour Ending]=INT(INDEX(_xlfn.TEXTSPLIT(Dashboard!D$3,," "),2))),0),MATCH(Dashboard!$B18,Profiles[#Headers],0)) -> 0 | E18: =INDEX(MonthlyCapacities[Total Capacity (MW)],MATCH(1,(MonthlyCapacities[Month]=MONTH(Month&" 1, 2000"))*(MonthlyCapacities[Unit Category]=Dashboard!$B18),0))*INDEX(Profiles[],MATCH(1,(Profiles[Month]=MONTH(Month&" 1, 2000"))*(Profiles[Hour Ending]=INT(INDEX(_xlfn.TEXTSPLIT(Dashboard!E$3,," "),2))),0),MATCH(Dashboard!$B18,Profiles[#Headers],0)) -> 0 | F18: =INDEX(MonthlyCapacities[Total Capacity (MW)],MATCH(1,(MonthlyCapacities[Month]=MONTH(Month&" 1, 2000"))*(MonthlyCapacities[Unit Category]=Dashboard!$B18),0))*INDEX(Profiles[],MATCH(1,(Profiles[Month]=MONTH(Month&" 1, 2000"))*(Profiles[Hour Ending]=INT(INDEX(_xlfn.TEXTSPLIT(Dashboard!F$3,," "),2))),0),MATCH(Dashboard!$B18,Profiles[#Headers],0)) -> 0 | G18: =INDEX(MonthlyCapacities[Total Capacity (MW)],MATCH(1,(MonthlyCapacities[Month]=MONTH(Month&" 1, 2000"))*(MonthlyCapacities[Unit Category]=Dashboard!$B18),0))*INDEX(Profiles[],MATCH(1,(Profiles[Month]=MONTH(Month&" 1, 2000"))*(Profiles[Hour Ending]=INT(INDEX(_xlfn.TEXTSPLIT(Dashboard!G$3,," "),2))),0),MATCH(Dashboard!$B18,Profiles[#Headers],0)) -> 0 | H18: =INDEX(MonthlyCapacities[Total Capacity (MW)],MATCH(1,(MonthlyCapacities[Month]=MONTH(Month&" 1, 2000"))*(MonthlyCapacities[Unit Category]=Dashboard!$B18),0))*INDEX(Profiles[],MATCH(1,(Profiles[Month]=MONTH(Month&" 1, 2000"))*(Profiles[Hour Ending]=INT(INDEX(_xlfn.TEXTSPLIT(Dashboard!H$3,," "),2))),0),MATCH(Dashboard!$B18,Profiles[#Headers],0)) -> 0 | I18: =INDEX(MonthlyCapacities[Total Capacity (MW)],MATCH(1,(MonthlyCapacities[Month]=MONTH(Month&" 1, 2000"))*(MonthlyCapacities[Unit Category]=Dashboard!$B18),0))*INDEX(Profiles[],MATCH(1,(Profiles[Month]=MONTH(Month&" 1, 2000"))*(Profiles[Hour Ending]=INT(INDEX(_xlfn.TEXTSPLIT(Dashboard!I$3,," "),2))),0),MATCH(Dashboard!$B18,Profiles[#Headers],0)) -> 0 | J18: =INDEX(MonthlyCapacities[Total Capacity (MW)],MATCH(1,(MonthlyCapacities[Month]=MONTH(Month&" 1, 2000"))*(MonthlyCapacities[Unit Category]=Dashboard!$B18),0))*INDEX(Profiles[],MATCH(1,(Profiles[Month]=MONTH(Month&" 1, 2000"))*(Profiles[Hour Ending]=INT(INDEX(_xlfn.TEXTSPLIT(Dashboard!J$3,," "),2))),0),MATCH(Dashboard!$B18,Profiles[#Headers],0)) -> 45.26533866 | K18: =INDEX(MonthlyCapacities[Total Capacity (MW)],MATCH(1,(MonthlyCapacities[Month]=MONTH(Month&" 1, 2000"))*(MonthlyCapacities[Unit Category]=Dashboard!$B18),0))*INDEX(Profiles[],MATCH(1,(Profiles[Month]=MONTH(Month&" 1, 2000"))*(Profiles[Hour Ending]=INT(INDEX(_xlfn.TEXTSPLIT(Dashboard!K$3,," "),2))),0),MATCH(Dashboard!$B18,Profiles[#Headers],0)) -> 339.7402404 | L18: =INDEX(MonthlyCapacities[Total Capacity (MW)],MATCH(1,(MonthlyCapacities[Month]=MONTH(Month&" 1, 2000"))*(MonthlyCapacities[Unit Category]=Dashboard!$B18),0))*INDEX(Profiles[],MATCH(1,(Profiles[Month]=MONTH(Month&" 1, 2000"))*(Profiles[Hour Ending]=INT(INDEX(_xlfn.TEXTSPLIT(Dashboard!L$3,," "),2))),0),MATCH(Dashboard!$B18,Profiles[#Headers],0)) -> 704.141501 | M18: =INDEX(MonthlyCapacities[Total Capacity (MW)],MATCH(1,(MonthlyCapacities[Month]=MONTH(Month&" 1, 2000"))*(MonthlyCapacities[Unit Category]=Dashboard!$B18),0))*INDEX(Profiles[],MATCH(1,(Profiles[Month]=MONTH(Month&" 1, 2000"))*(Profiles[Hour Ending]=INT(INDEX(_xlfn.TEXTSPLIT(Dashboard!M$3,," "),2))),0),MATCH(Dashboard!$B18,Profiles[#Headers],0)) -> 876.4227012 | N18: =INDEX(MonthlyCapacities[Total Capacity (MW)],MATCH(1,(MonthlyCapacities[Month]=MONTH(Month&" 1, 2000"))*(MonthlyCapacities[Unit Category]=Dashboard!$B18),0))*INDEX(Profiles[],MATCH(1,(Profiles[Month]=MONTH(Month&" 1, 2000"))*(Profiles[Hour Ending]=INT(INDEX(_xlfn.TEXTSPLIT(Dashboard!N$3,," "),2))),0),MATCH(Dashboard!$B18,Profiles[#Headers],0)) -> 941.5465395 | O18: =INDEX(MonthlyCapacities[Total Capacity (MW)],MATCH(1,(MonthlyCapacities[Month]=MONTH(Month&" 1, 2000"))*(MonthlyCapacities[Unit Category]=Dashboard!$B18),0))*INDEX(Profiles[],MATCH(1,(Profiles[Month]=MONTH(Month&" 1, 2000"))*(Profiles[Hour Ending]=INT(INDEX(_xlfn.TEXTSPLIT(Dashboard!O$3,," "),2))),0),MATCH(Dashboard!$B18,Profiles[#Headers],0)) -> 928.8762739 | P18: =INDEX(MonthlyCapacities[Total Capacity (MW)],MATCH(1,(MonthlyCapacities[Month]=MONTH(Month&" 1, 2000"))*(MonthlyCapacities[Unit Category]=Dashboard!$B18),0))*INDEX(Profiles[],MATCH(1,(Profiles[Month]=MONTH(Month&" 1, 2000"))*(Profiles[Hour Ending]=INT(INDEX(_xlfn.TEXTSPLIT(Dashboard!P$3,," "),2))),0),MATCH(Dashboard!$B18,Profiles[#Headers],0)) -> 857.4814017 | Q18: =INDEX(MonthlyCapacities[Total Capacity (MW)],MATCH(1,(MonthlyCapacities[Month]=MONTH(Month&" 1, 2000"))*(MonthlyCapacities[Unit Category]=Dashboard!$B18),0))*INDEX(Profiles[],MATCH(1,(Profiles[Month]=MONTH(Month&" 1, 2000"))*(Profiles[Hour Ending]=INT(INDEX(_xlfn.TEXTSPLIT(Dashboard!Q$3,," "),2))),0),MATCH(Dashboard!$B18,Profiles[#Headers],0)) -> 738.8813711 | R18: =INDEX(MonthlyCapacities[Total Capacity (MW)],MATCH(1,(MonthlyCapacities[Month]=MONTH(Month&" 1, 2000"))*(MonthlyCapacities[Unit Category]=Dashboard!$B18),0))*INDEX(Profiles[],MATCH(1,(Profiles[Month]=MONTH(Month&" 1, 2000"))*(Profiles[Hour Ending]=INT(INDEX(_xlfn.TEXTSPLIT(Dashboard!R$3,," "),2))),0),MATCH(Dashboard!$B18,Profiles[#Headers],0)) -> 502.0798908 | S18: =INDEX(MonthlyCapacities[Total Capacity (MW)],MATCH(1,(MonthlyCapacities[Month]=MONTH(Month&" 1, 2000"))*(MonthlyCapacities[Unit Category]=Dashboard!$B18),0))*INDEX(Profiles[],MATCH(1,(Profiles[Month]=MONTH(Month&" 1, 2000"))*(Profiles[Hour Ending]=INT(INDEX(_xlfn.TEXTSPLIT(Dashboard!S$3,," "),2))),0),MATCH(Dashboard!$B18,Profiles[#Headers],0)) -> 116.5050727 | T18: =INDEX(MonthlyCapacities[Total Capacity (MW)],MATCH(1,(MonthlyCapacities[Month]=MONTH(Month&" 1, 2000"))*(MonthlyCapacities[Unit Category]=Dashboard!$B18),0))*INDEX(Profiles[],MATCH(1,(Profiles[Month]=MONTH(Month&" 1, 2000"))*(Profiles[Hour Ending]=INT(INDEX(_xlfn.TEXTSPLIT(Dashboard!T$3,," "),2))),0),MATCH(Dashboard!$B18,Profiles[#Headers],0)) -> 0.07692120806 | U18: =INDEX(MonthlyCapacities[Total Capacity (MW)],MATCH(1,(MonthlyCapacities[Month]=MONTH(Month&" 1, 2000"))*(MonthlyCapacities[Unit Category]=Dashboard!$B18),0))*INDEX(Profiles[],MATCH(1,(Profiles[Month]=MONTH(Month&" 1, 2000"))*(Profiles[Hour Ending]=INT(INDEX(_xlfn.TEXTSPLIT(Dashboard!U$3,," "),2))),0),MATCH(Dashboard!$B18,Profiles[#Headers],0)) -> 0 | V18: =INDEX(MonthlyCapacities[Total Capacity (MW)],MATCH(1,(MonthlyCapacities[Month]=MONTH(Month&" 1, 2000"))*(MonthlyCapacities[Unit Category]=Dashboard!$B18),0))*INDEX(Profiles[],MATCH(1,(Profiles[Month]=MONTH(Month&" 1, 2000"))*(Profiles[Hour Ending]=INT(INDEX(_xlfn.TEXTSPLIT(Dashboard!V$3,," "),2))),0),MATCH(Dashboard!$B18,Profiles[#Headers],0)) -> 0 | W18: =INDEX(MonthlyCapacities[Total Capacity (MW)],MATCH(1,(MonthlyCapacities[Month]=MONTH(Month&" 1, 2000"))*(MonthlyCapacities[Unit Category]=Dashboard!$B18),0))*INDEX(Profiles[],MATCH(1,(Profiles[Month]=MONTH(Month&" 1, 2000"))*(Profiles[Hour Ending]=INT(INDEX(_xlfn.TEXTSPLIT(Dashboard!W$3,," "),2))),0),MATCH(Dashboard!$B18,Profiles[#Headers],0)) -> 0 | X18: =INDEX(MonthlyCapacities[Total Capacity (MW)],MATCH(1,(MonthlyCapacities[Month]=MONTH(Month&" 1, 2000"))*(MonthlyCapacities[Unit Category]=Dashboard!$B18),0))*INDEX(Profiles[],MATCH(1,(Profiles[Month]=MONTH(Month&" 1, 2000"))*(Profiles[Hour Ending]=INT(INDEX(_xlfn.TEXTSPLIT(Dashboard!X$3,," "),2))),0),MATCH(Dashboard!$B18,Profiles[#Headers],0)) -> 0 | Y18: =INDEX(MonthlyCapacities[Total Capacity (MW)],MATCH(1,(MonthlyCapacities[Month]=MONTH(Month&" 1, 2000"))*(MonthlyCapacities[Unit Category]=Dashboard!$B18),0))*INDEX(Profiles[],MATCH(1,(Profiles[Month]=MONTH(Month&" 1, 2000"))*(Profiles[Hour Ending]=INT(INDEX(_xlfn.TEXTSPLIT(Dashboard!Y$3,," "),2))),0),MATCH(Dashboard!$B18,Profiles[#Headers],0)) -> 0 | Z18: =INDEX(MonthlyCapacities[Total Capacity (MW)],MATCH(1,(MonthlyCapacities[Month]=MONTH(Month&" 1, 2000"))*(MonthlyCapacities[Unit Category]=Dashboard!$B18),0))*INDEX(Profiles[],MATCH(1,(Profiles[Month]=MONTH(Month&" 1, 2000"))*(Profiles[Hour Ending]=INT(INDEX(_xlfn.TEXTSPLIT(Dashboard!Z$3,," "),2))),0),MATCH(Dashboard!$B18,Profiles[#Headers],0)) -> 0
B19: Solar Fixed_Socal | C19: =INDEX(Supply[Supply],MATCH(1,(Supply[Month]=MONTH(Month&" 1, 2000"))*(Supply[Unit Category]=Dashboard!$B19)*(Supply[Hour Ending]=INT(INDEX(_xlfn.TEXTSPLIT(Dashboard!C$3," "),2))),0)) -> -0.001085263741 | D19: =INDEX(MonthlyCapacities[Total Capacity (MW)],MATCH(1,(MonthlyCapacities[Month]=MONTH(Month&" 1, 2000"))*(MonthlyCapacities[Unit Category]=Dashboard!$B19),0))*INDEX(Profiles[],MATCH(1,(Profiles[Month]=MONTH(Month&" 1, 2000"))*(Profiles[Hour Ending]=INT(INDEX(_xlfn.TEXTSPLIT(Dashboard!D$3,," "),2))),0),MATCH(Dashboard!$B19,Profiles[#Headers],0)) -> -0.002665108962 | E19: =INDEX(MonthlyCapacities[Total Capacity (MW)],MATCH(1,(MonthlyCapacities[Month]=MONTH(Month&" 1, 2000"))*(MonthlyCapacities[Unit Category]=Dashboard!$B19),0))*INDEX(Profiles[],MATCH(1,(Profiles[Month]=MONTH(Month&" 1, 2000"))*(Profiles[Hour Ending]=INT(INDEX(_xlfn.TEXTSPLIT(Dashboard!E$3,," "),2))),0),MATCH(Dashboard!$B19,Profiles[#Headers],0)) -> -0.003528290637 | F19: =INDEX(MonthlyCapacities[Total Capacity (MW)],MATCH(1,(MonthlyCapacities[Month]=MONTH(Month&" 1, 2000"))*(MonthlyCapacities[Unit Category]=Dashboard!$B19),0))*INDEX(Profiles[],MATCH(1,(Profiles[Month]=MONTH(Month&" 1, 2000"))*(Profiles[Hour Ending]=INT(INDEX(_xlfn.TEXTSPLIT(Dashboard!F$3,," "),2))),0),MATCH(Dashboard!$B19,Profiles[#Headers],0)) -> -0.004055921264 | G19: =INDEX(MonthlyCapacities[Total Capacity (MW)],MATCH(1,(MonthlyCapacities[Month]=MONTH(Month&" 1, 2000"))*(MonthlyCapacities[Unit Category]=Dashboard!$B19),0))*INDEX(Profiles[],MATCH(1,(Profiles[Month]=MONTH(Month&" 1, 2000"))*(Profiles[Hour Ending]=INT(INDEX(_xlfn.TEXTSPLIT(Dashboard!G$3,," "),2))),0),MATCH(Dashboard!$B19,Profiles[#Headers],0)) -> -0.004494048017 | H19: =INDEX(MonthlyCapacities[Total Capacity (MW)],MATCH(1,(MonthlyCapacities[Month]=MONTH(Month&" 1, 2000"))*(MonthlyCapacities[Unit Category]=Dashboard!$B19),0))*INDEX(Profiles[],MATCH(1,(Profiles[Month]=MONTH(Month&" 1, 2000"))*(Profiles[Hour Ending]=INT(INDEX(_xlfn.TEXTSPLIT(Dashboard!H$3,," "),2))),0),MATCH(Dashboard!$B19,Profiles[#Headers],0)) -> -0.002400548684 | I19: =INDEX(MonthlyCapacities[Total Capacity (MW)],MATCH(1,(MonthlyCapacities[Month]=MONTH(Month&" 1, 2000"))*(MonthlyCapacities[Unit Category]=Dashboard!$B19),0))*INDEX(Profiles[],MATCH(1,(Profiles[Month]=MONTH(Month&" 1, 2000"))*(Profiles[Hour Ending]=INT(INDEX(_xlfn.TEXTSPLIT(Dashboard!I$3,," "),2))),0),MATCH(Dashboard!$B19,Profiles[#Headers],0)) -> 4.31361994 | J19: =INDEX(MonthlyCapacities[Total Capacity (MW)],MATCH(1,(MonthlyCapacities[Month]=MONTH(Month&" 1, 2000"))*(MonthlyCapacities[Unit Category]=Dashboard!$B19),0))*INDEX(Profiles[],MATCH(1,(Profiles[Month]=MONTH(Month&" 1, 2000"))*(Profiles[Hour Ending]=INT(INDEX(_xlfn.TEXTSPLIT(Dashboard!J$3,," "),2))),0),MATCH(Dashboard!$B19,Profiles[#Headers],0)) -> 335.6064418 | K19: =INDEX(MonthlyCapacities[Total Capacity (MW)],MATCH(1,(MonthlyCapacities[Month]=MONTH(Month&" 1, 2000"))*(MonthlyCapacities[Unit Category]=Dashboard!$B19),0))*INDEX(Profiles[],MATCH(1,(Profiles[Month]=MONTH(Month&" 1, 2000"))*(Profiles[Hour Ending]=INT(INDEX(_xlfn.TEXTSPLIT(Dashboard!K$3,," "),2))),0),MATCH(Dashboard!$B19,Profiles[#Headers],0)) -> 1158.407404 | L19: =INDEX(MonthlyCapacities[Total Capacity (MW)],MATCH(1,(MonthlyCapacities[Month]=MONTH(Month&" 1, 2000"))*(MonthlyCapacities[Unit Category]=Dashboard!$B19),0))*INDEX(Profiles[],MATCH(1,(Profiles[Month]=MONTH(Month&" 1, 2000"))*(Profiles[Hour Ending]=INT(INDEX(_xlfn.TEXTSPLIT(Dashboard!L$3,," "),2))),0),MATCH(Dashboard!$B19,Profiles[#Headers],0)) -> 1577.198223 | M19: =INDEX(MonthlyCapacities[Total Capacity (MW)],MATCH(1,(MonthlyCapacities[Month]=MONTH(Month&" 1, 2000"))*(MonthlyCapacities[Unit Category]=Dashboard!$B19),0))*INDEX(Profiles[],MATCH(1,(Profiles[Month]=MONTH(Month&" 1, 2000"))*(Profiles[Hour Ending]=INT(INDEX(_xlfn.TEXTSPLIT(Dashboard!M$3,," "),2))),0),MATCH(Dashboard!$B19,Profiles[#Headers],0)) -> 1736.071568 | N19: =INDEX(MonthlyCapacities[Total Capacity (MW)],MATCH(1,(MonthlyCapacities[Month]=MONTH(Month&" 1, 2000"))*(MonthlyCapacities[Unit Category]=Dashboard!$B19),0))*INDEX(Profiles[],MATCH(1,(Profiles[Month]=MONTH(Month&" 1, 2000"))*(Profiles[Hour Ending]=INT(INDEX(_xlfn.TEXTSPLIT(Dashboard!N$3,," "),2))),0),MATCH(Dashboard!$B19,Profiles[#Headers],0)) -> 1804.342671 | O19: =INDEX(MonthlyCapacities[Total Capacity (MW)],MATCH(1,(MonthlyCapacities[Month]=MONTH(Month&" 1, 2000"))*(MonthlyCapacities[Unit Category]=Dashboard!$B19),0))*INDEX(Profiles[],MATCH(1,(Profiles[Month]=MONTH(Month&" 1, 2000"))*(Profiles[Hour Ending]=INT(INDEX(_xlfn.TEXTSPLIT(Dashboard!O$3,," "),2))),0),MATCH(Dashboard!$B19,Profiles[#Headers],0)) -> 1722.162803 | P19: =INDEX(MonthlyCapacities[Total Capacity (MW)],MATCH(1,(MonthlyCapacities[Month]=MONTH(Month&" 1, 2000"))*(MonthlyCapacities[Unit Category]=Dashboard!$B19),0))*INDEX(Profiles[],MATCH(1,(Profiles[Month]=MONTH(Month&" 1, 2000"))*(Profiles[Hour Ending]=INT(INDEX(_xlfn.TEXTSPLIT(Dashboard!P$3,," "),2))),0),MATCH(Dashboard!$B19,Profiles[#Headers],0)) -> 1644.508084 | Q19: =INDEX(MonthlyCapacities[Total Capacity (MW)],MATCH(1,(MonthlyCapacities[Month]=MONTH(Month&" 1, 2000"))*(MonthlyCapacities[Unit Category]=Dashboard!$B19),0))*INDEX(Profiles[],MATCH(1,(Profiles[Month]=MONTH(Month&" 1, 2000"))*(Profiles[Hour Ending]=INT(INDEX(_xlfn.TEXTSPLIT(Dashboard!Q$3,," "),2))),0),MATCH(Dashboard!$B19,Profiles[#Headers],0)) -> 1375.337095 | R19: =INDEX(MonthlyCapacities[Total Capacity (MW)],MATCH(1,(MonthlyCapacities[Month]=MONTH(Month&" 1, 2000"))*(MonthlyCapacities[Unit Category]=Dashboard!$B19),0))*INDEX(Profiles[],MATCH(1,(Profiles[Month]=MONTH(Month&" 1, 2000"))*(Profiles[Hour Ending]=INT(INDEX(_xlfn.TEXTSPLIT(Dashboard!R$3,," "),2))),0),MATCH(Dashboard!$B19,Profiles[#Headers],0)) -> 761.8456091 | S19: =INDEX(MonthlyCapacities[Total Capacity (MW)],MATCH(1,(MonthlyCapacities[Month]=MONTH(Month&" 1, 2000"))*(MonthlyCapacities[Unit Category]=Dashboard!$B19),0))*INDEX(Profiles[],MATCH(1,(Profiles[Month]=MONTH(Month&" 1, 2000"))*(Profiles[Hour Ending]=INT(INDEX(_xlfn.TEXTSPLIT(Dashboard!S$3,," "),2))),0),MATCH(Dashboard!$B19,Profiles[#Headers],0)) -> 111.1061343 | T19: =INDEX(MonthlyCapacities[Total Capacity (MW)],MATCH(1,(MonthlyCapacities[Month]=MONTH(Month&" 1, 2000"))*(MonthlyCapacities[Unit Category]=Dashboard!$B19),0))*INDEX(Profiles[],MATCH(1,(Profiles[Month]=MONTH(Month&" 1, 2000"))*(Profiles[Hour Ending]=INT(INDEX(_xlfn.TEXTSPLIT(Dashboard!T$3,," "),2))),0),MATCH(Dashboard!$B19,Profiles[#Headers],0)) -> 0.02871355019 | U19: =INDEX(MonthlyCapacities[Total Capacity (MW)],MATCH(1,(MonthlyCapacities[Month]=MONTH(Month&" 1, 2000"))*(MonthlyCapacities[Unit Category]=Dashboard!$B19),0))*INDEX(Profiles[],MATCH(1,(Profiles[Month]=MONTH(Month&" 1, 2000"))*(Profiles[Hour Ending]=INT(INDEX(_xlfn.TEXTSPLIT(Dashboard!U$3,," "),2))),0),MATCH(Dashboard!$B19,Profiles[#Headers],0)) -> 0.01142152164 | V19: =INDEX(MonthlyCapacities[Total Capacity (MW)],MATCH(1,(MonthlyCapacities[Month]=MONTH(Month&" 1, 2000"))*(MonthlyCapacities[Unit Category]=Dashboard!$B19),0))*INDEX(Profiles[],MATCH(1,(Profiles[Month]=MONTH(Month&" 1, 2000"))*(Profiles[Hour Ending]=INT(INDEX(_xlfn.TEXTSPLIT(Dashboard!V$3,," "),2))),0),MATCH(Dashboard!$B19,Profiles[#Headers],0)) -> 0.012281825 | W19: =INDEX(MonthlyCapacities[Total Capacity (MW)],MATCH(1,(MonthlyCapacities[Month]=MONTH(Month&" 1, 2000"))*(MonthlyCapacities[Unit Category]=Dashboard!$B19),0))*INDEX(Profiles[],MATCH(1,(Profiles[Month]=MONTH(Month&" 1, 2000"))*(Profiles[Hour Ending]=INT(INDEX(_xlfn.TEXTSPLIT(Dashboard!W$3,," "),2))),0),MATCH(Dashboard!$B19,Profiles[#Headers],0)) -> 0.01169590233 | X19: =INDEX(MonthlyCapacities[Total Capacity (MW)],MATCH(1,(MonthlyCapacities[Month]=MONTH(Month&" 1, 2000"))*(MonthlyCapacities[Unit Category]=Dashboard!$B19),0))*INDEX(Profiles[],MATCH(1,(Profiles[Month]=MONTH(Month&" 1, 2000"))*(Profiles[Hour Ending]=INT(INDEX(_xlfn.TEXTSPLIT(Dashboard!X$3,," "),2))),0),MATCH(Dashboard!$B19,Profiles[#Headers],0)) -> 0.009535677541 | Y19: =INDEX(MonthlyCapacities[Total Capacity (MW)],MATCH(1,(MonthlyCapacities[Month]=MONTH(Month&" 1, 2000"))*(MonthlyCapacities[Unit Category]=Dashboard!$B19),0))*INDEX(Profiles[],MATCH(1,(Profiles[Month]=MONTH(Month&" 1, 2000"))*(Profiles[Hour Ending]=INT(INDEX(_xlfn.TEXTSPLIT(Dashboard!Y$3,," "),2))),0),MATCH(Dashboard!$B19,Profiles[#Headers],0)) -> 0.005435480492 | Z19: =INDEX(MonthlyCapacities[Total Capacity (MW)],MATCH(1,(MonthlyCapacities[Month]=MONTH(Month&" 1, 2000"))*(MonthlyCapacities[Unit Category]=Dashboard!$B19),0))*INDEX(Profiles[],MATCH(1,(Profiles[Month]=MONTH(Month&" 1, 2000"))*(Profiles[Hour Ending]=INT(INDEX(_xlfn.TEXTSPLIT(Dashboard!Z$3,," "),2))),0),MATCH(Dashboard!$B19,Profiles[#Headers],0)) -> 0.001106060604
B20: Solar Thermal_Norcal | C20: =INDEX(Supply[Supply],MATCH(1,(Supply[Month]=MONTH(Month&" 1, 2000"))*(Supply[Unit Category]=Dashboard!$B20)*(Supply[Hour Ending]=INT(INDEX(_xlfn.TEXTSPLIT(Dashboard!C$3," "),2))),0)) -> 0 | D20: =INDEX(MonthlyCapacities[Total Capacity (MW)],MATCH(1,(MonthlyCapacities[Month]=MONTH(Month&" 1, 2000"))*(MonthlyCapacities[Unit Category]=Dashboard!$B20),0))*INDEX(Profiles[],MATCH(1,(Profiles[Month]=MONTH(Month&" 1, 2000"))*(Profiles[Hour Ending]=INT(INDEX(_xlfn.TEXTSPLIT(Dashboard!D$3,," "),2))),0),MATCH(Dashboard!$B20,Profiles[#Headers],0)) -> 0 | E20: =INDEX(MonthlyCapacities[Total Capacity (MW)],MATCH(1,(MonthlyCapacities[Month]=MONTH(Month&" 1, 2000"))*(MonthlyCapacities[Unit Category]=Dashboard!$B20),0))*INDEX(Profiles[],MATCH(1,(Profiles[Month]=MONTH(Month&" 1, 2000"))*(Profiles[Hour Ending]=INT(INDEX(_xlfn.TEXTSPLIT(Dashboard!E$3,," "),2))),0),MATCH(Dashboard!$B20,Profiles[#Headers],0)) -> 0 | F20: =INDEX(MonthlyCapacities[Total Capacity (MW)],MATCH(1,(MonthlyCapacities[Month]=MONTH(Month&" 1, 2000"))*(MonthlyCapacities[Unit Category]=Dashboard!$B20),0))*INDEX(Profiles[],MATCH(1,(Profiles[Month]=MONTH(Month&" 1, 2000"))*(Profiles[Hour Ending]=INT(INDEX(_xlfn.TEXTSPLIT(Dashboard!F$3,," "),2))),0),MATCH(Dashboard!$B20,Profiles[#Headers],0)) -> 0 | G20: =INDEX(MonthlyCapacities[Total Capacity (MW)],MATCH(1,(MonthlyCapacities[Month]=MONTH(Month&" 1, 2000"))*(MonthlyCapacities[Unit Category]=Dashboard!$B20),0))*INDEX(Profiles[],MATCH(1,(Profiles[Month]=MONTH(Month&" 1, 2000"))*(Profiles[Hour Ending]=INT(INDEX(_xlfn.TEXTSPLIT(Dashboard!G$3,," "),2))),0),MATCH(Dashboard!$B20,Profiles[#Headers],0)) -> 0 | H20: =INDEX(MonthlyCapacities[Total Capacity (MW)],MATCH(1,(MonthlyCapacities[Month]=MONTH(Month&" 1, 2000"))*(MonthlyCapacities[Unit Category]=Dashboard!$B20),0))*INDEX(Profiles[],MATCH(1,(Profiles[Month]=MONTH(Month&" 1, 2000"))*(Profiles[Hour Ending]=INT(INDEX(_xlfn.TEXTSPLIT(Dashboard!H$3,," "),2))),0),MATCH(Dashboard!$B20,Profiles[#Headers],0)) -> 0 | I20: =INDEX(MonthlyCapacities[Total Capacity (MW)],MATCH(1,(MonthlyCapacities[Month]=MONTH(Month&" 1, 2000"))*(MonthlyCapacities[Unit Category]=Dashboard!$B20),0))*INDEX(Profiles[],MATCH(1,(Profiles[Month]=MONTH(Month&" 1, 2000"))*(Profiles[Hour Ending]=INT(INDEX(_xlfn.TEXTSPLIT(Dashboard!I$3,," "),2))),0),MATCH(Dashboard!$B20,Profiles[#Headers],0)) -> 0 | J20: =INDEX(MonthlyCapacities[Total Capacity (MW)],MATCH(1,(MonthlyCapacities[Month]=MONTH(Month&" 1, 2000"))*(MonthlyCapacities[Unit Category]=Dashboard!$B20),0))*INDEX(Profiles[],MATCH(1,(Profiles[Month]=MONTH(Month&" 1, 2000"))*(Profiles[Hour Ending]=INT(INDEX(_xlfn.TEXTSPLIT(Dashboard!J$3,," "),2))),0),MATCH(Dashboard!$B20,Profiles[#Headers],0)) -> 0 | K20: =INDEX(MonthlyCapacities[Total Capacity (MW)],MATCH(1,(MonthlyCapacities[Month]=MONTH(Month&" 1, 2000"))*(MonthlyCapacities[Unit Category]=Dashboard!$B20),0))*INDEX(Profiles[],MATCH(1,(Profiles[Month]=MONTH(Month&" 1, 2000"))*(Profiles[Hour Ending]=INT(INDEX(_xlfn.TEXTSPLIT(Dashboard!K$3,," "),2))),0),MATCH(Dashboard!$B20,Profiles[#Headers],0)) -> 0 | L20: =INDEX(MonthlyCapacities[Total Capacity (MW)],MATCH(1,(MonthlyCapacities[Month]=MONTH(Month&" 1, 2000"))*(MonthlyCapacities[Unit Category]=Dashboard!$B20),0))*INDEX(Profiles[],MATCH(1,(Profiles[Month]=MONTH(Month&" 1, 2000"))*(Profiles[Hour Ending]=INT(INDEX(_xlfn.TEXTSPLIT(Dashboard!L$3,," "),2))),0),MATCH(Dashboard!$B20,Profiles[#Headers],0)) -> 0 | M20: =INDEX(MonthlyCapacities[Total Capacity (MW)],MATCH(1,(MonthlyCapacities[Month]=MONTH(Month&" 1, 2000"))*(MonthlyCapacities[Unit Category]=Dashboard!$B20),0))*INDEX(Profiles[],MATCH(1,(Profiles[Month]=MONTH(Month&" 1, 2000"))*(Profiles[Hour Ending]=INT(INDEX(_xlfn.TEXTSPLIT(Dashboard!M$3,," "),2))),0),MATCH(Dashboard!$B20,Profiles[#Headers],0)) -> 0 | N20: =INDEX(MonthlyCapacities[Total Capacity (MW)],MATCH(1,(MonthlyCapacities[Month]=MONTH(Month&" 1, 2000"))*(MonthlyCapacities[Unit Category]=Dashboard!$B20),0))*INDEX(Profiles[],MATCH(1,(Profiles[Month]=MONTH(Month&" 1, 2000"))*(Profiles[Hour Ending]=INT(INDEX(_xlfn.TEXTSPLIT(Dashboard!N$3,," "),2))),0),MATCH(Dashboard!$B20,Profiles[#Headers],0)) -> 0 | O20: =INDEX(MonthlyCapacities[Total Capacity (MW)],MATCH(1,(MonthlyCapacities[Month]=MONTH(Month&" 1, 2000"))*(MonthlyCapacities[Unit Category]=Dashboard!$B20),0))*INDEX(Profiles[],MATCH(1,(Profiles[Month]=MONTH(Month&" 1, 2000"))*(Profiles[Hour Ending]=INT(INDEX(_xlfn.TEXTSPLIT(Dashboard!O$3,," "),2))),0),MATCH(Dashboard!$B20,Profiles[#Headers],0)) -> 0 | P20: =INDEX(MonthlyCapacities[Total Capacity (MW)],MATCH(1,(MonthlyCapacities[Month]=MONTH(Month&" 1, 2000"))*(MonthlyCapacities[Unit Category]=Dashboard!$B20),0))*INDEX(Profiles[],MATCH(1,(Profiles[Month]=MONTH(Month&" 1, 2000"))*(Profiles[Hour Ending]=INT(INDEX(_xlfn.TEXTSPLIT(Dashboard!P$3,," "),2))),0),MATCH(Dashboard!$B20,Profiles[#Headers],0)) -> 0 | Q20: =INDEX(MonthlyCapacities[Total Capacity (MW)],MATCH(1,(MonthlyCapacities[Month]=MONTH(Month&" 1, 2000"))*(MonthlyCapacities[Unit Category]=Dashboard!$B20),0))*INDEX(Profiles[],MATCH(1,(Profiles[Month]=MONTH(Month&" 1, 2000"))*(Profiles[Hour Ending]=INT(INDEX(_xlfn.TEXTSPLIT(Dashboard!Q$3,," "),2))),0),MATCH(Dashboard!$B20,Profiles[#Headers],0)) -> 0 | R20: =INDEX(MonthlyCapacities[Total Capacity (MW)],MATCH(1,(MonthlyCapacities[Month]=MONTH(Month&" 1, 2000"))*(MonthlyCapacities[Unit Category]=Dashboard!$B20),0))*INDEX(Profiles[],MATCH(1,(Profiles[Month]=MONTH(Month&" 1, 2000"))*(Profiles[Hour Ending]=INT(INDEX(_xlfn.TEXTSPLIT(Dashboard!R$3,," "),2))),0),MATCH(Dashboard!$B20,Profiles[#Headers],0)) -> 0 | S20: =INDEX(MonthlyCapacities[Total Capacity (MW)],MATCH(1,(MonthlyCapacities[Month]=MONTH(Month&" 1, 2000"))*(MonthlyCapacities[Unit Category]=Dashboard!$B20),0))*INDEX(Profiles[],MATCH(1,(Profiles[Month]=MONTH(Month&" 1, 2000"))*(Profiles[Hour Ending]=INT(INDEX(_xlfn.TEXTSPLIT(Dashboard!S$3,," "),2))),0),MATCH(Dashboard!$B20,Profiles[#Headers],0)) -> 0 | T20: =INDEX(MonthlyCapacities[Total Capacity (MW)],MATCH(1,(MonthlyCapacities[Month]=MONTH(Month&" 1, 2000"))*(MonthlyCapacities[Unit Category]=Dashboard!$B20),0))*INDEX(Profiles[],MATCH(1,(Profiles[Month]=MONTH(Month&" 1, 2000"))*(Profiles[Hour Ending]=INT(INDEX(_xlfn.TEXTSPLIT(Dashboard!T$3,," "),2))),0),MATCH(Dashboard!$B20,Profiles[#Headers],0)) -> 0 | U20: =INDEX(MonthlyCapacities[Total Capacity (MW)],MATCH(1,(MonthlyCapacities[Month]=MONTH(Month&" 1, 2000"))*(MonthlyCapacities[Unit Category]=Dashboard!$B20),0))*INDEX(Profiles[],MATCH(1,(Profiles[Month]=MONTH(Month&" 1, 2000"))*(Profiles[Hour Ending]=INT(INDEX(_xlfn.TEXTSPLIT(Dashboard!U$3,," "),2))),0),MATCH(Dashboard!$B20,Profiles[#Headers],0)) -> 0 | V20: =INDEX(MonthlyCapacities[Total Capacity (MW)],MATCH(1,(MonthlyCapacities[Month]=MONTH(Month&" 1, 2000"))*(MonthlyCapacities[Unit Category]=Dashboard!$B20),0))*INDEX(Profiles[],MATCH(1,(Profiles[Month]=MONTH(Month&" 1, 2000"))*(Profiles[Hour Ending]=INT(INDEX(_xlfn.TEXTSPLIT(Dashboard!V$3,," "),2))),0),MATCH(Dashboard!$B20,Profiles[#Headers],0)) -> 0 | W20: =INDEX(MonthlyCapacities[Total Capacity (MW)],MATCH(1,(MonthlyCapacities[Month]=MONTH(Month&" 1, 2000"))*(MonthlyCapacities[Unit Category]=Dashboard!$B20),0))*INDEX(Profiles[],MATCH(1,(Profiles[Month]=MONTH(Month&" 1, 2000"))*(Profiles[Hour Ending]=INT(INDEX(_xlfn.TEXTSPLIT(Dashboard!W$3,," "),2))),0),MATCH(Dashboard!$B20,Profiles[#Headers],0)) -> 0 | X20: =INDEX(MonthlyCapacities[Total Capacity (MW)],MATCH(1,(MonthlyCapacities[Month]=MONTH(Month&" 1, 2000"))*(MonthlyCapacities[Unit Category]=Dashboard!$B20),0))*INDEX(Profiles[],MATCH(1,(Profiles[Month]=MONTH(Month&" 1, 2000"))*(Profiles[Hour Ending]=INT(INDEX(_xlfn.TEXTSPLIT(Dashboard!X$3,," "),2))),0),MATCH(Dashboard!$B20,Profiles[#Headers],0)) -> 0 | Y20: =INDEX(MonthlyCapacities[Total Capacity (MW)],MATCH(1,(MonthlyCapacities[Month]=MONTH(Month&" 1, 2000"))*(MonthlyCapacities[Unit Category]=Dashboard!$B20),0))*INDEX(Profiles[],MATCH(1,(Profiles[Month]=MONTH(Month&" 1, 2000"))*(Profiles[Hour Ending]=INT(INDEX(_xlfn.TEXTSPLIT(Dashboard!Y$3,," "),2))),0),MATCH(Dashboard!$B20,Profiles[#Headers],0)) -> 0 | Z20: =INDEX(MonthlyCapacities[Total Capacity (MW)],MATCH(1,(MonthlyCapacities[Month]=MONTH(Month&" 1, 2000"))*(MonthlyCapacities[Unit Category]=Dashboard!$B20),0))*INDEX(Profiles[],MATCH(1,(Profiles[Month]=MONTH(Month&" 1, 2000"))*(Profiles[Hour Ending]=INT(INDEX(_xlfn.TEXTSPLIT(Dashboard!Z$3,," "),2))),0),MATCH(Dashboard!$B20,Profiles[#Headers],0)) -> 0
B21: Solar Thermal_Socal | C21: =INDEX(Supply[Supply],MATCH(1,(Supply[Month]=MONTH(Month&" 1, 2000"))*(Supply[Unit Category]=Dashboard!$B21)*(Supply[Hour Ending]=INT(INDEX(_xlfn.TEXTSPLIT(Dashboard!C$3," "),2))),0)) -> 0 | D21: =INDEX(MonthlyCapacities[Total Capacity (MW)],MATCH(1,(MonthlyCapacities[Month]=MONTH(Month&" 1, 2000"))*(MonthlyCapacities[Unit Category]=Dashboard!$B21),0))*INDEX(Profiles[],MATCH(1,(Profiles[Month]=MONTH(Month&" 1, 2000"))*(Profiles[Hour Ending]=INT(INDEX(_xlfn.TEXTSPLIT(Dashboard!D$3,," "),2))),0),MATCH(Dashboard!$B21,Profiles[#Headers],0)) -> 0 | E21: =INDEX(MonthlyCapacities[Total Capacity (MW)],MATCH(1,(MonthlyCapacities[Month]=MONTH(Month&" 1, 2000"))*(MonthlyCapacities[Unit Category]=Dashboard!$B21),0))*INDEX(Profiles[],MATCH(1,(Profiles[Month]=MONTH(Month&" 1, 2000"))*(Profiles[Hour Ending]=INT(INDEX(_xlfn.TEXTSPLIT(Dashboard!E$3,," "),2))),0),MATCH(Dashboard!$B21,Profiles[#Headers],0)) -> 0 | F21: =INDEX(MonthlyCapacities[Total Capacity (MW)],MATCH(1,(MonthlyCapacities[Month]=MONTH(Month&" 1, 2000"))*(MonthlyCapacities[Unit Category]=Dashboard!$B21),0))*INDEX(Profiles[],MATCH(1,(Profiles[Month]=MONTH(Month&" 1, 2000"))*(Profiles[Hour Ending]=INT(INDEX(_xlfn.TEXTSPLIT(Dashboard!F$3,," "),2))),0),MATCH(Dashboard!$B21,Profiles[#Headers],0)) -> 0 | G21: =INDEX(MonthlyCapacities[Total Capacity (MW)],MATCH(1,(MonthlyCapacities[Month]=MONTH(Month&" 1, 2000"))*(MonthlyCapacities[Unit Category]=Dashboard!$B21),0))*INDEX(Profiles[],MATCH(1,(Profiles[Month]=MONTH(Month&" 1, 2000"))*(Profiles[Hour Ending]=INT(INDEX(_xlfn.TEXTSPLIT(Dashboard!G$3,," "),2))),0),MATCH(Dashboard!$B21,Profiles[#Headers],0)) -> 0 | H21: =INDEX(MonthlyCapacities[Total Capacity (MW)],MATCH(1,(MonthlyCapacities[Month]=MONTH(Month&" 1, 2000"))*(MonthlyCapacities[Unit Category]=Dashboard!$B21),0))*INDEX(Profiles[],MATCH(1,(Profiles[Month]=MONTH(Month&" 1, 2000"))*(Profiles[Hour Ending]=INT(INDEX(_xlfn.TEXTSPLIT(Dashboard!H$3,," "),2))),0),MATCH(Dashboard!$B21,Profiles[#Headers],0)) -> 0 | I21: =INDEX(MonthlyCapacities[Total Capacity (MW)],MATCH(1,(MonthlyCapacities[Month]=MONTH(Month&" 1, 2000"))*(MonthlyCapacities[Unit Category]=Dashboard!$B21),0))*INDEX(Profiles[],MATCH(1,(Profiles[Month]=MONTH(Month&" 1, 2000"))*(Profiles[Hour Ending]=INT(INDEX(_xlfn.TEXTSPLIT(Dashboard!I$3,," "),2))),0),MATCH(Dashboard!$B21,Profiles[#Headers],0)) -> 0 | J21: =INDEX(MonthlyCapacities[Total Capacity (MW)],MATCH(1,(MonthlyCapacities[Month]=MONTH(Month&" 1, 2000"))*(MonthlyCapacities[Unit Category]=Dashboard!$B21),0))*INDEX(Profiles[],MATCH(1,(Profiles[Month]=MONTH(Month&" 1, 2000"))*(Profiles[Hour Ending]=INT(INDEX(_xlfn.TEXTSPLIT(Dashboard!J$3,," "),2))),0),MATCH(Dashboard!$B21,Profiles[#Headers],0)) -> 0 | K21: =INDEX(MonthlyCapacities[Total Capacity (MW)],MATCH(1,(MonthlyCapacities[Month]=MONTH(Month&" 1, 2000"))*(MonthlyCapacities[Unit Category]=Dashboard!$B21),0))*INDEX(Profiles[],MATCH(1,(Profiles[Month]=MONTH(Month&" 1, 2000"))*(Profiles[Hour Ending]=INT(INDEX(_xlfn.TEXTSPLIT(Dashboard!K$3,," "),2))),0),MATCH(Dashboard!$B21,Profiles[#Headers],0)) -> 54.33925684 | L21: =INDEX(MonthlyCapacities[Total Capacity (MW)],MATCH(1,(MonthlyCapacities[Month]=MONTH(Month&" 1, 2000"))*(MonthlyCapacities[Unit Category]=Dashboard!$B21),0))*INDEX(Profiles[],MATCH(1,(Profiles[Month]=MONTH(Month&" 1, 2000"))*(Profiles[Hour Ending]=INT(INDEX(_xlfn.TEXTSPLIT(Dashboard!L$3,," "),2))),0),MATCH(Dashboard!$B21,Profiles[#Headers],0)) -> 183.9224815 | M21: =INDEX(MonthlyCapacities[Total Capacity (MW)],MATCH(1,(MonthlyCapacities[Month]=MONTH(Month&" 1, 2000"))*(MonthlyCapacities[Unit Category]=Dashboard!$B21),0))*INDEX(Profiles[],MATCH(1,(Profiles[Month]=MONTH(Month&" 1, 2000"))*(Profiles[Hour Ending]=INT(INDEX(_xlfn.TEXTSPLIT(Dashboard!M$3,," "),2))),0),MATCH(Dashboard!$B21,Profiles[#Headers],0)) -> 247.2323384 | N21: =INDEX(MonthlyCapacities[Total Capacity (MW)],MATCH(1,(MonthlyCapacities[Month]=MONTH(Month&" 1, 2000"))*(MonthlyCapacities[Unit Category]=Dashboard!$B21),0))*INDEX(Profiles[],MATCH(1,(Profiles[Month]=MONTH(Month&" 1, 2000"))*(Profiles[Hour Ending]=INT(INDEX(_xlfn.TEXTSPLIT(Dashboard!N$3,," "),2))),0),MATCH(Dashboard!$B21,Profiles[#Headers],0)) -> 279.8503388 | O21: =INDEX(MonthlyCapacities[Total Capacity (MW)],MATCH(1,(MonthlyCapacities[Month]=MONTH(Month&" 1, 2000"))*(MonthlyCapacities[Unit Category]=Dashboard!$B21),0))*INDEX(Profiles[],MATCH(1,(Profiles[Month]=MONTH(Month&" 1, 2000"))*(Profiles[Hour Ending]=INT(INDEX(_xlfn.TEXTSPLIT(Dashboard!O$3,," "),2))),0),MATCH(Dashboard!$B21,Profiles[#Headers],0)) -> 259.5874666 | P21: =INDEX(MonthlyCapacities[Total Capacity (MW)],MATCH(1,(MonthlyCapacities[Month]=MONTH(Month&" 1, 2000"))*(MonthlyCapacities[Unit Category]=Dashboard!$B21),0))*INDEX(Profiles[],MATCH(1,(Profiles[Month]=MONTH(Month&" 1, 2000"))*(Profiles[Hour Ending]=INT(INDEX(_xlfn.TEXTSPLIT(Dashboard!P$3,," "),2))),0),MATCH(Dashboard!$B21,Profiles[#Headers],0)) -> 262.7496871 | Q21: =INDEX(MonthlyCapacities[Total Capacity (MW)],MATCH(1,(MonthlyCapacities[Month]=MONTH(Month&" 1, 2000"))*(MonthlyCapacities[Unit Category]=Dashboard!$B21),0))*INDEX(Profiles[],MATCH(1,(Profiles[Month]=MONTH(Month&" 1, 2000"))*(Profiles[Hour Ending]=INT(INDEX(_xlfn.TEXTSPLIT(Dashboard!Q$3,," "),2))),0),MATCH(Dashboard!$B21,Profiles[#Headers],0)) -> 248.952969 | R21: =INDEX(MonthlyCapacities[Total Capacity (MW)],MATCH(1,(MonthlyCapacities[Month]=MONTH(Month&" 1, 2000"))*(MonthlyCapacities[Unit Category]=Dashboard!$B21),0))*INDEX(Profiles[],MATCH(1,(Profiles[Month]=MONTH(Month&" 1, 2000"))*(Profiles[Hour Ending]=INT(INDEX(_xlfn.TEXTSPLIT(Dashboard!R$3,," "),2))),0),MATCH(Dashboard!$B21,Profiles[#Headers],0)) -> 184.1218136 | S21: =INDEX(MonthlyCapacities[Total Capacity (MW)],MATCH(1,(MonthlyCapacities[Month]=MONTH(Month&" 1, 2000"))*(MonthlyCapacities[Unit Category]=Dashboard!$B21),0))*INDEX(Profiles[],MATCH(1,(Profiles[Month]=MONTH(Month&" 1, 2000"))*(Profiles[Hour Ending]=INT(INDEX(_xlfn.TEXTSPLIT(Dashboard!S$3,," "),2))),0),MATCH(Dashboard!$B21,Profiles[#Headers],0)) -> 53.22873806 | T21: =INDEX(MonthlyCapacities[Total Capacity (MW)],MATCH(1,(MonthlyCapacities[Month]=MONTH(Month&" 1, 2000"))*(MonthlyCapacities[Unit Category]=Dashboard!$B21),0))*INDEX(Profiles[],MATCH(1,(Profiles[Month]=MONTH(Month&" 1, 2000"))*(Profiles[Hour Ending]=INT(INDEX(_xlfn.TEXTSPLIT(Dashboard!T$3,," "),2))),0),MATCH(Dashboard!$B21,Profiles[#Headers],0)) -> 0 | U21: =INDEX(MonthlyCapacities[Total Capacity (MW)],MATCH(1,(MonthlyCapacities[Month]=MONTH(Month&" 1, 2000"))*(MonthlyCapacities[Unit Category]=Dashboard!$B21),0))*INDEX(Profiles[],MATCH(1,(Profiles[Month]=MONTH(Month&" 1, 2000"))*(Profiles[Hour Ending]=INT(INDEX(_xlfn.TEXTSPLIT(Dashboard!U$3,," "),2))),0),MATCH(Dashboard!$B21,Profiles[#Headers],0)) -> 0 | V21: =INDEX(MonthlyCapacities[Total Capacity (MW)],MATCH(1,(MonthlyCapacities[Month]=MONTH(Month&" 1, 2000"))*(MonthlyCapacities[Unit Category]=Dashboard!$B21),0))*INDEX(Profiles[],MATCH(1,(Profiles[Month]=MONTH(Month&" 1, 2000"))*(Profiles[Hour Ending]=INT(INDEX(_xlfn.TEXTSPLIT(Dashboard!V$3,," "),2))),0),MATCH(Dashboard!$B21,Profiles[#Headers],0)) -> 0 | W21: =INDEX(MonthlyCapacities[Total Capacity (MW)],MATCH(1,(MonthlyCapacities[Month]=MONTH(Month&" 1, 2000"))*(MonthlyCapacities[Unit Category]=Dashboard!$B21),0))*INDEX(Profiles[],MATCH(1,(Profiles[Month]=MONTH(Month&" 1, 2000"))*(Profiles[Hour Ending]=INT(INDEX(_xlfn.TEXTSPLIT(Dashboard!W$3,," "),2))),0),MATCH(Dashboard!$B21,Profiles[#Headers],0)) -> 0 | X21: =INDEX(MonthlyCapacities[Total Capacity (MW)],MATCH(1,(MonthlyCapacities[Month]=MONTH(Month&" 1, 2000"))*(MonthlyCapacities[Unit Category]=Dashboard!$B21),0))*INDEX(Profiles[],MATCH(1,(Profiles[Month]=MONTH(Month&" 1, 2000"))*(Profiles[Hour Ending]=INT(INDEX(_xlfn.TEXTSPLIT(Dashboard!X$3,," "),2))),0),MATCH(Dashboard!$B21,Profiles[#Headers],0)) -> 0 | Y21: =INDEX(MonthlyCapacities[Total Capacity (MW)],MATCH(1,(MonthlyCapacities[Month]=MONTH(Month&" 1, 2000"))*(MonthlyCapacities[Unit Category]=Dashboard!$B21),0))*INDEX(Profiles[],MATCH(1,(Profiles[Month]=MONTH(Month&" 1, 2000"))*(Profiles[Hour Ending]=INT(INDEX(_xlfn.TEXTSPLIT(Dashboard!Y$3,," "),2))),0),MATCH(Dashboard!$B21,Profiles[#Headers],0)) -> 0 | Z21: =INDEX(MonthlyCapacities[Total Capacity (MW)],MATCH(1,(MonthlyCapacities[Month]=MONTH(Month&" 1, 2000"))*(MonthlyCapacities[Unit Category]=Dashboard!$B21),0))*INDEX(Profiles[],MATCH(1,(Profiles[Month]=MONTH(Month&" 1, 2000"))*(Profiles[Hour Ending]=INT(INDEX(_xlfn.TEXTSPLIT(Dashboard!Z$3,," "),2))),0),MATCH(Dashboard!$B21,Profiles[#Headers],0)) -> 0
B22: Solar Tracking_Norcal | C22: =INDEX(Supply[Supply],MATCH(1,(Supply[Month]=MONTH(Month&" 1, 2000"))*(Supply[Unit Category]=Dashboard!$B22)*(Supply[Hour Ending]=INT(INDEX(_xlfn.TEXTSPLIT(Dashboard!C$3," "),2))),0)) -> 0 | D22: =INDEX(MonthlyCapacities[Total Capacity (MW)],MATCH(1,(MonthlyCapacities[Month]=MONTH(Month&" 1, 2000"))*(MonthlyCapacities[Unit Category]=Dashboard!$B22),0))*INDEX(Profiles[],MATCH(1,(Profiles[Month]=MONTH(Month&" 1, 2000"))*(Profiles[Hour Ending]=INT(INDEX(_xlfn.TEXTSPLIT(Dashboard!D$3,," "),2))),0),MATCH(Dashboard!$B22,Profiles[#Headers],0)) -> 0 | E22: =INDEX(MonthlyCapacities[Total Capacity (MW)],MATCH(1,(MonthlyCapacities[Month]=MONTH(Month&" 1, 2000"))*(MonthlyCapacities[Unit Category]=Dashboard!$B22),0))*INDEX(Profiles[],MATCH(1,(Profiles[Month]=MONTH(Month&" 1, 2000"))*(Profiles[Hour Ending]=INT(INDEX(_xlfn.TEXTSPLIT(Dashboard!E$3,," "),2))),0),MATCH(Dashboard!$B22,Profiles[#Headers],0)) -> 0 | F22: =INDEX(MonthlyCapacities[Total Capacity (MW)],MATCH(1,(MonthlyCapacities[Month]=MONTH(Month&" 1, 2000"))*(MonthlyCapacities[Unit Category]=Dashboard!$B22),0))*INDEX(Profiles[],MATCH(1,(Profiles[Month]=MONTH(Month&" 1, 2000"))*(Profiles[Hour Ending]=INT(INDEX(_xlfn.TEXTSPLIT(Dashboard!F$3,," "),2))),0),MATCH(Dashboard!$B22,Profiles[#Headers],0)) -> 0 | G22: =INDEX(MonthlyCapacities[Total Capacity (MW)],MATCH(1,(MonthlyCapacities[Month]=MONTH(Month&" 1, 2000"))*(MonthlyCapacities[Unit Category]=Dashboard!$B22),0))*INDEX(Profiles[],MATCH(1,(Profiles[Month]=MONTH(Month&" 1, 2000"))*(Profiles[Hour Ending]=INT(INDEX(_xlfn.TEXTSPLIT(Dashboard!G$3,," "),2))),0),MATCH(Dashboard!$B22,Profiles[#Headers],0)) -> 0 | H22: =INDEX(MonthlyCapacities[Total Capacity (MW)],MATCH(1,(MonthlyCapacities[Month]=MONTH(Month&" 1, 2000"))*(MonthlyCapacities[Unit Category]=Dashboard!$B22),0))*INDEX(Profiles[],MATCH(1,(Profiles[Month]=MONTH(Month&" 1, 2000"))*(Profiles[Hour Ending]=INT(INDEX(_xlfn.TEXTSPLIT(Dashboard!H$3,," "),2))),0),MATCH(Dashboard!$B22,Profiles[#Headers],0)) -> 0 | I22: =INDEX(MonthlyCapacities[Total Capacity (MW)],MATCH(1,(MonthlyCapacities[Month]=MONTH(Month&" 1, 2000"))*(MonthlyCapacities[Unit Category]=Dashboard!$B22),0))*INDEX(Profiles[],MATCH(1,(Profiles[Month]=MONTH(Month&" 1, 2000"))*(Profiles[Hour Ending]=INT(INDEX(_xlfn.TEXTSPLIT(Dashboard!I$3,," "),2))),0),MATCH(Dashboard!$B22,Profiles[#Headers],0)) -> 0.003001248549 | J22: =INDEX(MonthlyCapacities[Total Capacity (MW)],MATCH(1,(MonthlyCapacities[Month]=MONTH(Month&" 1, 2000"))*(MonthlyCapacities[Unit Category]=Dashboard!$B22),0))*INDEX(Profiles[],MATCH(1,(Profiles[Month]=MONTH(Month&" 1, 2000"))*(Profiles[Hour Ending]=INT(INDEX(_xlfn.TEXTSPLIT(Dashboard!J$3,," "),2))),0),MATCH(Dashboard!$B22,Profiles[#Headers],0)) -> 103.7552526 | K22: =INDEX(MonthlyCapacities[Total Capacity (MW)],MATCH(1,(MonthlyCapacities[Month]=MONTH(Month&" 1, 2000"))*(MonthlyCapacities[Unit Category]=Dashboard!$B22),0))*INDEX(Profiles[],MATCH(1,(Profiles[Month]=MONTH(Month&" 1, 2000"))*(Profiles[Hour Ending]=INT(INDEX(_xlfn.TEXTSPLIT(Dashboard!K$3,," "),2))),0),MATCH(Dashboard!$B22,Profiles[#Headers],0)) -> 799.9973418 | L22: =INDEX(MonthlyCapacities[Total Capacity (MW)],MATCH(1,(MonthlyCapacities[Month]=MONTH(Month&" 1, 2000"))*(MonthlyCapacities[Unit Category]=Dashboard!$B22),0))*INDEX(Profiles[],MATCH(1,(Profiles[Month]=MONTH(Month&" 1, 2000"))*(Profiles[Hour Ending]=INT(INDEX(_xlfn.TEXTSPLIT(Dashboard!L$3,," "),2))),0),MATCH(Dashboard!$B22,Profiles[#Headers],0)) -> 1524.837861 | M22: =INDEX(MonthlyCapacities[Total Capacity (MW)],MATCH(1,(MonthlyCapacities[Month]=MONTH(Month&" 1, 2000"))*(MonthlyCapacities[Unit Category]=Dashboard!$B22),0))*INDEX(Profiles[],MATCH(1,(Profiles[Month]=MONTH(Month&" 1, 2000"))*(Profiles[Hour Ending]=INT(INDEX(_xlfn.TEXTSPLIT(Dashboard!M$3,," "),2))),0),MATCH(Dashboard!$B22,Profiles[#Headers],0)) -> 1885.909776 | N22: =INDEX(MonthlyCapacities[Total Capacity (MW)],MATCH(1,(MonthlyCapacities[Month]=MONTH(Month&" 1, 2000"))*(MonthlyCapacities[Unit Category]=Dashboard!$B22),0))*INDEX(Profiles[],MATCH(1,(Profiles[Month]=MONTH(Month&" 1, 2000"))*(Profiles[Hour Ending]=INT(INDEX(_xlfn.TEXTSPLIT(Dashboard!N$3,," "),2))),0),MATCH(Dashboard!$B22,Profiles[#Headers],0)) -> 2076.464052 | O22: =INDEX(MonthlyCapacities[Total Capacity (MW)],MATCH(1,(MonthlyCapacities[Month]=MONTH(Month&" 1, 2000"))*(MonthlyCapacities[Unit Category]=Dashboard!$B22),0))*INDEX(Profiles[],MATCH(1,(Profiles[Month]=MONTH(Month&" 1, 2000"))*(Profiles[Hour Ending]=INT(INDEX(_xlfn.TEXTSPLIT(Dashboard!O$3,," "),2))),0),MATCH(Dashboard!$B22,Profiles[#Headers],0)) -> 2077.245466 | P22: =INDEX(MonthlyCapacities[Total Capacity (MW)],MATCH(1,(MonthlyCapacities[Month]=MONTH(Month&" 1, 2000"))*(MonthlyCapacities[Unit Category]=Dashboard!$B22),0))*INDEX(Profiles[],MATCH(1,(Profiles[Month]=MONTH(Month&" 1, 2000"))*(Profiles[Hour Ending]=INT(INDEX(_xlfn.TEXTSPLIT(Dashboard!P$3,," "),2))),0),MATCH(Dashboard!$B22,Profiles[#Headers],0)) -> 1960.461262 | Q22: =INDEX(MonthlyCapacities[Total Capacity (MW)],MATCH(1,(MonthlyCapacities[Month]=MONTH(Month&" 1, 2000"))*(MonthlyCapacities[Unit Category]=Dashboard!$B22),0))*INDEX(Profiles[],MATCH(1,(Profiles[Month]=MONTH(Month&" 1, 2000"))*(Profiles[Hour Ending]=INT(INDEX(_xlfn.TEXTSPLIT(Dashboard!Q$3,," "),2))),0),MATCH(Dashboard!$B22,Profiles[#Headers],0)) -> 1835.115054 | R22: =INDEX(MonthlyCapacities[Total Capacity (MW)],MATCH(1,(MonthlyCapacities[Month]=MONTH(Month&" 1, 2000"))*(MonthlyCapacities[Unit Category]=Dashboard!$B22),0))*INDEX(Profiles[],MATCH(1,(Profiles[Month]=MONTH(Month&" 1, 2000"))*(Profiles[Hour Ending]=INT(INDEX(_xlfn.TEXTSPLIT(Dashboard!R$3,," "),2))),0),MATCH(Dashboard!$B22,Profiles[#Headers],0)) -> 1253.493622 | S22: =INDEX(MonthlyCapacities[Total Capacity (MW)],MATCH(1,(MonthlyCapacities[Month]=MONTH(Month&" 1, 2000"))*(MonthlyCapacities[Unit Category]=Dashboard!$B22),0))*INDEX(Profiles[],MATCH(1,(Profiles[Month]=MONTH(Month&" 1, 2000"))*(Profiles[Hour Ending]=INT(INDEX(_xlfn.TEXTSPLIT(Dashboard!S$3,," "),2))),0),MATCH(Dashboard!$B22,Profiles[#Headers],0)) -> 273.1118503 | T22: =INDEX(MonthlyCapacities[Total Capacity (MW)],MATCH(1,(MonthlyCapacities[Month]=MONTH(Month&" 1, 2000"))*(MonthlyCapacities[Unit Category]=Dashboard!$B22),0))*INDEX(Profiles[],MATCH(1,(Profiles[Month]=MONTH(Month&" 1, 2000"))*(Profiles[Hour Ending]=INT(INDEX(_xlfn.TEXTSPLIT(Dashboard!T$3,," "),2))),0),MATCH(Dashboard!$B22,Profiles[#Headers],0)) -> 0.1506322847 | U22: =INDEX(MonthlyCapacities[Total Capacity (MW)],MATCH(1,(MonthlyCapacities[Month]=MONTH(Month&" 1, 2000"))*(MonthlyCapacities[Unit Category]=Dashboard!$B22),0))*INDEX(Profiles[],MATCH(1,(Profiles[Month]=MONTH(Month&" 1, 2000"))*(Profiles[Hour Ending]=INT(INDEX(_xlfn.TEXTSPLIT(Dashboard!U$3,," "),2))),0),MATCH(Dashboard!$B22,Profiles[#Headers],0)) -> 0 | V22: =INDEX(MonthlyCapacities[Total Capacity (MW)],MATCH(1,(MonthlyCapacities[Month]=MONTH(Month&" 1, 2000"))*(MonthlyCapacities[Unit Category]=Dashboard!$B22),0))*INDEX(Profiles[],MATCH(1,(Profiles[Month]=MONTH(Month&" 1, 2000"))*(Profiles[Hour Ending]=INT(INDEX(_xlfn.TEXTSPLIT(Dashboard!V$3,," "),2))),0),MATCH(Dashboard!$B22,Profiles[#Headers],0)) -> 0 | W22: =INDEX(MonthlyCapacities[Total Capacity (MW)],MATCH(1,(MonthlyCapacities[Month]=MONTH(Month&" 1, 2000"))*(MonthlyCapacities[Unit Category]=Dashboard!$B22),0))*INDEX(Profiles[],MATCH(1,(Profiles[Month]=MONTH(Month&" 1, 2000"))*(Profiles[Hour Ending]=INT(INDEX(_xlfn.TEXTSPLIT(Dashboard!W$3,," "),2))),0),MATCH(Dashboard!$B22,Profiles[#Headers],0)) -> 0 | X22: =INDEX(MonthlyCapacities[Total Capacity (MW)],MATCH(1,(MonthlyCapacities[Month]=MONTH(Month&" 1, 2000"))*(MonthlyCapacities[Unit Category]=Dashboard!$B22),0))*INDEX(Profiles[],MATCH(1,(Profiles[Month]=MONTH(Month&" 1, 2000"))*(Profiles[Hour Ending]=INT(INDEX(_xlfn.TEXTSPLIT(Dashboard!X$3,," "),2))),0),MATCH(Dashboard!$B22,Profiles[#Headers],0)) -> 0 | Y22: =INDEX(MonthlyCapacities[Total Capacity (MW)],MATCH(1,(MonthlyCapacities[Month]=MONTH(Month&" 1, 2000"))*(MonthlyCapacities[Unit Category]=Dashboard!$B22),0))*INDEX(Profiles[],MATCH(1,(Profiles[Month]=MONTH(Month&" 1, 2000"))*(Profiles[Hour Ending]=INT(INDEX(_xlfn.TEXTSPLIT(Dashboard!Y$3,," "),2))),0),MATCH(Dashboard!$B22,Profiles[#Headers],0)) -> 0 | Z22: =INDEX(MonthlyCapacities[Total Capacity (MW)],MATCH(1,(MonthlyCapacities[Month]=MONTH(Month&" 1, 2000"))*(MonthlyCapacities[Unit Category]=Dashboard!$B22),0))*INDEX(Profiles[],MATCH(1,(Profiles[Month]=MONTH(Month&" 1, 2000"))*(Profiles[Hour Ending]=INT(INDEX(_xlfn.TEXTSPLIT(Dashboard!Z$3,," "),2))),0),MATCH(Dashboard!$B22,Profiles[#Headers],0)) -> 0
B23: Solar Tracking_Socal | C23: =INDEX(Supply[Supply],MATCH(1,(Supply[Month]=MONTH(Month&" 1, 2000"))*(Supply[Unit Category]=Dashboard!$B23)*(Supply[Hour Ending]=INT(INDEX(_xlfn.TEXTSPLIT(Dashboard!C$3," "),2))),0)) -> 0 | D23: =INDEX(MonthlyCapacities[Total Capacity (MW)],MATCH(1,(MonthlyCapacities[Month]=MONTH(Month&" 1, 2000"))*(MonthlyCapacities[Unit Category]=Dashboard!$B23),0))*INDEX(Profiles[],MATCH(1,(Profiles[Month]=MONTH(Month&" 1, 2000"))*(Profiles[Hour Ending]=INT(INDEX(_xlfn.TEXTSPLIT(Dashboard!D$3,," "),2))),0),MATCH(Dashboard!$B23,Profiles[#Headers],0)) -> 0 | E23: =INDEX(MonthlyCapacities[Total Capacity (MW)],MATCH(1,(MonthlyCapacities[Month]=MONTH(Month&" 1, 2000"))*(MonthlyCapacities[Unit Category]=Dashboard!$B23),0))*INDEX(Profiles[],MATCH(1,(Profiles[Month]=MONTH(Month&" 1, 2000"))*(Profiles[Hour Ending]=INT(INDEX(_xlfn.TEXTSPLIT(Dashboard!E$3,," "),2))),0),MATCH(Dashboard!$B23,Profiles[#Headers],0)) -> 0 | F23: =INDEX(MonthlyCapacities[Total Capacity (MW)],MATCH(1,(MonthlyCapacities[Month]=MONTH(Month&" 1, 2000"))*(MonthlyCapacities[Unit Category]=Dashboard!$B23),0))*INDEX(Profiles[],MATCH(1,(Profiles[Month]=MONTH(Month&" 1, 2000"))*(Profiles[Hour Ending]=INT(INDEX(_xlfn.TEXTSPLIT(Dashboard!F$3,," "),2))),0),MATCH(Dashboard!$B23,Profiles[#Headers],0)) -> 0 | G23: =INDEX(MonthlyCapacities[Total Capacity (MW)],MATCH(1,(MonthlyCapacities[Month]=MONTH(Month&" 1, 2000"))*(MonthlyCapacities[Unit Category]=Dashboard!$B23),0))*INDEX(Profiles[],MATCH(1,(Profiles[Month]=MONTH(Month&" 1, 2000"))*(Profiles[Hour Ending]=INT(INDEX(_xlfn.TEXTSPLIT(Dashboard!G$3,," "),2))),0),MATCH(Dashboard!$B23,Profiles[#Headers],0)) -> 0 | H23: =INDEX(MonthlyCapacities[Total Capacity (MW)],MATCH(1,(MonthlyCapacities[Month]=MONTH(Month&" 1, 2000"))*(MonthlyCapacities[Unit Category]=Dashboard!$B23),0))*INDEX(Profiles[],MATCH(1,(Profiles[Month]=MONTH(Month&" 1, 2000"))*(Profiles[Hour Ending]=INT(INDEX(_xlfn.TEXTSPLIT(Dashboard!H$3,," "),2))),0),MATCH(Dashboard!$B23,Profiles[#Headers],0)) -> 0 | I23: =INDEX(MonthlyCapacities[Total Capacity (MW)],MATCH(1,(MonthlyCapacities[Month]=MONTH(Month&" 1, 2000"))*(MonthlyCapacities[Unit Category]=Dashboard!$B23),0))*INDEX(Profiles[],MATCH(1,(Profiles[Month]=MONTH(Month&" 1, 2000"))*(Profiles[Hour Ending]=INT(INDEX(_xlfn.TEXTSPLIT(Dashboard!I$3,," "),2))),0),MATCH(Dashboard!$B23,Profiles[#Headers],0)) -> 4.646844268 | J23: =INDEX(MonthlyCapacities[Total Capacity (MW)],MATCH(1,(MonthlyCapacities[Month]=MONTH(Month&" 1, 2000"))*(MonthlyCapacities[Unit Category]=Dashboard!$B23),0))*INDEX(Profiles[],MATCH(1,(Profiles[Month]=MONTH(Month&" 1, 2000"))*(Profiles[Hour Ending]=INT(INDEX(_xlfn.TEXTSPLIT(Dashboard!J$3,," "),2))),0),MATCH(Dashboard!$B23,Profiles[#Headers],0)) -> 1044.221774 | K23: =INDEX(MonthlyCapacities[Total Capacity (MW)],MATCH(1,(MonthlyCapacities[Month]=MONTH(Month&" 1, 2000"))*(MonthlyCapacities[Unit Category]=Dashboard!$B23),0))*INDEX(Profiles[],MATCH(1,(Profiles[Month]=MONTH(Month&" 1, 2000"))*(Profiles[Hour Ending]=INT(INDEX(_xlfn.TEXTSPLIT(Dashboard!K$3,," "),2))),0),MATCH(Dashboard!$B23,Profiles[#Headers],0)) -> 3825.402978 | L23: =INDEX(MonthlyCapacities[Total Capacity (MW)],MATCH(1,(MonthlyCapacities[Month]=MONTH(Month&" 1, 2000"))*(MonthlyCapacities[Unit Category]=Dashboard!$B23),0))*INDEX(Profiles[],MATCH(1,(Profiles[Month]=MONTH(Month&" 1, 2000"))*(Profiles[Hour Ending]=INT(INDEX(_xlfn.TEXTSPLIT(Dashboard!L$3,," "),2))),0),MATCH(Dashboard!$B23,Profiles[#Headers],0)) -> 4940.315348 | M23: =INDEX(MonthlyCapacities[Total Capacity (MW)],MATCH(1,(MonthlyCapacities[Month]=MONTH(Month&" 1, 2000"))*(MonthlyCapacities[Unit Category]=Dashboard!$B23),0))*INDEX(Profiles[],MATCH(1,(Profiles[Month]=MONTH(Month&" 1, 2000"))*(Profiles[Hour Ending]=INT(INDEX(_xlfn.TEXTSPLIT(Dashboard!M$3,," "),2))),0),MATCH(Dashboard!$B23,Profiles[#Headers],0)) -> 5134.504625 | N23: =INDEX(MonthlyCapacities[Total Capacity (MW)],MATCH(1,(MonthlyCapacities[Month]=MONTH(Month&" 1, 2000"))*(MonthlyCapacities[Unit Category]=Dashboard!$B23),0))*INDEX(Profiles[],MATCH(1,(Profiles[Month]=MONTH(Month&" 1, 2000"))*(Profiles[Hour Ending]=INT(INDEX(_xlfn.TEXTSPLIT(Dashboard!N$3,," "),2))),0),MATCH(Dashboard!$B23,Profiles[#Headers],0)) -> 5244.226026 | O23: =INDEX(MonthlyCapacities[Total Capacity (MW)],MATCH(1,(MonthlyCapacities[Month]=MONTH(Month&" 1, 2000"))*(MonthlyCapacities[Unit Category]=Dashboard!$B23),0))*INDEX(Profiles[],MATCH(1,(Profiles[Month]=MONTH(Month&" 1, 2000"))*(Profiles[Hour Ending]=INT(INDEX(_xlfn.TEXTSPLIT(Dashboard!O$3,," "),2))),0),MATCH(Dashboard!$B23,Profiles[#Headers],0)) -> 5179.405459 | P23: =INDEX(MonthlyCapacities[Total Capacity (MW)],MATCH(1,(MonthlyCapacities[Month]=MONTH(Month&" 1, 2000"))*(MonthlyCapacities[Unit Category]=Dashboard!$B23),0))*INDEX(Profiles[],MATCH(1,(Profiles[Month]=MONTH(Month&" 1, 2000"))*(Profiles[Hour Ending]=INT(INDEX(_xlfn.TEXTSPLIT(Dashboard!P$3,," "),2))),0),MATCH(Dashboard!$B23,Profiles[#Headers],0)) -> 4864.535856 | Q23: =INDEX(MonthlyCapacities[Total Capacity (MW)],MATCH(1,(MonthlyCapacities[Month]=MONTH(Month&" 1, 2000"))*(MonthlyCapacities[Unit Category]=Dashboard!$B23),0))*INDEX(Profiles[],MATCH(1,(Profiles[Month]=MONTH(Month&" 1, 2000"))*(Profiles[Hour Ending]=INT(INDEX(_xlfn.TEXTSPLIT(Dashboard!Q$3,," "),2))),0),MATCH(Dashboard!$B23,Profiles[#Headers],0)) -> 4501.929111 | R23: =INDEX(MonthlyCapacities[Total Capacity (MW)],MATCH(1,(MonthlyCapacities[Month]=MONTH(Month&" 1, 2000"))*(MonthlyCapacities[Unit Category]=Dashboard!$B23),0))*INDEX(Profiles[],MATCH(1,(Profiles[Month]=MONTH(Month&" 1, 2000"))*(Profiles[Hour Ending]=INT(INDEX(_xlfn.TEXTSPLIT(Dashboard!R$3,," "),2))),0),MATCH(Dashboard!$B23,Profiles[#Headers],0)) -> 2837.438625 | S23: =INDEX(MonthlyCapacities[Total Capacity (MW)],MATCH(1,(MonthlyCapacities[Month]=MONTH(Month&" 1, 2000"))*(MonthlyCapacities[Unit Category]=Dashboard!$B23),0))*INDEX(Profiles[],MATCH(1,(Profiles[Month]=MONTH(Month&" 1, 2000"))*(Profiles[Hour Ending]=INT(INDEX(_xlfn.TEXTSPLIT(Dashboard!S$3,," "),2))),0),MATCH(Dashboard!$B23,Profiles[#Headers],0)) -> 558.548007 | T23: =INDEX(MonthlyCapacities[Total Capacity (MW)],MATCH(1,(MonthlyCapacities[Month]=MONTH(Month&" 1, 2000"))*(MonthlyCapacities[Unit Category]=Dashboard!$B23),0))*INDEX(Profiles[],MATCH(1,(Profiles[Month]=MONTH(Month&" 1, 2000"))*(Profiles[Hour Ending]=INT(INDEX(_xlfn.TEXTSPLIT(Dashboard!T$3,," "),2))),0),MATCH(Dashboard!$B23,Profiles[#Headers],0)) -> 0.137617902 | U23: =INDEX(MonthlyCapacities[Total Capacity (MW)],MATCH(1,(MonthlyCapacities[Month]=MONTH(Month&" 1, 2000"))*(MonthlyCapacities[Unit Category]=Dashboard!$B23),0))*INDEX(Profiles[],MATCH(1,(Profiles[Month]=MONTH(Month&" 1, 2000"))*(Profiles[Hour Ending]=INT(INDEX(_xlfn.TEXTSPLIT(Dashboard!U$3,," "),2))),0),MATCH(Dashboard!$B23,Profiles[#Headers],0)) -> 0 | V23: =INDEX(MonthlyCapacities[Total Capacity (MW)],MATCH(1,(MonthlyCapacities[Month]=MONTH(Month&" 1, 2000"))*(MonthlyCapacities[Unit Category]=Dashboard!$B23),0))*INDEX(Profiles[],MATCH(1,(Profiles[Month]=MONTH(Month&" 1, 2000"))*(Profiles[Hour Ending]=INT(INDEX(_xlfn.TEXTSPLIT(Dashboard!V$3,," "),2))),0),MATCH(Dashboard!$B23,Profiles[#Headers],0)) -> 0 | W23: =INDEX(MonthlyCapacities[Total Capacity (MW)],MATCH(1,(MonthlyCapacities[Month]=MONTH(Month&" 1, 2000"))*(MonthlyCapacities[Unit Category]=Dashboard!$B23),0))*INDEX(Profiles[],MATCH(1,(Profiles[Month]=MONTH(Month&" 1, 2000"))*(Profiles[Hour Ending]=INT(INDEX(_xlfn.TEXTSPLIT(Dashboard!W$3,," "),2))),0),MATCH(Dashboard!$B23,Profiles[#Headers],0)) -> 0 | X23: =INDEX(MonthlyCapacities[Total Capacity (MW)],MATCH(1,(MonthlyCapacities[Month]=MONTH(Month&" 1, 2000"))*(MonthlyCapacities[Unit Category]=Dashboard!$B23),0))*INDEX(Profiles[],MATCH(1,(Profiles[Month]=MONTH(Month&" 1, 2000"))*(Profiles[Hour Ending]=INT(INDEX(_xlfn.TEXTSPLIT(Dashboard!X$3,," "),2))),0),MATCH(Dashboard!$B23,Profiles[#Headers],0)) -> 0 | Y23: =INDEX(MonthlyCapacities[Total Capacity (MW)],MATCH(1,(MonthlyCapacities[Month]=MONTH(Month&" 1, 2000"))*(MonthlyCapacities[Unit Category]=Dashboard!$B23),0))*INDEX(Profiles[],MATCH(1,(Profiles[Month]=MONTH(Month&" 1, 2000"))*(Profiles[Hour Ending]=INT(INDEX(_xlfn.TEXTSPLIT(Dashboard!Y$3,," "),2))),0),MATCH(Dashboard!$B23,Profiles[#Headers],0)) -> 0 | Z23: =INDEX(MonthlyCapacities[Total Capacity (MW)],MATCH(1,(MonthlyCapacities[Month]=MONTH(Month&" 1, 2000"))*(MonthlyCapacities[Unit Category]=Dashboard!$B23),0))*INDEX(Profiles[],MATCH(1,(Profiles[Month]=MONTH(Month&" 1, 2000"))*(Profiles[Hour Ending]=INT(INDEX(_xlfn.TEXTSPLIT(Dashboard!Z$3,," "),2))),0),MATCH(Dashboard!$B23,Profiles[#Headers],0)) -> 0
B24: Wind_Norcal | C24: =INDEX(Supply[Supply],MATCH(1,(Supply[Month]=MONTH(Month&" 1, 2000"))*(Supply[Unit Category]=Dashboard!$B24)*(Supply[Hour Ending]=INT(INDEX(_xlfn.TEXTSPLIT(Dashboard!C$3," "),2))),0)) -> 136.2240643 | D24: =INDEX(MonthlyCapacities[Total Capacity (MW)],MATCH(1,(MonthlyCapacities[Month]=MONTH(Month&" 1, 2000"))*(MonthlyCapacities[Unit Category]=Dashboard!$B24),0))*INDEX(Profiles[],MATCH(1,(Profiles[Month]=MONTH(Month&" 1, 2000"))*(Profiles[Hour Ending]=INT(INDEX(_xlfn.TEXTSPLIT(Dashboard!D$3,," "),2))),0),MATCH(Dashboard!$B24,Profiles[#Headers],0)) -> 146.908716 | E24: =INDEX(MonthlyCapacities[Total Capacity (MW)],MATCH(1,(MonthlyCapacities[Month]=MONTH(Month&" 1, 2000"))*(MonthlyCapacities[Unit Category]=Dashboard!$B24),0))*INDEX(Profiles[],MATCH(1,(Profiles[Month]=MONTH(Month&" 1, 2000"))*(Profiles[Hour Ending]=INT(INDEX(_xlfn.TEXTSPLIT(Dashboard!E$3,," "),2))),0),MATCH(Dashboard!$B24,Profiles[#Headers],0)) -> 121.2462948 | F24: =INDEX(MonthlyCapacities[Total Capacity (MW)],MATCH(1,(MonthlyCapacities[Month]=MONTH(Month&" 1, 2000"))*(MonthlyCapacities[Unit Category]=Dashboard!$B24),0))*INDEX(Profiles[],MATCH(1,(Profiles[Month]=MONTH(Month&" 1, 2000"))*(Profiles[Hour Ending]=INT(INDEX(_xlfn.TEXTSPLIT(Dashboard!F$3,," "),2))),0),MATCH(Dashboard!$B24,Profiles[#Headers],0)) -> 123.8464608 | G24: =INDEX(MonthlyCapacities[Total Capacity (MW)],MATCH(1,(MonthlyCapacities[Month]=MONTH(Month&" 1, 2000"))*(MonthlyCapacities[Unit Category]=Dashboard!$B24),0))*INDEX(Profiles[],MATCH(1,(Profiles[Month]=MONTH(Month&" 1, 2000"))*(Profiles[Hour Ending]=INT(INDEX(_xlfn.TEXTSPLIT(Dashboard!G$3,," "),2))),0),MATCH(Dashboard!$B24,Profiles[#Headers],0)) -> 120.1703128 | H24: =INDEX(MonthlyCapacities[Total Capacity (MW)],MATCH(1,(MonthlyCapacities[Month]=MONTH(Month&" 1, 2000"))*(MonthlyCapacities[Unit Category]=Dashboard!$B24),0))*INDEX(Profiles[],MATCH(1,(Profiles[Month]=MONTH(Month&" 1, 2000"))*(Profiles[Hour Ending]=INT(INDEX(_xlfn.TEXTSPLIT(Dashboard!H$3,," "),2))),0),MATCH(Dashboard!$B24,Profiles[#Headers],0)) -> 120.6139305 | I24: =INDEX(MonthlyCapacities[Total Capacity (MW)],MATCH(1,(MonthlyCapacities[Month]=MONTH(Month&" 1, 2000"))*(MonthlyCapacities[Unit Category]=Dashboard!$B24),0))*INDEX(Profiles[],MATCH(1,(Profiles[Month]=MONTH(Month&" 1, 2000"))*(Profiles[Hour Ending]=INT(INDEX(_xlfn.TEXTSPLIT(Dashboard!I$3,," "),2))),0),MATCH(Dashboard!$B24,Profiles[#Headers],0)) -> 124.2943286 | J24: =INDEX(MonthlyCapacities[Total Capacity (MW)],MATCH(1,(MonthlyCapacities[Month]=MONTH(Month&" 1, 2000"))*(MonthlyCapacities[Unit Category]=Dashboard!$B24),0))*INDEX(Profiles[],MATCH(1,(Profiles[Month]=MONTH(Month&" 1, 2000"))*(Profiles[Hour Ending]=INT(INDEX(_xlfn.TEXTSPLIT(Dashboard!J$3,," "),2))),0),MATCH(Dashboard!$B24,Profiles[#Headers],0)) -> 135.3994837 | K24: =INDEX(MonthlyCapacities[Total Capacity (MW)],MATCH(1,(MonthlyCapacities[Month]=MONTH(Month&" 1, 2000"))*(MonthlyCapacities[Unit Category]=Dashboard!$B24),0))*INDEX(Profiles[],MATCH(1,(Profiles[Month]=MONTH(Month&" 1, 2000"))*(Profiles[Hour Ending]=INT(INDEX(_xlfn.TEXTSPLIT(Dashboard!K$3,," "),2))),0),MATCH(Dashboard!$B24,Profiles[#Headers],0)) -> 122.5194924 | L24: =INDEX(MonthlyCapacities[Total Capacity (MW)],MATCH(1,(MonthlyCapacities[Month]=MONTH(Month&" 1, 2000"))*(MonthlyCapacities[Unit Category]=Dashboard!$B24),0))*INDEX(Profiles[],MATCH(1,(Profiles[Month]=MONTH(Month&" 1, 2000"))*(Profiles[Hour Ending]=INT(INDEX(_xlfn.TEXTSPLIT(Dashboard!L$3,," "),2))),0),MATCH(Dashboard!$B24,Profiles[#Headers],0)) -> 104.5659401 | M24: =INDEX(MonthlyCapacities[Total Capacity (MW)],MATCH(1,(MonthlyCapacities[Month]=MONTH(Month&" 1, 2000"))*(MonthlyCapacities[Unit Category]=Dashboard!$B24),0))*INDEX(Profiles[],MATCH(1,(Profiles[Month]=MONTH(Month&" 1, 2000"))*(Profiles[Hour Ending]=INT(INDEX(_xlfn.TEXTSPLIT(Dashboard!M$3,," "),2))),0),MATCH(Dashboard!$B24,Profiles[#Headers],0)) -> 106.9255693 | N24: =INDEX(MonthlyCapacities[Total Capacity (MW)],MATCH(1,(MonthlyCapacities[Month]=MONTH(Month&" 1, 2000"))*(MonthlyCapacities[Unit Category]=Dashboard!$B24),0))*INDEX(Profiles[],MATCH(1,(Profiles[Month]=MONTH(Month&" 1, 2000"))*(Profiles[Hour Ending]=INT(INDEX(_xlfn.TEXTSPLIT(Dashboard!N$3,," "),2))),0),MATCH(Dashboard!$B24,Profiles[#Headers],0)) -> 99.26724876 | O24: =INDEX(MonthlyCapacities[Total Capacity (MW)],MATCH(1,(MonthlyCapacities[Month]=MONTH(Month&" 1, 2000"))*(MonthlyCapacities[Unit Category]=Dashboard!$B24),0))*INDEX(Profiles[],MATCH(1,(Profiles[Month]=MONTH(Month&" 1, 2000"))*(Profiles[Hour Ending]=INT(INDEX(_xlfn.TEXTSPLIT(Dashboard!O$3,," "),2))),0),MATCH(Dashboard!$B24,Profiles[#Headers],0)) -> 96.76166696 | P24: =INDEX(MonthlyCapacities[Total Capacity (MW)],MATCH(1,(MonthlyCapacities[Month]=MONTH(Month&" 1, 2000"))*(MonthlyCapacities[Unit Category]=Dashboard!$B24),0))*INDEX(Profiles[],MATCH(1,(Profiles[Month]=MONTH(Month&" 1, 2000"))*(Profiles[Hour Ending]=INT(INDEX(_xlfn.TEXTSPLIT(Dashboard!P$3,," "),2))),0),MATCH(Dashboard!$B24,Profiles[#Headers],0)) -> 89.81182871 | Q24: =INDEX(MonthlyCapacities[Total Capacity (MW)],MATCH(1,(MonthlyCapacities[Month]=MONTH(Month&" 1, 2000"))*(MonthlyCapacities[Unit Category]=Dashboard!$B24),0))*INDEX(Profiles[],MATCH(1,(Profiles[Month]=MONTH(Month&" 1, 2000"))*(Profiles[Hour Ending]=INT(INDEX(_xlfn.TEXTSPLIT(Dashboard!Q$3,," "),2))),0),MATCH(Dashboard!$B24,Profiles[#Headers],0)) -> 81.05042168 | R24: =INDEX(MonthlyCapacities[Total Capacity (MW)],MATCH(1,(MonthlyCapacities[Month]=MONTH(Month&" 1, 2000"))*(MonthlyCapacities[Unit Category]=Dashboard!$B24),0))*INDEX(Profiles[],MATCH(1,(Profiles[Month]=MONTH(Month&" 1, 2000"))*(Profiles[Hour Ending]=INT(INDEX(_xlfn.TEXTSPLIT(Dashboard!R$3,," "),2))),0),MATCH(Dashboard!$B24,Profiles[#Headers],0)) -> 78.02758876 | S24: =INDEX(MonthlyCapacities[Total Capacity (MW)],MATCH(1,(MonthlyCapacities[Month]=MONTH(Month&" 1, 2000"))*(MonthlyCapacities[Unit Category]=Dashboard!$B24),0))*INDEX(Profiles[],MATCH(1,(Profiles[Month]=MONTH(Month&" 1, 2000"))*(Profiles[Hour Ending]=INT(INDEX(_xlfn.TEXTSPLIT(Dashboard!S$3,," "),2))),0),MATCH(Dashboard!$B24,Profiles[#Headers],0)) -> 81.98099283 | T24: =INDEX(MonthlyCapacities[Total Capacity (MW)],MATCH(1,(MonthlyCapacities[Month]=MONTH(Month&" 1, 2000"))*(MonthlyCapacities[Unit Category]=Dashboard!$B24),0))*INDEX(Profiles[],MATCH(1,(Profiles[Month]=MONTH(Month&" 1, 2000"))*(Profiles[Hour Ending]=INT(INDEX(_xlfn.TEXTSPLIT(Dashboard!T$3,," "),2))),0),MATCH(Dashboard!$B24,Profiles[#Headers],0)) -> 91.2840904 | U24: =INDEX(MonthlyCapacities[Total Capacity (MW)],MATCH(1,(MonthlyCapacities[Month]=MONTH(Month&" 1, 2000"))*(MonthlyCapacities[Unit Category]=Dashboard!$B24),0))*INDEX(Profiles[],MATCH(1,(Profiles[Month]=MONTH(Month&" 1, 2000"))*(Profiles[Hour Ending]=INT(INDEX(_xlfn.TEXTSPLIT(Dashboard!U$3,," "),2))),0),MATCH(Dashboard!$B24,Profiles[#Headers],0)) -> 111.0653852 | V24: =INDEX(MonthlyCapacities[Total Capacity (MW)],MATCH(1,(MonthlyCapacities[Month]=MONTH(Month&" 1, 2000"))*(MonthlyCapacities[Unit Category]=Dashboard!$B24),0))*INDEX(Profiles[],MATCH(1,(Profiles[Month]=MONTH(Month&" 1, 2000"))*(Profiles[Hour Ending]=INT(INDEX(_xlfn.TEXTSPLIT(Dashboard!V$3,," "),2))),0),MATCH(Dashboard!$B24,Profiles[#Headers],0)) -> 136.2187934 | W24: =INDEX(MonthlyCapacities[Total Capacity (MW)],MATCH(1,(MonthlyCapacities[Month]=MONTH(Month&" 1, 2000"))*(MonthlyCapacities[Unit Category]=Dashboard!$B24),0))*INDEX(Profiles[],MATCH(1,(Profiles[Month]=MONTH(Month&" 1, 2000"))*(Profiles[Hour Ending]=INT(INDEX(_xlfn.TEXTSPLIT(Dashboard!W$3,," "),2))),0),MATCH(Dashboard!$B24,Profiles[#Headers],0)) -> 140.575859 | X24: =INDEX(MonthlyCapacities[Total Capacity (MW)],MATCH(1,(MonthlyCapacities[Month]=MONTH(Month&" 1, 2000"))*(MonthlyCapacities[Unit Category]=Dashboard!$B24),0))*INDEX(Profiles[],MATCH(1,(Profiles[Month]=MONTH(Month&" 1, 2000"))*(Profiles[Hour Ending]=INT(INDEX(_xlfn.TEXTSPLIT(Dashboard!X$3,," "),2))),0),MATCH(Dashboard!$B24,Profiles[#Headers],0)) -> 149.0510946 | Y24: =INDEX(MonthlyCapacities[Total Capacity (MW)],MATCH(1,(MonthlyCapacities[Month]=MONTH(Month&" 1, 2000"))*(MonthlyCapacities[Unit Category]=Dashboard!$B24),0))*INDEX(Profiles[],MATCH(1,(Profiles[Month]=MONTH(Month&" 1, 2000"))*(Profiles[Hour Ending]=INT(INDEX(_xlfn.TEXTSPLIT(Dashboard!Y$3,," "),2))),0),MATCH(Dashboard!$B24,Profiles[#Headers],0)) -> 142.8196162 | Z24: =INDEX(MonthlyCapacities[Total Capacity (MW)],MATCH(1,(MonthlyCapacities[Month]=MONTH(Month&" 1, 2000"))*(MonthlyCapacities[Unit Category]=Dashboard!$B24),0))*INDEX(Profiles[],MATCH(1,(Profiles[Month]=MONTH(Month&" 1, 2000"))*(Profiles[Hour Ending]=INT(INDEX(_xlfn.TEXTSPLIT(Dashboard!Z$3,," "),2))),0),MATCH(Dashboard!$B24,Profiles[#Headers],0)) -> 141.5204091
B25: Wind_Socal | C25: =INDEX(Supply[Supply],MATCH(1,(Supply[Month]=MONTH(Month&" 1, 2000"))*(Supply[Unit Category]=Dashboard!$B25)*(Supply[Hour Ending]=INT(INDEX(_xlfn.TEXTSPLIT(Dashboard!C$3," "),2))),0)) -> 431.1543793 | D25: =INDEX(MonthlyCapacities[Total Capacity (MW)],MATCH(1,(MonthlyCapacities[Month]=MONTH(Month&" 1, 2000"))*(MonthlyCapacities[Unit Category]=Dashboard!$B25),0))*INDEX(Profiles[],MATCH(1,(Profiles[Month]=MONTH(Month&" 1, 2000"))*(Profiles[Hour Ending]=INT(INDEX(_xlfn.TEXTSPLIT(Dashboard!D$3,," "),2))),0),MATCH(Dashboard!$B25,Profiles[#Headers],0)) -> 448.0316903 | E25: =INDEX(MonthlyCapacities[Total Capacity (MW)],MATCH(1,(MonthlyCapacities[Month]=MONTH(Month&" 1, 2000"))*(MonthlyCapacities[Unit Category]=Dashboard!$B25),0))*INDEX(Profiles[],MATCH(1,(Profiles[Month]=MONTH(Month&" 1, 2000"))*(Profiles[Hour Ending]=INT(INDEX(_xlfn.TEXTSPLIT(Dashboard!E$3,," "),2))),0),MATCH(Dashboard!$B25,Profiles[#Headers],0)) -> 511.9209246 | F25: =INDEX(MonthlyCapacities[Total Capacity (MW)],MATCH(1,(MonthlyCapacities[Month]=MONTH(Month&" 1, 2000"))*(MonthlyCapacities[Unit Category]=Dashboard!$B25),0))*INDEX(Profiles[],MATCH(1,(Profiles[Month]=MONTH(Month&" 1, 2000"))*(Profiles[Hour Ending]=INT(INDEX(_xlfn.TEXTSPLIT(Dashboard!F$3,," "),2))),0),MATCH(Dashboard!$B25,Profiles[#Headers],0)) -> 481.8029972 | G25: =INDEX(MonthlyCapacities[Total Capacity (MW)],MATCH(1,(MonthlyCapacities[Month]=MONTH(Month&" 1, 2000"))*(MonthlyCapacities[Unit Category]=Dashboard!$B25),0))*INDEX(Profiles[],MATCH(1,(Profiles[Month]=MONTH(Month&" 1, 2000"))*(Profiles[Hour Ending]=INT(INDEX(_xlfn.TEXTSPLIT(Dashboard!G$3,," "),2))),0),MATCH(Dashboard!$B25,Profiles[#Headers],0)) -> 477.1155139 | H25: =INDEX(MonthlyCapacities[Total Capacity (MW)],MATCH(1,(MonthlyCapacities[Month]=MONTH(Month&" 1, 2000"))*(MonthlyCapacities[Unit Category]=Dashboard!$B25),0))*INDEX(Profiles[],MATCH(1,(Profiles[Month]=MONTH(Month&" 1, 2000"))*(Profiles[Hour Ending]=INT(INDEX(_xlfn.TEXTSPLIT(Dashboard!H$3,," "),2))),0),MATCH(Dashboard!$B25,Profiles[#Headers],0)) -> 444.2709126 | I25: =INDEX(MonthlyCapacities[Total Capacity (MW)],MATCH(1,(MonthlyCapacities[Month]=MONTH(Month&" 1, 2000"))*(MonthlyCapacities[Unit Category]=Dashboard!$B25),0))*INDEX(Profiles[],MATCH(1,(Profiles[Month]=MONTH(Month&" 1, 2000"))*(Profiles[Hour Ending]=INT(INDEX(_xlfn.TEXTSPLIT(Dashboard!I$3,," "),2))),0),MATCH(Dashboard!$B25,Profiles[#Headers],0)) -> 363.3341041 | J25: =INDEX(MonthlyCapacities[Total Capacity (MW)],MATCH(1,(MonthlyCapacities[Month]=MONTH(Month&" 1, 2000"))*(MonthlyCapacities[Unit Category]=Dashboard!$B25),0))*INDEX(Profiles[],MATCH(1,(Profiles[Month]=MONTH(Month&" 1, 2000"))*(Profiles[Hour Ending]=INT(INDEX(_xlfn.TEXTSPLIT(Dashboard!J$3,," "),2))),0),MATCH(Dashboard!$B25,Profiles[#Headers],0)) -> 313.9166844 | K25: =INDEX(MonthlyCapacities[Total Capacity (MW)],MATCH(1,(MonthlyCapacities[Month]=MONTH(Month&" 1, 2000"))*(MonthlyCapacities[Unit Category]=Dashboard!$B25),0))*INDEX(Profiles[],MATCH(1,(Profiles[Month]=MONTH(Month&" 1, 2000"))*(Profiles[Hour Ending]=INT(INDEX(_xlfn.TEXTSPLIT(Dashboard!K$3,," "),2))),0),MATCH(Dashboard!$B25,Profiles[#Headers],0)) -> 330.8036237 | L25: =INDEX(MonthlyCapacities[Total Capacity (MW)],MATCH(1,(MonthlyCapacities[Month]=MONTH(Month&" 1, 2000"))*(MonthlyCapacities[Unit Category]=Dashboard!$B25),0))*INDEX(Profiles[],MATCH(1,(Profiles[Month]=MONTH(Month&" 1, 2000"))*(Profiles[Hour Ending]=INT(INDEX(_xlfn.TEXTSPLIT(Dashboard!L$3,," "),2))),0),MATCH(Dashboard!$B25,Profiles[#Headers],0)) -> 331.1929048 | M25: =INDEX(MonthlyCapacities[Total Capacity (MW)],MATCH(1,(MonthlyCapacities[Month]=MONTH(Month&" 1, 2000"))*(MonthlyCapacities[Unit Category]=Dashboard!$B25),0))*INDEX(Profiles[],MATCH(1,(Profiles[Month]=MONTH(Month&" 1, 2000"))*(Profiles[Hour Ending]=INT(INDEX(_xlfn.TEXTSPLIT(Dashboard!M$3,," "),2))),0),MATCH(Dashboard!$B25,Profiles[#Headers],0)) -> 328.003863 | N25: =INDEX(MonthlyCapacities[Total Capacity (MW)],MATCH(1,(MonthlyCapacities[Month]=MONTH(Month&" 1, 2000"))*(MonthlyCapacities[Unit Category]=Dashboard!$B25),0))*INDEX(Profiles[],MATCH(1,(Profiles[Month]=MONTH(Month&" 1, 2000"))*(Profiles[Hour Ending]=INT(INDEX(_xlfn.TEXTSPLIT(Dashboard!N$3,," "),2))),0),MATCH(Dashboard!$B25,Profiles[#Headers],0)) -> 343.3592702 | O25: =INDEX(MonthlyCapacities[Total Capacity (MW)],MATCH(1,(MonthlyCapacities[Month]=MONTH(Month&" 1, 2000"))*(MonthlyCapacities[Unit Category]=Dashboard!$B25),0))*INDEX(Profiles[],MATCH(1,(Profiles[Month]=MONTH(Month&" 1, 2000"))*(Profiles[Hour Ending]=INT(INDEX(_xlfn.TEXTSPLIT(Dashboard!O$3,," "),2))),0),MATCH(Dashboard!$B25,Profiles[#Headers],0)) -> 379.8539016 | P25: =INDEX(MonthlyCapacities[Total Capacity (MW)],MATCH(1,(MonthlyCapacities[Month]=MONTH(Month&" 1, 2000"))*(MonthlyCapacities[Unit Category]=Dashboard!$B25),0))*INDEX(Profiles[],MATCH(1,(Profiles[Month]=MONTH(Month&" 1, 2000"))*(Profiles[Hour Ending]=INT(INDEX(_xlfn.TEXTSPLIT(Dashboard!P$3,," "),2))),0),MATCH(Dashboard!$B25,Profiles[#Headers],0)) -> 435.2441366 | Q25: =INDEX(MonthlyCapacities[Total Capacity (MW)],MATCH(1,(MonthlyCapacities[Month]=MONTH(Month&" 1, 2000"))*(MonthlyCapacities[Unit Category]=Dashboard!$B25),0))*INDEX(Profiles[],MATCH(1,(Profiles[Month]=MONTH(Month&" 1, 2000"))*(Profiles[Hour Ending]=INT(INDEX(_xlfn.TEXTSPLIT(Dashboard!Q$3,," "),2))),0),MATCH(Dashboard!$B25,Profiles[#Headers],0)) -> 433.4077867 | R25: =INDEX(MonthlyCapacities[Total Capacity (MW)],MATCH(1,(MonthlyCapacities[Month]=MONTH(Month&" 1, 2000"))*(MonthlyCapacities[Unit Category]=Dashboard!$B25),0))*INDEX(Profiles[],MATCH(1,(Profiles[Month]=MONTH(Month&" 1, 2000"))*(Profiles[Hour Ending]=INT(INDEX(_xlfn.TEXTSPLIT(Dashboard!R$3,," "),2))),0),MATCH(Dashboard!$B25,Profiles[#Headers],0)) -> 474.0744566 | S25: =INDEX(MonthlyCapacities[Total Capacity (MW)],MATCH(1,(MonthlyCapacities[Month]=MONTH(Month&" 1, 2000"))*(MonthlyCapacities[Unit Category]=Dashboard!$B25),0))*INDEX(Profiles[],MATCH(1,(Profiles[Month]=MONTH(Month&" 1, 2000"))*(Profiles[Hour Ending]=INT(INDEX(_xlfn.TEXTSPLIT(Dashboard!S$3,," "),2))),0),MATCH(Dashboard!$B25,Profiles[#Headers],0)) -> 416.3194156 | T25: =INDEX(MonthlyCapacities[Total Capacity (MW)],MATCH(1,(MonthlyCapacities[Month]=MONTH(Month&" 1, 2000"))*(MonthlyCapacities[Unit Category]=Dashboard!$B25),0))*INDEX(Profiles[],MATCH(1,(Profiles[Month]=MONTH(Month&" 1, 2000"))*(Profiles[Hour Ending]=INT(INDEX(_xlfn.TEXTSPLIT(Dashboard!T$3,," "),2))),0),MATCH(Dashboard!$B25,Profiles[#Headers],0)) -> 416.0007956 | U25: =INDEX(MonthlyCapacities[Total Capacity (MW)],MATCH(1,(MonthlyCapacities[Month]=MONTH(Month&" 1, 2000"))*(MonthlyCapacities[Unit Category]=Dashboard!$B25),0))*INDEX(Profiles[],MATCH(1,(Profiles[Month]=MONTH(Month&" 1, 2000"))*(Profiles[Hour Ending]=INT(INDEX(_xlfn.TEXTSPLIT(Dashboard!U$3,," "),2))),0),MATCH(Dashboard!$B25,Profiles[#Headers],0)) -> 390.1544754 | V25: =INDEX(MonthlyCapacities[Total Capacity (MW)],MATCH(1,(MonthlyCapacities[Month]=MONTH(Month&" 1, 2000"))*(MonthlyCapacities[Unit Category]=Dashboard!$B25),0))*INDEX(Profiles[],MATCH(1,(Profiles[Month]=MONTH(Month&" 1, 2000"))*(Profiles[Hour Ending]=INT(INDEX(_xlfn.TEXTSPLIT(Dashboard!V$3,," "),2))),0),MATCH(Dashboard!$B25,Profiles[#Headers],0)) -> 395.8430137 | W25: =INDEX(MonthlyCapacities[Total Capacity (MW)],MATCH(1,(MonthlyCapacities[Month]=MONTH(Month&" 1, 2000"))*(MonthlyCapacities[Unit Category]=Dashboard!$B25),0))*INDEX(Profiles[],MATCH(1,(Profiles[Month]=MONTH(Month&" 1, 2000"))*(Profiles[Hour Ending]=INT(INDEX(_xlfn.TEXTSPLIT(Dashboard!W$3,," "),2))),0),MATCH(Dashboard!$B25,Profiles[#Headers],0)) -> 380.4043137 | X25: =INDEX(MonthlyCapacities[Total Capacity (MW)],MATCH(1,(MonthlyCapacities[Month]=MONTH(Month&" 1, 2000"))*(MonthlyCapacities[Unit Category]=Dashboard!$B25),0))*INDEX(Profiles[],MATCH(1,(Profiles[Month]=MONTH(Month&" 1, 2000"))*(Profiles[Hour Ending]=INT(INDEX(_xlfn.TEXTSPLIT(Dashboard!X$3,," "),2))),0),MATCH(Dashboard!$B25,Profiles[#Headers],0)) -> 372.8957448 | Y25: =INDEX(MonthlyCapacities[Total Capacity (MW)],MATCH(1,(MonthlyCapacities[Month]=MONTH(Month&" 1, 2000"))*(MonthlyCapacities[Unit Category]=Dashboard!$B25),0))*INDEX(Profiles[],MATCH(1,(Profiles[Month]=MONTH(Month&" 1, 2000"))*(Profiles[Hour Ending]=INT(INDEX(_xlfn.TEXTSPLIT(Dashboard!Y$3,," "),2))),0),MATCH(Dashboard!$B25,Profiles[#Headers],0)) -> 387.6811148 | Z25: =INDEX(MonthlyCapacities[Total Capacity (MW)],MATCH(1,(MonthlyCapacities[Month]=MONTH(Month&" 1, 2000"))*(MonthlyCapacities[Unit Category]=Dashboard!$B25),0))*INDEX(Profiles[],MATCH(1,(Profiles[Month]=MONTH(Month&" 1, 2000"))*(Profiles[Hour Ending]=INT(INDEX(_xlfn.TEXTSPLIT(Dashboard!Z$3,," "),2))),0),MATCH(Dashboard!$B25,Profiles[#Headers],0)) -> 370.0273695
B26: Total Supply With Storage (MW) | C26: =SUM(C4:C25) -> 41444.46356 | D26: =SUM(D4:D25) -> 40084.86147 | E26: 40104.89526 | F26: 40077.37697 | G26: 40069.0129 | H26: 40684.86239 | I26: 43903.26733 | J26: 45794.47023 | K26: 46102.94191 | L26: 48837.90583 | M26: 49786.80201 | N26: 50260.78771 | O26: 50115.62461 | P26: 49586.52382 | Q26: 48686.40538 | R26: 45562.81317 | S26: 44769.66865 | T26: 47251.27246 | U26: 47828.47334 | V26: 47758.87324 | W26: 46870.87188 | X26: 45825.67027 | Y26: 44210.4678 | Z26: 42901.26579
B27: Total Supply Without Storage (MW) | C27: =SUM(C4:C16,C18:C25) -> 40039.10893 | D27: =SUM(D4:D16,D18:D25) -> 40066.66931 | E27: 40104.89526 | F27: 40077.37697 | G27: 40069.0129 | H27: 40036.61401 | I27: 39968.32347 | J27: 41449.89654 | K27: 46102.94191 | L27: 48837.90583 | M27: 49786.80201 | N27: 50260.78771 | O27: 50115.62461 | P27: 49586.52382 | Q27: 48686.40538 | R27: 45562.81317 | S27: 42688.04878 | T27: 41419.03787 | U27: 41057.20431 | V27: 41064.98824 | W27: 40941.55078 | X27: 39993.68794 | Y27: 40002.23773 | Z27: 39983.28045
B28: Managed Load | C28: =INDEX(ManagedLoad[Managed Load (MW)],MATCH(1,(ManagedLoad[Month]=MONTH(Month&" 1, 2000"))*(ManagedLoad[Hour Ending]=INT(INDEX(_xlfn.TEXTSPLIT(Dashboard!C$3," "),2))),0)) -> 24683 | D28: =INDEX(ManagedLoad[Managed Load (MW)],MATCH(1,(ManagedLoad[Month]=MONTH(Month&" 1, 2000"))*(ManagedLoad[Hour Ending]=INT(INDEX(_xlfn.TEXTSPLIT(Dashboard!D$3," "),2))),0)) -> 23550 | E28: =INDEX(ManagedLoad[Managed Load (MW)],MATCH(1,(ManagedLoad[Month]=MONTH(Month&" 1, 2000"))*(ManagedLoad[Hour Ending]=INT(INDEX(_xlfn.TEXTSPLIT(Dashboard!E$3," "),2))),0)) -> 22558 | F28: =INDEX(ManagedLoad[Managed Load (MW)],MATCH(1,(ManagedLoad[Month]=MONTH(Month&" 1, 2000"))*(ManagedLoad[Hour Ending]=INT(INDEX(_xlfn.TEXTSPLIT(Dashboard!F$3," "),2))),0)) -> 22098 | G28: =INDEX(ManagedLoad[Managed Load (MW)],MATCH(1,(ManagedLoad[Month]=MONTH(Month&" 1, 2000"))*(ManagedLoad[Hour Ending]=INT(INDEX(_xlfn.TEXTSPLIT(Dashboard!G$3," "),2))),0)) -> 22545 | H28: =INDEX(ManagedLoad[Managed Load (MW)],MATCH(1,(ManagedLoad[Month]=MONTH(Month&" 1, 2000"))*(ManagedLoad[Hour Ending]=INT(INDEX(_xlfn.TEXTSPLIT(Dashboard!H$3," "),2))),0)) -> 24050 | I28: =INDEX(ManagedLoad[Managed Load (MW)],MATCH(1,(ManagedLoad[Month]=MONTH(Month&" 1, 2000"))*(ManagedLoad[Hour Ending]=INT(INDEX(_xlfn.TEXTSPLIT(Dashboard!I$3," "),2))),0)) -> 26732 | J28: =INDEX(ManagedLoad[Managed Load (MW)],MATCH(1,(ManagedLoad[Month]=MONTH(Month&" 1, 2000"))*(ManagedLoad[Hour Ending]=INT(INDEX(_xlfn.TEXTSPLIT(Dashboard!J$3," "),2))),0)) -> 28308 | K28: =INDEX(ManagedLoad[Managed Load (MW)],MATCH(1,(ManagedLoad[Month]=MONTH(Month&" 1, 2000"))*(ManagedLoad[Hour Ending]=INT(INDEX(_xlfn.TEXTSPLIT(Dashboard!K$3," "),2))),0)) -> 28044 | L28: =INDEX(ManagedLoad[Managed Load (MW)],MATCH(1,(ManagedLoad[Month]=MONTH(Month&" 1, 2000"))*(ManagedLoad[Hour Ending]=INT(INDEX(_xlfn.TEXTSPLIT(Dashboard!L$3," "),2))),0)) -> 26610 | M28: =INDEX(ManagedLoad[Managed Load (MW)],MATCH(1,(ManagedLoad[Month]=MONTH(Month&" 1, 2000"))*(ManagedLoad[Hour Ending]=INT(INDEX(_xlfn.TEXTSPLIT(Dashboard!M$3," "),2))),0)) -> 25032 | N28: =INDEX(ManagedLoad[Managed Load (MW)],MATCH(1,(ManagedLoad[Month]=MONTH(Month&" 1, 2000"))*(ManagedLoad[Hour Ending]=INT(INDEX(_xlfn.TEXTSPLIT(Dashboard!N$3," "),2))),0)) -> 23435 | O28: =INDEX(ManagedLoad[Managed Load (MW)],MATCH(1,(ManagedLoad[Month]=MONTH(Month&" 1, 2000"))*(ManagedLoad[Hour Ending]=INT(INDEX(_xlfn.TEXTSPLIT(Dashboard!O$3," "),2))),0)) -> 22983 | P28: =INDEX(ManagedLoad[Managed Load (MW)],MATCH(1,(ManagedLoad[Month]=MONTH(Month&" 1, 2000"))*(ManagedLoad[Hour Ending]=INT(INDEX(_xlfn.TEXTSPLIT(Dashboard!P$3," "),2))),0)) -> 23205 | Q28: =INDEX(ManagedLoad[Managed Load (MW)],MATCH(1,(ManagedLoad[Month]=MONTH(Month&" 1, 2000"))*(ManagedLoad[Hour Ending]=INT(INDEX(_xlfn.TEXTSPLIT(Dashboard!Q$3," "),2))),0)) -> 24106 | R28: =INDEX(ManagedLoad[Managed Load (MW)],MATCH(1,(ManagedLoad[Month]=MONTH(Month&" 1, 2000"))*(ManagedLoad[Hour Ending]=INT(INDEX(_xlfn.TEXTSPLIT(Dashboard!R$3," "),2))),0)) -> 25690 | S28: =INDEX(ManagedLoad[Managed Load (MW)],MATCH(1,(ManagedLoad[Month]=MONTH(Month&" 1, 2000"))*(ManagedLoad[Hour Ending]=INT(INDEX(_xlfn.TEXTSPLIT(Dashboard!S$3," "),2))),0)) -> 27454 | T28: =INDEX(ManagedLoad[Managed Load (MW)],MATCH(1,(ManagedLoad[Month]=MONTH(Month&" 1, 2000"))*(ManagedLoad[Hour Ending]=INT(INDEX(_xlfn.TEXTSPLIT(Dashboard!T$3," "),2))),0)) -> 29522 | U28: =INDEX(ManagedLoad[Managed Load (MW)],MATCH(1,(ManagedLoad[Month]=MONTH(Month&" 1, 2000"))*(ManagedLoad[Hour Ending]=INT(INDEX(_xlfn.TEXTSPLIT(Dashboard!U$3," "),2))),0)) -> 30003 | V28: =INDEX(ManagedLoad[Managed Load (MW)],MATCH(1,(ManagedLoad[Month]=MONTH(Month&" 1, 2000"))*(ManagedLoad[Hour Ending]=INT(INDEX(_xlfn.TEXTSPLIT(Dashboard!V$3," "),2))),0)) -> 29945 | W28: =INDEX(ManagedLoad[Managed Load (MW)],MATCH(1,(ManagedLoad[Month]=MONTH(Month&" 1, 2000"))*(ManagedLoad[Hour Ending]=INT(INDEX(_xlfn.TEXTSPLIT(Dashboard!W$3," "),2))),0)) -> 29205 | X28: =INDEX(ManagedLoad[Managed Load (MW)],MATCH(1,(ManagedLoad[Month]=MONTH(Month&" 1, 2000"))*(ManagedLoad[Hour Ending]=INT(INDEX(_xlfn.TEXTSPLIT(Dashboard!X$3," "),2))),0)) -> 28334 | Y28: =INDEX(ManagedLoad[Managed Load (MW)],MATCH(1,(ManagedLoad[Month]=MONTH(Month&" 1, 2000"))*(ManagedLoad[Hour Ending]=INT(INDEX(_xlfn.TEXTSPLIT(Dashboard!Y$3," "),2))),0)) -> 26988 | Z28: =INDEX(ManagedLoad[Managed Load (MW)],MATCH(1,(ManagedLoad[Month]=MONTH(Month&" 1, 2000"))*(ManagedLoad[Hour Ending]=INT(INDEX(_xlfn.TEXTSPLIT(Dashboard!Z$3," "),2))),0)) -> 25897
B29: NOU | C29: =INDEX(ManagedLoad[NOU (MW)],MATCH(1,(ManagedLoad[Month]=MONTH(Month&" 1, 2000"))*(ManagedLoad[Hour Ending]=INT(INDEX(_xlfn.TEXTSPLIT(Dashboard!C$3," "),2))),0)) -> 9854 | D29: =INDEX(ManagedLoad[NOU (MW)],MATCH(1,(ManagedLoad[Month]=MONTH(Month&" 1, 2000"))*(ManagedLoad[Hour Ending]=INT(INDEX(_xlfn.TEXTSPLIT(Dashboard!D$3," "),2))),0)) -> 9854 | E29: =INDEX(ManagedLoad[NOU (MW)],MATCH(1,(ManagedLoad[Month]=MONTH(Month&" 1, 2000"))*(ManagedLoad[Hour Ending]=INT(INDEX(_xlfn.TEXTSPLIT(Dashboard!E$3," "),2))),0)) -> 9854 | F29: =INDEX(ManagedLoad[NOU (MW)],MATCH(1,(ManagedLoad[Month]=MONTH(Month&" 1, 2000"))*(ManagedLoad[Hour Ending]=INT(INDEX(_xlfn.TEXTSPLIT(Dashboard!F$3," "),2))),0)) -> 9854 | G29: =INDEX(ManagedLoad[NOU (MW)],MATCH(1,(ManagedLoad[Month]=MONTH(Month&" 1, 2000"))*(ManagedLoad[Hour Ending]=INT(INDEX(_xlfn.TEXTSPLIT(Dashboard!G$3," "),2))),0)) -> 9854 | H29: =INDEX(ManagedLoad[NOU (MW)],MATCH(1,(ManagedLoad[Month]=MONTH(Month&" 1, 2000"))*(ManagedLoad[Hour Ending]=INT(INDEX(_xlfn.TEXTSPLIT(Dashboard!H$3," "),2))),0)) -> 9854 | I29: =INDEX(ManagedLoad[NOU (MW)],MATCH(1,(ManagedLoad[Month]=MONTH(Month&" 1, 2000"))*(ManagedLoad[Hour Ending]=INT(INDEX(_xlfn.TEXTSPLIT(Dashboard!I$3," "),2))),0)) -> 9854 | J29: =INDEX(ManagedLoad[NOU (MW)],MATCH(1,(ManagedLoad[Month]=MONTH(Month&" 1, 2000"))*(ManagedLoad[Hour Ending]=INT(INDEX(_xlfn.TEXTSPLIT(Dashboard!J$3," "),2))),0)) -> 9854 | K29: =INDEX(ManagedLoad[NOU (MW)],MATCH(1,(ManagedLoad[Month]=MONTH(Month&" 1, 2000"))*(ManagedLoad[Hour Ending]=INT(INDEX(_xlfn.TEXTSPLIT(Dashboard!K$3," "),2))),0)) -> 9854 | L29: =INDEX(ManagedLoad[NOU (MW)],MATCH(1,(ManagedLoad[Month]=MONTH(Month&" 1, 2000"))*(ManagedLoad[Hour Ending]=INT(INDEX(_xlfn.TEXTSPLIT(Dashboard!L$3," "),2))),0)) -> 9854 | M29: =INDEX(ManagedLoad[NOU (MW)],MATCH(1,(ManagedLoad[Month]=MONTH(Month&" 1, 2000"))*(ManagedLoad[Hour Ending]=INT(INDEX(_xlfn.TEXTSPLIT(Dashboard!M$3," "),2))),0)) -> 9854 | N29: =INDEX(ManagedLoad[NOU (MW)],MATCH(1,(ManagedLoad[Month]=MONTH(Month&" 1, 2000"))*(ManagedLoad[Hour Ending]=INT(INDEX(_xlfn.TEXTSPLIT(Dashboard!N$3," "),2))),0)) -> 9854 | O29: =INDEX(ManagedLoad[NOU (MW)],MATCH(1,(ManagedLoad[Month]=MONTH(Month&" 1, 2000"))*(ManagedLoad[Hour Ending]=INT(INDEX(_xlfn.TEXTSPLIT(Dashboard!O$3," "),2))),0)) -> 9854 | P29: =INDEX(ManagedLoad[NOU (MW)],MATCH(1,(ManagedLoad[Month]=MONTH(Month&" 1, 2000"))*(ManagedLoad[Hour Ending]=INT(INDEX(_xlfn.TEXTSPLIT(Dashboard!P$3," "),2))),0)) -> 9854 | Q29: =INDEX(ManagedLoad[NOU (MW)],MATCH(1,(ManagedLoad[Month]=MONTH(Month&" 1, 2000"))*(ManagedLoad[Hour Ending]=INT(INDEX(_xlfn.TEXTSPLIT(Dashboard!Q$3," "),2))),0)) -> 9854 | R29: =INDEX(ManagedLoad[NOU (MW)],MATCH(1,(ManagedLoad[Month]=MONTH(Month&" 1, 2000"))*(ManagedLoad[Hour Ending]=INT(INDEX(_xlfn.TEXTSPLIT(Dashboard!R$3," "),2))),0)) -> 9854 | S29: =INDEX(ManagedLoad[NOU (MW)],MATCH(1,(ManagedLoad[Month]=MONTH(Month&" 1, 2000"))*(ManagedLoad[Hour Ending]=INT(INDEX(_xlfn.TEXTSPLIT(Dashboard!S$3," "),2))),0)) -> 9854 | T29: =INDEX(ManagedLoad[NOU (MW)],MATCH(1,(ManagedLoad[Month]=MONTH(Month&" 1, 2000"))*(ManagedLoad[Hour Ending]=INT(INDEX(_xlfn.TEXTSPLIT(Dashboard!T$3," "),2))),0)) -> 9854 | U29: =INDEX(ManagedLoad[NOU (MW)],MATCH(1,(ManagedLoad[Month]=MONTH(Month&" 1, 2000"))*(ManagedLoad[Hour Ending]=INT(INDEX(_xlfn.TEXTSPLIT(Dashboard!U$3," "),2))),0)) -> 9854 | V29: =INDEX(ManagedLoad[NOU (MW)],MATCH(1,(ManagedLoad[Month]=MONTH(Month&" 1, 2000"))*(ManagedLoad[Hour Ending]=INT(INDEX(_xlfn.TEXTSPLIT(Dashboard!V$3," "),2))),0)) -> 9854 | W29: =INDEX(ManagedLoad[NOU (MW)],MATCH(1,(ManagedLoad[Month]=MONTH(Month&" 1, 2000"))*(ManagedLoad[Hour Ending]=INT(INDEX(_xlfn.TEXTSPLIT(Dashboard!W$3," "),2))),0)) -> 9854 | X29: =INDEX(ManagedLoad[NOU (MW)],MATCH(1,(ManagedLoad[Month]=MONTH(Month&" 1, 2000"))*(ManagedLoad[Hour Ending]=INT(INDEX(_xlfn.TEXTSPLIT(Dashboard!X$3," "),2))),0)) -> 9854 | Y29: =INDEX(ManagedLoad[NOU (MW)],MATCH(1,(ManagedLoad[Month]=MONTH(Month&" 1, 2000"))*(ManagedLoad[Hour Ending]=INT(INDEX(_xlfn.TEXTSPLIT(Dashboard!Y$3," "),2))),0)) -> 9854 | Z29: =INDEX(ManagedLoad[NOU (MW)],MATCH(1,(ManagedLoad[Month]=MONTH(Month&" 1, 2000"))*(ManagedLoad[Hour Ending]=INT(INDEX(_xlfn.TEXTSPLIT(Dashboard!Z$3," "),2))),0)) -> 9854
B30: Managed Load + NOU | C30: =INDEX(ManagedLoad[Total (MW)],MATCH(1,(ManagedLoad[Month]=MONTH(Month&" 1, 2000"))*(ManagedLoad[Hour Ending]=INT(INDEX(_xlfn.TEXTSPLIT(Dashboard!C$3," "),2))),0)) -> 34537 | D30: =INDEX(ManagedLoad[Total (MW)],MATCH(1,(ManagedLoad[Month]=MONTH(Month&" 1, 2000"))*(ManagedLoad[Hour Ending]=INT(INDEX(_xlfn.TEXTSPLIT(Dashboard!D$3," "),2))),0)) -> 33404 | E30: =INDEX(ManagedLoad[Total (MW)],MATCH(1,(ManagedLoad[Month]=MONTH(Month&" 1, 2000"))*(ManagedLoad[Hour Ending]=INT(INDEX(_xlfn.TEXTSPLIT(Dashboard!E$3," "),2))),0)) -> 32412 | F30: =INDEX(ManagedLoad[Total (MW)],MATCH(1,(ManagedLoad[Month]=MONTH(Month&" 1, 2000"))*(ManagedLoad[Hour Ending]=INT(INDEX(_xlfn.TEXTSPLIT(Dashboard!F$3," "),2))),0)) -> 31952 | G30: =INDEX(ManagedLoad[Total (MW)],MATCH(1,(ManagedLoad[Month]=MONTH(Month&" 1, 2000"))*(ManagedLoad[Hour Ending]=INT(INDEX(_xlfn.TEXTSPLIT(Dashboard!G$3," "),2))),0)) -> 32399 | H30: =INDEX(ManagedLoad[Total (MW)],MATCH(1,(ManagedLoad[Month]=MONTH(Month&" 1, 2000"))*(ManagedLoad[Hour Ending]=INT(INDEX(_xlfn.TEXTSPLIT(Dashboard!H$3," "),2))),0)) -> 33904 | I30: =INDEX(ManagedLoad[Total (MW)],MATCH(1,(ManagedLoad[Month]=MONTH(Month&" 1, 2000"))*(ManagedLoad[Hour Ending]=INT(INDEX(_xlfn.TEXTSPLIT(Dashboard!I$3," "),2))),0)) -> 36586 | J30: =INDEX(ManagedLoad[Total (MW)],MATCH(1,(ManagedLoad[Month]=MONTH(Month&" 1, 2000"))*(ManagedLoad[Hour Ending]=INT(INDEX(_xlfn.TEXTSPLIT(Dashboard!J$3," "),2))),0)) -> 38162 | K30: =INDEX(ManagedLoad[Total (MW)],MATCH(1,(ManagedLoad[Month]=MONTH(Month&" 1, 2000"))*(ManagedLoad[Hour Ending]=INT(INDEX(_xlfn.TEXTSPLIT(Dashboard!K$3," "),2))),0)) -> 37898 | L30: =INDEX(ManagedLoad[Total (MW)],MATCH(1,(ManagedLoad[Month]=MONTH(Month&" 1, 2000"))*(ManagedLoad[Hour Ending]=INT(INDEX(_xlfn.TEXTSPLIT(Dashboard!L$3," "),2))),0)) -> 36464 | M30: =INDEX(ManagedLoad[Total (MW)],MATCH(1,(ManagedLoad[Month]=MONTH(Month&" 1, 2000"))*(ManagedLoad[Hour Ending]=INT(INDEX(_xlfn.TEXTSPLIT(Dashboard!M$3," "),2))),0)) -> 34886 | N30: =INDEX(ManagedLoad[Total (MW)],MATCH(1,(ManagedLoad[Month]=MONTH(Month&" 1, 2000"))*(ManagedLoad[Hour Ending]=INT(INDEX(_xlfn.TEXTSPLIT(Dashboard!N$3," "),2))),0)) -> 33289 | O30: =INDEX(ManagedLoad[Total (MW)],MATCH(1,(ManagedLoad[Month]=MONTH(Month&" 1, 2000"))*(ManagedLoad[Hour Ending]=INT(INDEX(_xlfn.TEXTSPLIT(Dashboard!O$3," "),2))),0)) -> 32837 | P30: =INDEX(ManagedLoad[Total (MW)],MATCH(1,(ManagedLoad[Month]=MONTH(Month&" 1, 2000"))*(ManagedLoad[Hour Ending]=INT(INDEX(_xlfn.TEXTSPLIT(Dashboard!P$3," "),2))),0)) -> 33059 | Q30: =INDEX(ManagedLoad[Total (MW)],MATCH(1,(ManagedLoad[Month]=MONTH(Month&" 1, 2000"))*(ManagedLoad[Hour Ending]=INT(INDEX(_xlfn.TEXTSPLIT(Dashboard!Q$3," "),2))),0)) -> 33960 | R30: =INDEX(ManagedLoad[Total (MW)],MATCH(1,(ManagedLoad[Month]=MONTH(Month&" 1, 2000"))*(ManagedLoad[Hour Ending]=INT(INDEX(_xlfn.TEXTSPLIT(Dashboard!R$3," "),2))),0)) -> 35544 | S30: =INDEX(ManagedLoad[Total (MW)],MATCH(1,(ManagedLoad[Month]=MONTH(Month&" 1, 2000"))*(ManagedLoad[Hour Ending]=INT(INDEX(_xlfn.TEXTSPLIT(Dashboard!S$3," "),2))),0)) -> 37308 | T30: =INDEX(ManagedLoad[Total (MW)],MATCH(1,(ManagedLoad[Month]=MONTH(Month&" 1, 2000"))*(ManagedLoad[Hour Ending]=INT(INDEX(_xlfn.TEXTSPLIT(Dashboard!T$3," "),2))),0)) -> 39376 | U30: =INDEX(ManagedLoad[Total (MW)],MATCH(1,(ManagedLoad[Month]=MONTH(Month&" 1, 2000"))*(ManagedLoad[Hour Ending]=INT(INDEX(_xlfn.TEXTSPLIT(Dashboard!U$3," "),2))),0)) -> 39857 | V30: =INDEX(ManagedLoad[Total (MW)],MATCH(1,(ManagedLoad[Month]=MONTH(Month&" 1, 2000"))*(ManagedLoad[Hour Ending]=INT(INDEX(_xlfn.TEXTSPLIT(Dashboard!V$3," "),2))),0)) -> 39799 | W30: =INDEX(ManagedLoad[Total (MW)],MATCH(1,(ManagedLoad[Month]=MONTH(Month&" 1, 2000"))*(ManagedLoad[Hour Ending]=INT(INDEX(_xlfn.TEXTSPLIT(Dashboard!W$3," "),2))),0)) -> 39059 | X30: =INDEX(ManagedLoad[Total (MW)],MATCH(1,(ManagedLoad[Month]=MONTH(Month&" 1, 2000"))*(ManagedLoad[Hour Ending]=INT(INDEX(_xlfn.TEXTSPLIT(Dashboard!X$3," "),2))),0)) -> 38188 | Y30: =INDEX(ManagedLoad[Total (MW)],MATCH(1,(ManagedLoad[Month]=MONTH(Month&" 1, 2000"))*(ManagedLoad[Hour Ending]=INT(INDEX(_xlfn.TEXTSPLIT(Dashboard!Y$3," "),2))),0)) -> 36842 | Z30: =INDEX(ManagedLoad[Total (MW)],MATCH(1,(ManagedLoad[Month]=MONTH(Month&" 1, 2000"))*(ManagedLoad[Hour Ending]=INT(INDEX(_xlfn.TEXTSPLIT(Dashboard!Z$3," "),2))),0)) -> 35751
B31: RA Requirement | C31: =C30*(1+_xlfn.XLOOKUP(MONTH(Month&" 1, 2000"),PRM[Month],PRM[Planning Reserve Margin],,0)) -> 41444.46356 | D31: =D30*(1+_xlfn.XLOOKUP(MONTH(Month&" 1, 2000"),PRM[Month],PRM[Planning Reserve Margin],,0)) -> 40084.86147 | E31: =E30*(1+_xlfn.XLOOKUP(MONTH(Month&" 1, 2000"),PRM[Month],PRM[Planning Reserve Margin],,0)) -> 38894.45964 | F31: =F30*(1+_xlfn.XLOOKUP(MONTH(Month&" 1, 2000"),PRM[Month],PRM[Planning Reserve Margin],,0)) -> 38342.4588 | G31: =G30*(1+_xlfn.XLOOKUP(MONTH(Month&" 1, 2000"),PRM[Month],PRM[Planning Reserve Margin],,0)) -> 38878.85962 | H31: =H30*(1+_xlfn.XLOOKUP(MONTH(Month&" 1, 2000"),PRM[Month],PRM[Planning Reserve Margin],,0)) -> 40684.86239 | I31: =I30*(1+_xlfn.XLOOKUP(MONTH(Month&" 1, 2000"),PRM[Month],PRM[Planning Reserve Margin],,0)) -> 43903.26733 | J31: =J30*(1+_xlfn.XLOOKUP(MONTH(Month&" 1, 2000"),PRM[Month],PRM[Planning Reserve Margin],,0)) -> 45794.47023 | K31: =K30*(1+_xlfn.XLOOKUP(MONTH(Month&" 1, 2000"),PRM[Month],PRM[Planning Reserve Margin],,0)) -> 45477.66974 | L31: =L30*(1+_xlfn.XLOOKUP(MONTH(Month&" 1, 2000"),PRM[Month],PRM[Planning Reserve Margin],,0)) -> 43756.8671 | M31: =M30*(1+_xlfn.XLOOKUP(MONTH(Month&" 1, 2000"),PRM[Month],PRM[Planning Reserve Margin],,0)) -> 41863.2642 | N31: =N30*(1+_xlfn.XLOOKUP(MONTH(Month&" 1, 2000"),PRM[Month],PRM[Planning Reserve Margin],,0)) -> 39946.86126 | O31: =O30*(1+_xlfn.XLOOKUP(MONTH(Month&" 1, 2000"),PRM[Month],PRM[Planning Reserve Margin],,0)) -> 39404.46043 | P31: =P30*(1+_xlfn.XLOOKUP(MONTH(Month&" 1, 2000"),PRM[Month],PRM[Planning Reserve Margin],,0)) -> 39670.86084 | Q31: =Q30*(1+_xlfn.XLOOKUP(MONTH(Month&" 1, 2000"),PRM[Month],PRM[Planning Reserve Margin],,0)) -> 40752.06249 | R31: =R30*(1+_xlfn.XLOOKUP(MONTH(Month&" 1, 2000"),PRM[Month],PRM[Planning Reserve Margin],,0)) -> 42652.86541 | S31: =S30*(1+_xlfn.XLOOKUP(MONTH(Month&" 1, 2000"),PRM[Month],PRM[Planning Reserve Margin],,0)) -> 44769.66865 | T31: =T30*(1+_xlfn.XLOOKUP(MONTH(Month&" 1, 2000"),PRM[Month],PRM[Planning Reserve Margin],,0)) -> 47251.27246 | U31: =U30*(1+_xlfn.XLOOKUP(MONTH(Month&" 1, 2000"),PRM[Month],PRM[Planning Reserve Margin],,0)) -> 47828.47334 | V31: =V30*(1+_xlfn.XLOOKUP(MONTH(Month&" 1, 2000"),PRM[Month],PRM[Planning Reserve Margin],,0)) -> 47758.87324 | W31: =W30*(1+_xlfn.XLOOKUP(MONTH(Month&" 1, 2000"),PRM[Month],PRM[Planning Reserve Margin],,0)) -> 46870.87188 | X31: =X30*(1+_xlfn.XLOOKUP(MONTH(Month&" 1, 2000"),PRM[Month],PRM[Planning Reserve Margin],,0)) -> 45825.67027 | Y31: =Y30*(1+_xlfn.XLOOKUP(MONTH(Month&" 1, 2000"),PRM[Month],PRM[Planning Reserve Margin],,0)) -> 44210.4678 | Z31: =Z30*(1+_xlfn.XLOOKUP(MONTH(Month&" 1, 2000"),PRM[Month],PRM[Planning Reserve Margin],,0)) -> 42901.26579
B33: Chart Label: | C33: ="Hourly Slice-of-Day Supply by Unit Category and Load for "&Month&" 2026" -> Hourly Slice-of-Day Supply by Unit Category and Load for Jan 2026

Sheet Monthly Constraints
A1: Month | B1: Jan | C1: Feb | D1: Mar | E1: Apr | F1: May | G1: Jun | H1: Jul | I1: Aug | J1: Sep | K1: Oct | L1: Nov | M1: Dec
B2: 1 | C2: 2 | D2: 3 | E2: 4 | F2: 5 | G2: 6 | H2: 7 | I2: 8 | J2: 9 | K2: 10 | L2: 11 | M2: 12
A3: Constraining Hour Ending | B3: =INDEX(PRM[Constraining Hour Ending],'Monthly Constraints'!B$2) -> 19 | C3: =INDEX(PRM[Constraining Hour Ending],'Monthly Constraints'!C$2) -> 19 | D3: =INDEX(PRM[Constraining Hour Ending],'Monthly Constraints'!D$2) -> 20 | E3: =INDEX(PRM[Constraining Hour Ending],'Monthly Constraints'!E$2) -> 19 | F3: =INDEX(PRM[Constraining Hour Ending],'Monthly Constraints'!F$2) -> 20 | G3: =INDEX(PRM[Constraining Hour Ending],'Monthly Constraints'!G$2) -> 19 | H3: =INDEX(PRM[Constraining Hour Ending],'Monthly Constraints'!H$2) -> 19 | I3: =INDEX(PRM[Constraining Hour Ending],'Monthly Constraints'!I$2) -> 19 | J3: =INDEX(PRM[Constraining Hour Ending],'Monthly Constraints'!J$2) -> 18 | K3: =INDEX(PRM[Constraining Hour Ending],'Monthly Constraints'!K$2) -> 18 | L3: =INDEX(PRM[Constraining Hour Ending],'Monthly Constraints'!L$2) -> 18 | M3: =INDEX(PRM[Constraining Hour Ending],'Monthly Constraints'!M$2) -> 22
A4: Biogas | B4: =INDEX(Supply[Supply],MATCH(1,(Supply[Unit Category]='Monthly Constraints'!$A4)*(Supply[Month]='Monthly Constraints'!B$2)*(Supply[Hour Ending]='Monthly Constraints'!B$3),0)) -> 187.2457214 | C4: =INDEX(Supply[Supply],MATCH(1,(Supply[Unit Category]='Monthly Constraints'!$A4)*(Supply[Month]='Monthly Constraints'!C$2)*(Supply[Hour Ending]='Monthly Constraints'!C$3),0)) -> 188.1325238 | D4: =INDEX(Supply[Supply],MATCH(1,(Supply[Unit Category]='Monthly Constraints'!$A4)*(Supply[Month]='Monthly Constraints'!D$2)*(Supply[Hour Ending]='Monthly Constraints'!D$3),0)) -> 186.8484149 | E4: =INDEX(Supply[Supply],MATCH(1,(Supply[Unit Category]='Monthly Constraints'!$A4)*(Supply[Month]='Monthly Constraints'!E$2)*(Supply[Hour Ending]='Monthly Constraints'!E$3),0)) -> 183.3536719 | F4: =INDEX(Supply[Supply],MATCH(1,(Supply[Unit Category]='Monthly Constraints'!$A4)*(Supply[Month]='Monthly Constraints'!F$2)*(Supply[Hour Ending]='Monthly Constraints'!F$3),0)) -> 188.381938 | G4: =INDEX(Supply[Supply],MATCH(1,(Supply[Unit Category]='Monthly Constraints'!$A4)*(Supply[Month]='Monthly Constraints'!G$2)*(Supply[Hour Ending]='Monthly Constraints'!G$3),0)) -> 186.4529658 | H4: =INDEX(Supply[Supply],MATCH(1,(Supply[Unit Category]='Monthly Constraints'!$A4)*(Supply[Month]='Monthly Constraints'!H$2)*(Supply[Hour Ending]='Monthly Constraints'!H$3),0)) -> 184.1354589 | I4: =INDEX(Supply[Supply],MATCH(1,(Supply[Unit Category]='Monthly Constraints'!$A4)*(Supply[Month]='Monthly Constraints'!I$2)*(Supply[Hour Ending]='Monthly Constraints'!I$3),0)) -> 182.600979 | J4: =INDEX(Supply[Supply],MATCH(1,(Supply[Unit Category]='Monthly Constraints'!$A4)*(Supply[Month]='Monthly Constraints'!J$2)*(Supply[Hour Ending]='Monthly Constraints'!J$3),0)) -> 182.8286256 | K4: =INDEX(Supply[Supply],MATCH(1,(Supply[Unit Category]='Monthly Constraints'!$A4)*(Supply[Month]='Monthly Constraints'!K$2)*(Supply[Hour Ending]='Monthly Constraints'!K$3),0)) -> 178.8569639 | L4: =INDEX(Supply[Supply],MATCH(1,(Supply[Unit Category]='Monthly Constraints'!$A4)*(Supply[Month]='Monthly Constraints'!L$2)*(Supply[Hour Ending]='Monthly Constraints'!L$3),0)) -> 181.4537277 | M4: =INDEX(Supply[Supply],MATCH(1,(Supply[Unit Category]='Monthly Constraints'!$A4)*(Supply[Month]='Monthly Constraints'!M$2)*(Supply[Hour Ending]='Monthly Constraints'!M$3),0)) -> 183.9141052
A5: Biomass/Wood | B5: =INDEX(Supply[Supply],MATCH(1,(Supply[Unit Category]='Monthly Constraints'!$A5)*(Supply[Month]='Monthly Constraints'!B$2)*(Supply[Hour Ending]='Monthly Constraints'!B$3),0)) -> 399.9377666 | C5: =INDEX(Supply[Supply],MATCH(1,(Supply[Unit Category]='Monthly Constraints'!$A5)*(Supply[Month]='Monthly Constraints'!C$2)*(Supply[Hour Ending]='Monthly Constraints'!C$3),0)) -> 393.5603792 | D5: =INDEX(Supply[Supply],MATCH(1,(Supply[Unit Category]='Monthly Constraints'!$A5)*(Supply[Month]='Monthly Constraints'!D$2)*(Supply[Hour Ending]='Monthly Constraints'!D$3),0)) -> 385.9393854 | E5: =INDEX(Supply[Supply],MATCH(1,(Supply[Unit Category]='Monthly Constraints'!$A5)*(Supply[Month]='Monthly Constraints'!E$2)*(Supply[Hour Ending]='Monthly Constraints'!E$3),0)) -> 356.5355135 | F5: =INDEX(Supply[Supply],MATCH(1,(Supply[Unit Category]='Monthly Constraints'!$A5)*(Supply[Month]='Monthly Constraints'!F$2)*(Supply[Hour Ending]='Monthly Constraints'!F$3),0)) -> 389.9195673 | G5: =INDEX(Supply[Supply],MATCH(1,(Supply[Unit Category]='Monthly Constraints'!$A5)*(Supply[Month]='Monthly Constraints'!G$2)*(Supply[Hour Ending]='Monthly Constraints'!G$3),0)) -> 422.7299271 | H5: =INDEX(Supply[Supply],MATCH(1,(Supply[Unit Category]='Monthly Constraints'!$A5)*(Supply[Month]='Monthly Constraints'!H$2)*(Supply[Hour Ending]='Monthly Constraints'!H$3),0)) -> 422.1587294 | I5: =INDEX(Supply[Supply],MATCH(1,(Supply[Unit Category]='Monthly Constraints'!$A5)*(Supply[Month]='Monthly Constraints'!I$2)*(Supply[Hour Ending]='Monthly Constraints'!I$3),0)) -> 411.477535 | J5: =INDEX(Supply[Supply],MATCH(1,(Supply[Unit Category]='Monthly Constraints'!$A5)*(Supply[Month]='Monthly Constraints'!J$2)*(Supply[Hour Ending]='Monthly Constraints'!J$3),0)) -> 414.9991302 | K5: =INDEX(Supply[Supply],MATCH(1,(Supply[Unit Category]='Monthly Constraints'!$A5)*(Supply[Month]='Monthly Constraints'!K$2)*(Supply[Hour Ending]='Monthly Constraints'!K$3),0)) -> 390.6361121 | L5: =INDEX(Supply[Supply],MATCH(1,(Supply[Unit Category]='Monthly Constraints'!$A5)*(Supply[Month]='Monthly Constraints'!L$2)*(Supply[Hour Ending]='Monthly Constraints'!L$3),0)) -> 377.159152 | M5: =INDEX(Supply[Supply],MATCH(1,(Supply[Unit Category]='Monthly Constraints'!$A5)*(Supply[Month]='Monthly Constraints'!M$2)*(Supply[Hour Ending]='Monthly Constraints'!M$3),0)) -> 395.0838645
A6: CC | B6: =INDEX(Supply[Supply],MATCH(1,(Supply[Unit Category]='Monthly Constraints'!$A6)*(Supply[Month]='Monthly Constraints'!B$2)*(Supply[Hour Ending]='Monthly Constraints'!B$3),0)) -> 16848.65 | C6: =INDEX(Supply[Supply],MATCH(1,(Supply[Unit Category]='Monthly Constraints'!$A6)*(Supply[Month]='Monthly Constraints'!C$2)*(Supply[Hour Ending]='Monthly Constraints'!C$3),0)) -> 16869.91 | D6: =INDEX(Supply[Supply],MATCH(1,(Supply[Unit Category]='Monthly Constraints'!$A6)*(Supply[Month]='Monthly Constraints'!D$2)*(Supply[Hour Ending]='Monthly Constraints'!D$3),0)) -> 16858.98 | E6: =INDEX(Supply[Supply],MATCH(1,(Supply[Unit Category]='Monthly Constraints'!$A6)*(Supply[Month]='Monthly Constraints'!E$2)*(Supply[Hour Ending]='Monthly Constraints'!E$3),0)) -> 16821.71 | F6: =INDEX(Supply[Supply],MATCH(1,(Supply[Unit Category]='Monthly Constraints'!$A6)*(Supply[Month]='Monthly Constraints'!F$2)*(Supply[Hour Ending]='Monthly Constraints'!F$3),0)) -> 16769.93 | G6: =INDEX(Supply[Supply],MATCH(1,(Supply[Unit Category]='Monthly Constraints'!$A6)*(Supply[Month]='Monthly Constraints'!G$2)*(Supply[Hour Ending]='Monthly Constraints'!G$3),0)) -> 16729.65 | H6: =INDEX(Supply[Supply],MATCH(1,(Supply[Unit Category]='Monthly Constraints'!$A6)*(Supply[Month]='Monthly Constraints'!H$2)*(Supply[Hour Ending]='Monthly Constraints'!H$3),0)) -> 16736.06 | I6: =INDEX(Supply[Supply],MATCH(1,(Supply[Unit Category]='Monthly Constraints'!$A6)*(Supply[Month]='Monthly Constraints'!I$2)*(Supply[Hour Ending]='Monthly Constraints'!I$3),0)) -> 16728.73 | J6: =INDEX(Supply[Supply],MATCH(1,(Supply[Unit Category]='Monthly Constraints'!$A6)*(Supply[Month]='Monthly Constraints'!J$2)*(Supply[Hour Ending]='Monthly Constraints'!J$3),0)) -> 16747.48 | K6: =INDEX(Supply[Supply],MATCH(1,(Supply[Unit Category]='Monthly Constraints'!$A6)*(Supply[Month]='Monthly Constraints'!K$2)*(Supply[Hour Ending]='Monthly Constraints'!K$3),0)) -> 16786.19 | L6: =INDEX(Supply[Supply],MATCH(1,(Supply[Unit Category]='Monthly Constraints'!$A6)*(Supply[Month]='Monthly Constraints'!L$2)*(Supply[Hour Ending]='Monthly Constraints'!L$3),0)) -> 16838.18 | M6: =INDEX(Supply[Supply],MATCH(1,(Supply[Unit Category]='Monthly Constraints'!$A6)*(Supply[Month]='Monthly Constraints'!M$2)*(Supply[Hour Ending]='Monthly Constraints'!M$3),0)) -> 16846.29
A7: Coal | B7: =INDEX(Supply[Supply],MATCH(1,(Supply[Unit Category]='Monthly Constraints'!$A7)*(Supply[Month]='Monthly Constraints'!B$2)*(Supply[Hour Ending]='Monthly Constraints'!B$3),0)) -> 0 | C7: =INDEX(Supply[Supply],MATCH(1,(Supply[Unit Category]='Monthly Constraints'!$A7)*(Supply[Month]='Monthly Constraints'!C$2)*(Supply[Hour Ending]='Monthly Constraints'!C$3),0)) -> 0 | D7: =INDEX(Supply[Supply],MATCH(1,(Supply[Unit Category]='Monthly Constraints'!$A7)*(Supply[Month]='Monthly Constraints'!D$2)*(Supply[Hour Ending]='Monthly Constraints'!D$3),0)) -> 0 | E7: =INDEX(Supply[Supply],MATCH(1,(Supply[Unit Category]='Monthly Constraints'!$A7)*(Supply[Month]='Monthly Constraints'!E$2)*(Supply[Hour Ending]='Monthly Constraints'!E$3),0)) -> 0 | F7: =INDEX(Supply[Supply],MATCH(1,(Supply[Unit Category]='Monthly Constraints'!$A7)*(Supply[Month]='Monthly Constraints'!F$2)*(Supply[Hour Ending]='Monthly Constraints'!F$3),0)) -> 0 | G7: =INDEX(Supply[Supply],MATCH(1,(Supply[Unit Category]='Monthly Constraints'!$A7)*(Supply[Month]='Monthly Constraints'!G$2)*(Supply[Hour Ending]='Monthly Constraints'!G$3),0)) -> 0 | H7: =INDEX(Supply[Supply],MATCH(1,(Supply[Unit Category]='Monthly Constraints'!$A7)*(Supply[Month]='Monthly Constraints'!H$2)*(Supply[Hour Ending]='Monthly Constraints'!H$3),0)) -> 0 | I7: =INDEX(Supply[Supply],MATCH(1,(Supply[Unit Category]='Monthly Constraints'!$A7)*(Supply[Month]='Monthly Constraints'!I$2)*(Supply[Hour Ending]='Monthly Constraints'!I$3),0)) -> 0 | J7: =INDEX(Supply[Supply],MATCH(1,(Supply[Unit Category]='Monthly Constraints'!$A7)*(Supply[Month]='Monthly Constraints'!J$2)*(Supply[Hour Ending]='Monthly Constraints'!J$3),0)) -> 0 | K7: =INDEX(Supply[Supply],MATCH(1,(Supply[Unit Category]='Monthly Constraints'!$A7)*(Supply[Month]='Monthly Constraints'!K$2)*(Supply[Hour Ending]='Monthly Constraints'!K$3),0)) -> 0 | L7: =INDEX(Supply[Supply],MATCH(1,(Supply[Unit Category]='Monthly Constraints'!$A7)*(Supply[Month]='Monthly Constraints'!L$2)*(Supply[Hour Ending]='Monthly Constraints'!L$3),0)) -> 0 | M7: =INDEX(Supply[Supply],MATCH(1,(Supply[Unit Category]='Monthly Constraints'!$A7)*(Supply[Month]='Monthly Constraints'!M$2)*(Supply[Hour Ending]='Monthly Constraints'!M$3),0)) -> 0
A8: Cogen | B8: =INDEX(Supply[Supply],MATCH(1,(Supply[Unit Category]='Monthly Constraints'!$A8)*(Supply[Month]='Monthly Constraints'!B$2)*(Supply[Hour Ending]='Monthly Constraints'!B$3),0)) -> 1763.16055 | C8: =INDEX(Supply[Supply],MATCH(1,(Supply[Unit Category]='Monthly Constraints'!$A8)*(Supply[Month]='Monthly Constraints'!C$2)*(Supply[Hour Ending]='Monthly Constraints'!C$3),0)) -> 1744.68754 | D8: =INDEX(Supply[Supply],MATCH(1,(Supply[Unit Category]='Monthly Constraints'!$A8)*(Supply[Month]='Monthly Constraints'!D$2)*(Supply[Hour Ending]='Monthly Constraints'!D$3),0)) -> 1677.54181 | E8: =INDEX(Supply[Supply],MATCH(1,(Supply[Unit Category]='Monthly Constraints'!$A8)*(Supply[Month]='Monthly Constraints'!E$2)*(Supply[Hour Ending]='Monthly Constraints'!E$3),0)) -> 1734.616327 | F8: =INDEX(Supply[Supply],MATCH(1,(Supply[Unit Category]='Monthly Constraints'!$A8)*(Supply[Month]='Monthly Constraints'!F$2)*(Supply[Hour Ending]='Monthly Constraints'!F$3),0)) -> 1732.033041 | G8: =INDEX(Supply[Supply],MATCH(1,(Supply[Unit Category]='Monthly Constraints'!$A8)*(Supply[Month]='Monthly Constraints'!G$2)*(Supply[Hour Ending]='Monthly Constraints'!G$3),0)) -> 1752.945908 | H8: =INDEX(Supply[Supply],MATCH(1,(Supply[Unit Category]='Monthly Constraints'!$A8)*(Supply[Month]='Monthly Constraints'!H$2)*(Supply[Hour Ending]='Monthly Constraints'!H$3),0)) -> 1737.958929 | I8: =INDEX(Supply[Supply],MATCH(1,(Supply[Unit Category]='Monthly Constraints'!$A8)*(Supply[Month]='Monthly Constraints'!I$2)*(Supply[Hour Ending]='Monthly Constraints'!I$3),0)) -> 1746.358632 | J8: =INDEX(Supply[Supply],MATCH(1,(Supply[Unit Category]='Monthly Constraints'!$A8)*(Supply[Month]='Monthly Constraints'!J$2)*(Supply[Hour Ending]='Monthly Constraints'!J$3),0)) -> 1719.894795 | K8: =INDEX(Supply[Supply],MATCH(1,(Supply[Unit Category]='Monthly Constraints'!$A8)*(Supply[Month]='Monthly Constraints'!K$2)*(Supply[Hour Ending]='Monthly Constraints'!K$3),0)) -> 1733.897727 | L8: =INDEX(Supply[Supply],MATCH(1,(Supply[Unit Category]='Monthly Constraints'!$A8)*(Supply[Month]='Monthly Constraints'!L$2)*(Supply[Hour Ending]='Monthly Constraints'!L$3),0)) -> 1741.342089 | M8: =INDEX(Supply[Supply],MATCH(1,(Supply[Unit Category]='Monthly Constraints'!$A8)*(Supply[Month]='Monthly Constraints'!M$2)*(Supply[Hour Ending]='Monthly Constraints'!M$3),0)) -> 1749.349445
A9: CT | B9: =INDEX(Supply[Supply],MATCH(1,(Supply[Unit Category]='Monthly Constraints'!$A9)*(Supply[Month]='Monthly Constraints'!B$2)*(Supply[Hour Ending]='Monthly Constraints'!B$3),0)) -> 7834.64 | C9: =INDEX(Supply[Supply],MATCH(1,(Supply[Unit Category]='Monthly Constraints'!$A9)*(Supply[Month]='Monthly Constraints'!C$2)*(Supply[Hour Ending]='Monthly Constraints'!C$3),0)) -> 7825.86 | D9: =INDEX(Supply[Supply],MATCH(1,(Supply[Unit Category]='Monthly Constraints'!$A9)*(Supply[Month]='Monthly Constraints'!D$2)*(Supply[Hour Ending]='Monthly Constraints'!D$3),0)) -> 7821.83 | E9: =INDEX(Supply[Supply],MATCH(1,(Supply[Unit Category]='Monthly Constraints'!$A9)*(Supply[Month]='Monthly Constraints'!E$2)*(Supply[Hour Ending]='Monthly Constraints'!E$3),0)) -> 7810.2 | F9: =INDEX(Supply[Supply],MATCH(1,(Supply[Unit Category]='Monthly Constraints'!$A9)*(Supply[Month]='Monthly Constraints'!F$2)*(Supply[Hour Ending]='Monthly Constraints'!F$3),0)) -> 7815.01 | G9: =INDEX(Supply[Supply],MATCH(1,(Supply[Unit Category]='Monthly Constraints'!$A9)*(Supply[Month]='Monthly Constraints'!G$2)*(Supply[Hour Ending]='Monthly Constraints'!G$3),0)) -> 7789.11 | H9: =INDEX(Supply[Supply],MATCH(1,(Supply[Unit Category]='Monthly Constraints'!$A9)*(Supply[Month]='Monthly Constraints'!H$2)*(Supply[Hour Ending]='Monthly Constraints'!H$3),0)) -> 7780.3 | I9: =INDEX(Supply[Supply],MATCH(1,(Supply[Unit Category]='Monthly Constraints'!$A9)*(Supply[Month]='Monthly Constraints'!I$2)*(Supply[Hour Ending]='Monthly Constraints'!I$3),0)) -> 7779.62 | J9: =INDEX(Supply[Supply],MATCH(1,(Supply[Unit Category]='Monthly Constraints'!$A9)*(Supply[Month]='Monthly Constraints'!J$2)*(Supply[Hour Ending]='Monthly Constraints'!J$3),0)) -> 7790.51 | K9: =INDEX(Supply[Supply],MATCH(1,(Supply[Unit Category]='Monthly Constraints'!$A9)*(Supply[Month]='Monthly Constraints'!K$2)*(Supply[Hour Ending]='Monthly Constraints'!K$3),0)) -> 7817.56 | L9: =INDEX(Supply[Supply],MATCH(1,(Supply[Unit Category]='Monthly Constraints'!$A9)*(Supply[Month]='Monthly Constraints'!L$2)*(Supply[Hour Ending]='Monthly Constraints'!L$3),0)) -> 7815.53 | M9: =INDEX(Supply[Supply],MATCH(1,(Supply[Unit Category]='Monthly Constraints'!$A9)*(Supply[Month]='Monthly Constraints'!M$2)*(Supply[Hour Ending]='Monthly Constraints'!M$3),0)) -> 7830.63
A10: DR | B10: =INDEX(Supply[Supply],MATCH(1,(Supply[Unit Category]='Monthly Constraints'!$A10)*(Supply[Month]='Monthly Constraints'!B$2)*(Supply[Hour Ending]='Monthly Constraints'!B$3),0)) -> 1084.241464 | C10: =INDEX(Supply[Supply],MATCH(1,(Supply[Unit Category]='Monthly Constraints'!$A10)*(Supply[Month]='Monthly Constraints'!C$2)*(Supply[Hour Ending]='Monthly Constraints'!C$3),0)) -> 1067.415433 | D10: =INDEX(Supply[Supply],MATCH(1,(Supply[Unit Category]='Monthly Constraints'!$A10)*(Supply[Month]='Monthly Constraints'!D$2)*(Supply[Hour Ending]='Monthly Constraints'!D$3),0)) -> 1227.807677 | E10: =INDEX(Supply[Supply],MATCH(1,(Supply[Unit Category]='Monthly Constraints'!$A10)*(Supply[Month]='Monthly Constraints'!E$2)*(Supply[Hour Ending]='Monthly Constraints'!E$3),0)) -> 2012.165569 | F10: =INDEX(Supply[Supply],MATCH(1,(Supply[Unit Category]='Monthly Constraints'!$A10)*(Supply[Month]='Monthly Constraints'!F$2)*(Supply[Hour Ending]='Monthly Constraints'!F$3),0)) -> 2398.212472 | G10: =INDEX(Supply[Supply],MATCH(1,(Supply[Unit Category]='Monthly Constraints'!$A10)*(Supply[Month]='Monthly Constraints'!G$2)*(Supply[Hour Ending]='Monthly Constraints'!G$3),0)) -> 2319.327345 | H10: =INDEX(Supply[Supply],MATCH(1,(Supply[Unit Category]='Monthly Constraints'!$A10)*(Supply[Month]='Monthly Constraints'!H$2)*(Supply[Hour Ending]='Monthly Constraints'!H$3),0)) -> 2319.327345 | I10: =INDEX(Supply[Supply],MATCH(1,(Supply[Unit Category]='Monthly Constraints'!$A10)*(Supply[Month]='Monthly Constraints'!I$2)*(Supply[Hour Ending]='Monthly Constraints'!I$3),0)) -> 2319.327345 | J10: =INDEX(Supply[Supply],MATCH(1,(Supply[Unit Category]='Monthly Constraints'!$A10)*(Supply[Month]='Monthly Constraints'!J$2)*(Supply[Hour Ending]='Monthly Constraints'!J$3),0)) -> 2438.152252 | K10: =INDEX(Supply[Supply],MATCH(1,(Supply[Unit Category]='Monthly Constraints'!$A10)*(Supply[Month]='Monthly Constraints'!K$2)*(Supply[Hour Ending]='Monthly Constraints'!K$3),0)) -> 2438.152252 | L10: =INDEX(Supply[Supply],MATCH(1,(Supply[Unit Category]='Monthly Constraints'!$A10)*(Supply[Month]='Monthly Constraints'!L$2)*(Supply[Hour Ending]='Monthly Constraints'!L$3),0)) -> 1788.800735 | M10: =INDEX(Supply[Supply],MATCH(1,(Supply[Unit Category]='Monthly Constraints'!$A10)*(Supply[Month]='Monthly Constraints'!M$2)*(Supply[Hour Ending]='Monthly Constraints'!M$3),0)) -> 189.0314205
A11: ICE | B11: =INDEX(Supply[Supply],MATCH(1,(Supply[Unit Category]='Monthly Constraints'!$A11)*(Supply[Month]='Monthly Constraints'!B$2)*(Supply[Hour Ending]='Monthly Constraints'!B$3),0)) -> 254.7 | C11: =INDEX(Supply[Supply],MATCH(1,(Supply[Unit Category]='Monthly Constraints'!$A11)*(Supply[Month]='Monthly Constraints'!C$2)*(Supply[Hour Ending]='Monthly Constraints'!C$3),0)) -> 254.7 | D11: =INDEX(Supply[Supply],MATCH(1,(Supply[Unit Category]='Monthly Constraints'!$A11)*(Supply[Month]='Monthly Constraints'!D$2)*(Supply[Hour Ending]='Monthly Constraints'!D$3),0)) -> 254.7 | E11: =INDEX(Supply[Supply],MATCH(1,(Supply[Unit Category]='Monthly Constraints'!$A11)*(Supply[Month]='Monthly Constraints'!E$2)*(Supply[Hour Ending]='Monthly Constraints'!E$3),0)) -> 254.7 | F11: =INDEX(Supply[Supply],MATCH(1,(Supply[Unit Category]='Monthly Constraints'!$A11)*(Supply[Month]='Monthly Constraints'!F$2)*(Supply[Hour Ending]='Monthly Constraints'!F$3),0)) -> 254.7 | G11: =INDEX(Supply[Supply],MATCH(1,(Supply[Unit Category]='Monthly Constraints'!$A11)*(Supply[Month]='Monthly Constraints'!G$2)*(Supply[Hour Ending]='Monthly Constraints'!G$3),0)) -> 254.7 | H11: =INDEX(Supply[Supply],MATCH(1,(Supply[Unit Category]='Monthly Constraints'!$A11)*(Supply[Month]='Monthly Constraints'!H$2)*(Supply[Hour Ending]='Monthly Constraints'!H$3),0)) -> 254.7 | I11: =INDEX(Supply[Supply],MATCH(1,(Supply[Unit Category]='Monthly Constraints'!$A11)*(Supply[Month]='Monthly Constraints'!I$2)*(Supply[Hour Ending]='Monthly Constraints'!I$3),0)) -> 254.7 | J11: =INDEX(Supply[Supply],MATCH(1,(Supply[Unit Category]='Monthly Constraints'!$A11)*(Supply[Month]='Monthly Constraints'!J$2)*(Supply[Hour Ending]='Monthly Constraints'!J$3),0)) -> 254.7 | K11: =INDEX(Supply[Supply],MATCH(1,(Supply[Unit Category]='Monthly Constraints'!$A11)*(Supply[Month]='Monthly Constraints'!K$2)*(Supply[Hour Ending]='Monthly Constraints'!K$3),0)) -> 254.7 | L11: =INDEX(Supply[Supply],MATCH(1,(Supply[Unit Category]='Monthly Constraints'!$A11)*(Supply[Month]='Monthly Constraints'!L$2)*(Supply[Hour Ending]='Monthly Constraints'!L$3),0)) -> 254.7 | M11: =INDEX(Supply[Supply],MATCH(1,(Supply[Unit Category]='Monthly Constraints'!$A11)*(Supply[Month]='Monthly Constraints'!M$2)*(Supply[Hour Ending]='Monthly Constraints'!M$3),0)) -> 254.7
A12: Geothermal | B12: =INDEX(Supply[Supply],MATCH(1,(Supply[Unit Category]='Monthly Constraints'!$A12)*(Supply[Month]='Monthly Constraints'!B$2)*(Supply[Hour Ending]='Monthly Constraints'!B$3),0)) -> 1096.847531 | C12: =INDEX(Supply[Supply],MATCH(1,(Supply[Unit Category]='Monthly Constraints'!$A12)*(Supply[Month]='Monthly Constraints'!C$2)*(Supply[Hour Ending]='Monthly Constraints'!C$3),0)) -> 1095.131897 | D12: =INDEX(Supply[Supply],MATCH(1,(Supply[Unit Category]='Monthly Constraints'!$A12)*(Supply[Month]='Monthly Constraints'!D$2)*(Supply[Hour Ending]='Monthly Constraints'!D$3),0)) -> 1090.082105 | E12: =INDEX(Supply[Supply],MATCH(1,(Supply[Unit Category]='Monthly Constraints'!$A12)*(Supply[Month]='Monthly Constraints'!E$2)*(Supply[Hour Ending]='Monthly Constraints'!E$3),0)) -> 1075.084474 | F12: =INDEX(Supply[Supply],MATCH(1,(Supply[Unit Category]='Monthly Constraints'!$A12)*(Supply[Month]='Monthly Constraints'!F$2)*(Supply[Hour Ending]='Monthly Constraints'!F$3),0)) -> 1076.816154 | G12: =INDEX(Supply[Supply],MATCH(1,(Supply[Unit Category]='Monthly Constraints'!$A12)*(Supply[Month]='Monthly Constraints'!G$2)*(Supply[Hour Ending]='Monthly Constraints'!G$3),0)) -> 1077.830552 | H12: =INDEX(Supply[Supply],MATCH(1,(Supply[Unit Category]='Monthly Constraints'!$A12)*(Supply[Month]='Monthly Constraints'!H$2)*(Supply[Hour Ending]='Monthly Constraints'!H$3),0)) -> 1083.049296 | I12: =INDEX(Supply[Supply],MATCH(1,(Supply[Unit Category]='Monthly Constraints'!$A12)*(Supply[Month]='Monthly Constraints'!I$2)*(Supply[Hour Ending]='Monthly Constraints'!I$3),0)) -> 1083.211542 | J12: =INDEX(Supply[Supply],MATCH(1,(Supply[Unit Category]='Monthly Constraints'!$A12)*(Supply[Month]='Monthly Constraints'!J$2)*(Supply[Hour Ending]='Monthly Constraints'!J$3),0)) -> 1084.850164 | K12: =INDEX(Supply[Supply],MATCH(1,(Supply[Unit Category]='Monthly Constraints'!$A12)*(Supply[Month]='Monthly Constraints'!K$2)*(Supply[Hour Ending]='Monthly Constraints'!K$3),0)) -> 1077.283197 | L12: =INDEX(Supply[Supply],MATCH(1,(Supply[Unit Category]='Monthly Constraints'!$A12)*(Supply[Month]='Monthly Constraints'!L$2)*(Supply[Hour Ending]='Monthly Constraints'!L$3),0)) -> 1096.076511 | M12: =INDEX(Supply[Supply],MATCH(1,(Supply[Unit Category]='Monthly Constraints'!$A12)*(Supply[Month]='Monthly Constraints'!M$2)*(Supply[Hour Ending]='Monthly Constraints'!M$3),0)) -> 1096.198088
A13: Hydro | B13: =INDEX(Supply[Supply],MATCH(1,(Supply[Unit Category]='Monthly Constraints'!$A13)*(Supply[Month]='Monthly Constraints'!B$2)*(Supply[Hour Ending]='Monthly Constraints'!B$3),0)) -> 4254.55 | C13: =INDEX(Supply[Supply],MATCH(1,(Supply[Unit Category]='Monthly Constraints'!$A13)*(Supply[Month]='Monthly Constraints'!C$2)*(Supply[Hour Ending]='Monthly Constraints'!C$3),0)) -> 3997.4 | D13: =INDEX(Supply[Supply],MATCH(1,(Supply[Unit Category]='Monthly Constraints'!$A13)*(Supply[Month]='Monthly Constraints'!D$2)*(Supply[Hour Ending]='Monthly Constraints'!D$3),0)) -> 3925.57 | E13: =INDEX(Supply[Supply],MATCH(1,(Supply[Unit Category]='Monthly Constraints'!$A13)*(Supply[Month]='Monthly Constraints'!E$2)*(Supply[Hour Ending]='Monthly Constraints'!E$3),0)) -> 4316.22 | F13: =INDEX(Supply[Supply],MATCH(1,(Supply[Unit Category]='Monthly Constraints'!$A13)*(Supply[Month]='Monthly Constraints'!F$2)*(Supply[Hour Ending]='Monthly Constraints'!F$3),0)) -> 4698.28 | G13: =INDEX(Supply[Supply],MATCH(1,(Supply[Unit Category]='Monthly Constraints'!$A13)*(Supply[Month]='Monthly Constraints'!G$2)*(Supply[Hour Ending]='Monthly Constraints'!G$3),0)) -> 4966.85 | H13: =INDEX(Supply[Supply],MATCH(1,(Supply[Unit Category]='Monthly Constraints'!$A13)*(Supply[Month]='Monthly Constraints'!H$2)*(Supply[Hour Ending]='Monthly Constraints'!H$3),0)) -> 5276.83 | I13: =INDEX(Supply[Supply],MATCH(1,(Supply[Unit Category]='Monthly Constraints'!$A13)*(Supply[Month]='Monthly Constraints'!I$2)*(Supply[Hour Ending]='Monthly Constraints'!I$3),0)) -> 5304.62 | J13: =INDEX(Supply[Supply],MATCH(1,(Supply[Unit Category]='Monthly Constraints'!$A13)*(Supply[Month]='Monthly Constraints'!J$2)*(Supply[Hour Ending]='Monthly Constraints'!J$3),0)) -> 4955.66 | K13: =INDEX(Supply[Supply],MATCH(1,(Supply[Unit Category]='Monthly Constraints'!$A13)*(Supply[Month]='Monthly Constraints'!K$2)*(Supply[Hour Ending]='Monthly Constraints'!K$3),0)) -> 4200.89 | L13: =INDEX(Supply[Supply],MATCH(1,(Supply[Unit Category]='Monthly Constraints'!$A13)*(Supply[Month]='Monthly Constraints'!L$2)*(Supply[Hour Ending]='Monthly Constraints'!L$3),0)) -> 4016.54 | M13: =INDEX(Supply[Supply],MATCH(1,(Supply[Unit Category]='Monthly Constraints'!$A13)*(Supply[Month]='Monthly Constraints'!M$2)*(Supply[Hour Ending]='Monthly Constraints'!M$3),0)) -> 4165.71
A14: Interchange | B14: =INDEX(Supply[Supply],MATCH(1,(Supply[Unit Category]='Monthly Constraints'!$A14)*(Supply[Month]='Monthly Constraints'!B$2)*(Supply[Hour Ending]='Monthly Constraints'!B$3),0)) -> 2500 | C14: =INDEX(Supply[Supply],MATCH(1,(Supply[Unit Category]='Monthly Constraints'!$A14)*(Supply[Month]='Monthly Constraints'!C$2)*(Supply[Hour Ending]='Monthly Constraints'!C$3),0)) -> 2500 | D14: =INDEX(Supply[Supply],MATCH(1,(Supply[Unit Category]='Monthly Constraints'!$A14)*(Supply[Month]='Monthly Constraints'!D$2)*(Supply[Hour Ending]='Monthly Constraints'!D$3),0)) -> 2500 | E14: =INDEX(Supply[Supply],MATCH(1,(Supply[Unit Category]='Monthly Constraints'!$A14)*(Supply[Month]='Monthly Constraints'!E$2)*(Supply[Hour Ending]='Monthly Constraints'!E$3),0)) -> 2500 | F14: =INDEX(Supply[Supply],MATCH(1,(Supply[Unit Category]='Monthly Constraints'!$A14)*(Supply[Month]='Monthly Constraints'!F$2)*(Supply[Hour Ending]='Monthly Constraints'!F$3),0)) -> 2500 | G14: =INDEX(Supply[Supply],MATCH(1,(Supply[Unit Category]='Monthly Constraints'!$A14)*(Supply[Month]='Monthly Constraints'!G$2)*(Supply[Hour Ending]='Monthly Constraints'!G$3),0)) -> 2500 | H14: =INDEX(Supply[Supply],MATCH(1,(Supply[Unit Category]='Monthly Constraints'!$A14)*(Supply[Month]='Monthly Constraints'!H$2)*(Supply[Hour Ending]='Monthly Constraints'!H$3),0)) -> 2500 | I14: =INDEX(Supply[Supply],MATCH(1,(Supply[Unit Category]='Monthly Constraints'!$A14)*(Supply[Month]='Monthly Constraints'!I$2)*(Supply[Hour Ending]='Monthly Constraints'!I$3),0)) -> 2500 | J14: =INDEX(Supply[Supply],MATCH(1,(Supply[Unit Category]='Monthly Constraints'!$A14)*(Supply[Month]='Monthly Constraints'!J$2)*(Supply[Hour Ending]='Monthly Constraints'!J$3),0)) -> 2500 | K14: =INDEX(Supply[Supply],MATCH(1,(Supply[Unit Category]='Monthly Constraints'!$A14)*(Supply[Month]='Monthly Constraints'!K$2)*(Supply[Hour Ending]='Monthly Constraints'!K$3),0)) -> 2500 | L14: =INDEX(Supply[Supply],MATCH(1,(Supply[Unit Category]='Monthly Constraints'!$A14)*(Supply[Month]='Monthly Constraints'!L$2)*(Supply[Hour Ending]='Monthly Constraints'!L$3),0)) -> 2500 | M14: =INDEX(Supply[Supply],MATCH(1,(Supply[Unit Category]='Monthly Constraints'!$A14)*(Supply[Month]='Monthly Constraints'!M$2)*(Supply[Hour Ending]='Monthly Constraints'!M$3),0)) -> 2500
A15: Nuclear | B15: =INDEX(Supply[Supply],MATCH(1,(Supply[Unit Category]='Monthly Constraints'!$A15)*(Supply[Month]='Monthly Constraints'!B$2)*(Supply[Hour Ending]='Monthly Constraints'!B$3),0)) -> 2915 | C15: =INDEX(Supply[Supply],MATCH(1,(Supply[Unit Category]='Monthly Constraints'!$A15)*(Supply[Month]='Monthly Constraints'!C$2)*(Supply[Hour Ending]='Monthly Constraints'!C$3),0)) -> 2915 | D15: =INDEX(Supply[Supply],MATCH(1,(Supply[Unit Category]='Monthly Constraints'!$A15)*(Supply[Month]='Monthly Constraints'!D$2)*(Supply[Hour Ending]='Monthly Constraints'!D$3),0)) -> 2915 | E15: =INDEX(Supply[Supply],MATCH(1,(Supply[Unit Category]='Monthly Constraints'!$A15)*(Supply[Month]='Monthly Constraints'!E$2)*(Supply[Hour Ending]='Monthly Constraints'!E$3),0)) -> 2915 | F15: =INDEX(Supply[Supply],MATCH(1,(Supply[Unit Category]='Monthly Constraints'!$A15)*(Supply[Month]='Monthly Constraints'!F$2)*(Supply[Hour Ending]='Monthly Constraints'!F$3),0)) -> 2915 | G15: =INDEX(Supply[Supply],MATCH(1,(Supply[Unit Category]='Monthly Constraints'!$A15)*(Supply[Month]='Monthly Constraints'!G$2)*(Supply[Hour Ending]='Monthly Constraints'!G$3),0)) -> 2915 | H15: =INDEX(Supply[Supply],MATCH(1,(Supply[Unit Category]='Monthly Constraints'!$A15)*(Supply[Month]='Monthly Constraints'!H$2)*(Supply[Hour Ending]='Monthly Constraints'!H$3),0)) -> 2915 | I15: =INDEX(Supply[Supply],MATCH(1,(Supply[Unit Category]='Monthly Constraints'!$A15)*(Supply[Month]='Monthly Constraints'!I$2)*(Supply[Hour Ending]='Monthly Constraints'!I$3),0)) -> 2915 | J15: =INDEX(Supply[Supply],MATCH(1,(Supply[Unit Category]='Monthly Constraints'!$A15)*(Supply[Month]='Monthly Constraints'!J$2)*(Supply[Hour Ending]='Monthly Constraints'!J$3),0)) -> 2915 | K15: =INDEX(Supply[Supply],MATCH(1,(Supply[Unit Category]='Monthly Constraints'!$A15)*(Supply[Month]='Monthly Constraints'!K$2)*(Supply[Hour Ending]='Monthly Constraints'!K$3),0)) -> 2915 | L15: =INDEX(Supply[Supply],MATCH(1,(Supply[Unit Category]='Monthly Constraints'!$A15)*(Supply[Month]='Monthly Constraints'!L$2)*(Supply[Hour Ending]='Monthly Constraints'!L$3),0)) -> 2915 | M15: =INDEX(Supply[Supply],MATCH(1,(Supply[Unit Category]='Monthly Constraints'!$A15)*(Supply[Month]='Monthly Constraints'!M$2)*(Supply[Hour Ending]='Monthly Constraints'!M$3),0)) -> 2915
A16: PSH | B16: =INDEX(Supply[Supply],MATCH(1,(Supply[Unit Category]='Monthly Constraints'!$A16)*(Supply[Month]='Monthly Constraints'!B$2)*(Supply[Hour Ending]='Monthly Constraints'!B$3),0)) -> 1417 | C16: =INDEX(Supply[Supply],MATCH(1,(Supply[Unit Category]='Monthly Constraints'!$A16)*(Supply[Month]='Monthly Constraints'!C$2)*(Supply[Hour Ending]='Monthly Constraints'!C$3),0)) -> 1417.16 | D16: =INDEX(Supply[Supply],MATCH(1,(Supply[Unit Category]='Monthly Constraints'!$A16)*(Supply[Month]='Monthly Constraints'!D$2)*(Supply[Hour Ending]='Monthly Constraints'!D$3),0)) -> 1417.07 | E16: =INDEX(Supply[Supply],MATCH(1,(Supply[Unit Category]='Monthly Constraints'!$A16)*(Supply[Month]='Monthly Constraints'!E$2)*(Supply[Hour Ending]='Monthly Constraints'!E$3),0)) -> 1417.08 | F16: =INDEX(Supply[Supply],MATCH(1,(Supply[Unit Category]='Monthly Constraints'!$A16)*(Supply[Month]='Monthly Constraints'!F$2)*(Supply[Hour Ending]='Monthly Constraints'!F$3),0)) -> 1429.32 | G16: =INDEX(Supply[Supply],MATCH(1,(Supply[Unit Category]='Monthly Constraints'!$A16)*(Supply[Month]='Monthly Constraints'!G$2)*(Supply[Hour Ending]='Monthly Constraints'!G$3),0)) -> 1418.57 | H16: =INDEX(Supply[Supply],MATCH(1,(Supply[Unit Category]='Monthly Constraints'!$A16)*(Supply[Month]='Monthly Constraints'!H$2)*(Supply[Hour Ending]='Monthly Constraints'!H$3),0)) -> 1418.44 | I16: =INDEX(Supply[Supply],MATCH(1,(Supply[Unit Category]='Monthly Constraints'!$A16)*(Supply[Month]='Monthly Constraints'!I$2)*(Supply[Hour Ending]='Monthly Constraints'!I$3),0)) -> 1417.55 | J16: =INDEX(Supply[Supply],MATCH(1,(Supply[Unit Category]='Monthly Constraints'!$A16)*(Supply[Month]='Monthly Constraints'!J$2)*(Supply[Hour Ending]='Monthly Constraints'!J$3),0)) -> 1417.03 | K16: =INDEX(Supply[Supply],MATCH(1,(Supply[Unit Category]='Monthly Constraints'!$A16)*(Supply[Month]='Monthly Constraints'!K$2)*(Supply[Hour Ending]='Monthly Constraints'!K$3),0)) -> 1418 | L16: =INDEX(Supply[Supply],MATCH(1,(Supply[Unit Category]='Monthly Constraints'!$A16)*(Supply[Month]='Monthly Constraints'!L$2)*(Supply[Hour Ending]='Monthly Constraints'!L$3),0)) -> 1417.13 | M16: =INDEX(Supply[Supply],MATCH(1,(Supply[Unit Category]='Monthly Constraints'!$A16)*(Supply[Month]='Monthly Constraints'!M$2)*(Supply[Hour Ending]='Monthly Constraints'!M$3),0)) -> 1417
A17: Storage | B17: =INDEX(StorageAllocation[Storage (MW)],MATCH(1,(StorageAllocation[Month]='Monthly Constraints'!B$2)*(StorageAllocation[Hour Ending]='Monthly Constraints'!B$3),0)) -> 6771.269031 | C17: =INDEX(StorageAllocation[Storage (MW)],MATCH(1,(StorageAllocation[Month]='Monthly Constraints'!C$2)*(StorageAllocation[Hour Ending]='Monthly Constraints'!C$3),0)) -> 7279.60614 | D17: =INDEX(StorageAllocation[Storage (MW)],MATCH(1,(StorageAllocation[Month]='Monthly Constraints'!D$2)*(StorageAllocation[Hour Ending]='Monthly Constraints'!D$3),0)) -> 7981.994231 | E17: =INDEX(StorageAllocation[Storage (MW)],MATCH(1,(StorageAllocation[Month]='Monthly Constraints'!E$2)*(StorageAllocation[Hour Ending]='Monthly Constraints'!E$3),0)) -> 9522.770117 | F17: =INDEX(StorageAllocation[Storage (MW)],MATCH(1,(StorageAllocation[Month]='Monthly Constraints'!F$2)*(StorageAllocation[Hour Ending]='Monthly Constraints'!F$3),0)) -> 10181.43454 | G17: =INDEX(StorageAllocation[Storage (MW)],MATCH(1,(StorageAllocation[Month]='Monthly Constraints'!G$2)*(StorageAllocation[Hour Ending]='Monthly Constraints'!G$3),0)) -> 11558.22494 | H17: =INDEX(StorageAllocation[Storage (MW)],MATCH(1,(StorageAllocation[Month]='Monthly Constraints'!H$2)*(StorageAllocation[Hour Ending]='Monthly Constraints'!H$3),0)) -> 12089.34802 | I17: =INDEX(StorageAllocation[Storage (MW)],MATCH(1,(StorageAllocation[Month]='Monthly Constraints'!I$2)*(StorageAllocation[Hour Ending]='Monthly Constraints'!I$3),0)) -> 12572.85234 | J17: =INDEX(StorageAllocation[Storage (MW)],MATCH(1,(StorageAllocation[Month]='Monthly Constraints'!J$2)*(StorageAllocation[Hour Ending]='Monthly Constraints'!J$3),0)) -> 12432.07336 | K17: =INDEX(StorageAllocation[Storage (MW)],MATCH(1,(StorageAllocation[Month]='Monthly Constraints'!K$2)*(StorageAllocation[Hour Ending]='Monthly Constraints'!K$3),0)) -> 11274.05928 | L17: =INDEX(StorageAllocation[Storage (MW)],MATCH(1,(StorageAllocation[Month]='Monthly Constraints'!L$2)*(StorageAllocation[Hour Ending]='Monthly Constraints'!L$3),0)) -> 8340.147101 | M17: =INDEX(StorageAllocation[Storage (MW)],MATCH(1,(StorageAllocation[Month]='Monthly Constraints'!M$2)*(StorageAllocation[Hour Ending]='Monthly Constraints'!M$3),0)) -> 5549.775704
A18: Solar Fixed_Norcal | B18: =INDEX(Supply[Supply],MATCH(1,(Supply[Unit Category]='Monthly Constraints'!$A18)*(Supply[Month]='Monthly Constraints'!B$2)*(Supply[Hour Ending]='Monthly Constraints'!B$3),0)) -> 0 | C18: =INDEX(Supply[Supply],MATCH(1,(Supply[Unit Category]='Monthly Constraints'!$A18)*(Supply[Month]='Monthly Constraints'!C$2)*(Supply[Hour Ending]='Monthly Constraints'!C$3),0)) -> 0 | D18: =INDEX(Supply[Supply],MATCH(1,(Supply[Unit Category]='Monthly Constraints'!$A18)*(Supply[Month]='Monthly Constraints'!D$2)*(Supply[Hour Ending]='Monthly Constraints'!D$3),0)) -> 0 | E18: =INDEX(Supply[Supply],MATCH(1,(Supply[Unit Category]='Monthly Constraints'!$A18)*(Supply[Month]='Monthly Constraints'!E$2)*(Supply[Hour Ending]='Monthly Constraints'!E$3),0)) -> 26.01251371 | F18: =INDEX(Supply[Supply],MATCH(1,(Supply[Unit Category]='Monthly Constraints'!$A18)*(Supply[Month]='Monthly Constraints'!F$2)*(Supply[Hour Ending]='Monthly Constraints'!F$3),0)) -> 0.1693371729 | G18: =INDEX(Supply[Supply],MATCH(1,(Supply[Unit Category]='Monthly Constraints'!$A18)*(Supply[Month]='Monthly Constraints'!G$2)*(Supply[Hour Ending]='Monthly Constraints'!G$3),0)) -> 201.3490122 | H18: =INDEX(Supply[Supply],MATCH(1,(Supply[Unit Category]='Monthly Constraints'!$A18)*(Supply[Month]='Monthly Constraints'!H$2)*(Supply[Hour Ending]='Monthly Constraints'!H$3),0)) -> 158.9572742 | I18: =INDEX(Supply[Supply],MATCH(1,(Supply[Unit Category]='Monthly Constraints'!$A18)*(Supply[Month]='Monthly Constraints'!I$2)*(Supply[Hour Ending]='Monthly Constraints'!I$3),0)) -> 23.44627597 | J18: =INDEX(Supply[Supply],MATCH(1,(Supply[Unit Category]='Monthly Constraints'!$A18)*(Supply[Month]='Monthly Constraints'!J$2)*(Supply[Hour Ending]='Monthly Constraints'!J$3),0)) -> 167.9688201 | K18: =INDEX(Supply[Supply],MATCH(1,(Supply[Unit Category]='Monthly Constraints'!$A18)*(Supply[Month]='Monthly Constraints'!K$2)*(Supply[Hour Ending]='Monthly Constraints'!K$3),0)) -> 12.58042983 | L18: =INDEX(Supply[Supply],MATCH(1,(Supply[Unit Category]='Monthly Constraints'!$A18)*(Supply[Month]='Monthly Constraints'!L$2)*(Supply[Hour Ending]='Monthly Constraints'!L$3),0)) -> 0 | M18: =INDEX(Supply[Supply],MATCH(1,(Supply[Unit Category]='Monthly Constraints'!$A18)*(Supply[Month]='Monthly Constraints'!M$2)*(Supply[Hour Ending]='Monthly Constraints'!M$3),0)) -> 0
A19: Solar Fixed_Socal | B19: =INDEX(Supply[Supply],MATCH(1,(Supply[Unit Category]='Monthly Constraints'!$A19)*(Supply[Month]='Monthly Constraints'!B$2)*(Supply[Hour Ending]='Monthly Constraints'!B$3),0)) -> 0.01142152164 | C19: =INDEX(Supply[Supply],MATCH(1,(Supply[Unit Category]='Monthly Constraints'!$A19)*(Supply[Month]='Monthly Constraints'!C$2)*(Supply[Hour Ending]='Monthly Constraints'!C$3),0)) -> 0.01162041363 | D19: =INDEX(Supply[Supply],MATCH(1,(Supply[Unit Category]='Monthly Constraints'!$A19)*(Supply[Month]='Monthly Constraints'!D$2)*(Supply[Hour Ending]='Monthly Constraints'!D$3),0)) -> 0.01103694118 | E19: =INDEX(Supply[Supply],MATCH(1,(Supply[Unit Category]='Monthly Constraints'!$A19)*(Supply[Month]='Monthly Constraints'!E$2)*(Supply[Hour Ending]='Monthly Constraints'!E$3),0)) -> 8.222857478 | F19: =INDEX(Supply[Supply],MATCH(1,(Supply[Unit Category]='Monthly Constraints'!$A19)*(Supply[Month]='Monthly Constraints'!F$2)*(Supply[Hour Ending]='Monthly Constraints'!F$3),0)) -> 0.1537637 | G19: =INDEX(Supply[Supply],MATCH(1,(Supply[Unit Category]='Monthly Constraints'!$A19)*(Supply[Month]='Monthly Constraints'!G$2)*(Supply[Hour Ending]='Monthly Constraints'!G$3),0)) -> 96.42175984 | H19: =INDEX(Supply[Supply],MATCH(1,(Supply[Unit Category]='Monthly Constraints'!$A19)*(Supply[Month]='Monthly Constraints'!H$2)*(Supply[Hour Ending]='Monthly Constraints'!H$3),0)) -> 76.42022429 | I19: =INDEX(Supply[Supply],MATCH(1,(Supply[Unit Category]='Monthly Constraints'!$A19)*(Supply[Month]='Monthly Constraints'!I$2)*(Supply[Hour Ending]='Monthly Constraints'!I$3),0)) -> 10.78260972 | J19: =INDEX(Supply[Supply],MATCH(1,(Supply[Unit Category]='Monthly Constraints'!$A19)*(Supply[Month]='Monthly Constraints'!J$2)*(Supply[Hour Ending]='Monthly Constraints'!J$3),0)) -> 79.21423409 | K19: =INDEX(Supply[Supply],MATCH(1,(Supply[Unit Category]='Monthly Constraints'!$A19)*(Supply[Month]='Monthly Constraints'!K$2)*(Supply[Hour Ending]='Monthly Constraints'!K$3),0)) -> 4.344775953 | L19: =INDEX(Supply[Supply],MATCH(1,(Supply[Unit Category]='Monthly Constraints'!$A19)*(Supply[Month]='Monthly Constraints'!L$2)*(Supply[Hour Ending]='Monthly Constraints'!L$3),0)) -> 0.02120037215 | M19: =INDEX(Supply[Supply],MATCH(1,(Supply[Unit Category]='Monthly Constraints'!$A19)*(Supply[Month]='Monthly Constraints'!M$2)*(Supply[Hour Ending]='Monthly Constraints'!M$3),0)) -> 0.01440952659
A20: Solar Thermal_Norcal | B20: =INDEX(Supply[Supply],MATCH(1,(Supply[Unit Category]='Monthly Constraints'!$A20)*(Supply[Month]='Monthly Constraints'!B$2)*(Supply[Hour Ending]='Monthly Constraints'!B$3),0)) -> 0 | C20: =INDEX(Supply[Supply],MATCH(1,(Supply[Unit Category]='Monthly Constraints'!$A20)*(Supply[Month]='Monthly Constraints'!C$2)*(Supply[Hour Ending]='Monthly Constraints'!C$3),0)) -> 0 | D20: =INDEX(Supply[Supply],MATCH(1,(Supply[Unit Category]='Monthly Constraints'!$A20)*(Supply[Month]='Monthly Constraints'!D$2)*(Supply[Hour Ending]='Monthly Constraints'!D$3),0)) -> 0 | E20: =INDEX(Supply[Supply],MATCH(1,(Supply[Unit Category]='Monthly Constraints'!$A20)*(Supply[Month]='Monthly Constraints'!E$2)*(Supply[Hour Ending]='Monthly Constraints'!E$3),0)) -> 0 | F20: =INDEX(Supply[Supply],MATCH(1,(Supply[Unit Category]='Monthly Constraints'!$A20)*(Supply[Month]='Monthly Constraints'!F$2)*(Supply[Hour Ending]='Monthly Constraints'!F$3),0)) -> 0 | G20: =INDEX(Supply[Supply],MATCH(1,(Supply[Unit Category]='Monthly Constraints'!$A20)*(Supply[Month]='Monthly Constraints'!G$2)*(Supply[Hour Ending]='Monthly Constraints'!G$3),0)) -> 0 | H20: =INDEX(Supply[Supply],MATCH(1,(Supply[Unit Category]='Monthly Constraints'!$A20)*(Supply[Month]='Monthly Constraints'!H$2)*(Supply[Hour Ending]='Monthly Constraints'!H$3),0)) -> 0 | I20: =INDEX(Supply[Supply],MATCH(1,(Supply[Unit Category]='Monthly Constraints'!$A20)*(Supply[Month]='Monthly Constraints'!I$2)*(Supply[Hour Ending]='Monthly Constraints'!I$3),0)) -> 0 | J20: =INDEX(Supply[Supply],MATCH(1,(Supply[Unit Category]='Monthly Constraints'!$A20)*(Supply[Month]='Monthly Constraints'!J$2)*(Supply[Hour Ending]='Monthly Constraints'!J$3),0)) -> 0 | K20: =INDEX(Supply[Supply],MATCH(1,(Supply[Unit Category]='Monthly Constraints'!$A20)*(Supply[Month]='Monthly Constraints'!K$2)*(Supply[Hour Ending]='Monthly Constraints'!K$3),0)) -> 0 | L20: =INDEX(Supply[Supply],MATCH(1,(Supply[Unit Category]='Monthly Constraints'!$A20)*(Supply[Month]='Monthly Constraints'!L$2)*(Supply[Hour Ending]='Monthly Constraints'!L$3),0)) -> 0 | M20: =INDEX(Supply[Supply],MATCH(1,(Supply[Unit Category]='Monthly Constraints'!$A20)*(Supply[Month]='Monthly Constraints'!M$2)*(Supply[Hour Ending]='Monthly Constraints'!M$3),0)) -> 0
A21: Solar Thermal_Socal | B21: =INDEX(Supply[Supply],MATCH(1,(Supply[Unit Category]='Monthly Constraints'!$A21)*(Supply[Month]='Monthly Constraints'!B$2)*(Supply[Hour Ending]='Monthly Constraints'!B$3),0)) -> 0 | C21: =INDEX(Supply[Supply],MATCH(1,(Supply[Unit Category]='Monthly Constraints'!$A21)*(Supply[Month]='Monthly Constraints'!C$2)*(Supply[Hour Ending]='Monthly Constraints'!C$3),0)) -> 0 | D21: =INDEX(Supply[Supply],MATCH(1,(Supply[Unit Category]='Monthly Constraints'!$A21)*(Supply[Month]='Monthly Constraints'!D$2)*(Supply[Hour Ending]='Monthly Constraints'!D$3),0)) -> 0 | E21: =INDEX(Supply[Supply],MATCH(1,(Supply[Unit Category]='Monthly Constraints'!$A21)*(Supply[Month]='Monthly Constraints'!E$2)*(Supply[Hour Ending]='Monthly Constraints'!E$3),0)) -> 31.44112097 | F21: =INDEX(Supply[Supply],MATCH(1,(Supply[Unit Category]='Monthly Constraints'!$A21)*(Supply[Month]='Monthly Constraints'!F$2)*(Supply[Hour Ending]='Monthly Constraints'!F$3),0)) -> 0 | G21: =INDEX(Supply[Supply],MATCH(1,(Supply[Unit Category]='Monthly Constraints'!$A21)*(Supply[Month]='Monthly Constraints'!G$2)*(Supply[Hour Ending]='Monthly Constraints'!G$3),0)) -> 132.0597108 | H21: =INDEX(Supply[Supply],MATCH(1,(Supply[Unit Category]='Monthly Constraints'!$A21)*(Supply[Month]='Monthly Constraints'!H$2)*(Supply[Hour Ending]='Monthly Constraints'!H$3),0)) -> 105.3724896 | I21: =INDEX(Supply[Supply],MATCH(1,(Supply[Unit Category]='Monthly Constraints'!$A21)*(Supply[Month]='Monthly Constraints'!I$2)*(Supply[Hour Ending]='Monthly Constraints'!I$3),0)) -> 39.85558614 | J21: =INDEX(Supply[Supply],MATCH(1,(Supply[Unit Category]='Monthly Constraints'!$A21)*(Supply[Month]='Monthly Constraints'!J$2)*(Supply[Hour Ending]='Monthly Constraints'!J$3),0)) -> 92.18762023 | K21: =INDEX(Supply[Supply],MATCH(1,(Supply[Unit Category]='Monthly Constraints'!$A21)*(Supply[Month]='Monthly Constraints'!K$2)*(Supply[Hour Ending]='Monthly Constraints'!K$3),0)) -> 19.49276058 | L21: =INDEX(Supply[Supply],MATCH(1,(Supply[Unit Category]='Monthly Constraints'!$A21)*(Supply[Month]='Monthly Constraints'!L$2)*(Supply[Hour Ending]='Monthly Constraints'!L$3),0)) -> 0 | M21: =INDEX(Supply[Supply],MATCH(1,(Supply[Unit Category]='Monthly Constraints'!$A21)*(Supply[Month]='Monthly Constraints'!M$2)*(Supply[Hour Ending]='Monthly Constraints'!M$3),0)) -> 0
A22: Solar Tracking_Norcal | B22: =INDEX(Supply[Supply],MATCH(1,(Supply[Unit Category]='Monthly Constraints'!$A22)*(Supply[Month]='Monthly Constraints'!B$2)*(Supply[Hour Ending]='Monthly Constraints'!B$3),0)) -> 0 | C22: =INDEX(Supply[Supply],MATCH(1,(Supply[Unit Category]='Monthly Constraints'!$A22)*(Supply[Month]='Monthly Constraints'!C$2)*(Supply[Hour Ending]='Monthly Constraints'!C$3),0)) -> 0 | D22: =INDEX(Supply[Supply],MATCH(1,(Supply[Unit Category]='Monthly Constraints'!$A22)*(Supply[Month]='Monthly Constraints'!D$2)*(Supply[Hour Ending]='Monthly Constraints'!D$3),0)) -> 0 | E22: =INDEX(Supply[Supply],MATCH(1,(Supply[Unit Category]='Monthly Constraints'!$A22)*(Supply[Month]='Monthly Constraints'!E$2)*(Supply[Hour Ending]='Monthly Constraints'!E$3),0)) -> 66.50314782 | F22: =INDEX(Supply[Supply],MATCH(1,(Supply[Unit Category]='Monthly Constraints'!$A22)*(Supply[Month]='Monthly Constraints'!F$2)*(Supply[Hour Ending]='Monthly Constraints'!F$3),0)) -> 0.1374392357 | G22: =INDEX(Supply[Supply],MATCH(1,(Supply[Unit Category]='Monthly Constraints'!$A22)*(Supply[Month]='Monthly Constraints'!G$2)*(Supply[Hour Ending]='Monthly Constraints'!G$3),0)) -> 780.6968575 | H22: =INDEX(Supply[Supply],MATCH(1,(Supply[Unit Category]='Monthly Constraints'!$A22)*(Supply[Month]='Monthly Constraints'!H$2)*(Supply[Hour Ending]='Monthly Constraints'!H$3),0)) -> 587.7814744 | I22: =INDEX(Supply[Supply],MATCH(1,(Supply[Unit Category]='Monthly Constraints'!$A22)*(Supply[Month]='Monthly Constraints'!I$2)*(Supply[Hour Ending]='Monthly Constraints'!I$3),0)) -> 72.14144022 | J22: =INDEX(Supply[Supply],MATCH(1,(Supply[Unit Category]='Monthly Constraints'!$A22)*(Supply[Month]='Monthly Constraints'!J$2)*(Supply[Hour Ending]='Monthly Constraints'!J$3),0)) -> 455.948511 | K22: =INDEX(Supply[Supply],MATCH(1,(Supply[Unit Category]='Monthly Constraints'!$A22)*(Supply[Month]='Monthly Constraints'!K$2)*(Supply[Hour Ending]='Monthly Constraints'!K$3),0)) -> 18.43082528 | L22: =INDEX(Supply[Supply],MATCH(1,(Supply[Unit Category]='Monthly Constraints'!$A22)*(Supply[Month]='Monthly Constraints'!L$2)*(Supply[Hour Ending]='Monthly Constraints'!L$3),0)) -> 0 | M22: =INDEX(Supply[Supply],MATCH(1,(Supply[Unit Category]='Monthly Constraints'!$A22)*(Supply[Month]='Monthly Constraints'!M$2)*(Supply[Hour Ending]='Monthly Constraints'!M$3),0)) -> 0
A23: Solar Tracking_Socal | B23: =INDEX(Supply[Supply],MATCH(1,(Supply[Unit Category]='Monthly Constraints'!$A23)*(Supply[Month]='Monthly Constraints'!B$2)*(Supply[Hour Ending]='Monthly Constraints'!B$3),0)) -> 0 | C23: =INDEX(Supply[Supply],MATCH(1,(Supply[Unit Category]='Monthly Constraints'!$A23)*(Supply[Month]='Monthly Constraints'!C$2)*(Supply[Hour Ending]='Monthly Constraints'!C$3),0)) -> 0 | D23: =INDEX(Supply[Supply],MATCH(1,(Supply[Unit Category]='Monthly Constraints'!$A23)*(Supply[Month]='Monthly Constraints'!D$2)*(Supply[Hour Ending]='Monthly Constraints'!D$3),0)) -> 0 | E23: =INDEX(Supply[Supply],MATCH(1,(Supply[Unit Category]='Monthly Constraints'!$A23)*(Supply[Month]='Monthly Constraints'!E$2)*(Supply[Hour Ending]='Monthly Constraints'!E$3),0)) -> 44.56677871 | F23: =INDEX(Supply[Supply],MATCH(1,(Supply[Unit Category]='Monthly Constraints'!$A23)*(Supply[Month]='Monthly Constraints'!F$2)*(Supply[Hour Ending]='Monthly Constraints'!F$3),0)) -> 0.007373915938 | G23: =INDEX(Supply[Supply],MATCH(1,(Supply[Unit Category]='Monthly Constraints'!$A23)*(Supply[Month]='Monthly Constraints'!G$2)*(Supply[Hour Ending]='Monthly Constraints'!G$3),0)) -> 681.4693981 | H23: =INDEX(Supply[Supply],MATCH(1,(Supply[Unit Category]='Monthly Constraints'!$A23)*(Supply[Month]='Monthly Constraints'!H$2)*(Supply[Hour Ending]='Monthly Constraints'!H$3),0)) -> 580.4031639 | I23: =INDEX(Supply[Supply],MATCH(1,(Supply[Unit Category]='Monthly Constraints'!$A23)*(Supply[Month]='Monthly Constraints'!I$2)*(Supply[Hour Ending]='Monthly Constraints'!I$3),0)) -> 58.18641941 | J23: =INDEX(Supply[Supply],MATCH(1,(Supply[Unit Category]='Monthly Constraints'!$A23)*(Supply[Month]='Monthly Constraints'!J$2)*(Supply[Hour Ending]='Monthly Constraints'!J$3),0)) -> 437.5074062 | K23: =INDEX(Supply[Supply],MATCH(1,(Supply[Unit Category]='Monthly Constraints'!$A23)*(Supply[Month]='Monthly Constraints'!K$2)*(Supply[Hour Ending]='Monthly Constraints'!K$3),0)) -> 16.47270237 | L23: =INDEX(Supply[Supply],MATCH(1,(Supply[Unit Category]='Monthly Constraints'!$A23)*(Supply[Month]='Monthly Constraints'!L$2)*(Supply[Hour Ending]='Monthly Constraints'!L$3),0)) -> 0.001086567444 | M23: =INDEX(Supply[Supply],MATCH(1,(Supply[Unit Category]='Monthly Constraints'!$A23)*(Supply[Month]='Monthly Constraints'!M$2)*(Supply[Hour Ending]='Monthly Constraints'!M$3),0)) -> 0
A24: Wind_Norcal | B24: =INDEX(Supply[Supply],MATCH(1,(Supply[Unit Category]='Monthly Constraints'!$A24)*(Supply[Month]='Monthly Constraints'!B$2)*(Supply[Hour Ending]='Monthly Constraints'!B$3),0)) -> 111.0653852 | C24: =INDEX(Supply[Supply],MATCH(1,(Supply[Unit Category]='Monthly Constraints'!$A24)*(Supply[Month]='Monthly Constraints'!C$2)*(Supply[Hour Ending]='Monthly Constraints'!C$3),0)) -> 166.1518318 | D24: =INDEX(Supply[Supply],MATCH(1,(Supply[Unit Category]='Monthly Constraints'!$A24)*(Supply[Month]='Monthly Constraints'!D$2)*(Supply[Hour Ending]='Monthly Constraints'!D$3),0)) -> 366.8655627 | E24: =INDEX(Supply[Supply],MATCH(1,(Supply[Unit Category]='Monthly Constraints'!$A24)*(Supply[Month]='Monthly Constraints'!E$2)*(Supply[Hour Ending]='Monthly Constraints'!E$3),0)) -> 687.3115926 | F24: =INDEX(Supply[Supply],MATCH(1,(Supply[Unit Category]='Monthly Constraints'!$A24)*(Supply[Month]='Monthly Constraints'!F$2)*(Supply[Hour Ending]='Monthly Constraints'!F$3),0)) -> 937.1557475 | G24: =INDEX(Supply[Supply],MATCH(1,(Supply[Unit Category]='Monthly Constraints'!$A24)*(Supply[Month]='Monthly Constraints'!G$2)*(Supply[Hour Ending]='Monthly Constraints'!G$3),0)) -> 860.1905459 | H24: =INDEX(Supply[Supply],MATCH(1,(Supply[Unit Category]='Monthly Constraints'!$A24)*(Supply[Month]='Monthly Constraints'!H$2)*(Supply[Hour Ending]='Monthly Constraints'!H$3),0)) -> 987.286491 | I24: =INDEX(Supply[Supply],MATCH(1,(Supply[Unit Category]='Monthly Constraints'!$A24)*(Supply[Month]='Monthly Constraints'!I$2)*(Supply[Hour Ending]='Monthly Constraints'!I$3),0)) -> 719.370478 | J24: =INDEX(Supply[Supply],MATCH(1,(Supply[Unit Category]='Monthly Constraints'!$A24)*(Supply[Month]='Monthly Constraints'!J$2)*(Supply[Hour Ending]='Monthly Constraints'!J$3),0)) -> 581.3042887 | K24: =INDEX(Supply[Supply],MATCH(1,(Supply[Unit Category]='Monthly Constraints'!$A24)*(Supply[Month]='Monthly Constraints'!K$2)*(Supply[Hour Ending]='Monthly Constraints'!K$3),0)) -> 213.9071906 | L24: =INDEX(Supply[Supply],MATCH(1,(Supply[Unit Category]='Monthly Constraints'!$A24)*(Supply[Month]='Monthly Constraints'!L$2)*(Supply[Hour Ending]='Monthly Constraints'!L$3),0)) -> 78.79202707 | M24: =INDEX(Supply[Supply],MATCH(1,(Supply[Unit Category]='Monthly Constraints'!$A24)*(Supply[Month]='Monthly Constraints'!M$2)*(Supply[Hour Ending]='Monthly Constraints'!M$3),0)) -> 146.0153205
A25: Wind_Socal | B25: =INDEX(Supply[Supply],MATCH(1,(Supply[Unit Category]='Monthly Constraints'!$A25)*(Supply[Month]='Monthly Constraints'!B$2)*(Supply[Hour Ending]='Monthly Constraints'!B$3),0)) -> 390.1544754 | C25: =INDEX(Supply[Supply],MATCH(1,(Supply[Unit Category]='Monthly Constraints'!$A25)*(Supply[Month]='Monthly Constraints'!C$2)*(Supply[Hour Ending]='Monthly Constraints'!C$3),0)) -> 941.78956 | D25: =INDEX(Supply[Supply],MATCH(1,(Supply[Unit Category]='Monthly Constraints'!$A25)*(Supply[Month]='Monthly Constraints'!D$2)*(Supply[Hour Ending]='Monthly Constraints'!D$3),0)) -> 1042.103622 | E25: =INDEX(Supply[Supply],MATCH(1,(Supply[Unit Category]='Monthly Constraints'!$A25)*(Supply[Month]='Monthly Constraints'!E$2)*(Supply[Hour Ending]='Monthly Constraints'!E$3),0)) -> 1699.098366 | F25: =INDEX(Supply[Supply],MATCH(1,(Supply[Unit Category]='Monthly Constraints'!$A25)*(Supply[Month]='Monthly Constraints'!F$2)*(Supply[Hour Ending]='Monthly Constraints'!F$3),0)) -> 1915.548833 | G25: =INDEX(Supply[Supply],MATCH(1,(Supply[Unit Category]='Monthly Constraints'!$A25)*(Supply[Month]='Monthly Constraints'!G$2)*(Supply[Hour Ending]='Monthly Constraints'!G$3),0)) -> 1939.057122 | H25: =INDEX(Supply[Supply],MATCH(1,(Supply[Unit Category]='Monthly Constraints'!$A25)*(Supply[Month]='Monthly Constraints'!H$2)*(Supply[Hour Ending]='Monthly Constraints'!H$3),0)) -> 2144.61646 | I25: =INDEX(Supply[Supply],MATCH(1,(Supply[Unit Category]='Monthly Constraints'!$A25)*(Supply[Month]='Monthly Constraints'!I$2)*(Supply[Hour Ending]='Monthly Constraints'!I$3),0)) -> 1819.59786 | J25: =INDEX(Supply[Supply],MATCH(1,(Supply[Unit Category]='Monthly Constraints'!$A25)*(Supply[Month]='Monthly Constraints'!J$2)*(Supply[Hour Ending]='Monthly Constraints'!J$3),0)) -> 1164.67811 | K25: =INDEX(Supply[Supply],MATCH(1,(Supply[Unit Category]='Monthly Constraints'!$A25)*(Supply[Month]='Monthly Constraints'!K$2)*(Supply[Hour Ending]='Monthly Constraints'!K$3),0)) -> 528.1196244 | L25: =INDEX(Supply[Supply],MATCH(1,(Supply[Unit Category]='Monthly Constraints'!$A25)*(Supply[Month]='Monthly Constraints'!L$2)*(Supply[Hour Ending]='Monthly Constraints'!L$3),0)) -> 306.5963925 | M25: =INDEX(Supply[Supply],MATCH(1,(Supply[Unit Category]='Monthly Constraints'!$A25)*(Supply[Month]='Monthly Constraints'!M$2)*(Supply[Hour Ending]='Monthly Constraints'!M$3),0)) -> 353.1825505
A26: Total Supply | B26: =SUM(B4:B25) -> 47828.47334 | C26: =SUM(C4:C25) -> 48656.51693 | D26: 49652.34385 | E26: 53482.59205 | F26: 55202.21021 | G26: 58582.63605 | H26: 59358.14536 | I26: 57959.42904 | J26: 57831.98731 | K26: 53798.57384 | L26: 49667.47002 | M26: 45591.89491
A27: Managed Load | B27: =INDEX(ManagedLoad[Managed Load (MW)],MATCH(1,(ManagedLoad[Month]='Monthly Constraints'!B$2)*(ManagedLoad[Hour Ending]='Monthly Constraints'!B$3),0)) -> 30003 | C27: =INDEX(ManagedLoad[Managed Load (MW)],MATCH(1,(ManagedLoad[Month]='Monthly Constraints'!C$2)*(ManagedLoad[Hour Ending]='Monthly Constraints'!C$3),0)) -> 29419 | D27: =INDEX(ManagedLoad[Managed Load (MW)],MATCH(1,(ManagedLoad[Month]='Monthly Constraints'!D$2)*(ManagedLoad[Hour Ending]='Monthly Constraints'!D$3),0)) -> 29412 | E27: =INDEX(ManagedLoad[Managed Load (MW)],MATCH(1,(ManagedLoad[Month]='Monthly Constraints'!E$2)*(ManagedLoad[Hour Ending]='Monthly Constraints'!E$3),0)) -> 31688 | F27: =INDEX(ManagedLoad[Managed Load (MW)],MATCH(1,(ManagedLoad[Month]='Monthly Constraints'!F$2)*(ManagedLoad[Hour Ending]='Monthly Constraints'!F$3),0)) -> 33897 | G27: =INDEX(ManagedLoad[Managed Load (MW)],MATCH(1,(ManagedLoad[Month]='Monthly Constraints'!G$2)*(ManagedLoad[Hour Ending]='Monthly Constraints'!G$3),0)) -> 41906 | H27: =INDEX(ManagedLoad[Managed Load (MW)],MATCH(1,(ManagedLoad[Month]='Monthly Constraints'!H$2)*(ManagedLoad[Hour Ending]='Monthly Constraints'!H$3),0)) -> 45588 | I27: =INDEX(ManagedLoad[Managed Load (MW)],MATCH(1,(ManagedLoad[Month]='Monthly Constraints'!I$2)*(ManagedLoad[Hour Ending]='Monthly Constraints'!I$3),0)) -> 44125 | J27: =INDEX(ManagedLoad[Managed Load (MW)],MATCH(1,(ManagedLoad[Month]='Monthly Constraints'!J$2)*(ManagedLoad[Hour Ending]='Monthly Constraints'!J$3),0)) -> 46395 | K27: =INDEX(ManagedLoad[Managed Load (MW)],MATCH(1,(ManagedLoad[Month]='Monthly Constraints'!K$2)*(ManagedLoad[Hour Ending]='Monthly Constraints'!K$3),0)) -> 37720 | L27: =INDEX(ManagedLoad[Managed Load (MW)],MATCH(1,(ManagedLoad[Month]='Monthly Constraints'!L$2)*(ManagedLoad[Hour Ending]='Monthly Constraints'!L$3),0)) -> 31645 | M27: =INDEX(ManagedLoad[Managed Load (MW)],MATCH(1,(ManagedLoad[Month]='Monthly Constraints'!M$2)*(ManagedLoad[Hour Ending]='Monthly Constraints'!M$3),0)) -> 28855
A28: NOU | B28: =INDEX(ManagedLoad[NOU (MW)],MATCH(1,(ManagedLoad[Month]='Monthly Constraints'!B$2)*(ManagedLoad[Hour Ending]='Monthly Constraints'!B$3),0)) -> 9854 | C28: =INDEX(ManagedLoad[NOU (MW)],MATCH(1,(ManagedLoad[Month]='Monthly Constraints'!C$2)*(ManagedLoad[Hour Ending]='Monthly Constraints'!C$3),0)) -> 11127 | D28: =INDEX(ManagedLoad[NOU (MW)],MATCH(1,(ManagedLoad[Month]='Monthly Constraints'!D$2)*(ManagedLoad[Hour Ending]='Monthly Constraints'!D$3),0)) -> 11964 | E28: =INDEX(ManagedLoad[NOU (MW)],MATCH(1,(ManagedLoad[Month]='Monthly Constraints'!E$2)*(ManagedLoad[Hour Ending]='Monthly Constraints'!E$3),0)) -> 11270 | F28: =INDEX(ManagedLoad[NOU (MW)],MATCH(1,(ManagedLoad[Month]='Monthly Constraints'!F$2)*(ManagedLoad[Hour Ending]='Monthly Constraints'!F$3),0)) -> 10442 | G28: =INDEX(ManagedLoad[NOU (MW)],MATCH(1,(ManagedLoad[Month]='Monthly Constraints'!G$2)*(ManagedLoad[Hour Ending]='Monthly Constraints'!G$3),0)) -> 6509 | H28: =INDEX(ManagedLoad[NOU (MW)],MATCH(1,(ManagedLoad[Month]='Monthly Constraints'!H$2)*(ManagedLoad[Hour Ending]='Monthly Constraints'!H$3),0)) -> 3468 | I28: =INDEX(ManagedLoad[NOU (MW)],MATCH(1,(ManagedLoad[Month]='Monthly Constraints'!I$2)*(ManagedLoad[Hour Ending]='Monthly Constraints'!I$3),0)) -> 3775 | J28: =INDEX(ManagedLoad[NOU (MW)],MATCH(1,(ManagedLoad[Month]='Monthly Constraints'!J$2)*(ManagedLoad[Hour Ending]='Monthly Constraints'!J$3),0)) -> 1400 | K28: =INDEX(ManagedLoad[NOU (MW)],MATCH(1,(ManagedLoad[Month]='Monthly Constraints'!K$2)*(ManagedLoad[Hour Ending]='Monthly Constraints'!K$3),0)) -> 6742 | L28: =INDEX(ManagedLoad[NOU (MW)],MATCH(1,(ManagedLoad[Month]='Monthly Constraints'!L$2)*(ManagedLoad[Hour Ending]='Monthly Constraints'!L$3),0)) -> 9744 | M28: =INDEX(ManagedLoad[NOU (MW)],MATCH(1,(ManagedLoad[Month]='Monthly Constraints'!M$2)*(ManagedLoad[Hour Ending]='Monthly Constraints'!M$3),0)) -> 9138
A29: Managed Load + NOU | B29: =INDEX(ManagedLoad[Total (MW)],MATCH(1,(ManagedLoad[Month]='Monthly Constraints'!B$2)*(ManagedLoad[Hour Ending]='Monthly Constraints'!B$3),0)) -> 39857 | C29: =INDEX(ManagedLoad[Total (MW)],MATCH(1,(ManagedLoad[Month]='Monthly Constraints'!C$2)*(ManagedLoad[Hour Ending]='Monthly Constraints'!C$3),0)) -> 40546 | D29: =INDEX(ManagedLoad[Total (MW)],MATCH(1,(ManagedLoad[Month]='Monthly Constraints'!D$2)*(ManagedLoad[Hour Ending]='Monthly Constraints'!D$3),0)) -> 41376 | E29: =INDEX(ManagedLoad[Total (MW)],MATCH(1,(ManagedLoad[Month]='Monthly Constraints'!E$2)*(ManagedLoad[Hour Ending]='Monthly Constraints'!E$3),0)) -> 42958 | F29: =INDEX(ManagedLoad[Total (MW)],MATCH(1,(ManagedLoad[Month]='Monthly Constraints'!F$2)*(ManagedLoad[Hour Ending]='Monthly Constraints'!F$3),0)) -> 44339 | G29: =INDEX(ManagedLoad[Total (MW)],MATCH(1,(ManagedLoad[Month]='Monthly Constraints'!G$2)*(ManagedLoad[Hour Ending]='Monthly Constraints'!G$3),0)) -> 48415 | H29: =INDEX(ManagedLoad[Total (MW)],MATCH(1,(ManagedLoad[Month]='Monthly Constraints'!H$2)*(ManagedLoad[Hour Ending]='Monthly Constraints'!H$3),0)) -> 49056 | I29: =INDEX(ManagedLoad[Total (MW)],MATCH(1,(ManagedLoad[Month]='Monthly Constraints'!I$2)*(ManagedLoad[Hour Ending]='Monthly Constraints'!I$3),0)) -> 47900 | J29: =INDEX(ManagedLoad[Total (MW)],MATCH(1,(ManagedLoad[Month]='Monthly Constraints'!J$2)*(ManagedLoad[Hour Ending]='Monthly Constraints'!J$3),0)) -> 47795 | K29: =INDEX(ManagedLoad[Total (MW)],MATCH(1,(ManagedLoad[Month]='Monthly Constraints'!K$2)*(ManagedLoad[Hour Ending]='Monthly Constraints'!K$3),0)) -> 44462 | L29: =INDEX(ManagedLoad[Total (MW)],MATCH(1,(ManagedLoad[Month]='Monthly Constraints'!L$2)*(ManagedLoad[Hour Ending]='Monthly Constraints'!L$3),0)) -> 41389 | M29: =INDEX(ManagedLoad[Total (MW)],MATCH(1,(ManagedLoad[Month]='Monthly Constraints'!M$2)*(ManagedLoad[Hour Ending]='Monthly Constraints'!M$3),0)) -> 37993
A30: PRM | B30: =INDEX(PRM[Planning Reserve Margin],'Monthly Constraints'!B$2) -> 0.2000018402 | C30: =INDEX(PRM[Planning Reserve Margin],'Monthly Constraints'!C$2) -> 0.2000324798 | D30: =INDEX(PRM[Planning Reserve Margin],'Monthly Constraints'!D$2) -> 0.2000276451 | E30: =INDEX(PRM[Planning Reserve Margin],'Monthly Constraints'!E$2) -> 0.2449972543 | F30: =INDEX(PRM[Planning Reserve Margin],'Monthly Constraints'!F$2) -> 0.2450035004 | G30: =INDEX(PRM[Planning Reserve Margin],'Monthly Constraints'!G$2) -> 0.2100100392 | H30: =INDEX(PRM[Planning Reserve Margin],'Monthly Constraints'!H$2) -> 0.2100078555 | I30: =INDEX(PRM[Planning Reserve Margin],'Monthly Constraints'!I$2) -> 0.2100089571 | J30: =INDEX(PRM[Planning Reserve Margin],'Monthly Constraints'!J$2) -> 0.2100007807 | K30: =INDEX(PRM[Planning Reserve Margin],'Monthly Constraints'!K$2) -> 0.2099899654 | L30: =INDEX(PRM[Planning Reserve Margin],'Monthly Constraints'!L$2) -> 0.2000161884 | M30: =INDEX(PRM[Planning Reserve Margin],'Monthly Constraints'!M$2) -> 0.2000077622
A31: RA Requirement | B31: =B$29*(1+B$30) -> 47828.47334 | C31: =C$29*(1+C$30) -> 48656.51693 | D31: 49652.34385 | E31: 53482.59205 | F31: 55202.21021 | G31: 58582.63605 | H31: 59358.14536 | I31: 57959.42904 | J31: 57831.98731 | K31: 53798.57384 | L31: 49667.47002 | M31: 45591.89491

Sheet PRM Setting
A1: Month | B1: Charging Energy (MWh) | C1: Charging Requirement (MWh) | D1: Excess Energy Check (MWh) | E1: Daily Energy Check (MWh) | F1: Minimum SOC Check | G1: Maximum Capacity Check (MW) | H1: Planning Reserve Margin | I1: Constraining Hour Ending | J1: Managed Load (MW) | K1: NOU (MW) | L1: Supply (MW) | N1: Month | O1: Hour Ending | P1: Managed Load + NOU (MW) | Q1: Total Load with PRM (MW) | R1: Supply Without Storage (MW) | S1: Excess Capacity (MW) | T1: Storage (MW) | U1: Storage SOC Day 1 | V1: Storage SOC Day 2 | W1: Adjusted Supply (MW) | X1: Reserve Margin
A2: 1 | B2: =SUMIFS(StorageAllocation[Excess Capacity (MW)],StorageAllocation[Month],PRM[[#This Row],[Month]],StorageAllocation[Excess Capacity (MW)],">0") -> 59550.40004 | C2: =SUMIFS(StorageAllocation[Storage (MW)],StorageAllocation[Month],PRM[[#This Row],[Month]])/0.85 -> 59550.40004 | D2: =PRM[[#This Row],[Charging Energy (MWh)]]-PRM[[#This Row],[Charging Requirement (MWh)]] -> 2.254091669e-08 | E2: =4*INDEX(MonthlyCapacities[Total Capacity (MW)],MATCH(1,(MonthlyCapacities[Month]=PRM[[#This Row],[Month]])*(MonthlyCapacities[Unit Category]="Storage"),0))-SUMIFS(StorageAllocation[Storage (MW)],StorageAllocation[Month],PRM[[#This Row],[Month]]) -> 815.159964 | F2: =_xlfn.MINIFS(StorageAllocation[Storage SOC Day 2],StorageAllocation[Month],PRM[[#This Row],[Month]]) -> 0.2171071622 | G2: =INDEX(MonthlyCapacities[Total Capacity (MW)],MATCH(1,(MonthlyCapacities[Month]=PRM[[#This Row],[Month]])*(MonthlyCapacities[Unit Category]="Storage"),0))-_xlfn.MAXIFS(StorageAllocation[Storage (MW)],StorageAllocation[Month],PRM[[#This Row],[Month]]) -> 6086.980969 | H2: 0.2000018402 | I2: =MATCH(1,(StorageAllocation[Month]=PRM[[#This Row],[Month]])*(_xlfn.MINIFS(StorageAllocation[Excess Capacity (MW)],StorageAllocation[Month],PRM[[#This Row],[Month]])=StorageAllocation[Excess Capacity (MW)]),0)-24*(PRM[[#This Row],[Month]]-1) -> 19 | J2: =INDEX(ManagedLoad[Managed Load (MW)],MATCH(1,(ManagedLoad[Month]=PRM[[#This Row],[Month]])*(ManagedLoad[Hour Ending]=PRM[[#This Row],[Constraining Hour Ending]]),0)) -> 30003 | K2: =INDEX(NOU[NOU MW],MATCH(PRM[[#This Row],[Month]],NOU[Month],0)) -> 9854 | L2: =INDEX(StorageAllocation[Adjusted Supply (MW)],MATCH(1,(StorageAllocation[Month]=PRM[[#This Row],[Month]])*(StorageAllocation[Hour Ending]=PRM[[#This Row],[Constraining Hour Ending]]),0)) -> 47828.47334 | N2: 1 | O2: 1 | P2: =INDEX(ManagedLoad[Total (MW)],MATCH(1,(ManagedLoad[Month]=StorageAllocation[[#This Row],[Month]])*(ManagedLoad[Hour Ending]=StorageAllocation[[#This Row],[Hour Ending]]),0)) -> 34537 | Q2: =StorageAllocation[[#This Row],[Managed Load + NOU (MW)]]*(1+_xlfn.XLOOKUP(StorageAllocation[[#This Row],[Month]],PRM[Month],PRM[Planning Reserve Margin],0,0)) -> 41444.46356 | R2: =SUM(_xlfn._xlws.FILTER(Supply[Supply],(Supply[Month]=StorageAllocation[[#This Row],[Month]])*(Supply[Unit Category]<>"Storage")*(Supply[Hour Ending]=StorageAllocation[[#This Row],[Hour Ending]])=1,0)) -> 40039.10893 | S2: =StorageAllocation[[#This Row],[Supply Without Storage (MW)]]-StorageAllocation[[#This Row],[Total Load with PRM (MW)]] -> -1405.354629 | T2: =MAX(-StorageAllocation[[#This Row],[Excess Capacity (MW)]],0) -> 1405.354629 | U2: =_xlfn.IFS( StorageAllocation[[#This Row],[Hour Ending]]=1, 100% - StorageAllocation[[#This Row],[Storage (MW)]] / (4 * INDEX(MonthlyCapacities[Total Capacity (MW)],MATCH(1,(MonthlyCapacities[Month]=StorageAllocation[[#This Row],[Month]]) * (MonthlyCapacities[Unit Category]="Storage"),0))), StorageAllocation[[#This Row],[Storage (MW)]]>0, OFFSET(StorageAllocation[[#This Row],[Storage SOC Day 1]],-1,0) - StorageAllocation[[#This Row],[Storage (MW)]] / (4 * INDEX(MonthlyCapacities[Total Capacity (MW)],MATCH(1,(MonthlyCapacities[Month]=StorageAllocation[[#This Row],[Month]]) * (MonthlyCapacities[Unit Category]="Storage"),0))), TRUE, MIN( OFFSET(StorageAllocation[[#This Row],[Storage SOC Day 1]],-1,0) + 0.85 / 4, 100% ) ) -> 0.9726760129 | V2: =_xlfn.IFS( StorageAllocation[[#This Row],[Hour Ending]]=1, 100% - StorageAllocation[[#This Row],[Storage (MW)]] / (4 * INDEX(MonthlyCapacities[Total Capacity (MW)],MATCH(1,(MonthlyCapacities[Month]=StorageAllocation[[#This Row],[Month]]) * (MonthlyCapacities[Unit Category]="Storage"),0))), StorageAllocation[[#This Row],[Storage (MW)]]>0, OFFSET(StorageAllocation[[#This Row],[Storage SOC Day 1]],-1,0) - StorageAllocation[[#This Row],[Storage (MW)]] / (4 * INDEX(MonthlyCapacities[Total Capacity (MW)],MATCH(1,(MonthlyCapacities[Month]=StorageAllocation[[#This Row],[Month]]) * (MonthlyCapacities[Unit Category]="Storage"),0))), TRUE, MIN( OFFSET(StorageAllocation[[#This Row],[Storage SOC Day 1]],-1,0) + 0.85 / 4, 100% ) ) -> 0.9726760129 | W2: =StorageAllocation[[#This Row],[Supply Without Storage (MW)]]+StorageAllocation[[#This Row],[Storage (MW)]] -> 41444.46356 | X2: =StorageAllocation[[#This Row],[Adjusted Supply (MW)]]/StorageAllocation[[#This Row],[Managed Load + NOU (MW)]]-1 -> 0.2000018402
A3: 2 | B3: =SUMIFS(StorageAllocation[Excess Capacity (MW)],StorageAllocation[Month],PRM[[#This Row],[Month]],StorageAllocation[Excess Capacity (MW)],">0") -> 96514.30415 | C3: =SUMIFS(StorageAllocation[Storage (MW)],StorageAllocation[Month],PRM[[#This Row],[Month]])/0.85 -> 60509.41176 | D3: =PRM[[#This Row],[Charging Energy (MWh)]]-PRM[[#This Row],[Charging Requirement (MWh)]] -> 36004.89239 | E3: =4*INDEX(MonthlyCapacities[Total Capacity (MW)],MATCH(1,(MonthlyCapacities[Month]=PRM[[#This Row],[Month]])*(MonthlyCapacities[Unit Category]="Storage"),0))-SUMIFS(StorageAllocation[Storage (MW)],StorageAllocation[Month],PRM[[#This Row],[Month]]) -> 5.820766091e-11 | F3: =_xlfn.MINIFS(StorageAllocation[Storage SOC Day 2],StorageAllocation[Month],PRM[[#This Row],[Month]]) -> 0.2324852668 | G3: =INDEX(MonthlyCapacities[Total Capacity (MW)],MATCH(1,(MonthlyCapacities[Month]=PRM[[#This Row],[Month]])*(MonthlyCapacities[Unit Category]="Storage"),0))-_xlfn.MAXIFS(StorageAllocation[Storage (MW)],StorageAllocation[Month],PRM[[#This Row],[Month]]) -> 5578.64386 | H3: 0.2000324798 | I3: =MATCH(1,(StorageAllocation[Month]=PRM[[#This Row],[Month]])*(_xlfn.MINIFS(StorageAllocation[Excess Capacity (MW)],StorageAllocation[Month],PRM[[#This Row],[Month]])=StorageAllocation[Excess Capacity (MW)]),0)-24*(PRM[[#This Row],[Month]]-1) -> 19 | J3: =INDEX(ManagedLoad[Managed Load (MW)],MATCH(1,(ManagedLoad[Month]=PRM[[#This Row],[Month]])*(ManagedLoad[Hour Ending]=PRM[[#This Row],[Constraining Hour Ending]]),0)) -> 29419 | K3: =INDEX(NOU[NOU MW],MATCH(PRM[[#This Row],[Month]],NOU[Month],0)) -> 11127 | L3: =INDEX(StorageAllocation[Adjusted Supply (MW)],MATCH(1,(StorageAllocation[Month]=PRM[[#This Row],[Month]])*(StorageAllocation[Hour Ending]=PRM[[#This Row],[Constraining Hour Ending]]),0)) -> 48656.51693 | N3: 1 | O3: 2 | P3: =INDEX(ManagedLoad[Total (MW)],MATCH(1,(ManagedLoad[Month]=StorageAllocation[[#This Row],[Month]])*(ManagedLoad[Hour Ending]=StorageAllocation[[#This Row],[Hour Ending]]),0)) -> 33404 | Q3: =StorageAllocation[[#This Row],[Managed Load + NOU (MW)]]*(1+_xlfn.XLOOKUP(StorageAllocation[[#This Row],[Month]],PRM[Month],PRM[Planning Reserve Margin],0,0)) -> 40084.86147 | R3: =SUM(_xlfn._xlws.FILTER(Supply[Supply],(Supply[Month]=StorageAllocation[[#This Row],[Month]])*(Supply[Unit Category]<>"Storage")*(Supply[Hour Ending]=StorageAllocation[[#This Row],[Hour Ending]])=1,0)) -> 40066.66931 | S3: =StorageAllocation[[#This Row],[Supply Without Storage (MW)]]-StorageAllocation[[#This Row],[Total Load with PRM (MW)]] -> -18.19216064 | T3: =MAX(-StorageAllocation[[#This Row],[Excess Capacity (MW)]],0) -> 18.19216064 | U3: =_xlfn.IFS( StorageAllocation[[#This Row],[Hour Ending]]=1, 100% - StorageAllocation[[#This Row],[Storage (MW)]] / (4 * INDEX(MonthlyCapacities[Total Capacity (MW)],MATCH(1,(MonthlyCapacities[Month]=StorageAllocation[[#This Row],[Month]]) * (MonthlyCapacities[Unit Category]="Storage"),0))), StorageAllocation[[#This Row],[Storage (MW)]]>0, OFFSET(StorageAllocation[[#This Row],[Storage SOC Day 1]],-1,0) - StorageAllocation[[#This Row],[Storage (MW)]] / (4 * INDEX(MonthlyCapacities[Total Capacity (MW)],MATCH(1,(MonthlyCapacities[Month]=StorageAllocation[[#This Row],[Month]]) * (MonthlyCapacities[Unit Category]="Storage"),0))), TRUE, MIN( OFFSET(StorageAllocation[[#This Row],[Storage SOC Day 1]],-1,0) + 0.85 / 4, 100% ) ) -> 0.9723223069 | V3: =_xlfn.IFS( StorageAllocation[[#This Row],[Hour Ending]]=1, 100% - StorageAllocation[[#This Row],[Storage (MW)]] / (4 * INDEX(MonthlyCapacities[Total Capacity (MW)],MATCH(1,(MonthlyCapacities[Month]=StorageAllocation[[#This Row],[Month]]) * (MonthlyCapacities[Unit Category]="Storage"),0))), StorageAllocation[[#This Row],[Storage (MW)]]>0, OFFSET(StorageAllocation[[#This Row],[Storage SOC Day 1]],-1,0) - StorageAllocation[[#This Row],[Storage (MW)]] / (4 * INDEX(MonthlyCapacities[Total Capacity (MW)],MATCH(1,(MonthlyCapacities[Month]=StorageAllocation[[#This Row],[Month]]) * (MonthlyCapacities[Unit Category]="Storage"),0))), TRUE, MIN( OFFSET(StorageAllocation[[#This Row],[Storage SOC Day 1]],-1,0) + 0.85 / 4, 100% ) ) -> 0.9723223069 | W3: =StorageAllocation[[#This Row],[Supply Without Storage (MW)]]+StorageAllocation[[#This Row],[Storage (MW)]] -> 40084.86147 | X3: =StorageAllocation[[#This Row],[Adjusted Supply (MW)]]/StorageAllocation[[#This Row],[Managed Load + NOU (MW)]]-1 -> 0.2000018402
A4: 3 | B4: =SUMIFS(StorageAllocation[Excess Capacity (MW)],StorageAllocation[Month],PRM[[#This Row],[Month]],StorageAllocation[Excess Capacity (MW)],">0") -> 96153.89028 | C4: =SUMIFS(StorageAllocation[Storage (MW)],StorageAllocation[Month],PRM[[#This Row],[Month]])/0.85 -> 60509.41176 | D4: =PRM[[#This Row],[Charging Energy (MWh)]]-PRM[[#This Row],[Charging Requirement (MWh)]] -> 35644.47851 | E4: =4*INDEX(MonthlyCapacities[Total Capacity (MW)],MATCH(1,(MonthlyCapacities[Month]=PRM[[#This Row],[Month]])*(MonthlyCapacities[Unit Category]="Storage"),0))-SUMIFS(StorageAllocation[Storage (MW)],StorageAllocation[Month],PRM[[#This Row],[Month]]) -> 0 | F4: =_xlfn.MINIFS(StorageAllocation[Storage SOC Day 2],StorageAllocation[Month],PRM[[#This Row],[Month]]) -> 0.1811366076 | G4: =INDEX(MonthlyCapacities[Total Capacity (MW)],MATCH(1,(MonthlyCapacities[Month]=PRM[[#This Row],[Month]])*(MonthlyCapacities[Unit Category]="Storage"),0))-_xlfn.MAXIFS(StorageAllocation[Storage (MW)],StorageAllocation[Month],PRM[[#This Row],[Month]]) -> 4876.255769 | H4: 0.2000276451 | I4: =MATCH(1,(StorageAllocation[Month]=PRM[[#This Row],[Month]])*(_xlfn.MINIFS(StorageAllocation[Excess Capacity (MW)],StorageAllocation[Month],PRM[[#This Row],[Month]])=StorageAllocation[Excess Capacity (MW)]),0)-24*(PRM[[#This Row],[Month]]-1) -> 20 | J4: =INDEX(ManagedLoad[Managed Load (MW)],MATCH(1,(ManagedLoad[Month]=PRM[[#This Row],[Month]])*(ManagedLoad[Hour Ending]=PRM[[#This Row],[Constraining Hour Ending]]),0)) -> 29412 | K4: =INDEX(NOU[NOU MW],MATCH(PRM[[#This Row],[Month]],NOU[Month],0)) -> 11964 | L4: =INDEX(StorageAllocation[Adjusted Supply (MW)],MATCH(1,(StorageAllocation[Month]=PRM[[#This Row],[Month]])*(StorageAllocation[Hour Ending]=PRM[[#This Row],[Constraining Hour Ending]]),0)) -> 49652.34385 | N4: 1 | O4: 3 | P4: =INDEX(ManagedLoad[Total (MW)],MATCH(1,(ManagedLoad[Month]=StorageAllocation[[#This Row],[Month]])*(ManagedLoad[Hour Ending]=StorageAllocation[[#This Row],[Hour Ending]]),0)) -> 32412 | Q4: =StorageAllocation[[#This Row],[Managed Load + NOU (MW)]]*(1+_xlfn.XLOOKUP(StorageAllocation[[#This Row],[Month]],PRM[Month],PRM[Planning Reserve Margin],0,0)) -> 38894.45964 | R4: =SUM(_xlfn._xlws.FILTER(Supply[Supply],(Supply[Month]=StorageAllocation[[#This Row],[Month]])*(Supply[Unit Category]<>"Storage")*(Supply[Hour Ending]=StorageAllocation[[#This Row],[Hour Ending]])=1,0)) -> 40104.89526 | S4: =StorageAllocation[[#This Row],[Supply Without Storage (MW)]]-StorageAllocation[[#This Row],[Total Load with PRM (MW)]] -> 1210.435615 | T4: =MAX(-StorageAllocation[[#This Row],[Excess Capacity (MW)]],0) -> 0 | U4: =_xlfn.IFS( StorageAllocation[[#This Row],[Hour Ending]]=1, 100% - StorageAllocation[[#This Row],[Storage (MW)]] / (4 * INDEX(MonthlyCapacities[Total Capacity (MW)],MATCH(1,(MonthlyCapacities[Month]=StorageAllocation[[#This Row],[Month]]) * (MonthlyCapacities[Unit Category]="Storage"),0))), StorageAllocation[[#This Row],[Storage (MW)]]>0, OFFSET(StorageAllocation[[#This Row],[Storage SOC Day 1]],-1,0) - StorageAllocation[[#This Row],[Storage (MW)]] / (4 * INDEX(MonthlyCapacities[Total Capacity (MW)],MATCH(1,(MonthlyCapacities[Month]=StorageAllocation[[#This Row],[Month]]) * (MonthlyCapacities[Unit Category]="Storage"),0))), TRUE, MIN( OFFSET(StorageAllocation[[#This Row],[Storage SOC Day 1]],-1,0) + 0.85 / 4, 100% ) ) -> 1 | V4: =_xlfn.IFS( StorageAllocation[[#This Row],[Hour Ending]]=1, 100% - StorageAllocation[[#This Row],[Storage (MW)]] / (4 * INDEX(MonthlyCapacities[Total Capacity (MW)],MATCH(1,(MonthlyCapacities[Month]=StorageAllocation[[#This Row],[Month]]) * (MonthlyCapacities[Unit Category]="Storage"),0))), StorageAllocation[[#This Row],[Storage (MW)]]>0, OFFSET(StorageAllocation[[#This Row],[Storage SOC Day 1]],-1,0) - StorageAllocation[[#This Row],[Storage (MW)]] / (4 * INDEX(MonthlyCapacities[Total Capacity (MW)],MATCH(1,(MonthlyCapacities[Month]=StorageAllocation[[#This Row],[Month]]) * (MonthlyCapacities[Unit Category]="Storage"),0))), TRUE, MIN( OFFSET(StorageAllocation[[#This Row],[Storage SOC Day 1]],-1,0) + 0.85 / 4, 100% ) ) -> 1 | W4: =StorageAllocation[[#This Row],[Supply Without Storage (MW)]]+StorageAllocation[[#This Row],[Storage (MW)]] -> 40104.89526 | X4: =StorageAllocation[[#This Row],[Adjusted Supply (MW)]]/StorageAllocation[[#This Row],[Managed Load + NOU (MW)]]-1 -> 0.2373471325
A5: 4 | B5: =SUMIFS(StorageAllocation[Excess Capacity (MW)],StorageAllocation[Month],PRM[[#This Row],[Month]],StorageAllocation[Excess Capacity (MW)],">0") -> 131204.3155 | C5: =SUMIFS(StorageAllocation[Storage (MW)],StorageAllocation[Month],PRM[[#This Row],[Month]])/0.85 -> 60514.87059 | D5: =PRM[[#This Row],[Charging Energy (MWh)]]-PRM[[#This Row],[Charging Requirement (MWh)]] -> 70689.44494 | E5: =4*INDEX(MonthlyCapacities[Total Capacity (MW)],MATCH(1,(MonthlyCapacities[Month]=PRM[[#This Row],[Month]])*(MonthlyCapacities[Unit Category]="Storage"),0))-SUMIFS(StorageAllocation[Storage (MW)],StorageAllocation[Month],PRM[[#This Row],[Month]]) -> 5.820766091e-11 | F5: =_xlfn.MINIFS(StorageAllocation[Storage SOC Day 2],StorageAllocation[Month],PRM[[#This Row],[Month]]) -> 0.08536339963 | G5: =INDEX(MonthlyCapacities[Total Capacity (MW)],MATCH(1,(MonthlyCapacities[Month]=PRM[[#This Row],[Month]])*(MonthlyCapacities[Unit Category]="Storage"),0))-_xlfn.MAXIFS(StorageAllocation[Storage (MW)],StorageAllocation[Month],PRM[[#This Row],[Month]]) -> 3336.639883 | H5: 0.2449972543 | I5: =MATCH(1,(StorageAllocation[Month]=PRM[[#This Row],[Month]])*(_xlfn.MINIFS(StorageAllocation[Excess Capacity (MW)],StorageAllocation[Month],PRM[[#This Row],[Month]])=StorageAllocation[Excess Capacity (MW)]),0)-24*(PRM[[#This Row],[Month]]-1) -> 19 | J5: =INDEX(ManagedLoad[Managed Load (MW)],MATCH(1,(ManagedLoad[Month]=PRM[[#This Row],[Month]])*(ManagedLoad[Hour Ending]=PRM[[#This Row],[Constraining Hour Ending]]),0)) -> 31688 | K5: =INDEX(NOU[NOU MW],MATCH(PRM[[#This Row],[Month]],NOU[Month],0)) -> 11270 | L5: =INDEX(StorageAllocation[Adjusted Supply (MW)],MATCH(1,(StorageAllocation[Month]=PRM[[#This Row],[Month]])*(StorageAllocation[Hour Ending]=PRM[[#This Row],[Constraining Hour Ending]]),0)) -> 53482.59205 | N5: 1 | O5: 4 | P5: =INDEX(ManagedLoad[Total (MW)],MATCH(1,(ManagedLoad[Month]=StorageAllocation[[#This Row],[Month]])*(ManagedLoad[Hour Ending]=StorageAllocation[[#This Row],[Hour Ending]]),0)) -> 31952 | Q5: =StorageAllocation[[#This Row],[Managed Load + NOU (MW)]]*(1+_xlfn.XLOOKUP(StorageAllocation[[#This Row],[Month]],PRM[Month],PRM[Planning Reserve Margin],0,0)) -> 38342.4588 | R5: =SUM(_xlfn._xlws.FILTER(Supply[Supply],(Supply[Month]=StorageAllocation[[#This Row],[Month]])*(Supply[Unit Category]<>"Storage")*(Supply[Hour Ending]=StorageAllocation[[#This Row],[Hour Ending]])=1,0)) -> 40077.37697 | S5: =StorageAllocation[[#This Row],[Supply Without Storage (MW)]]-StorageAllocation[[#This Row],[Total Load with PRM (MW)]] -> 1734.918172 | T5: =MAX(-StorageAllocation[[#This Row],[Excess Capacity (MW)]],0) -> 0 | U5: =_xlfn.IFS( StorageAllocation[[#This Row],[Hour Ending]]=1, 100% - StorageAllocation[[#This Row],[Storage (MW)]] / (4 * INDEX(MonthlyCapacities[Total Capacity (MW)],MATCH(1,(MonthlyCapacities[Month]=StorageAllocation[[#This Row],[Month]]) * (MonthlyCapacities[Unit Category]="Storage"),0))), StorageAllocation[[#This Row],[Storage (MW)]]>0, OFFSET(StorageAllocation[[#This Row],[Storage SOC Day 1]],-1,0) - StorageAllocation[[#This Row],[Storage (MW)]] / (4 * INDEX(MonthlyCapacities[Total Capacity (MW)],MATCH(1,(MonthlyCapacities[Month]=StorageAllocation[[#This Row],[Month]]) * (MonthlyCapacities[Unit Category]="Storage"),0))), TRUE, MIN( OFFSET(StorageAllocation[[#This Row],[Storage SOC Day 1]],-1,0) + 0.85 / 4, 100% ) ) -> 1 | V5: =_xlfn.IFS( StorageAllocation[[#This Row],[Hour Ending]]=1, 100% - StorageAllocation[[#This Row],[Storage (MW)]] / (4 * INDEX(MonthlyCapacities[Total Capacity (MW)],MATCH(1,(MonthlyCapacities[Month]=StorageAllocation[[#This Row],[Month]]) * (MonthlyCapacities[Unit Category]="Storage"),0))), StorageAllocation[[#This Row],[Storage (MW)]]>0, OFFSET(StorageAllocation[[#This Row],[Storage SOC Day 1]],-1,0) - StorageAllocation[[#This Row],[Storage (MW)]] / (4 * INDEX(MonthlyCapacities[Total Capacity (MW)],MATCH(1,(MonthlyCapacities[Month]=StorageAllocation[[#This Row],[Month]]) * (MonthlyCapacities[Unit Category]="Storage"),0))), TRUE, MIN( OFFSET(StorageAllocation[[#This Row],[Storage SOC Day 1]],-1,0) + 0.85 / 4, 100% ) ) -> 1 | W5: =StorageAllocation[[#This Row],[Supply Without Storage (MW)]]+StorageAllocation[[#This Row],[Storage (MW)]] -> 40077.37697 | X5: =StorageAllocation[[#This Row],[Adjusted Supply (MW)]]/StorageAllocation[[#This Row],[Managed Load + NOU (MW)]]-1 -> 0.2542994795
A6: 5 | B6: =SUMIFS(StorageAllocation[Excess Capacity (MW)],StorageAllocation[Month],PRM[[#This Row],[Month]],StorageAllocation[Excess Capacity (MW)],">0") -> 121848.771 | C6: =SUMIFS(StorageAllocation[Storage (MW)],StorageAllocation[Month],PRM[[#This Row],[Month]])/0.85 -> 60555.15294 | D6: =PRM[[#This Row],[Charging Energy (MWh)]]-PRM[[#This Row],[Charging Requirement (MWh)]] -> 61293.61808 | E6: =4*INDEX(MonthlyCapacities[Total Capacity (MW)],MATCH(1,(MonthlyCapacities[Month]=PRM[[#This Row],[Month]])*(MonthlyCapacities[Unit Category]="Storage"),0))-SUMIFS(StorageAllocation[Storage (MW)],StorageAllocation[Month],PRM[[#This Row],[Month]]) -> 0 | F6: =_xlfn.MINIFS(StorageAllocation[Storage SOC Day 2],StorageAllocation[Month],PRM[[#This Row],[Month]]) -> 0.04039667806 | G6: =INDEX(MonthlyCapacities[Total Capacity (MW)],MATCH(1,(MonthlyCapacities[Month]=PRM[[#This Row],[Month]])*(MonthlyCapacities[Unit Category]="Storage"),0))-_xlfn.MAXIFS(StorageAllocation[Storage (MW)],StorageAllocation[Month],PRM[[#This Row],[Month]]) -> 2686.535461 | H6: 0.2450035004 | I6: =MATCH(1,(StorageAllocation[Month]=PRM[[#This Row],[Month]])*(_xlfn.MINIFS(StorageAllocation[Excess Capacity (MW)],StorageAllocation[Month],PRM[[#This Row],[Month]])=StorageAllocation[Excess Capacity (MW)]),0)-24*(PRM[[#This Row],[Month]]-1) -> 20 | J6: =INDEX(ManagedLoad[Managed Load (MW)],MATCH(1,(ManagedLoad[Month]=PRM[[#This Row],[Month]])*(ManagedLoad[Hour Ending]=PRM[[#This Row],[Constraining Hour Ending]]),0)) -> 33897 | K6: =INDEX(NOU[NOU MW],MATCH(PRM[[#This Row],[Month]],NOU[Month],0)) -> 10442 | L6: =INDEX(StorageAllocation[Adjusted Supply (MW)],MATCH(1,(StorageAllocation[Month]=PRM[[#This Row],[Month]])*(StorageAllocation[Hour Ending]=PRM[[#This Row],[Constraining Hour Ending]]),0)) -> 55202.21021 | N6: 1 | O6: 5 | P6: =INDEX(ManagedLoad[Total (MW)],MATCH(1,(ManagedLoad[Month]=StorageAllocation[[#This Row],[Month]])*(ManagedLoad[Hour Ending]=StorageAllocation[[#This Row],[Hour Ending]]),0)) -> 32399 | Q6: =StorageAllocation[[#This Row],[Managed Load + NOU (MW)]]*(1+_xlfn.XLOOKUP(StorageAllocation[[#This Row],[Month]],PRM[Month],PRM[Planning Reserve Margin],0,0)) -> 38878.85962 | R6: =SUM(_xlfn._xlws.FILTER(Supply[Supply],(Supply[Month]=StorageAllocation[[#This Row],[Month]])*(Supply[Unit Category]<>"Storage")*(Supply[Hour Ending]=StorageAllocation[[#This Row],[Hour Ending]])=1,0)) -> 40069.0129 | S6: =StorageAllocation[[#This Row],[Supply Without Storage (MW)]]-StorageAllocation[[#This Row],[Total Load with PRM (MW)]] -> 1190.15328 | T6: =MAX(-StorageAllocation[[#This Row],[Excess Capacity (MW)]],0) -> 0 | U6: =_xlfn.IFS( StorageAllocation[[#This Row],[Hour Ending]]=1, 100% - StorageAllocation[[#This Row],[Storage (MW)]] / (4 * INDEX(MonthlyCapacities[Total Capacity (MW)],MATCH(1,(MonthlyCapacities[Month]=StorageAllocation[[#This Row],[Month]]) * (MonthlyCapacities[Unit Category]="Storage"),0))), StorageAllocation[[#This Row],[Storage (MW)]]>0, OFFSET(StorageAllocation[[#This Row],[Storage SOC Day 1]],-1,0) - StorageAllocation[[#This Row],[Storage (MW)]] / (4 * INDEX(MonthlyCapacities[Total Capacity (MW)],MATCH(1,(MonthlyCapacities[Month]=StorageAllocation[[#This Row],[Month]]) * (MonthlyCapacities[Unit Category]="Storage"),0))), TRUE, MIN( OFFSET(StorageAllocation[[#This Row],[Storage SOC Day 1]],-1,0) + 0.85 / 4, 100% ) ) -> 1 | V6: =_xlfn.IFS( StorageAllocation[[#This Row],[Hour Ending]]=1, 100% - StorageAllocation[[#This Row],[Storage (MW)]] / (4 * INDEX(MonthlyCapacities[Total Capacity (MW)],MATCH(1,(MonthlyCapacities[Month]=StorageAllocation[[#This Row],[Month]]) * (MonthlyCapacities[Unit Category]="Storage"),0))), StorageAllocation[[#This Row],[Storage (MW)]]>0, OFFSET(StorageAllocation[[#This Row],[Storage SOC Day 1]],-1,0) - StorageAllocation[[#This Row],[Storage (MW)]] / (4 * INDEX(MonthlyCapacities[Total Capacity (MW)],MATCH(1,(MonthlyCapacities[Month]=StorageAllocation[[#This Row],[Month]]) * (MonthlyCapacities[Unit Category]="Storage"),0))), TRUE, MIN( OFFSET(StorageAllocation[[#This Row],[Storage SOC Day 1]],-1,0) + 0.85 / 4, 100% ) ) -> 1 | W6: =StorageAllocation[[#This Row],[Supply Without Storage (MW)]]+StorageAllocation[[#This Row],[Storage (MW)]] -> 40069.0129 | X6: =StorageAllocation[[#This Row],[Adjusted Supply (MW)]]/StorageAllocation[[#This Row],[Managed Load + NOU (MW)]]-1 -> 0.2367360999
A7: 6 | B7: =SUMIFS(StorageAllocation[Excess Capacity (MW)],StorageAllocation[Month],PRM[[#This Row],[Month]],StorageAllocation[Excess Capacity (MW)],">0") -> 122184.1231 | C7: =SUMIFS(StorageAllocation[Storage (MW)],StorageAllocation[Month],PRM[[#This Row],[Month]])/0.85 -> 61136.04706 | D7: =PRM[[#This Row],[Charging Energy (MWh)]]-PRM[[#This Row],[Charging Requirement (MWh)]] -> 61048.07606 | E7: =4*INDEX(MonthlyCapacities[Total Capacity (MW)],MATCH(1,(MonthlyCapacities[Month]=PRM[[#This Row],[Month]])*(MonthlyCapacities[Unit Category]="Storage"),0))-SUMIFS(StorageAllocation[Storage (MW)],StorageAllocation[Month],PRM[[#This Row],[Month]]) -> 0 | F7: =_xlfn.MINIFS(StorageAllocation[Storage SOC Day 2],StorageAllocation[Month],PRM[[#This Row],[Month]]) -> 2.081668171e-17 | G7: =INDEX(MonthlyCapacities[Total Capacity (MW)],MATCH(1,(MonthlyCapacities[Month]=PRM[[#This Row],[Month]])*(MonthlyCapacities[Unit Category]="Storage"),0))-_xlfn.MAXIFS(StorageAllocation[Storage (MW)],StorageAllocation[Month],PRM[[#This Row],[Month]]) -> 1433.18506 | H7: 0.2100100392 | I7: =MATCH(1,(StorageAllocation[Month]=PRM[[#This Row],[Month]])*(_xlfn.MINIFS(StorageAllocation[Excess Capacity (MW)],StorageAllocation[Month],PRM[[#This Row],[Month]])=StorageAllocation[Excess Capacity (MW)]),0)-24*(PRM[[#This Row],[Month]]-1) -> 19 | J7: =INDEX(ManagedLoad[Managed Load (MW)],MATCH(1,(ManagedLoad[Month]=PRM[[#This Row],[Month]])*(ManagedLoad[Hour Ending]=PRM[[#This Row],[Constraining Hour Ending]]),0)) -> 41906 | K7: =INDEX(NOU[NOU MW],MATCH(PRM[[#This Row],[Month]],NOU[Month],0)) -> 6509 | L7: =INDEX(StorageAllocation[Adjusted Supply (MW)],MATCH(1,(StorageAllocation[Month]=PRM[[#This Row],[Month]])*(StorageAllocation[Hour Ending]=PRM[[#This Row],[Constraining Hour Ending]]),0)) -> 58582.63605 | N7: 1 | O7: 6 | P7: =INDEX(ManagedLoad[Total (MW)],MATCH(1,(ManagedLoad[Month]=StorageAllocation[[#This Row],[Month]])*(ManagedLoad[Hour Ending]=StorageAllocation[[#This Row],[Hour Ending]]),0)) -> 33904 | Q7: =StorageAllocation[[#This Row],[Managed Load + NOU (MW)]]*(1+_xlfn.XLOOKUP(StorageAllocation[[#This Row],[Month]],PRM[Month],PRM[Planning Reserve Margin],0,0)) -> 40684.86239 | R7: =SUM(_xlfn._xlws.FILTER(Supply[Supply],(Supply[Month]=StorageAllocation[[#This Row],[Month]])*(Supply[Unit Category]<>"Storage")*(Supply[Hour Ending]=StorageAllocation[[#This Row],[Hour Ending]])=1,0)) -> 40036.61401 | S7: =StorageAllocation[[#This Row],[Supply Without Storage (MW)]]-StorageAllocation[[#This Row],[Total Load with PRM (MW)]] -> -648.2483794 | T7: =MAX(-StorageAllocation[[#This Row],[Excess Capacity (MW)]],0) -> 648.2483794 | U7: =_xlfn.IFS( StorageAllocation[[#This Row],[Hour Ending]]=1, 100% - StorageAllocation[[#This Row],[Storage (MW)]] / (4 * INDEX(MonthlyCapacities[Total Capacity (MW)],MATCH(1,(MonthlyCapacities[Month]=StorageAllocation[[#This Row],[Month]]) * (MonthlyCapacities[Unit Category]="Storage"),0))), StorageAllocation[[#This Row],[Storage (MW)]]>0, OFFSET(StorageAllocation[[#This Row],[Storage SOC Day 1]],-1,0) - StorageAllocation[[#This Row],[Storage (MW)]] / (4 * INDEX(MonthlyCapacities[Total Capacity (MW)],MATCH(1,(MonthlyCapacities[Month]=StorageAllocation[[#This Row],[Month]]) * (MonthlyCapacities[Unit Category]="Storage"),0))), TRUE, MIN( OFFSET(StorageAllocation[[#This Row],[Storage SOC Day 1]],-1,0) + 0.85 / 4, 100% ) ) -> 0.9873962557 | V7: =_xlfn.IFS( StorageAllocation[[#This Row],[Hour Ending]]=1, 100% - StorageAllocation[[#This Row],[Storage (MW)]] / (4 * INDEX(MonthlyCapacities[Total Capacity (MW)],MATCH(1,(MonthlyCapacities[Month]=StorageAllocation[[#This Row],[Month]]) * (MonthlyCapacities[Unit Category]="Storage"),0))), StorageAllocation[[#This Row],[Storage (MW)]]>0, OFFSET(StorageAllocation[[#This Row],[Storage SOC Day 1]],-1,0) - StorageAllocation[[#This Row],[Storage (MW)]] / (4 * INDEX(MonthlyCapacities[Total Capacity (MW)],MATCH(1,(MonthlyCapacities[Month]=StorageAllocation[[#This Row],[Month]]) * (MonthlyCapacities[Unit Category]="Storage"),0))), TRUE, MIN( OFFSET(StorageAllocation[[#This Row],[Storage SOC Day 1]],-1,0) + 0.85 / 4, 100% ) ) -> 0.9873962557 | W7: =StorageAllocation[[#This Row],[Supply Without Storage (MW)]]+StorageAllocation[[#This Row],[Storage (MW)]] -> 40684.86239 | X7: =StorageAllocation[[#This Row],[Adjusted Supply (MW)]]/StorageAllocation[[#This Row],[Managed Load + NOU (MW)]]-1 -> 0.2000018402
A8: 7 | B8: =SUMIFS(StorageAllocation[Excess Capacity (MW)],StorageAllocation[Month],PRM[[#This Row],[Month]],StorageAllocation[Excess Capacity (MW)],">0") -> 114327.0002 | C8: =SUMIFS(StorageAllocation[Storage (MW)],StorageAllocation[Month],PRM[[#This Row],[Month]])/0.85 -> 61447.52941 | D8: =PRM[[#This Row],[Charging Energy (MWh)]]-PRM[[#This Row],[Charging Requirement (MWh)]] -> 52879.47083 | E8: =4*INDEX(MonthlyCapacities[Total Capacity (MW)],MATCH(1,(MonthlyCapacities[Month]=PRM[[#This Row],[Month]])*(MonthlyCapacities[Unit Category]="Storage"),0))-SUMIFS(StorageAllocation[Storage (MW)],StorageAllocation[Month],PRM[[#This Row],[Month]]) -> 0 | F8: =_xlfn.MINIFS(StorageAllocation[Storage SOC Day 2],StorageAllocation[Month],PRM[[#This Row],[Month]]) -> -4.111294638e-16 | G8: =INDEX(MonthlyCapacities[Total Capacity (MW)],MATCH(1,(MonthlyCapacities[Month]=PRM[[#This Row],[Month]])*(MonthlyCapacities[Unit Category]="Storage"),0))-_xlfn.MAXIFS(StorageAllocation[Storage (MW)],StorageAllocation[Month],PRM[[#This Row],[Month]]) -> 968.2519758 | H8: 0.2100078555 | I8: =MATCH(1,(StorageAllocation[Month]=PRM[[#This Row],[Month]])*(_xlfn.MINIFS(StorageAllocation[Excess Capacity (MW)],StorageAllocation[Month],PRM[[#This Row],[Month]])=StorageAllocation[Excess Capacity (MW)]),0)-24*(PRM[[#This Row],[Month]]-1) -> 19 | J8: =INDEX(ManagedLoad[Managed Load (MW)],MATCH(1,(ManagedLoad[Month]=PRM[[#This Row],[Month]])*(ManagedLoad[Hour Ending]=PRM[[#This Row],[Constraining Hour Ending]]),0)) -> 45588 | K8: =INDEX(NOU[NOU MW],MATCH(PRM[[#This Row],[Month]],NOU[Month],0)) -> 3468 | L8: =INDEX(StorageAllocation[Adjusted Supply (MW)],MATCH(1,(StorageAllocation[Month]=PRM[[#This Row],[Month]])*(StorageAllocation[Hour Ending]=PRM[[#This Row],[Constraining Hour Ending]]),0)) -> 59358.14536 | N8: 1 | O8: 7 | P8: =INDEX(ManagedLoad[Total (MW)],MATCH(1,(ManagedLoad[Month]=StorageAllocation[[#This Row],[Month]])*(ManagedLoad[Hour Ending]=StorageAllocation[[#This Row],[Hour Ending]]),0)) -> 36586 | Q8: =StorageAllocation[[#This Row],[Managed Load + NOU (MW)]]*(1+_xlfn.XLOOKUP(StorageAllocation[[#This Row],[Month]],PRM[Month],PRM[Planning Reserve Margin],0,0)) -> 43903.26733 | R8: =SUM(_xlfn._xlws.FILTER(Supply[Supply],(Supply[Month]=StorageAllocation[[#This Row],[Month]])*(Supply[Unit Category]<>"Storage")*(Supply[Hour Ending]=StorageAllocation[[#This Row],[Hour Ending]])=1,0)) -> 39968.32347 | S8: =StorageAllocation[[#This Row],[Supply Without Storage (MW)]]-StorageAllocation[[#This Row],[Total Load with PRM (MW)]] -> -3934.943859 | T8: =MAX(-StorageAllocation[[#This Row],[Excess Capacity (MW)]],0) -> 3934.943859 | U8: =_xlfn.IFS( StorageAllocation[[#This Row],[Hour Ending]]=1, 100% - StorageAllocation[[#This Row],[Storage (MW)]] / (4 * INDEX(MonthlyCapacities[Total Capacity (MW)],MATCH(1,(MonthlyCapacities[Month]=StorageAllocation[[#This Row],[Month]]) * (MonthlyCapacities[Unit Category]="Storage"),0))), StorageAllocation[[#This Row],[Storage (MW)]]>0, OFFSET(StorageAllocation[[#This Row],[Storage SOC Day 1]],-1,0) - StorageAllocation[[#This Row],[Storage (MW)]] / (4 * INDEX(MonthlyCapacities[Total Capacity (MW)],MATCH(1,(MonthlyCapacities[Month]=StorageAllocation[[#This Row],[Month]]) * (MonthlyCapacities[Unit Category]="Storage"),0))), TRUE, MIN( OFFSET(StorageAllocation[[#This Row],[Storage SOC Day 1]],-1,0) + 0.85 / 4, 100% ) ) -> 0.9108900465 | V8: =_xlfn.IFS( StorageAllocation[[#This Row],[Hour Ending]]=1, 100% - StorageAllocation[[#This Row],[Storage (MW)]] / (4 * INDEX(MonthlyCapacities[Total Capacity (MW)],MATCH(1,(MonthlyCapacities[Month]=StorageAllocation[[#This Row],[Month]]) * (MonthlyCapacities[Unit Category]="Storage"),0))), StorageAllocation[[#This Row],[Storage (MW)]]>0, OFFSET(StorageAllocation[[#This Row],[Storage SOC Day 1]],-1,0) - StorageAllocation[[#This Row],[Storage (MW)]] / (4 * INDEX(MonthlyCapacities[Total Capacity (MW)],MATCH(1,(MonthlyCapacities[Month]=StorageAllocation[[#This Row],[Month]]) * (MonthlyCapacities[Unit Category]="Storage"),0))), TRUE, MIN( OFFSET(StorageAllocation[[#This Row],[Storage SOC Day 1]],-1,0) + 0.85 / 4, 100% ) ) -> 0.9108900465 | W8: =StorageAllocation[[#This Row],[Supply Without Storage (MW)]]+StorageAllocation[[#This Row],[Storage (MW)]] -> 43903.26733 | X8: =StorageAllocation[[#This Row],[Adjusted Supply (MW)]]/StorageAllocation[[#This Row],[Managed Load + NOU (MW)]]-1 -> 0.2000018402
A9: 8 | B9: =SUMIFS(StorageAllocation[Excess Capacity (MW)],StorageAllocation[Month],PRM[[#This Row],[Month]],StorageAllocation[Excess Capacity (MW)],">0") -> 117517.4347 | C9: =SUMIFS(StorageAllocation[Storage (MW)],StorageAllocation[Month],PRM[[#This Row],[Month]])/0.85 -> 60807.52941 | D9: =PRM[[#This Row],[Charging Energy (MWh)]]-PRM[[#This Row],[Charging Requirement (MWh)]] -> 56709.90532 | E9: =4*INDEX(MonthlyCapacities[Total Capacity (MW)],MATCH(1,(MonthlyCapacities[Month]=PRM[[#This Row],[Month]])*(MonthlyCapacities[Unit Category]="Storage"),0))-SUMIFS(StorageAllocation[Storage (MW)],StorageAllocation[Month],PRM[[#This Row],[Month]]) -> 0 | F9: =_xlfn.MINIFS(StorageAllocation[Storage SOC Day 2],StorageAllocation[Month],PRM[[#This Row],[Month]]) -> 1.674008154e-16 | G9: =INDEX(MonthlyCapacities[Total Capacity (MW)],MATCH(1,(MonthlyCapacities[Month]=PRM[[#This Row],[Month]])*(MonthlyCapacities[Unit Category]="Storage"),0))-_xlfn.MAXIFS(StorageAllocation[Storage (MW)],StorageAllocation[Month],PRM[[#This Row],[Month]]) -> 348.747661 | H9: 0.2100089571 | I9: =MATCH(1,(StorageAllocation[Month]=PRM[[#This Row],[Month]])*(_xlfn.MINIFS(StorageAllocation[Excess Capacity (MW)],StorageAllocation[Month],PRM[[#This Row],[Month]])=StorageAllocation[Excess Capacity (MW)]),0)-24*(PRM[[#This Row],[Month]]-1) -> 19 | J9: =INDEX(ManagedLoad[Managed Load (MW)],MATCH(1,(ManagedLoad[Month]=PRM[[#This Row],[Month]])*(ManagedLoad[Hour Ending]=PRM[[#This Row],[Constraining Hour Ending]]),0)) -> 44125 | K9: =INDEX(NOU[NOU MW],MATCH(PRM[[#This Row],[Month]],NOU[Month],0)) -> 3775 | L9: =INDEX(StorageAllocation[Adjusted Supply (MW)],MATCH(1,(StorageAllocation[Month]=PRM[[#This Row],[Month]])*(StorageAllocation[Hour Ending]=PRM[[#This Row],[Constraining Hour Ending]]),0)) -> 57959.42904 | N9: 1 | O9: 8 | P9: =INDEX(ManagedLoad[Total (MW)],MATCH(1,(ManagedLoad[Month]=StorageAllocation[[#This Row],[Month]])*(ManagedLoad[Hour Ending]=StorageAllocation[[#This Row],[Hour Ending]]),0)) -> 38162 | Q9: =StorageAllocation[[#This Row],[Managed Load + NOU (MW)]]*(1+_xlfn.XLOOKUP(StorageAllocation[[#This Row],[Month]],PRM[Month],PRM[Planning Reserve Margin],0,0)) -> 45794.47023 | R9: =SUM(_xlfn._xlws.FILTER(Supply[Supply],(Supply[Month]=StorageAllocation[[#This Row],[Month]])*(Supply[Unit Category]<>"Storage")*(Supply[Hour Ending]=StorageAllocation[[#This Row],[Hour Ending]])=1,0)) -> 41449.89654 | S9: =StorageAllocation[[#This Row],[Supply Without Storage (MW)]]-StorageAllocation[[#This Row],[Total Load with PRM (MW)]] -> -4344.573683 | T9: =MAX(-StorageAllocation[[#This Row],[Excess Capacity (MW)]],0) -> 4344.573683 | U9: =_xlfn.IFS( StorageAllocation[[#This Row],[Hour Ending]]=1, 100% - StorageAllocation[[#This Row],[Storage (MW)]] / (4 * INDEX(MonthlyCapacities[Total Capacity (MW)],MATCH(1,(MonthlyCapacities[Month]=StorageAllocation[[#This Row],[Month]]) * (MonthlyCapacities[Unit Category]="Storage"),0))), StorageAllocation[[#This Row],[Storage (MW)]]>0, OFFSET(StorageAllocation[[#This Row],[Storage SOC Day 1]],-1,0) - StorageAllocation[[#This Row],[Storage (MW)]] / (4 * INDEX(MonthlyCapacities[Total Capacity (MW)],MATCH(1,(MonthlyCapacities[Month]=StorageAllocation[[#This Row],[Month]]) * (MonthlyCapacities[Unit Category]="Storage"),0))), TRUE, MIN( OFFSET(StorageAllocation[[#This Row],[Storage SOC Day 1]],-1,0) + 0.85 / 4, 100% ) ) -> 0.8264194987 | V9: =_xlfn.IFS( StorageAllocation[[#This Row],[Hour Ending]]=1, 100% - StorageAllocation[[#This Row],[Storage (MW)]] / (4 * INDEX(MonthlyCapacities[Total Capacity (MW)],MATCH(1,(MonthlyCapacities[Month]=StorageAllocation[[#This Row],[Month]]) * (MonthlyCapacities[Unit Category]="Storage"),0))), StorageAllocation[[#This Row],[Storage (MW)]]>0, OFFSET(StorageAllocation[[#This Row],[Storage SOC Day 1]],-1,0) - StorageAllocation[[#This Row],[Storage (MW)]] / (4 * INDEX(MonthlyCapacities[Total Capacity (MW)],MATCH(1,(MonthlyCapacities[Month]=StorageAllocation[[#This Row],[Month]]) * (MonthlyCapacities[Unit Category]="Storage"),0))), TRUE, MIN( OFFSET(StorageAllocation[[#This Row],[Storage SOC Day 1]],-1,0) + 0.85 / 4, 100% ) ) -> 0.8264194987 | W9: =StorageAllocation[[#This Row],[Supply Without Storage (MW)]]+StorageAllocation[[#This Row],[Storage (MW)]] -> 45794.47023 | X9: =StorageAllocation[[#This Row],[Adjusted Supply (MW)]]/StorageAllocation[[#This Row],[Managed Load + NOU (MW)]]-1 -> 0.2000018402
